Workbook

Sheet INDICE
F1: SENEGAL
F2: Trocas comerciais com Portugal (PT) 2018-2022 Setores agrícola e agroalimentar, do mar e das florestas
C3: Fonte
D4: Estatísticas do Comércio Internacional | F4: Senegal - Síntese
D5: dados: 2021 provisórios; 2022 preliminares | F5: 1. Evolução da balança comercial
F6: 2. Ranking dos parceiros comerciais de Portugal por país
C7: Data | D7: 2023-04-10T11:41:25.980 | F7: 3. Principais produtos transacionados (NC a 2 e 4 dígitos)
F8: 3A Principais produtos transacionados (sem mar nem florestas)
F9: 4A Evolução da balança comercial por produto
F10: 5.2. Trocas comerciais por produto (NC 2 dígitos)

Sheet Sintese
A1: Senegal - Síntese (2018-2022)
A3: • As trocas comerciais de bens transacionáveis (excluindo serviços) entre Portugal e Senegal representam um total de 41,8 milhões de € (M€) em exportações e 18,2 M€ em importações, na média do período 2018-2022, correspondendo a um saldo positivo da balança comercial de cerca de 23,6 M€.
A4: • No que respeita aos produtos dos setores agrícola e agroalimentar, mar e florestas, Portugal exportou para Senegal 11,3 M€ em média anual, no mesmo período (este país ocupa assim a 60ª posição em relação ao total dos países), enquanto as importações totalizaram 17,6 M€ (47ª posição), com um saldo negativo de -6,3 M€. Estes setores representam perto de 27% do total de exportações de bens transacionáveis e 96,7% das correspondentes importações.
A5: • Se nos referirmos apenas ao setor agrícola e agroalimentar, as exportações representam, em média, 8,5 M€ (48ª posição) e as importações 0,6 milhões (110ª posição), ou seja, Portugal tem um saldo positivo de 7,9 M€. Estes valores representam, respetivamente, cerca de 75,3% das exportações do setor agroflorestal e mar e 3,2% das importações.
A6: • As principais exportações agrícolas e agroalimentares (NC 4 dígitos) neste período são Águas com açúcar ou outros produtos; outras bebidas (48%), Tabaco não manufaturado (15%) e Outros produtos de tabaco (8%). As importações agrícolas e agroalimentares mais relevantes referem-se a Algodão não cardado nem penteado (56%), Gorduras e óleos de peixes,etc. (29%) e Plantas, partes de plantas para usos não alimentares (5%). Se considerarmos também os produtos do mar e da floresta, merecem particular destaque, em termos de exportações, Águas com açúcar ou outros produtos; outras bebidas (36%), Tabaco não manufaturado (12%) e Papel e cartão p/ escrita, etc. (7%). Nas importações destes setores, destacam-se Moluscos (33%), Peixes congelados (25%) e Peixes frescos ou refrigerados (24%).
A9: Saldo da Balança Comercial | B9: 2020 | C9: 2021 | D9: 2022 | E9: média 2018-2022 | H9: Posição entre os parceiros comerciais de Portugal (milhares de euros)
A10: Total de Bens Transacionáveis* | B10: 30345.157 | C10: 27925.249 | D10: 1963-09-09T10:49:26.400 | E10: 23636.0004 | H10: AA + M + F | I10: Posição | J10: média 2018-2022 | K10: % do total | L10: TVMA* 2018-2022 | M10: TVT* 2018-2022
A11: Agrícola e Agroalimentar (AA) | B11: 6326.486 | C11: 10178.137 | D11: 1936-11-27T13:24:57.600 | E11: 7930.3738 | H11: Exportações | I11: 60ª | J11: 11278.9004 | K11: 0.0008701483307 | L11: 0.2039236163 | M11: 1.100853337
A12: Mar (M) | B12: -10390.647 | C12: -12446.569 | D12: -19164.814 | E12: -16987.4028 | H12: Importações | I12: 47ª | J12: 17576.369 | K12: 0.001175505333 | L12: 0.001280813852 | M12: 0.005133106721
A13: Florestas (F) | B13: 1995.806 | C13: 3481.652 | D13: 1909-02-03T21:10:04.800 | E13: 2759.5604 | H13: AA
A14: AA + M + F | B14: -2068.355 | C14: 1213.22 | D14: -2360.373 | E14: -6297.4686 | H14: Exportações | I14: 48ª | J14: 8493.732 | K14: 0.001201822646 | L14: 0.3123698374 | M14: 1.966367547
H15: Importações | I15: 110ª | J15: 563.3582 | K15: 5.525322331e-05 | L15: -0.09969455632 | M15: -0.4085073117
A16: milhares de euros *exclui serviços | I16: *TVMA - Taxa de variação média anual; TVT - Taxa de variação total
A18: Evolução das trocas comerciais Portugal-Senegal em milhares de euros (2018-2022)
E27: Exportações | G27: Importações | I27: Saldo
A28: Principais produtos agrícolas e agroalimentares, do mar e da floresta transacionados (NC 2 dígitos)
A47: Principais produtos agrícolas e agroalimentares transacionados (NC 2 dígitos)
A81: Fonte: GPP a partir de dados INE/Comércio Internacional (2021 provisórios; 2022 preliminares) | L81: 2023-04-10T11:41:25.980

Sheet 1
A1: Evolução da balança comercial Portugal-Senegal 2018-2022 em milhões de euros
A3: Total de Bens Transacionáveis (BT)(1) | B3: 2018 | C3: 2019 | D3: 2020 | E3: 2021 | F3: 2022 | G3: média quinquénio | H3: var. 18/19 | I3: var. 19/20 | J3: var. 20/21 | K3: var. 21/22 | L3: TVMA* 2018-2022 | M3: TVT* 2018-2022
A4: Exportações | B4: 49.762796 | C4: 33.970718 | D4: 41.114516 | E4: 41.024706 | F4: 43.183017 | G4: 41.8111506 | H4: -0.3173470799 | I4: 0.2102928175 | J4: -0.002184386653 | K4: 0.05261002967 | L4: -0.03483391718 | M4: -0.1322228558
A5: Importações | B5: 21.110216 | C5: 25.977153 | D5: 10.769359 | E5: 13.099457 | F5: 19.919566 | G5: 18.1751502 | H5: 0.2305488963 | I5: -0.5854295888 | J5: 0.2163636666 | K5: 0.5206405884 | L5: -0.01440884186 | M5: -0.05640160195
A6: Saldo (exp-imp) | B6: 28.65258 | C6: 7.993565 | D6: 30.345157 | E6: 27.925249 | F6: 23.263451 | G6: 23.6360004
A7: Cobertura (exp/imp) | B7: 2.357285023 | C7: 1.307715207 | D7: 3.817731027 | E7: 3.13178676 | F7: 2.16786937 | G7: 2.30045695
A8: Exp BT Senegal / Exp BT Mundo | B8: 0.0008602040313 | C8: 0.0005670972369 | D8: 0.0007648160381 | E8: 0.0006448547151 | F8: 0.0005519670675 | G8: 0.0006671350031 | L8: Exportações
A9: Imp BT Senegal / Imp BT Mundo | B9: 0.0002798306854 | C9: 0.0003248072735 | D9: 0.0001580346209 | E9: 0.0001575481915 | F9: 0.000182403569 | G9: 0.0002184966691 | L9: Importações
A10: Exp BT Senegal / Exp TE Mundo | B10: 0.0005582311027 | C10: 0.0003642151676 | D10: 0.0005534642308 | E10: 0.0004588651537 | F10: 0.0003606044002 | G10: 0.0004487552173
A11: Imp BT Senegal / Imp TE Mundo | B11: 0.0002393601098 | C11: 0.000281437214 | D11: 0.0001370412942 | E11: 0.0001371230273 | F11: 0.0001584717132 | G11: 0.0001892024709
A12: (1) Todos os produtos transacionados entre PT e Senegal (exclui serviços) | D12: TE - Total da Economia (bens e serviços) Fonte: INE/Contas Nacionais | H12: *TVMA - Taxa de variação média anual; TVT - Taxa de variação total
A24: Agro(1) + Mar + Florestas (AMF) | B24: 2018 | C24: 2019 | D24: 2020 | E24: 2021 | F24: 2022 | G24: média quinquénio | H24: var. 18/19 | I24: var. 19/20 | J24: var. 20/21 | K24: var. 21/22 | L24: TVMA* 2018-2022 | M24: TVT* 2018-2022
A25: Exportações | B25: 8.211409 | C25: 8.202411 | D25: 8.572158 | E25: 14.157558 | F25: 17.250966 | G25: 11.2789004 | H25: -0.001095792452 | I25: 0.04507784358 | J25: 0.651574551 | K25: 0.2184986987 | L25: 0.2039236163 | M25: 1.100853337
A26: Importações | B26: 19.511186 | C26: 25.174469 | D26: 10.640513 | E26: 12.944338 | F26: 19.611339 | G26: 17.576369 | H26: 0.2902582652 | I26: -0.5773291981 | J26: 0.2165144669 | K26: 0.5150515229 | L26: 0.001280813852 | M26: 0.005133106721
A27: Saldo (exp-imp) | B27: -11.299777 | C27: -16.972058 | D27: -2.068355 | E27: 1.21322 | F27: -2.360373 | G27: -6.2974686
A28: Cobertura (exp/imp) | B28: 0.4208564769 | C28: 0.3258226023 | D28: 0.8056151052 | E28: 1.093725921 | F28: 0.8796424354 | G28: 0.6417082163
A29: Exp AMF / Exp BT | B29: 0.1650110054 | C29: 0.2414553322 | D29: 0.2084946835 | E29: 0.3450983415 | F29: 0.3994849642 | G29: 0.2697581922 | L29: Exportações
A30: Imp AMF / Imp BT | B30: 0.924253262 | C30: 0.969100386 | D30: 0.988035871 | E30: 0.9881583641 | F30: 0.9845264199 | G30: 0.9670549518 | L30: Importações
A31: Exp AMF Senegal / Exp AMF Mundo | B31: 0.0007047990455 | C31: 0.0006934842817 | D31: 0.0007431150184 | E31: 0.001056804725 | F31: 0.001051909128 | G31: 0.0008701483307
A32: Imp AMF Senegal / Imp AMF Mundo | B32: 0.001431425659 | C32: 0.001819836893 | D32: 0.0008156532521 | E32: 0.0008661542219 | F32: 0.001015765993 | G32: 0.001175505333
A33: (1) Produtos agrícolas e agroalimentares | B33: BT - Total de Bens Transacionáveis (exclui serviços) | H33: *TVMA - Taxa de variação média anual; TVT - Taxa de variação total
A45: Agroalimentar (AA)(1) | B45: 2018 | C45: 2019 | D45: 2020 | E45: 2021 | F45: 2022 | G45: média quinquénio | H45: var. 18/19 | I45: var. 19/20 | J45: var. 20/21 | K45: var. 21/22 | L45: TVMA* 2018-2022 | M45: TVT* 2018-2022
A46: Exportações | B46: 4.692997 | C46: 6.634863 | D46: 6.56418 | E46: 10.655466 | F46: 13.921154 | G46: 8.493732 | H46: 0.4137795102 | I46: -0.01065327197 | J46: 0.6232744989 | K46: 0.3064800732 | L46: 0.3123698374 | M46: 1.966367547
A47: Importações | B47: 0.743196 | C47: 0.918977 | D47: 0.237694 | E47: 0.477329 | F47: 0.439595 | G47: 0.5633582 | H47: 0.2365203795 | I47: -0.7413493482 | J47: 1.008165961 | K47: -0.07905239363 | L47: -0.1230247333 | M47: -0.4085073117
A48: Saldo (exp-imp) | B48: 3.949801 | C48: 5.715886 | D48: 6.326486 | E48: 10.178137 | F48: 13.481559 | G48: 7.9303738
A49: Cobertura (exp/imp) | B49: 6.314615525 | C49: 7.219835752 | D49: 27.61609464 | E49: 22.32310629 | F49: 31.66813544 | G49: 15.07696524
A50: Exp AA / Exp AMF | B50: 0.5715215257 | C50: 0.8088918002 | D50: 0.7657558342 | E50: 0.7526344586 | F50: 0.8069782295 | G50: 0.7530638359 | L50: Exportações
A51: Imp AA / Imp AMF | B51: 0.03809076496 | C51: 0.03650432508 | D51: 0.02233858462 | E51: 0.03687550495 | F51: 0.02241534859 | G51: 0.03205202394 | L51: Importações
A52: Exp AA / Exp BT | B52: 0.09430734157 | C52: 0.1953112383 | D52: 0.1596560203 | E52: 0.2597329034 | F52: 0.3223756691 | G52: 0.203145139
A53: Imp AA / Imp BT | B53: 0.03520551377 | C53: 0.03537635552 | D53: 0.02207132291 | E53: 0.03643883865 | F53: 0.0220685029 | G53: 0.03099606847
A54: Exp AA Senegal / Exp AA Mundo | B54: 0.0007684774304 | C54: 0.001054548974 | D54: 0.0009920052922 | E54: 0.001429917871 | F54: 0.001569560997 | G54: 0.001201822646
A55: Imp AA Senegal / Imp AA Mundo | B55: 8.170691346e-05 | C55: 9.863365732e-05 | D55: 2.616492678e-05 | E55: 4.647417713e-05 | F55: 3.327385462e-05 | G55: 5.525322331e-05
A56: (1) Produtos agrícolas e agroalimentares | B56: AMF - Agroalimentar, Mar e Florestas; BT - Total de Bens Transacionáveis (exclui serviços) | H56: *TVMA - Taxa de variação média anual; TVT - Taxa de variação total
A67: Mar (M) | B67: 2018 | C67: 2019 | D67: 2020 | E67: 2021 | F67: 2022 | G67: média quinquénio | H67: var. 18/19 | I67: var. 19/20 | J67: var. 20/21 | K67: var. 21/22 | L67: TVMA* 2018-2022 | M67: TVT* 2018-2022
A68: Exportações | B68: 0.038287 | C68: 0.000173 | D68: 0.001322 | E68: 0.000965 | F68: 0.00045 | G68: 0.0082394 | H68: -0.995481495 | I68: 6.641618497 | J68: -0.2700453858 | K68: -0.5336787565 | L68: -0.6707389992 | M68: -0.9882466634
A69: Importações | B69: 18.728286 | C69: 24.245158 | D69: 10.391969 | E69: 12.447534 | F69: 19.165264 | G69: 16.9956422 | H69: 0.294574314 | I69: -0.5713796132 | J69: 0.1978032267 | K69: 0.5396836032 | L69: 0.005782774189
A70: Saldo (exp-imp) | B70: -18.689999 | C70: -24.244985 | D70: -10.390647 | E70: -12.446569 | F70: -19.164814 | G70: -16.9874028
A71: Cobertura (exp/imp) | B71: 0.002044340844 | C71: 7.135445354e-06 | D71: 0.0001272136204 | E71: 7.752539579e-05 | F71: 2.34799792e-05 | G71: 0.0004847948611
A72: Exp M / Exp AMF | B72: 0.004662658991 | C72: 2.10913596e-05 | D72: 0.0001542202092 | E72: 6.816147248e-05 | F72: 2.608549573e-05 | G72: 0.0007305144746 | L72: Exportações
A73: Imp M / Imp AMF | B73: 0.9598742998 | C73: 0.9630851797 | D73: 0.9766417277 | E73: 0.9616199762 | F73: 0.9772542303 | G73: 0.966959797 | L73: Importações
A74: Exp M / Exp BT | B74: 0.0007693900479 | C74: 5.092621239e-06 | D74: 3.21540937e-05 | E74: 2.352241111e-05 | F74: 1.042076333e-05 | G74: 0.0001970622641
A75: Imp M / Imp BT | B75: 0.8871669527 | C75: 0.9333262194 | D75: 0.9649570601 | E75: 0.9502328226 | F75: 0.9621326087 | G75: 0.9351032598
A76: Exp M Senegal / Exp M Mundo | B76: 3.509969861e-05 | C76: 1.619263529e-07 | D76: 1.469428184e-06 | E76: 8.809357647e-07 | F76: 3.500762867e-07 | G76: 7.57336233e-06
A77: Imp M Senegal / Imp M Mundo | B77: 0.008496502043 | C77: 0.01112498878 | D77: 0.005398798732 | E77: 0.005949908779 | F77: 0.007343118576 | G77: 0.007717952076
A78: AMF - Agroalimentar, Mar e Florestas; BT - Total de Bens Transacionáveis (exclui serviços) | H78: *TVMA - Taxa de variação média anual; TVT - Taxa de variação total
A90: Florestas (F) | B90: 2018 | C90: 2019 | D90: 2020 | E90: 2021 | F90: 2022 | G90: média quinquénio | H90: var. 18/19 | I90: var. 19/20 | J90: var. 20/21 | K90: var. 21/22 | L90: TVMA* 2018-2022 | M90: TVT* 2018-2022
A91: Exportações | B91: 3.480125 | C91: 1.567375 | D91: 2.006656 | E91: 3.501127 | F91: 3.329362 | G91: 2.776929 | H91: -0.5496210625 | I91: 0.2802654119 | J91: 0.7447569489 | K91: -0.04905991699 | L91: -0.01101081199 | M91: -0.04332114507
A92: Importações | B92: 0.039704 | C92: 0.010334 | D92: 0.01085 | E92: 0.019475 | F92: 0.00648 | G92: 0.0173686 | H92: -0.7397239573 | I92: 0.04993226243 | J92: 0.7949308756 | K92: -0.6672657253 | L92: -0.3643981012 | M92: -0.8367922627
A93: Saldo (exp-imp) | B93: 3.440421 | C93: 1.557041 | D93: 1.995806 | E93: 3.481652 | F93: 3.322882 | G93: 2.7595604
A94: Cobertura (exp/imp) | B94: 87.65174793 | C94: 151.6716663 | D94: 184.9452535 | E94: 179.7754557 | F94: 513.7904321 | G94: 159.8821436
A95: Exp F / Exp AMF | B95: 0.4238158153 | C95: 0.1910871084 | D95: 0.2340899456 | E95: 0.24729738 | F95: 0.192995685 | G95: 0.2462056496 | L95: Exportações
A96: Imp F / Imp AMF | B96: 0.002034935242 | C96: 0.0004104952522 | D96: 0.001019687679 | E96: 0.00150451881 | F96: 0.0003304210896 | G96: 0.0009881790716 | L96: Importações
A97: Exp F / Exp BT | B97: 0.06993427379 | C97: 0.04613900124 | D97: 0.04880650912 | E97: 0.08534191567 | F97: 0.07709887431 | G97: 0.06641599095
A98: Imp F / Imp BT | B98: 0.001880795535 | C98: 0.0003978111073 | D98: 0.001007488004 | E98: 0.001486702846 | F98: 0.0003253082924 | G98: 0.0009556234644
A99: Exp F Senegal / Exp F Mundo | B99: 0.0007815191827 | C99: 0.0003508174848 | D99: 0.0004993311595 | E99: 0.0007219800031 | F99: 0.0005331430304 | G99: 0.0005777177062
A100: Imp F Senegal / Imp F Mundo | B100: 1.703679444e-05 | C100: 4.422002722e-06 | D100: 5.328894104e-06 | E100: 7.543441095e-06 | F100: 1.85909901e-06 | G100: 6.800134054e-06
A101: AMF - Agroalimentar, Mar e Florestas; BT - Total de Bens Transacionáveis (exclui serviços) | H101: *TVMA - Taxa de variação média anual; TVT - Taxa de variação total
A111: Fonte: GPP a partir de dados INE/Comércio Internacional (2021 provisórios; 2022 preliminares) | H111: 2023-04-10T11:41:25.980

Sheet 2
A1: Ranking dos parceiros comerciais de Portugal por país (média 2018-2022 em milhares de euros) produtos agrícolas e agroalimentares, do mar e da floresta
A2: Exportações | F2: Importações | K2: Trocas comerciais (total e saldo)
A3: P | B3: País | C3: média quinquénio | D3: % do Total | F3: P | G3: País | H3: média quinquénio | I3: % do Total | K3: P | L3: País | M3: Total (exp+imp) | N3: % do Total | O3: Saldo (exp-imp)
A4: 1 | B4: Espanha | C4: 4146846.616 | D4: 0.3199222914 | F4: 1 | G4: Espanha | H4: 6898417.482 | I4: 0.4613652877 | K4: 1 | L4: Espanha | M4: 11045264.1 | N4: 0.395685862 | O4: -2751570.866
A5: 2 | B5: França | C5: 1360044.337 | D5: 0.1049251494 | F5: 2 | G5: França | H5: 983846.0438 | I5: 0.06579949883 | K5: 2 | L5: França | M5: 2343890.38 | N5: 0.0839675971 | O5: 376198.2928
A6: 3 | B6: Itália | C6: 877368.0818 | D6: 0.06768748235 | F6: 3 | G6: Alemanha | H6: 881929.648 | I6: 0.05898334319 | K6: 3 | L6: Alemanha | M6: 1517776.81 | N6: 0.05437288056 | O6: -246082.4858
A7: 4 | B7: Alemanha | C7: 635847.1622 | D7: 0.04905454673 | F7: 4 | G7: Países Baixos | H7: 832889.519 | I7: 0.05570354557 | K7: 4 | L7: Países Baixos | M7: 1421747.63 | N7: 0.05093272842 | O7: -244031.4078
A8: 5 | B8: Países Baixos | C8: 588858.1112 | D8: 0.04542941992 | F8: 5 | G8: Brasil | H8: 705274.2886 | I8: 0.04716865512 | K8: 5 | L8: Itália | M8: 1324709.492 | N8: 0.04745643132 | O8: 430026.672
A9: 6 | B9: Estados Unidos | C9: 554106.8534 | D9: 0.04274841841 | F9: 6 | G9: Itália | H9: 447341.4098 | I9: 0.02991813684 | K9: 6 | L9: Brasil | M9: 1157990.487 | N9: 0.04148388487 | O9: -252558.0898 | P9: Nota: Nesta listagem, o Reino Unido passa a ser constituído por três componentes: Reino Unido [até 2020] ; Reino Unido (sem Irlanda do Norte) pós-2020 e Reino Unido (Irlanda do Norte) pós-2020. Estas componentes são calculadas igualmente como média do quinquénio, embora a primeira corresponda apenas a 2018-2020 e as duas últimas a 2021-2022.
A10: 7 | B10: Brasil | C10: 452716.1988 | D10: 0.03492629873 | F10: 7 | G10: Suécia | H10: 342036.4436 | I10: 0.02287535404 | K10: 7 | L10: Estados Unidos | M10: 835578.634 | N10: 0.02993379327 | O10: 272635.0728
A11: 8 | B11: Reino Unido | C11: 382822.421 | D11: 0.02953411049 | F11: 8 | G11: Bélgica | H11: 284745.8472 | I11: 0.01904376621 | K11: 8 | L11: Reino Unido | M11: 527725.3878 | N11: 0.01890524963 | O11: 237919.4542
A12: 9 | B12: Angola | C12: 331122.2346 | D12: 0.02554552744 | F12: 9 | G12: Estados Unidos | H12: 281471.7806 | I12: 0.01882479705 | K12: 9 | L12: Bélgica | M12: 523790.4546 | N12: 0.01876428447 | O12: -45701.2398
A13: 10 | B13: Reino Unido (sem Irlanda do Norte) pós 2020 | C13: 297934.144 | D13: 0.02298512168 | F13: 10 | G13: Polónia | H13: 207267.6948 | I13: 0.01386203718 | K13: 10 | L13: Polónia | M13: 458731.113 | N13: 0.01643359672 | O13: 44195.7234
A14: 11 | B14: Polónia | C14: 251463.4182 | D14: 0.01939998278 | F14: 11 | G14: Ucrânia | H14: 195332.8996 | I14: 0.01306383959 | K14: 11 | L14: Suécia | M14: 436074.676 | N14: 0.01562195187 | O14: -247998.2112
A15: 12 | B15: Bélgica | C15: 239044.6074 | D15: 0.01844189227 | F15: 12 | G15: China, República Popular da | H15: 173709.0226 | I15: 0.01161763744 | K15: 12 | L15: China, República Popular da | M15: 367381.718 | N15: 0.01316109334 | O15: 19963.6728
A16: 13 | B16: Israel | C16: 214334.0624 | D16: 0.01653551499 | F16: 13 | G16: África do Sul | H16: 145344.5192 | I16: 0.00972062304 | K16: 13 | L16: Reino Unido (sem Irlanda do Norte) pós 2020 | M16: 358996.2246 | N16: 0.01286069118 | O16: 236872.0634
A17: 14 | B17: China, República Popular da | C17: 193672.6954 | D17: 0.01494152503 | F17: 14 | G17: Reino Unido | H17: 144902.9668 | I17: 0.009691092072 | K17: 14 | L17: Angola | M17: 346545.3832 | N17: 0.01241465188 | O17: 315699.086
A18: 15 | B18: Turquia | C18: 167228.7496 | D18: 0.01290141877 | F18: 15 | G18: Dinamarca | H18: 144377.543 | I18: 0.009655951794 | K18: 15 | L18: Dinamarca | M18: 229170.509 | N18: 0.008209810974 | O18: -59584.577
A19: 16 | B19: Suíça | C19: 143381.9984 | D19: 0.01106168174 | F19: 16 | G19: Roménia | H19: 138788.216 | I19: 0.009282138312 | K19: 16 | L19: Turquia | M19: 223208.1582 | N19: 0.007996215546 | O19: 111249.341
A20: 17 | B20: Marrocos | C20: 109032.6026 | D20: 0.008411683212 | F20: 17 | G20: Irlanda | H20: 118611.9976 | I20: 0.00793275538 | K20: 17 | L20: Israel | M20: 222677.5138 | N20: 0.007977205725 | O20: 205990.611
A21: 18 | B21: Cabo Verde | C21: 100901.2104 | D21: 0.007784359883 | F21: 18 | G21: Canadá | H21: 108500.2994 | I21: 0.007256486285 | K21: 18 | L21: Ucrânia | M21: 209672.7922 | N21: 0.007511324201 | O21: -180993.007
A22: 19 | B22: Canadá | C22: 96474.4272 | D22: 0.007442840951 | F22: 19 | G22: Rússia, Federação da | H22: 105947.374 | I22: 0.007085746958 | K22: 19 | L22: Canadá | M22: 204974.7266 | N22: 0.007343020562 | O22: -12025.8722
A23: 20 | B23: Suécia | C23: 94038.2324 | D23: 0.007254892591 | F23: 20 | G23: Uruguai | H23: 102111.7952 | I23: 0.006829223933 | K23: 20 | L23: Rússia, Federação da | M23: 185992.939 | N23: 0.006663016452 | O23: -25901.809
A24: 21 | B24: Dinamarca | C24: 84792.966 | D24: 0.006541635727 | F24: 21 | G24: Argentina | H24: 97726.5184 | I24: 0.006535937176 | K24: 21 | L24: Irlanda | M24: 182591.6348 | N24: 0.006541168031 | O24: -54632.3604
A25: 22 | B25: Egito | C25: 83378.3752 | D25: 0.006432502409 | F25: 22 | G25: Índia | H25: 75540.6788 | I25: 0.005052151033 | K25: 22 | L25: África do Sul | M25: 182500.0166 | N25: 0.006537885898 | O25: -108189.0218
A26: 23 | B26: Rússia, Federação da | C26: 80045.565 | D26: 0.006175381668 | F26: 23 | G26: Finlândia | H26: 73902.4252 | I26: 0.00494258484 | K26: 23 | L26: Roménia | M26: 164636.1118 | N26: 0.005897928854 | O26: -112940.3202
A27: 24 | B27: Argélia | C27: 78380.8918 | D27: 0.00604695491 | F27: 24 | G27: Vietname | H27: 70003.8676 | I27: 0.004681849801 | K27: 24 | L27: Marrocos | M27: 151640.996 | N27: 0.005432391447 | O27: 66424.2092
A28: 25 | B28: México | C28: 73464.636 | D28: 0.005667673985 | F28: 25 | G28: Costa Rica | H28: 69968.8442 | I28: 0.00467950744 | K28: 25 | L28: Suíça | M28: 147879.2658 | N28: 0.005297631115 | O28: 138884.731
A29: 26 | B29: Japão | C29: 66614.1746 | D29: 0.005139172328 | F29: 26 | G29: Áustria | H29: 63813.405 | I29: 0.004267832446 | K29: 26 | L29: Grécia | M29: 116194.9062 | N29: 0.004162569696 | O29: -11099.611
A30: 27 | B30: Irlanda | C30: 63979.6372 | D30: 0.004935922167 | F30: 27 | G30: Grécia | H30: 63647.2586 | I30: 0.004256720596 | K30: 27 | L30: Argentina | M30: 113791.3158 | N30: 0.004076463404 | O30: -81661.721
A31: 28 | B31: Luxemburgo | C31: 55226.4474 | D31: 0.004260628192 | F31: 28 | G31: Reino Unido (sem Irlanda do Norte) pós 2020 | H31: 61062.0806 | I31: 0.004083824219 | K31: 28 | L31: Uruguai | M31: 105100.8748 | N31: 0.003765136793 | O31: -99122.7156
A32: 29 | B32: Grécia | C32: 52547.6476 | D32: 0.004053963261 | F32: 29 | G32: Turquia | H32: 55979.4086 | I32: 0.003743895759 | K32: 29 | L32: Finlândia | M32: 103130.4978 | N32: 0.00369454995 | O32: -44674.3526
A33: 30 | B33: Áustria | C33: 39247.712 | D33: 0.003027895439 | F33: 30 | G33: Equador | H33: 48766.9652 | I33: 0.003261528458 | K33: 30 | L33: Áustria | M33: 103061.117 | N33: 0.00369206445 | O33: -24565.693
A34: 31 | B34: Moçambique | C34: 37451.293 | D34: 0.002889304713 | F34: 31 | G34: Chile | H34: 47783.2146 | I34: 0.003195735342 | K34: 31 | L34: Cabo Verde | M34: 101737.347 | N34: 0.003644641675 | O34: 100065.0738
A35: 32 | B35: África do Sul | C35: 37155.4974 | D35: 0.002866484577 | F35: 32 | G35: Bulgária | H35: 47645.025 | I35: 0.003186493239 | K35: 32 | L35: Índia | M35: 100003.3314 | N35: 0.00358252225 | O35: -51078.0262
A36: 33 | B36: Chile | C36: 36026.5554 | D36: 0.002779388587 | F36: 33 | G36: Cuba | H36: 43073.8564 | I36: 0.002880774062 | K36: 33 | L36: Egito | M36: 93743.8836 | N36: 0.00335828361 | O36: 73012.8668
A37: 34 | B37: Austrália | C37: 34889.2258 | D37: 0.002691645507 | F37: 34 | G37: Marrocos | H37: 42608.3934 | I37: 0.002849643955 | K37: 34 | L37: México | M37: 93550.8352 | N37: 0.003351367839 | O37: 53378.4368
A38: 35 | B38: Arábia Saudita | C38: 32824.8756 | D38: 0.002532384337 | F38: 35 | G38: Moçambique | H38: 40008.1492 | I38: 0.002675739953 | K38: 35 | L38: Chile | M38: 83809.77 | N38: 0.003002403636 | O38: -11756.6592
A39: 36 | B39: Guiné-Bissau | C39: 32182.3282 | D39: 0.002482812878 | F39: 36 | G39: Checa, República | H39: 35925.8038 | I39: 0.002402713209 | K39: 36 | L39: Argélia | M39: 83292.5462 | N39: 0.002983874596 | O39: 73469.2374
A40: 37 | B40: Finlândia | C40: 29228.0726 | D40: 0.002254896992 | F40: 37 | G40: Colômbia | H40: 29155.8878 | I40: 0.001949942084 | K40: 37 | L40: Japão | M40: 83024.7762 | N40: 0.002974281995 | O40: 50203.573
A41: 38 | B41: Checa, República | C41: 29126.0154 | D41: 0.002247023449 | F41: 38 | G41: Indonésia | H41: 28536.2748 | I41: 0.001908502445 | K41: 38 | L41: Moçambique | M41: 77459.4422 | N41: 0.002774909308 | O41: -2556.8562
A42: 39 | B42: Emirados Árabes Unidos | C42: 29083.094 | D42: 0.002243712135 | F42: 39 | G42: Guiana | H42: 28025.2642 | I42: 0.001874326121 | K42: 39 | L42: Vietname | M42: 75950.3586 | N42: 0.002720847854 | O42: -64057.3766
A43: 40 | B43: São Tomé e Príncipe | C43: 26794.1682 | D43: 0.002067125332 | F43: 40 | G43: Hungria | H43: 24257.1766 | I43: 0.001622316899 | K43: 40 | L43: Costa Rica | M43: 73986.1334 | N43: 0.002650481393 | O43: -65951.555
A44: 41 | B44: Jordânia | C44: 26642.1032 | D44: 0.002055393771 | F44: 41 | G44: Namíbia | H44: 22812.3548 | I44: 0.0015256874 | K44: 41 | L44: Checa, República | M44: 65051.8192 | N44: 0.002330418261 | O44: -6799.7884
A45: 42 | B45: Roménia | C45: 25847.8958 | D45: 0.001994121996 | F45: 42 | G45: Costa do Marfim | H45: 22796.1714 | I45: 0.001524605057 | K45: 42 | L45: Luxemburgo | M45: 63916.2024 | N45: 0.002289735892 | O45: 46536.6924
A46: 43 | B46: Tunísia | C46: 24967.3514 | D46: 0.001926189466 | F46: 43 | G46: Uganda | H46: 22685.1304 | I46: 0.001517178649 | K46: 43 | L46: Bulgária | M46: 60636.5874 | N46: 0.002172246869 | O46: -34653.4626
A47: 44 | B47: Índia | C47: 24462.6526 | D47: 0.001887252797 | F47: 44 | G47: México | H47: 20086.1992 | I47: 0.001343362459 | K47: 44 | L47: Equador | M47: 51816.5236 | N47: 0.001856276647 | O47: -45717.4068
A48: 45 | B48: Noruega | C48: 22053.074 | D48: 0.001701357832 | F48: 45 | G48: Peru | H48: 19492.7516 | I48: 0.001303672759 | K48: 45 | L48: Austrália | M48: 48706.4602 | N48: 0.001744861646 | O48: 21071.9914
A49: 46 | B49: Coreia, República da | C49: 18918.1652 | D49: 0.001459504853 | F49: 46 | G49: Paraguai | H49: 18841.0926 | I49: 0.001260089887 | K49: 46 | L49: Cuba | M49: 48373.074 | N49: 0.001732918409 | O49: -37774.6388
A50: 47 | B50: Hungria | C50: 18307.7754 | D50: 0.001412414299 | F50: 47 | G50: Senegal | H50: 17576.369 | I50: 0.001175505333 | K50: 47 | L50: Hungria | M50: 42564.952 | N50: 0.001524848077 | O50: -5949.4012
A51: 48 | B51: Nigéria | C51: 16230.2952 | D51: 0.001252140171 | F51: 48 | G51: Nova Zelânda | H51: 17376.4264 | I51: 0.001162133197 | K51: 48 | L51: Colômbia | M51: 37488.773 | N51: 0.001342998893 | O51: -20823.0026
A52: 49 | B52: Argentina | C52: 16064.7974 | D52: 0.001239372292 | F52: 49 | G52: Japão | H52: 16410.6016 | I52: 0.001097538957 | K52: 49 | L52: Tunísia | M52: 35512.9364 | N52: 0.001272216466 | O52: 14421.7664
A53: 50 | B53: Lituânia | C53: 14439.0308 | D53: 0.001113947114 | F53: 50 | G53: Angola | H53: 15423.1486 | I53: 0.001031498225 | K53: 50 | L53: Noruega | M53: 34929.1028 | N53: 0.001251301194 | O53: 9177.0452
A54: 51 | B54: Ucrânia | C54: 14339.8926 | D54: 0.001106298767 | F54: 51 | G54: Lituânia | H54: 14690.2608 | I54: 0.0009824827822 | K54: 51 | L54: Costa do Marfim | M54: 32980.227 | N54: 0.00118148461 | O54: -12612.1158
A55: 52 | B55: Macau | C55: 14158.8838 | D55: 0.001092334241 | F55: 52 | G55: Mauritânia | H55: 14124.4552 | I55: 0.0009446417753 | K55: 52 | L55: Arábia Saudita | M55: 32858.8134 | N55: 0.001177135086 | O55: 32790.9378
A56: 53 | B56: Síria, República Árabe da | C56: 13309.7072 | D56: 0.001026821684 | F56: 53 | G56: Austrália | H56: 13817.2344 | I56: 0.0009240948871 | K56: 53 | L56: Guiné-Bissau | M56: 32561.5328 | N56: 0.001166485297 | O56: 31803.1236
A57: 54 | B57: Iraque | C57: 13221.9204 | D57: 0.001020049079 | F57: 54 | G57: Tanzânia, República Unida da | H57: 13710.948 | I57: 0.0009169864661 | K57: 54 | L57: Indonésia | M57: 32138.0738 | N57: 0.00115131529 | O57: -24934.4758
A58: 55 | B58: Bulgária | C58: 12991.5624 | D58: 0.001002277344 | F58: 55 | G58: Eslovénia | H58: 13641.288 | I58: 0.0009123276141 | K58: 55 | L58: Coreia, República da | M58: 31290.6312 | N58: 0.001120956481 | O58: 6545.6992
A59: 56 | B59: HongKong | C59: 12801.5844 | D59: 0.0009876208585 | F59: 56 | G59: Suazilândia | H59: 13238.574 | I59: 0.0008853941528 | K59: 56 | L59: Emirados Árabes Unidos | M59: 29711.7246 | N59: 0.001064393686 | O59: 28454.4634
A60: 57 | B60: Eslováquia | C60: 12721.4316 | D60: 0.0009814372038 | F60: 57 | G60: Noruega | H60: 12876.0288 | I60: 0.0008611471757 | K60: 57 | L60: Lituânia | M60: 29129.2916 | N60: 0.001043528589 | O60: -251.23
A61: 58 | B61: Letónia | C61: 11848.1656 | D61: 0.0009140661902 | F61: 58 | G61: Tailândia | H61: 12763.9036 | I61: 0.0008536482566 | K61: 58 | L61: Senegal | M61: 28855.2694 | N61: 0.00103371201 | O61: -6297.4686
A62: 59 | B62: Croácia | C62: 11369.2108 | D62: 0.0008771156272 | F62: 59 | G62: Camarões | H62: 12420.1756 | I62: 0.0008306597714 | K62: 59 | L62: Guiana | M62: 28164.8444 | N62: 0.001008978204 | O62: -27885.684
A63: 60 | B63: Senegal | C63: 11278.9004 | D63: 0.0008701483307 | F63: 60 | G63: Coreia, República da | H63: 12372.466 | I63: 0.0008274689594 | K63: 60 | L63: São Tomé e Príncipe | M63: 27847.8948 | N63: 0.0009976237926 | O63: 25740.4416
A64: 61 | B64: Dominicana, República | C64: 11207.4662 | D64: 0.0008646373015 | F64: 61 | G64: Estónia | H64: 12142.1852 | I64: 0.0008120678087 | K64: 61 | L64: Jordânia | M64: 26698.3012 | N64: 0.0009564407181 | O64: 26585.9052
A65: 62 | B65: Líbia, Jamahira Árabe da | C65: 11110.442 | D65: 0.0008571520465 | F65: 62 | G65: Moldava, República de | H65: 11911.7076 | I65: 0.000796653496 | K65: 62 | L65: Peru | M65: 25630.734 | N65: 0.0009181961597 | O65: -13354.7692
A66: 63 | B66: Costa do Marfim | C66: 10184.0556 | D66: 0.0007856828827 | F66: 63 | G66: Sérvia | H66: 11556.9174 | I66: 0.0007729251723 | K66: 63 | L66: Uganda | M66: 23651.9568 | N66: 0.0008473083877 | O66: -21718.304
A67: 64 | B67: Malta | C67: 9931.9952 | D67: 0.0007662368438 | F67: 64 | G67: Letónia | H67: 10693.2552 | I67: 0.0007151635538 | K67: 64 | L67: Namíbia | M67: 23552.0162 | N67: 0.0008437281128 | O67: -22072.6934
A68: 65 | B68: Líbano | C68: 9909.3948 | D68: 0.0007644932607 | F68: 65 | G68: Tunísia | H68: 10545.585 | I68: 0.0007052873895 | K68: 65 | L68: Letónia | M68: 22541.4208 | N68: 0.0008075245138 | O68: 1154.9104
A69: 66 | B69: Território Palestiniano Ocupado | C69: 9895.7186 | D69: 0.0007634381647 | F69: 66 | G69: Paquistão | H69: 10439.2814 | I69: 0.0006981778182 | K69: 66 | L69: Tailândia | M69: 22047.6444 | N69: 0.0007898354537 | O69: -3480.1628
A70: 67 | B70: Chipre | C70: 9813.8866 | D70: 0.0007571249625 | F70: 67 | G70: Egito | H70: 10365.5084 | I70: 0.0006932438893 | K70: 67 | L70: Eslovénia | M70: 21967.6518 | N70: 0.0007869697965 | O70: -5314.9242
A71: 68 | B71: Tailândia | C71: 9283.7408 | D71: 0.0007162250994 | F71: 68 | G71: Islândia | H71: 10004.2966 | I71: 0.0006690860898 | K71: 68 | L71: Nigéria | M71: 21616.2318 | N71: 0.0007743805162 | O71: 10844.3586
A72: 69 | B72: Kuwait | C72: 9136.5242 | D72: 0.0007048675845 | F72: 69 | G72: Maurícias | H72: 9636.258 | I72: 0.0006444717149 | K72: 69 | L72: Nova Zelânda | M72: 21601.4804 | N72: 0.0007738520616 | O72: -13151.3724
A73: 70 | B73: Camarões | C73: 9091.9556 | D73: 0.0007014291915 | F73: 70 | G73: Luxemburgo | H73: 8689.755 | I73: 0.0005811697141 | K73: 70 | L73: Camarões | M73: 21512.1312 | N73: 0.0007706512133 | O73: -3328.22
A74: 71 | B74: Colômbia | C74: 8332.8852 | D74: 0.0006428681777 | F74: 71 | G74: Israel | H74: 8343.4514 | I74: 0.0005580089732 | K74: 71 | L74: Estónia | M74: 20453.9116 | N74: 0.0007327415236 | O74: -3830.4588
A75: 72 | B75: Eslovénia | C75: 8326.3638 | D75: 0.0006423650626 | F75: 72 | G75: Filipinas | H75: 8336.7014 | I75: 0.000557557534 | K75: 72 | L75: Paraguai | M75: 20050.3854 | N75: 0.0007182855892 | O75: -17631.7998
A76: 73 | B76: Estónia | C76: 8311.7264 | D76: 0.0006412358116 | F76: 73 | G76: Belize | H76: 8129.6594 | I76: 0.0005437105913 | K76: 73 | L76: Croácia | M76: 18456.3876 | N76: 0.0006611821657 | O76: 4282.034
A77: 74 | B77: Geórgia | C77: 8048.6886 | D77: 0.0006209428846 | F77: 74 | G77: Malásia | H77: 8111.8758 | I77: 0.0005425212264 | K77: 74 | L77: Eslováquia | M77: 18139.1582 | N77: 0.0006498177305 | O77: 7303.705
A78: 75 | B78: Gibraltar | C78: 7970.9208 | D78: 0.0006149432287 | F78: 75 | G78: Bangladesh | H78: 7928.3318 | I78: 0.0005302458269 | K78: 75 | L78: Sérvia | M78: 17501.5482 | N78: 0.0006269759713 | O78: -5612.2866
A79: 76 | B79: Gana | C79: 7302.601 | D79: 0.0005633834722 | F79: 76 | G79: Croácia | H79: 7087.1768 | I79: 0.000473989487 | K79: 76 | L79: Mauritânia | M79: 16926.9998 | N79: 0.0006063933327 | O79: -11321.9106
A80: 77 | B80: Taiwan | C80: 6604.3054 | D80: 0.0005095111328 | F80: 77 | G80: Quénia | H80: 6720.3804 | I80: 0.0004494581902 | K80: 77 | L80: HongKong | M80: 15599.17 | N80: 0.0005588251194 | O80: 10003.9988
A81: 78 | B81: Belarus | C81: 6189.2796 | D81: 0.0004774925854 | F81: 78 | G81: Gana | H81: 6620.3222 | I81: 0.0004427663105 | K81: 78 | L81: Maurícias | M81: 15492.8062 | N81: 0.0005550147395 | O81: -3779.7098
A82: 79 | B82: Guatemala | C82: 6179.8032 | D82: 0.0004767614969 | F82: 79 | G82: Reino Unido (Irlanda do Norte) pós-2020 | H82: 6510.0282 | I82: 0.0004353898617 | K82: 79 | L82: Suazilândia | M82: 15229.7308 | N82: 0.0005455903188 | O82: -11247.4172
A83: 80 | B83: Peru | C83: 6137.9824 | D83: 0.0004735350921 | F83: 80 | G83: Panamá | H83: 6501.636 | I83: 0.0004348285924 | K83: 80 | L83: Moldava, República de | M83: 14880.8148 | N83: 0.0005330907418 | O83: -8942.6004
A84: 81 | B84: Vietname | C84: 5946.491 | D84: 0.0004587618503 | F84: 81 | G84: Honduras | H84: 6221.2504 | I84: 0.000416076439 | K84: 81 | L84: Síria, República Árabe da | M84: 14259.5412 | N84: 0.0005108342183 | O84: 12359.8732
A85: 82 | B85: Sérvia | C85: 5944.6308 | D85: 0.000458618339 | F85: 82 | G85: Suriname | H85: 5829.6302 | I85: 0.0003898849296 | K85: 82 | L85: Tanzânia, República Unida da | M85: 14227.4994 | N85: 0.000509686352 | O85: -13194.3966
A86: 83 | B86: Maurícias | C86: 5856.5482 | D86: 0.0004518229135 | F86: 83 | G86: Eslováquia | H86: 5417.7266 | I86: 0.000362336869 | K86: 83 | L86: Macau | M86: 14177.244 | N86: 0.0005078860011 | O86: 14140.5236
A87: 84 | B87: Andorra | C87: 5401.2632 | D87: 0.0004166984361 | F87: 84 | G87: Nigéria | H87: 5385.9366 | I87: 0.0003602107578 | K87: 84 | L87: Gana | M87: 13922.9232 | N87: 0.0004987752053 | O87: 682.2788
A88: 85 | B88: Cuba | C88: 5299.2176 | D88: 0.0004088257884 | F88: 85 | G88: Etiópia | H88: 5332.739 | I88: 0.0003566529091 | K88: 85 | L88: Paquistão | M88: 13694.5862 | N88: 0.000490595254 | O88: -7183.9766
A89: 86 | B89: Singapura | C89: 4688.1098 | D89: 0.0003616798422 | F89: 86 | G89: Congo | H89: 5207.2118 | I89: 0.0003482576658 | K89: 86 | L89: Dominicana, República | M89: 13458.9994 | N89: 0.0004821555856 | O89: 8955.933
A90: 87 | B90: Omã | C90: 4393.4536 | D90: 0.0003389476084 | F90: 87 | G90: Guatemala | H90: 5138.5064 | I90: 0.0003436626574 | K90: 87 | L90: Chipre | M90: 13258.9832 | N90: 0.0004749901995 | O90: 6368.79
A91: 88 | B91: Nova Zelânda | C91: 4225.054 | D91: 0.0003259558605 | F91: 88 | G91: Camboja | H91: 4965.2796 | I91: 0.0003320772709 | K91: 88 | L91: Iraque | M91: 13234.1844 | N91: 0.0004741018065 | O91: 13209.6564
A92: 89 | B92: Panamá | C92: 4203.97 | D92: 0.0003243292651 | F92: 89 | G92: Argélia | H92: 4911.6544 | I92: 0.0003284908243 | K92: 89 | L92: Malta | M92: 12103.8522 | N92: 0.000433608753 | O92: 7760.1382
A93: 90 | B93: Costa Rica | C93: 4017.2892 | D93: 0.0003099271531 | F93: 90 | G93: Macedónia, Antiga República jugoslava da | H93: 4838.0028 | I93: 0.0003235650147 | K93: 90 | L93: Filipinas | M93: 11815.5126 | N93: 0.0004232792667 | O93: -4857.8902
A94: 91 | B94: Catar | C94: 3815.048 | D94: 0.0002943245823 | F94: 91 | G94: Zimbabwe | H94: 4709.1506 | I94: 0.0003149473958 | K94: 91 | L94: Islândia | M94: 11807.758 | N94: 0.0004230014657 | O94: -8200.8352
A95: 92 | B95: Burquina Faso | C95: 3646.8948 | D95: 0.0002813518437 | F95: 92 | G95: Suíça | H95: 4497.2674 | I95: 0.0003007766743 | K95: 92 | L95: Malásia | M95: 11523.7994 | N95: 0.0004128289246 | O95: -4699.9522
A96: 93 | B96: Indonésia | C96: 3601.799 | D96: 0.000277872778 | F96: 93 | G96: Sri Lanca | H96: 4393.1556 | I96: 0.0002938136903 | K96: 93 | L96: Guatemala | M96: 11318.3096 | N96: 0.000405467452 | O96: 1041.2968
A97: 94 | B97: Sudão | C97: 3570.9408 | D97: 0.0002754921194 | F97: 94 | G97: Madagáscar | H97: 3797.768 | I97: 0.000253994243 | K97: 94 | L97: Líbia, Jamahira Árabe da | M97: 11116.443 | N97: 0.0003982357771 | O97: 11104.441
A98: 95 | B98: Filipinas | C98: 3478.8112 | D98: 0.0002683844747 | F98: 95 | G98: Mali | H98: 3762.5872 | I98: 0.0002516413555 | K98: 95 | L98: Panamá | M98: 10705.606 | N98: 0.0003835179405 | O98: -2297.666
A99: 96 | B99: Mali | C99: 3441.82 | D99: 0.0002655306653 | F99: 96 | G99: Myanmar | H99: 3487.5904 | I99: 0.0002332496043 | K99: 96 | L99: Líbano | M99: 10450.9178 | N99: 0.000374393983 | O99: 9367.8718
A100: 97 | B100: Malásia | C100: 3411.9236 | D100: 0.000263224208 | F100: 97 | G100: Nicarágua | H100: 3458.6086 | I100: 0.0002313113052 | K100: 97 | L100: Kuwait | M100: 10320.1982 | N100: 0.0003697110802 | O100: 7952.8502
A101: 98 | B101: Venezuela | C101: 3292.4432 | D101: 0.0002540064947 | F101: 98 | G101: Chipre | H101: 3445.0966 | I101: 0.0002304076244 | K101: 98 | L101: Taiwan | M101: 10028.0136 | N101: 0.0003592438506 | O101: 3180.5972
A102: 99 | B102: Paquistão | C102: 3255.3048 | D102: 0.0002511413291 | F102: 99 | G102: Taiwan | H102: 3423.7082 | I102: 0.0002289771709 | K102: 99 | L102: Território Palestiniano Ocupado | M102: 9896.2038 | N102: 0.0003545218925 | O102: 9895.2334
A103: 100 | B103: Irão, República Islâmica do | C103: 3151.3458 | D103: 0.0002431210659 | F103: 100 | G103: Congo, República Democrática do | H103: 3287.5874 | I103: 0.000219873429 | K103: 100 | L103: Bangladesh | M103: 9893.1502 | N103: 0.0003544125003 | O103: -5963.5134
A104: 101 | B104: Equador | C104: 3049.5584 | D104: 0.000235268338 | F104: 101 | G104: Malavi | H104: 3258.318 | I104: 0.0002179158953 | K104: 101 | L104: Quénia | M104: 9767.4084 | N104: 0.0003499079224 | O104: -3673.3524
A105: 102 | B105: Quénia | C105: 3047.028 | D105: 0.0002350731218 | F105: 102 | G105: Papuásia-Nova Guiné | H105: 3105.1676 | I105: 0.0002076732159 | K105: 102 | L105: Reino Unido (Irlanda do Norte) pós-2020 | M105: 9041.297 | N105: 0.0003238956865 | O105: -3978.7594
A106: 103 | B106: Uruguai | C106: 2989.0796 | D106: 0.0002306024995 | F106: 103 | G106: HongKong | H106: 2797.5856 | I106: 0.0001871021707 | K106: 103 | L106: Geórgia | M106: 8359.3498 | N106: 0.0002994655902 | O106: 7738.0274
A107: 104 | B107: Moldava, República de | C107: 2969.1072 | D107: 0.0002290616622 | F107: 104 | G107: Gabão | H107: 2642.8406 | I107: 0.0001767528447 | K107: 104 | L107: Belize | M107: 8131.84 | N107: 0.0002913152725 | O107: -8127.4788
A108: 105 | B108: Mauritânia | C108: 2802.5446 | D108: 0.0002162116358 | F108: 105 | G108: Centro-Africana, República | H108: 2579.2684 | I108: 0.000172501144 | K108: 105 | L108: Gibraltar | M108: 7990.6994 | N108: 0.0002862590475 | O108: 7951.1422
A109: 106 | B109: Timor-Leste | C109: 2726.394 | D109: 0.0002103367442 | F109: 106 | G109: Gâmbia | H109: 2389.373 | I109: 0.0001598009637 | K109: 106 | L109: Congo | M109: 7640.4052 | N109: 0.0002737100979 | O109: -2774.0184
A110: 107 | B110: Guiné | C110: 2676.647 | D110: 0.0002064988462 | F110: 107 | G110: Dominicana, República | H110: 2251.5332 | I110: 0.0001505822553 | K110: 107 | L110: Honduras | M110: 7590.891 | N110: 0.0002719362998 | O110: -4851.6098
A111: 108 | B111: Arménia | C111: 2588.4812 | D111: 0.000199697002 | F111: 108 | G111: Malta | H111: 2171.857 | I111: 0.0001452535212 | K111: 108 | L111: Etiópia | M111: 7364.853 | N111: 0.0002638387079 | O111: -3300.625
A112: 109 | B112: Gabão | C112: 2550.5466 | D112: 0.0001967704109 | F112: 109 | G112: Serra Leoa | H112: 1997.8504 | I112: 0.0001336159818 | K112: 109 | L112: Mali | M112: 7204.4072 | N112: 0.0002580908929 | O112: -320.7672
A113: 110 | B113: Reino Unido (Irlanda do Norte) pós-2020 | C113: 2531.2688 | D113: 0.0001952831608 | F113: 110 | G113: Benim | H113: 1832.152 | I113: 0.0001225340938 | K113: 110 | L113: Belarus | M113: 7048.6518 | N113: 0.0002525111069 | O113: 5329.9074
A114: 111 | B114: Congo | C114: 2433.1934 | D114: 0.0001877168075 | F114: 111 | G114: El Salvador | H114: 1779.4546 | I114: 0.0001190096983 | K114: 111 | L114: Suriname | M114: 6411.9606 | N114: 0.0002297022629 | O114: -5247.2998
A115: 112 | B115: Albânia | C115: 2230.3856 | D115: 0.0001720705244 | F115: 112 | G115: Burquina Faso | H115: 1725.7416 | I115: 0.0001154173797 | K115: 112 | L115: Singapura | M115: 5996.509 | N115: 0.0002148191127 | O115: 3379.7106
A116: 113 | B116: Seychelles | C116: 2209.8298 | D116: 0.0001704846788 | F116: 113 | G116: Laos, República Democrática Popular do | H116: 1570.485 | I116: 0.0001050338379 | K116: 113 | L116: Camboja | M116: 5868.657 | N116: 0.0002102389389 | O116: -4061.9022
A117: 114 | B117: Guiné Equatorial | C117: 2176.4366 | D117: 0.0001679084492 | F117: 114 | G117: Singapura | H117: 1308.3992 | I117: 8.750557282e-05 | K117: 114 | L117: Sri Lanca | M117: 5833.9434 | N117: 0.0002089953579 | O117: -2952.3678
A118: 115 | B118: Etiópia | C118: 2032.114 | D118: 0.0001567742016 | F118: 115 | G118: Seychelles | H118: 1264.2444 | I118: 8.455250539e-05 | K118: 115 | L118: Macedónia, Antiga República jugoslava da | M118: 5788.8886 | N118: 0.0002073813134 | O118: -3887.117
A119: 116 | B119: Suazilândia | C119: 1991.1568 | D119: 0.000153614422 | F119: 116 | G119: Kuwait | H119: 1183.674 | I119: 7.916396724e-05 | K119: 116 | L119: Andorra | M119: 5443.4826 | N119: 0.0001950074789 | O119: 5359.0438
A120: 117 | B120: Bangladesh | C120: 1964.8184 | D120: 0.0001515824584 | F120: 117 | G120: Bolívia | H120: 1171.2708 | I120: 7.833444279e-05 | K120: 117 | L120: Burquina Faso | M120: 5372.6364 | N120: 0.0001924694825 | O120: 1921.1532
A121: 118 | B121: Islândia | C121: 1803.4614 | D121: 0.0001391340353 | F121: 118 | G121: Togo | H121: 1123.3014 | I121: 7.51262554e-05 | K121: 118 | L121: Gabão | M121: 5193.3872 | N121: 0.000186048054 | O121: -92.294
A122: 119 | B122: Benim | C122: 1771.8166 | D122: 0.0001366926919 | F122: 119 | G122: São Tomé e Príncipe | H122: 1053.7266 | I122: 7.047310158e-05 | K122: 119 | L122: Nicarágua | M122: 5085.0522 | N122: 0.0001821670578 | O122: -1832.165
A123: 120 | B123: Congo, República Democrática do | C123: 1727.2344 | D123: 0.0001332532496 | F123: 120 | G123: Venezuela | H123: 1042.4414 | I123: 6.971834883e-05 | K123: 120 | L123: Congo, República Democrática do | M123: 5014.8218 | N123: 0.0001796511219 | O123: -1560.353
A124: 121 | B124: Jamaica | C124: 1687.498 | D124: 0.0001301876527 | F124: 121 | G124: Iémen | H124: 1024.4982 | I124: 6.851830989e-05 | K124: 121 | L124: Omã | M124: 4887.3662 | N124: 0.0001750851488 | O124: 3899.541
A125: 122 | B125: Nicarágua | C125: 1626.4436 | D125: 0.0001254774077 | F125: 122 | G125: Síria, República Árabe da | H125: 949.834 | I125: 6.352477765e-05 | K125: 122 | L125: Zimbabwe | M125: 4774.1098 | N125: 0.0001710278482 | O125: -4644.1914
A126: 123 | B126: Togo | C126: 1570.864 | D126: 0.0001211895343 | F126: 123 | G126: Belarus | H126: 859.3722 | I126: 5.747470392e-05 | K126: 123 | L126: Venezuela | M126: 4334.8846 | N126: 0.0001552930319 | O126: 2250.0018
A127: 124 | B127: El Salvador | C127: 1565.6294 | D127: 0.0001207856937 | F127: 124 | G127: Cabo Verde | H127: 836.1366 | I127: 5.592070993e-05 | K127: 124 | L127: Madagáscar | M127: 4107.7632 | N127: 0.0001471566283 | O127: -3487.7728
A128: 125 | B128: Cazaquistão | C128: 1539.9044 | D128: 0.0001188010529 | F128: 125 | G128: Bósnia-Herzegovina | H128: 758.1446 | I128: 5.070461485e-05 | K128: 125 | L128: Myanmar | M128: 3979.9732 | N128: 0.0001425786756 | O128: -2995.2076
A129: 126 | B129: Sri Lanca | C129: 1440.7878 | D129: 0.0001111543727 | F129: 126 | G129: Turquemenistão | H129: 720.6558 | I129: 4.819736865e-05 | K129: 126 | L129: Catar | M129: 3835.8118 | N129: 0.0001374142334 | O129: 3794.2842
A130: 127 | B130: Azerbaijão | C130: 1435.1898 | D130: 0.0001107224964 | F130: 127 | G130: Chade | H130: 675.9004 | I130: 4.520413317e-05 | K130: 127 | L130: Benim | M130: 3603.9686 | N130: 0.0001291086759 | O130: -60.3354
A131: 128 | B131: Bolívia | C131: 1412.2374 | D131: 0.000108951757 | F131: 128 | G131: Emirados Árabes Unidos | H131: 628.6306 | I131: 4.204273493e-05 | K131: 128 | L131: Sudão | M131: 3591.4234 | N131: 0.0001286592563 | O131: 3550.4582
A132: 129 | B132: Honduras | C132: 1369.6406 | D132: 0.0001056654851 | F132: 129 | G132: Timor-Leste | H132: 614.51 | I132: 4.109835099e-05 | K132: 129 | L132: Seychelles | M132: 3474.0742 | N132: 0.0001244553351 | O132: 945.5854
A133: 130 | B133: São Bartolomeu | C133: 1280.9726 | D133: 9.882489693e-05 | F133: 130 | G133: Faroé, Ilhas | H133: 597.6172 | I133: 3.996856266e-05 | K133: 130 | L133: Irão, República Islâmica do | M133: 3375.8016 | N133: 0.0001209348146 | O133: 2926.89
A134: 131 | B134: Ruanda | C134: 1241.2404 | D134: 9.575962405e-05 | F134: 131 | G134: Líbano | H134: 541.523 | I134: 3.621698967e-05 | K134: 131 | L134: El Salvador | M134: 3345.084 | N134: 0.0001198343864 | O134: -213.8252
A135: 132 | B135: Paraguai | C135: 1209.2928 | D135: 9.329492007e-05 | F135: 132 | G135: Omã | H135: 493.9126 | I135: 3.303281215e-05 | K135: 132 | L135: Timor-Leste | M135: 3340.904 | N135: 0.000119684642 | O135: 2111.884
A136: 133 | B136: Iémen | C136: 1145.3826 | D136: 8.836435486e-05 | F136: 133 | G136: Gronelândia | H136: 481.3548 | I136: 3.219294807e-05 | K136: 133 | L136: Malavi | M136: 3267.4472 | N136: 0.0001170531234 | O136: -3249.1888
A137: 134 | B137: Montenegro | C137: 1046.3476 | D137: 8.072397e-05 | F137: 134 | G137: Guiné-Bissau | H137: 379.2046 | I137: 2.536115563e-05 | K137: 134 | L137: Papuásia-Nova Guiné | M137: 3108.0532 | N137: 0.0001113429882 | O137: -3102.282
A138: 135 | B138: Uganda | C138: 966.8264 | D138: 7.458904221e-05 | F138: 135 | G138: Geórgia | H138: 310.6612 | I138: 2.077698172e-05 | K138: 135 | L138: Guiné | M138: 2979.4642 | N138: 0.0001067364121 | O138: 2373.8298
A139: 136 | B139: Macedónia, Antiga República jugoslava da | C139: 950.8858 | D139: 7.335925154e-05 | F139: 136 | G139: Usbequistão | H139: 308.3052 | I139: 2.061941274e-05 | K139: 136 | L139: Gâmbia | M139: 2880.9438 | N139: 0.0001032070144 | O139: -1897.8022
A140: 137 | B140: Bermudas | C140: 907.5284 | D140: 7.001430054e-05 | F140: 137 | G140: Guiné | H140: 302.8172 | I140: 2.025237599e-05 | K140: 137 | L140: Togo | M140: 2694.1654 | N140: 9.651585958e-05 | O140: 447.5626
A141: 138 | B141: Camboja | C141: 903.3774 | D141: 6.969405782e-05 | F141: 138 | G141: Irão, República Islâmica do | H141: 224.4558 | I141: 1.501157548e-05 | K141: 138 | L141: Centro-Africana, República | M141: 2675.6308 | N141: 9.585187553e-05 | O141: -2482.906
A142: 139 | B142: Barbados | C142: 886.8842 | D142: 6.842163498e-05 | F142: 139 | G142: Zâmbia | H142: 199.4064 | I142: 1.333627478e-05 | K142: 139 | L142: Arménia | M142: 2615.4888 | N142: 9.369734678e-05 | O142: 2561.4736
A143: 140 | B143: Trindade e Tobago | C143: 878.7574 | D143: 6.779466593e-05 | F143: 140 | G143: Azerbaijão | H143: 125.9648 | I143: 8.424509874e-06 | K143: 140 | L143: Bolívia | M143: 2583.5082 | N143: 9.255167283e-05 | O143: 240.9666
A144: 141 | B144: Namíbia | C144: 739.6614 | D144: 5.706364182e-05 | F144: 141 | G144: Fiji, Ilhas | H144: 123.8224 | I144: 8.281226433e-06 | K144: 141 | L144: Serra Leoa | M144: 2504.667 | N144: 8.972726339e-05 | O144: -1491.0338
A145: 142 | B145: Turquemenistão | C145: 730.8192 | D145: 5.638148085e-05 | F145: 142 | G145: Maldivas | H145: 106.1904 | I145: 7.102000506e-06 | K145: 142 | L145: Albânia | M145: 2336.138 | N145: 8.36898756e-05 | O145: 2124.6332
A146: 143 | B146: Barém | C146: 714.5288 | D146: 5.51247037e-05 | F146: 143 | G146: Albânia | H146: 105.7524 | I146: 7.072707121e-06 | K146: 143 | L146: Guiné Equatorial | M146: 2182.423 | N146: 7.818318497e-05 | O146: 2170.4502
A147: 144 | B147: Burundi | C147: 677.1012 | D147: 5.223722686e-05 | F147: 144 | G147: Tajiquistão | H147: 59.4122 | I147: 3.973480413e-06 | K147: 144 | L147: Iémen | M147: 2169.8808 | N147: 7.773387284e-05 | O147: 120.8844
A148: 145 | B148: Aruba | C148: 656.9934 | D148: 5.068594367e-05 | F148: 145 | G148: Jordânia | H148: 56.198 | I148: 3.758515124e-06 | K148: 145 | L148: Jamaica | M148: 1698.6206 | N148: 6.085143374e-05 | O148: 1676.3754
A149: 146 | B149: Niger | C149: 652.165 | D149: 5.031344067e-05 | F149: 146 | G149: Andorra | H149: 42.2194 | I149: 2.823628126e-06 | K149: 146 | L149: Laos, República Democrática Popular do | M149: 1586.3348 | N149: 5.682890397e-05 | O149: -1554.6352
A150: 147 | B150: São Martinho (parte holandesa) | C150: 597.7744 | D150: 4.611729671e-05 | F150: 147 | G150: Libéria | H150: 38.8276 | I150: 2.596784972e-06 | K150: 147 | L150: Azerbaijão | M150: 1561.1546 | N150: 5.592684776e-05 | O150: 1309.225
A151: 148 | B151: Suriname | C151: 582.3304 | D151: 4.49258179e-05 | F151: 148 | G151: Falkland Ilhas (Malvinas) | H151: 38.0622 | I151: 2.545595116e-06 | K151: 148 | L151: Cazaquistão | M151: 1555.7084 | N151: 5.573174293e-05 | O151: 1524.1004
A152: 149 | B152: Bósnia-Herzegovina | C152: 535.6404 | D152: 4.132376237e-05 | F152: 149 | G152: Arábia Saudita | H152: 33.9378 | I152: 2.269755767e-06 | K152: 149 | L152: Turquemenistão | M152: 1451.475 | N152: 5.199768258e-05 | O152: 10.1634
A153: 150 | B153: Tanzânia, República Unida da | C153: 516.5514 | D153: 3.98510779e-05 | F153: 150 | G153: São Marino | H153: 32.7702 | I153: 2.191666827e-06 | K153: 150 | L153: Bósnia-Herzegovina | M153: 1293.785 | N153: 4.634859144e-05 | O153: -222.5042
A154: 151 | B154: Ceuta e Melilha | C154: 507.8786 | D154: 3.918198586e-05 | F154: 151 | G154: Botswana | H154: 29.9908 | I154: 2.005780906e-06 | K154: 151 | L154: São Bartolomeu | M154: 1281.3862 | N154: 4.590441647e-05 | O154: 1280.559
A155: 152 | B155: Serra Leoa | C155: 506.8166 | D155: 3.910005433e-05 | F155: 152 | G155: São Pedro e Miquelon | H155: 28.9156 | I155: 1.933871667e-06 | K155: 152 | L155: Ruanda | M155: 1241.8804 | N155: 4.448915954e-05 | O155: 1240.6004
A156: 153 | B156: Myanmar | C156: 492.3828 | D156: 3.798651077e-05 | F156: 153 | G156: Curaçau | H156: 27.481 | I156: 1.8379258e-06 | K156: 153 | L156: Montenegro | M156: 1046.6634 | N156: 3.749570006e-05 | O156: 1046.0318
A157: 154 | B157: Gâmbia | C157: 491.5708 | D157: 3.792386632e-05 | F157: 154 | G157: Arménia | H157: 27.0076 | I157: 1.806264868e-06 | K157: 154 | L157: Bermudas | M157: 908.2538 | N157: 3.253731053e-05 | O157: 906.803
A158: 155 | B158: Curaçau | C158: 479.6396 | D158: 3.700339417e-05 | F158: 155 | G158: Aruba | H158: 23.5112 | I158: 1.572426079e-06 | K158: 155 | L158: Barbados | M158: 897.2042 | N158: 3.214146933e-05 | O158: 876.5642
A159: 156 | B159: Kosovo | C159: 471.1818 | D159: 3.635088902e-05 | F159: 156 | G159: Catar | H159: 20.7638 | I159: 1.388680315e-06 | K159: 156 | L159: Trindade e Tobago | M159: 878.7678 | N159: 3.14810032e-05 | O159: 878.747
A160: 157 | B160: Polinésia Francesa | C160: 366.6458 | D160: 2.828611119e-05 | F160: 157 | G160: Sudão | H160: 20.4826 | I160: 1.369873694e-06 | K160: 157 | L160: Barém | M160: 719.082 | N160: 2.576041446e-05 | O160: 709.9756
A161: 158 | B161: Antígua e Barbuda | C161: 363.7054 | D161: 2.805926424e-05 | F161: 158 | G161: Gibraltar | H161: 19.7786 | I161: 1.322790264e-06 | K161: 158 | L161: Aruba | M161: 680.5046 | N161: 2.437841657e-05 | O161: 633.4822
A162: 159 | B162: Haiti | C162: 328.5232 | D162: 2.534501626e-05 | F162: 159 | G162: Macau | H162: 18.3602 | I162: 1.227927851e-06 | K162: 159 | L162: Burundi | M162: 677.2152 | N162: 2.426057701e-05 | O162: 676.9872
A163: 160 | B163: Comores | C163: 311.607 | D163: 2.403995968e-05 | F163: 160 | G163: Quirguizistão | H163: 17.4752 | I163: 1.168739163e-06 | K163: 160 | L163: Chade | M163: 676.014 | N163: 2.421754518e-05 | O163: -675.7868
A164: 161 | B164: Madagáscar | C164: 309.9952 | D164: 2.3915612e-05 | F164: 161 | G164: Salomão, Ilhas | H164: 16.0532 | I164: 1.073635983e-06 | K164: 161 | L164: Niger | M164: 655.4318 | N164: 2.348020785e-05 | O164: 648.8982
A165: 162 | B165: Nova Caledónia | C165: 302.6442 | D165: 2.334849463e-05 | F165: 162 | G165: Cazaquistão | H165: 15.804 | I165: 1.056969519e-06 | K165: 162 | L165: Faroé, Ilhas | M165: 598.4668 | N165: 2.143949203e-05 | O165: -596.7676
A166: 163 | B166: Libéria | C166: 295.8354 | D166: 2.282320708e-05 | F166: 163 | G166: Santa Helena | H166: 15.7338 | I166: 1.052274552e-06 | K166: 163 | L166: São Martinho (parte holandesa) | M166: 597.7772 | N166: 2.141478778e-05 | O166: 597.7716
A167: 164 | B167: Somália | C167: 292.9902 | D167: 2.260370465e-05 | F167: 164 | G167: Marshall, Ilhas | H167: 13.4098 | I167: 8.96845726e-07 | K167: 164 | L167: Usbequistão | M167: 531.3872 | N167: 1.90364305e-05 | O167: -85.2232
A168: 165 | B168: Bahamas | C168: 280.4744 | D168: 2.163813158e-05 | F168: 165 | G168: Iraque | H168: 12.264 | I168: 8.202147671e-07 | K168: 165 | L168: Ceuta e Melilha | M168: 507.8786 | N168: 1.819425773e-05 | O168: 507.8786
A169: 166 | B169: Usbequistão | C169: 223.082 | D169: 1.721040377e-05 | F169: 166 | G169: Jamaica | H169: 11.1226 | I169: 7.438780796e-07 | K169: 166 | L169: Curaçau | M169: 507.1206 | N169: 1.816710311e-05 | O169: 452.1586
A170: 167 | B170: São Marino | C170: 219.9688 | D170: 1.697022558e-05 | F170: 167 | G170: Nepal | H170: 10.3458 | I170: 6.91925794e-07 | K170: 167 | L170: Gronelândia | M170: 481.9304 | N170: 1.726468865e-05 | O170: -480.7792
A171: 168 | B171: Bonaire, Santo Eustáquio e Saba | C171: 206.5448 | D171: 1.59345864e-05 | F171: 168 | G171: Barbados | H171: 10.32 | I171: 6.902002933e-07 | K171: 168 | L171: Kosovo | M171: 479.554 | N171: 1.717955643e-05 | O171: 462.8096
A172: 169 | B172: Guiana | C172: 139.5802 | D172: 1.076837934e-05 | F172: 169 | G172: Antígua e Barbuda | H172: 9.2326 | I172: 6.174751189e-07 | K172: 169 | L172: Antígua e Barbuda | M172: 372.938 | N172: 1.336014175e-05 | O172: 354.4728
A173: 170 | B173: Zâmbia | C173: 138.1944 | D173: 1.066146718e-05 | F173: 170 | G173: Kosovo | H173: 8.3722 | I173: 5.599316759e-07 | K173: 170 | L173: Polinésia Francesa | M173: 367.1436 | N173: 1.3152563e-05 | O173: 366.148
A174: 171 | B174: Maldivas | C174: 129.0678 | D174: 9.957365234e-06 | F174: 171 | G174: Jibuti | H174: 7.3022 | I174: 4.883702114e-07 | K174: 171 | L174: Zâmbia | M174: 337.6008 | N174: 1.209422087e-05 | O174: -61.212
A175: 172 | B175: Santa Lúcia | C175: 120.252 | D175: 9.277240986e-06 | F175: 172 | G175: Líbia, Jamahira Árabe da | H175: 6.001 | I175: 4.013461201e-07 | K175: 172 | L175: Libéria | M175: 334.663 | N175: 1.198897704e-05 | O175: 257.0078
A176: 173 | B176: Liechtenstein | C176: 119.4194 | D176: 9.213007286e-06 | F176: 173 | G176: Guiné Equatorial | H176: 5.9864 | I176: 4.00369674e-07 | K176: 173 | L176: Haiti | M176: 328.8008 | N176: 1.177896941e-05 | O176: 328.2456
A177: 174 | B177: Afeganistão | C177: 109.4574 | D177: 8.444455622e-06 | F177: 174 | G177: Barém | H177: 4.5532 | I177: 3.045174395e-07 | K177: 174 | L177: Comores | M177: 311.607 | N177: 1.116301822e-05 | O177: 311.607
A178: 175 | B178: Quirguizistão | C178: 109.2342 | D178: 8.427236115e-06 | F178: 175 | G178: São Cristovão e Nevis | H178: 4.4378 | I178: 2.967995021e-07 | K178: 175 | L178: Nova Caledónia | M178: 303.3498 | N178: 1.086721205e-05 | O178: 301.9386
A179: 176 | B179: Virgens Britânicas, Ilhas | C179: 102.589 | D179: 7.914570032e-06 | F179: 176 | G179: Afeganistão | H179: 4.3662 | I179: 2.920109031e-07 | K179: 176 | L179: Somália | M179: 292.9902 | N179: 1.049608944e-05 | O179: 292.9902
A180: 177 | B180: Botswana | C180: 98.1832 | D180: 7.574669919e-06 | F180: 177 | G180: Niger | H180: 3.2668 | I180: 2.184831703e-07 | K180: 177 | L180: Bahamas | M180: 280.4744 | N180: 1.004772306e-05 | O180: 280.4744
A181: 178 | B181: Jibuti | C181: 96.957 | D181: 7.480070637e-06 | F181: 178 | G181: Liechtenstein | H181: 1.7444 | I181: 1.166652511e-07 | K181: 178 | L181: São Marino | M181: 252.739 | N181: 9.054129281e-06 | O181: 187.1986
A182: 179 | B182: Centro-Africana, República | C182: 96.3624 | D182: 7.43419824e-06 | F182: 179 | G182: Lesoto | H182: 1.7136 | I182: 1.14605351e-07 | K182: 179 | L182: Maldivas | M182: 235.2582 | N182: 8.427896594e-06 | O182: 22.8774
A183: 180 | B183: Nepal | C183: 77.231 | D183: 5.958242678e-06 | F183: 180 | G183: Butão | H183: 1.2178 | I183: 8.14463098e-08 | K183: 180 | L183: Bonaire, Santo Eustáquio e Saba | M183: 206.5448 | N183: 7.399266917e-06 | O183: 206.5448
A184: 181 | B184: Zimbabwe | C184: 64.9592 | D184: 5.011493802e-06 | F184: 181 | G184: Bermudas | H184: 0.7254 | I184: 4.851466015e-08 | K184: 181 | L184: Fiji, Ilhas | M184: 135.9286 | N184: 4.869510117e-06 | O184: -111.7162
A185: 182 | B185: Caimão, Ilhas | C185: 51.6906 | D185: 3.987843469e-06 | F185: 182 | G185: Nova Caledónia | H185: 0.7056 | I185: 4.719043865e-08 | K185: 182 | L185: Botswana | M185: 128.174 | N185: 4.591709101e-06 | O185: 68.1924
A186: 183 | B186: Mongólia | C186: 37.8358 | D186: 2.918968786e-06 | F186: 183 | G186: Ruanda | H186: 0.64 | I186: 4.280311896e-08 | K186: 183 | L186: Quirguizistão | M186: 126.7094 | N186: 4.539241228e-06 | O186: 91.759
A187: 184 | B187: Turcas e Caicos, Ilhas | C187: 19.071 | D187: 1.471295802e-06 | F187: 184 | G187: Polinésia Francesa | H187: 0.4978 | I187: 3.329280097e-08 | K187: 184 | L187: Liechtenstein | M187: 121.1638 | N187: 4.340575492e-06 | O187: 117.675
A188: 185 | B188: Laos, República Democrática Popular do | C188: 15.8498 | D188: 1.222785602e-06 | F188: 185 | G188: Território Palestiniano Ocupado | H188: 0.4852 | I188: 3.245011456e-08 | K188: 185 | L188: Santa Lúcia | M188: 120.2706 | N188: 4.30857747e-06 | O188: 120.2334
A189: 186 | B189: Fiji, Ilhas | C189: 12.1062 | D189: 9.339731133e-07 | F189: 186 | G189: São Bartolomeu | H189: 0.4136 | I189: 2.766151563e-08 | K189: 186 | L189: Afeganistão | M189: 113.8236 | N189: 4.077619954e-06 | O189: 105.0912
A190: 187 | B190: Anguila | C190: 10.0614 | D190: 7.76220208e-07 | F190: 187 | G190: Micronésia, Estados Federados da | H190: 0.3438 | I190: 2.299330047e-08 | K190: 187 | L190: Jibuti | M190: 104.2592 | N190: 3.734984611e-06 | O190: 89.6548
A191: 188 | B191: Malavi | C191: 9.1292 | D191: 7.043025347e-07 | F191: 188 | G191: Montenegro | H191: 0.3158 | I191: 2.112066401e-08 | K191: 188 | L191: Virgens Britânicas, Ilhas | M191: 102.589 | N191: 3.675151317e-06 | O191: 102.589
A192: 189 | B192: Brunei Darussalam | C192: 7.7238 | D192: 5.958782717e-07 | F192: 189 | G192: Haiti | H192: 0.2776 | I192: 1.856585285e-08 | K192: 189 | L192: Nepal | M192: 87.5768 | N192: 3.137353828e-06 | O192: 66.8852
A193: 190 | B193: São Vicente e Granadinas | C193: 7.6034 | D193: 5.865896127e-07 | F193: 190 | G193: Burundi | H193: 0.114 | I193: 7.624305565e-09 | K193: 190 | L193: Tajiquistão | M193: 59.4122 | N193: 2.128384379e-06 | O193: -59.4122
A194: 191 | B194: Guam | C194: 6.6636 | D194: 5.140856121e-07 | F194: 191 | G194: Oceano Indico, Território Britânico do | H194: 0.098 | I194: 6.554227591e-09 | K194: 191 | L194: Caimão, Ilhas | M194: 51.6906 | N194: 1.851765557e-06 | O194: 51.6906
A195: 192 | B195: Territórios Franceses do Sul | C195: 6.3102 | D195: 4.868213923e-07 | F195: 192 | G195: Nauru | H195: 0.0694 | I195: 4.641463212e-09 | K195: 192 | L195: Falkland Ilhas (Malvinas) | M195: 38.0622 | N195: 1.363541359e-06 | O195: -38.0622
A196: 193 | B196: Menores distantes dos Estados Unidos, lhas | C196: 4.5544 | D196: 3.513643544e-07 | F196: 193 | G196: Vanuatu | H196: 0.065 | I196: 4.34719177e-09 | K196: 193 | L196: Mongólia | M196: 37.8488 | N196: 1.355896511e-06 | O196: 37.8228
A197: 194 | B197: Sudão do Sul | C197: 3.771 | D197: 2.909263526e-07 | F197: 194 | G197: São Vicente e Granadinas | H197: 0.0416 | I197: 2.782202732e-09 | K197: 194 | L197: São Pedro e Miquelon | M197: 29.2314 | N197: 1.047186523e-06 | O197: -28.5998
A198: 195 | B198: Melilha | C198: 3.6164 | D198: 2.789992208e-07 | F198: 195 | G198: Santa Sé (Cidade Estado do Vaticano) | H198: 0.021 | I198: 1.404477341e-09 | K198: 195 | L198: Turcas e Caicos, Ilhas | M198: 19.071 | N198: 6.832000582e-07 | O198: 19.071
A199: 196 | B199: Marianas do Norte, Ilhas | C199: 2.9244 | D199: 2.256125764e-07 | F199: 196 | G199: Santa Lúcia | H199: 0.0186 | I199: 1.243965645e-09 | K199: 196 | L199: Salomão, Ilhas | M199: 16.0532 | N199: 5.750903033e-07 | O199: -16.0532
A200: 197 | B200: Papuásia-Nova Guiné | C200: 2.8856 | D200: 2.226192212e-07 | F200: 197 | G200: Mongólia | H200: 0.013 | I200: 8.694383539e-10 | K200: 197 | L200: Santa Helena | M200: 15.7338 | N200: 5.636481084e-07 | O200: -15.7338
... 56 more rows

Sheet 2AA
A1: Ranking dos parceiros comerciais de Portugal por país (média 2018-2022 em milhares de euros) produtos agrícolas e agroalimentares
A2: Exportações | F2: Importações | K2: Trocas comerciais (total e saldo)
A3: P | B3: País | C3: média quinquénio | D3: % do Total | F3: P | G3: País | H3: média quinquénio | I3: % do Total | K3: P | L3: País | M3: Total (exp+imp) | N3: % do Total | O3: Saldo (exp-imp)
A4: 1 | B4: Espanha | C4: 2410904.109 | D4: 0.3411314548 | F4: 1 | G4: Espanha | H4: 4701466.742 | I4: 0.4611119387 | K4: 1 | L4: Espanha | M4: 7112370.851 | N4: 0.4119934799 | O4: -2290562.633
A5: 2 | B5: França | C5: 677090.7112 | D5: 0.0958051125 | F5: 2 | G5: França | H5: 799963.8704 | I5: 0.07845910891 | K5: 2 | L5: França | M5: 1477054.582 | N5: 0.08556033844 | O5: -122873.1592
A6: 3 | B6: Itália | C6: 450531.2198 | D6: 0.06374802295 | F6: 3 | G6: Alemanha | H6: 692258.163 | I6: 0.06789551456 | K6: 3 | L6: Alemanha | M6: 952185.3406 | N6: 0.05515659409 | O6: -432330.9854
A7: 4 | B7: Brasil | C7: 371210.8888 | D7: 0.0525245737 | F7: 4 | G7: Países Baixos | H7: 594901.6886 | I7: 0.05834695554 | K7: 4 | L7: Países Baixos | M7: 927796.1012 | N7: 0.05374381517 | O7: -262007.276
A8: 5 | B8: Países Baixos | C8: 332894.4126 | D8: 0.04710297471 | F8: 5 | G8: Brasil | H8: 551854.2024 | I8: 0.0541249306 | K8: 5 | L8: Brasil | M8: 923065.0912 | N8: 0.05346976516 | O8: -180643.3136
A9: 6 | B9: Angola | C9: 270817.8088 | D9: 0.03831943078 | F9: 6 | G9: Itália | H9: 325859.5816 | I9: 0.03195975887 | K9: 6 | L9: Itália | M9: 776390.8014 | N9: 0.04497346311 | O9: 124671.6382 | P9: Nota: Nesta listagem, o Reino Unido passa a ser constituído por três componentes: Reino Unido [até 2020] ; Reino Unido (sem Irlanda do Norte) pós-2020 e Reino Unido (Irlanda do Norte) pós-2020. Estas componentes são calculadas igualmente como média do quinquénio, embora a primeira corresponda apenas a 2018-2020 e as duas últimas a 2021-2022.
A10: 7 | B10: Alemanha | C10: 259927.1776 | D10: 0.03677845831 | F10: 7 | G10: Bélgica | H10: 255378.855 | I10: 0.02504712793 | K10: 7 | L10: Bélgica | M10: 421868.9118 | N10: 0.02443731418 | O10: -88888.7982
A11: 8 | B11: Reino Unido | C11: 202835.6198 | D11: 0.02870027465 | F11: 8 | G11: Estados Unidos | H11: 216780.4662 | I11: 0.02126146297 | K11: 8 | L11: Estados Unidos | M11: 400397.4384 | N11: 0.02319355071 | O11: -33163.494
A12: 9 | B12: Estados Unidos | C12: 183616.9722 | D12: 0.0259809275 | F12: 9 | G12: Ucrânia | H12: 191923.2566 | I12: 0.01882350972 | K12: 9 | L12: Polónia | M12: 317792.9434 | N12: 0.01840857618 | O12: -49141.263
A13: 10 | B13: Israel | C13: 169490.6434 | D13: 0.02398211922 | F13: 10 | G13: Polónia | H13: 183467.1032 | I13: 0.01799414444 | K13: 10 | L13: Reino Unido | M13: 313115.4092 | N13: 0.01813762383 | O13: 92555.8304
A14: 11 | B14: Bélgica | C14: 166490.0568 | D14: 0.0235575505 | F14: 11 | G14: Roménia | H14: 135174.3746 | I14: 0.01325767497 | K14: 11 | L14: Angola | M14: 277939.1112 | N14: 0.01609999029 | O14: 263696.5064
A15: 12 | B15: Reino Unido (sem Irlanda do Norte) pós 2020 | C15: 153217.0528 | D15: 0.02167948362 | F15: 12 | G15: África do Sul | H15: 112523.4846 | I15: 0.01103611383 | K15: 12 | L15: Reino Unido (sem Irlanda do Norte) pós 2020 | M15: 202804.151 | N15: 0.01174769844 | O15: 103629.9546
A16: 13 | B16: Polónia | C16: 134325.8402 | D16: 0.01900646696 | F16: 13 | G16: Irlanda | H16: 110495.8528 | I16: 0.01083724712 | K16: 13 | L16: Ucrânia | M16: 198678.4348 | N16: 0.01150871087 | O16: -185168.0784
A17: 14 | B17: Suíça | C17: 92002.5032 | D17: 0.01301791625 | F17: 14 | G17: Reino Unido | H17: 110279.7894 | I17: 0.01081605598 | K17: 14 | L17: Canadá | M17: 175352.6694 | N17: 0.01015753509 | O17: -30876.1322
A18: 15 | B18: Cabo Verde | C18: 85448.5406 | D18: 0.01209056174 | F18: 15 | G18: Canadá | H18: 103114.4008 | I18: 0.01011328674 | K18: 15 | L18: Israel | M18: 174656.3316 | N18: 0.0101171988 | O18: 164324.9552
A19: 16 | B19: Canadá | C19: 72238.2686 | D19: 0.01022137113 | F19: 16 | G19: Argentina | H19: 72786.9924 | I19: 0.007138825609 | K19: 16 | L19: Roménia | M19: 150986.8596 | N19: 0.008746113359 | O19: -119361.8896
A20: 17 | B20: China, República Popular da | C20: 72211.904 | D20: 0.01021764067 | F20: 17 | G20: Dinamarca | H20: 70200.5472 | I20: 0.00688515142 | K20: 17 | L20: Irlanda | M20: 137282.9142 | N20: 0.007952294213 | O20: -83708.7914
A21: 18 | B21: Japão | C21: 54930.0814 | D21: 0.007772345036 | F21: 18 | G21: Costa Rica | H21: 69966.4528 | I21: 0.006862191836 | K21: 18 | L21: África do Sul | M21: 134358.9168 | N21: 0.0077829178 | O21: -90688.0524
A22: 19 | B22: Suécia | C22: 50873.1956 | D22: 0.007198315007 | F22: 19 | G22: Reino Unido (sem Irlanda do Norte) pós 2020 | H22: 49587.0982 | I22: 0.004863419065 | K22: 19 | L22: Dinamarca | M22: 117587.3114 | N22: 0.006811400395 | O22: -22813.783
A23: 20 | B23: Rússia, Federação da | C23: 48396.534 | D23: 0.00684787918 | F23: 20 | G23: Bulgária | H23: 45296.228 | I23: 0.004442577743 | K23: 20 | L23: China, República Popular da | M23: 117261.103 | N23: 0.006792504342 | O23: 27162.705
A24: 21 | B24: Dinamarca | C24: 47386.7642 | D24: 0.00670500156 | F24: 21 | G24: China, República Popular da | H24: 45049.199 | I24: 0.004418349555 | K24: 21 | L24: Suíça | M24: 94989.5902 | N24: 0.005502397533 | O24: 89015.4162
A25: 22 | B25: Luxemburgo | C25: 45444.6126 | D25: 0.006430196354 | F25: 22 | G25: Cuba | H25: 35800.4636 | I25: 0.003511249166 | K25: 22 | L25: Cabo Verde | M25: 85575.2788 | N25: 0.004957061105 | O25: 85321.8024
A26: 23 | B26: Marrocos | C26: 40790.7978 | D26: 0.005771703713 | F26: 23 | G26: Grécia | H26: 30716.6104 | I26: 0.003012633408 | K26: 23 | L26: Argentina | M26: 73024.3208 | N26: 0.004230030278 | O26: -72549.664
A27: 24 | B27: Guiné-Bissau | C27: 30105.257 | D27: 0.004259750556 | F27: 24 | G27: Vietname | H27: 28842.503 | I27: 0.002828824111 | K27: 24 | L27: Costa Rica | M27: 71166.176 | N27: 0.004122394785 | O27: -68766.7296
A28: 25 | B28: Irlanda | C28: 26787.0614 | D28: 0.003790241674 | F28: 25 | G28: Colômbia | H28: 28226.344 | I28: 0.002768392274 | K28: 25 | L28: Japão | M28: 68521.65 | N28: 0.003969207122 | O28: 41338.5128
A29: 26 | B29: São Tomé e Príncipe | C29: 25260.883 | D29: 0.003574294696 | F29: 26 | G29: Guiana | H29: 28025.2642 | I29: 0.002748670706 | K29: 26 | L29: Suécia | M29: 64635.9194 | N29: 0.003744121042 | O29: 37110.4718
A30: 27 | B30: Arábia Saudita | C30: 25201.13 | D30: 0.003565839931 | F30: 27 | G30: Chile | H30: 24582.6414 | I30: 0.00241102406 | K30: 27 | L30: Rússia, Federação da | M30: 60555.2458 | N30: 0.003507742632 | O30: 36237.8222
A31: 28 | B31: Moçambique | C31: 25040.048 | D31: 0.003543047595 | F31: 28 | G31: Áustria | H31: 23738.6754 | I31: 0.002328249297 | K31: 28 | L31: Luxemburgo | M31: 53690.7938 | N31: 0.003110110179 | O31: 37198.4314
A32: 29 | B32: Grécia | C32: 22263.6106 | D32: 0.003150194919 | F32: 29 | G32: Uruguai | H32: 22544.114 | I32: 0.002211088727 | K32: 29 | L32: Bulgária | M32: 53455.219 | N32: 0.003096464197 | O32: -37137.237
A33: 30 | B33: África do Sul | C33: 21835.4322 | D33: 0.003089609714 | F33: 30 | G33: Checa, República | H33: 22160.724 | I33: 0.002173486481 | K33: 30 | L33: Grécia | M33: 52980.221 | N33: 0.00306894931 | O33: -8452.9998
A34: 31 | B34: Finlândia | C34: 19891.7716 | D34: 0.002814590991 | F34: 31 | G34: Costa do Marfim | H34: 21706.6942 | I34: 0.002128956003 | K34: 31 | L34: Marrocos | M34: 50677.0038 | N34: 0.002935532411 | O34: 30904.5918
A35: 32 | B35: Checa, República | C35: 18233.465 | D35: 0.002579948501 | F35: 32 | G35: Índia | H35: 20821.1078 | I35: 0.002042099181 | K35: 32 | L35: Checa, República | M35: 40394.189 | N35: 0.002339886775 | O35: -3927.259
A36: 33 | B36: Jordânia | C36: 17519.4376 | D36: 0.002478917023 | F36: 33 | G36: Paraguai | H36: 18543.3936 | I36: 0.001818704809 | K36: 33 | L36: Cuba | M36: 38670.0018 | N36: 0.002240010953 | O36: -32930.9254
A37: 34 | B37: Noruega | C37: 16995.9884 | D37: 0.002404851453 | F37: 34 | G37: Turquia | H37: 17986.1158 | I37: 0.001764047941 | K37: 34 | L37: Áustria | M37: 38109.5616 | N37: 0.002207546714 | O37: -9367.7892
A38: 35 | B38: Roménia | C38: 15812.485 | D38: 0.002237391356 | F38: 35 | G38: Hungria | H38: 16814.9122 | I38: 0.001649178265 | K38: 35 | L38: Moçambique | M38: 35153.372 | N38: 0.002036305525 | O38: 14926.724
A39: 36 | B39: Austrália | C39: 14444.1886 | D39: 0.002043783929 | F39: 36 | G39: Uganda | H39: 16711.9112 | I39: 0.0016390761 | K39: 36 | L39: Colômbia | M39: 34587.7746 | N39: 0.002003542549 | O39: -21864.9134
A40: 37 | B40: Áustria | C40: 14370.8862 | D40: 0.002033411988 | F40: 37 | G40: Suécia | H40: 13762.7238 | I40: 0.001349824768 | K40: 37 | L40: Vietname | M40: 30876.7168 | N40: 0.001788574622 | O40: -26808.2892
A41: 38 | B41: Coreia, República da | C41: 13714.1396 | D41: 0.00194048547 | F41: 38 | G41: Japão | H41: 13591.5686 | I41: 0.001333038154 | K41: 38 | L41: Guiné-Bissau | M41: 30466.7032 | N41: 0.001764824042 | O41: 29743.8108
A42: 39 | B42: Iraque | C42: 12402.8826 | D42: 0.001754948847 | F42: 39 | G42: Suazilândia | H42: 13238.5734 | I42: 0.001298416979 | K42: 39 | L42: Chile | M42: 30212.416 | N42: 0.00175009412 | O42: -18952.8668
A43: 40 | B43: Emirados Árabes Unidos | C43: 11857.528 | D43: 0.001677783767 | F43: 40 | G43: Indonésia | H43: 13223.1014 | I43: 0.001296899512 | K43: 40 | L43: Guiana | M43: 28043.5076 | N43: 0.001624457235 | O43: -28007.0208
A44: 41 | B44: Argélia | C44: 11256.5744 | D44: 0.001592751693 | F44: 41 | G44: México | H44: 13063.5578 | I44: 0.001281251744 | K44: 41 | L44: Hungria | M44: 28001.5612 | N44: 0.001622027434 | O44: -5628.2632
A45: 42 | B45: Macau | C45: 11222.9256 | D45: 0.001587990548 | F45: 42 | G45: Austrália | H45: 12929.8552 | I45: 0.001268138418 | K45: 42 | L45: Turquia | M45: 27952.4328 | N45: 0.001619181607 | O45: -8019.7988
A46: 43 | B46: Hungria | C46: 11186.649 | D46: 0.001582857582 | F46: 43 | G46: Rússia, Federação da | H46: 12158.7118 | I46: 0.001192505973 | K46: 43 | L46: Austrália | M46: 27374.0438 | N46: 0.00158567766 | O46: 1514.3334
A47: 44 | B47: Nigéria | C47: 10950.0114 | D47: 0.001549374488 | F47: 44 | G47: Moldava, República de | H47: 11903.4008 | I47: 0.0011674655 | K47: 44 | L47: Finlândia | M47: 27369.5856 | N47: 0.001585419412 | O47: 12413.9576
A48: 45 | B48: Turquia | C48: 9966.317 | D48: 0.001410186413 | F48: 45 | G48: Peru | H48: 11309.1784 | I48: 0.001109185168 | K48: 45 | L48: Costa do Marfim | M48: 27312.2444 | N48: 0.001582097848 | O48: -16101.144
A49: 46 | B49: Território Palestiniano Ocupado | C49: 9369.3582 | D49: 0.001325719585 | F49: 46 | G49: Lituânia | H49: 10588.065 | I49: 0.00103845958 | K49: 46 | L49: São Tomé e Príncipe | M49: 26314.3542 | N49: 0.001524293739 | O49: 24207.4118
A50: 47 | B50: Eslováquia | C50: 9087.2906 | D50: 0.001285808362 | F50: 47 | G50: Paquistão | H50: 10304.0036 | I50: 0.001010599317 | K50: 47 | L50: Arábia Saudita | M50: 25224.2354 | N50: 0.001461147167 | O50: 25178.0246
A51: 48 | B51: Senegal | C51: 8493.732 | D51: 0.001201822646 | F51: 48 | G51: Tailândia | H51: 10199.4412 | I51: 0.001000344012 | K51: 48 | L51: Uruguai | M51: 24295.7548 | N51: 0.001407363702 | O51: -20792.4732
A52: 49 | B52: Bulgária | C52: 8158.991 | D52: 0.001154458387 | F52: 49 | G52: Moçambique | H52: 10113.324 | I52: 0.0009918977826 | K52: 49 | L52: Índia | M52: 23835.9726 | N52: 0.00138073021 | O52: -17806.243
A53: 50 | B53: Líbia, Jamahira Árabe da | C53: 7994.648 | D53: 0.001131204635 | F53: 50 | G53: Marrocos | H53: 9886.206 | I53: 0.0009696224317 | K53: 50 | L53: Paraguai | M53: 19188.0202 | N53: 0.001111491425 | O53: -17898.767
A54: 51 | B54: Gibraltar | C54: 7555.2434 | D54: 0.001069030976 | F54: 51 | G54: Egito | H54: 9790.4264 | I54: 0.0009602285299 | K54: 51 | L54: México | M54: 18719.1874 | N54: 0.001084333666 | O54: -7407.9282
A55: 52 | B55: Kuwait | C55: 7349.7522 | D55: 0.001039954949 | F55: 52 | G55: Letónia | H55: 8930.656 | I55: 0.0008759036973 | K55: 52 | L55: Noruega | M55: 18005.9244 | N55: 0.001043016964 | O55: 15986.0524
A56: 53 | B56: Ucrânia | C56: 6755.1782 | D56: 0.0009558255588 | F56: 53 | G56: Sérvia | H56: 8809.7352 | I56: 0.0008640439889 | K56: 53 | L56: Jordânia | M56: 17548.9282 | N56: 0.001016544855 | O56: 17489.947
A57: 54 | B57: Colômbia | C57: 6361.4306 | D57: 0.0009001121477 | F57: 54 | G57: Luxemburgo | H57: 8246.1812 | I57: 0.0008087715619 | K57: 54 | L57: Uganda | M57: 17197.4672 | N57: 0.0009961860126 | O57: -16226.3552
A58: 55 | B58: Letónia | C58: 5845.0864 | D58: 0.0008270519014 | F58: 55 | G58: Equador | H58: 8207.9326 | I58: 0.0008050202036 | K58: 55 | L58: Lituânia | M58: 15651.6936 | N58: 0.0009066450342 | O58: -5524.4364
A59: 56 | B59: HongKong | C59: 5831.0346 | D59: 0.0008250636386 | F59: 56 | G59: Nova Zelânda | H59: 7880.6232 | I59: 0.000772918249 | K59: 56 | L59: Suazilândia | M59: 15229.1516 | N59: 0.0008821687305 | O59: -11247.9952
A60: 57 | B60: Maurícias | C60: 5663.2906 | D60: 0.0008013286611 | F60: 57 | G60: Finlândia | H60: 7477.814 | I60: 0.0007334114012 | K60: 57 | L60: Letónia | M60: 14775.7424 | N60: 0.0008559044034 | O60: -3085.5696
A61: 58 | B61: México | C61: 5655.6296 | D61: 0.0008002446661 | F61: 58 | G61: Malásia | H61: 7402.4108 | I61: 0.0007260159823 | K61: 58 | L61: Coreia, República da | M61: 14651.7536 | N61: 0.0008487221883 | O61: 12776.5256
A62: 59 | B62: Chile | C62: 5629.7746 | D62: 0.0007965863066 | F62: 59 | G62: Angola | H62: 7121.3024 | I62: 0.0006984453439 | K62: 59 | L62: Indonésia | M62: 14360.499 | N62: 0.0008318508808 | O62: -12085.7038
A63: 60 | B63: Costa do Marfim | C63: 5605.5502 | D63: 0.0007931586693 | F63: 60 | G63: Camarões | H63: 6330.7516 | I63: 0.0006209094531 | K63: 60 | L63: Tailândia | M63: 13287.7642 | N63: 0.0007697113 | O63: -7111.1182
A64: 61 | B64: Andorra | C64: 5268.3636 | D64: 0.0007454483705 | F64: 61 | G64: Honduras | H64: 6193.611 | I64: 0.0006074589341 | K64: 61 | L64: Peru | M64: 13096.3328 | N64: 0.0007586223831 | O64: -9522.024
A65: 62 | B65: Lituânia | C65: 5063.6286 | D65: 0.0007164793426 | F65: 62 | G65: Etiópia | H65: 5332.6708 | I65: 0.0005230193695 | K65: 62 | L65: Eslováquia | M65: 12686.9856 | N65: 0.0007349104057 | O65: 5487.5956
A66: 63 | B66: Estónia | C66: 4935.453 | D66: 0.0006983431054 | F66: 63 | G66: Israel | H66: 5165.6882 | I66: 0.0005066419973 | K66: 63 | L66: Iraque | M66: 12415.1466 | N66: 0.0007191637724 | O66: 12390.6186
A67: 64 | B67: Malta | C67: 4732.3848 | D67: 0.0006696099218 | F67: 64 | G67: Belize | H67: 5153.7922 | I67: 0.0005054752577 | K67: 64 | L67: Emirados Árabes Unidos | M67: 12312.8694 | N67: 0.0007132392304 | O67: 11402.1866
A68: 65 | B68: Síria, República Árabe da | C68: 4399.3294 | D68: 0.0006224841681 | F68: 65 | G68: Camboja | H68: 4964.372 | I68: 0.0004868972435 | K68: 65 | L68: Moldava, República de | M68: 12104.7888 | N68: 0.0007011858867 | O68: -11702.0128
A69: 66 | B69: Chipre | C69: 4087.8838 | D69: 0.0005784160983 | F69: 66 | G69: Zimbabwe | H69: 4708.9854 | I69: 0.000461849356 | K69: 66 | L69: Argélia | M69: 11803.7068 | N69: 0.000683745314 | O69: 10709.442
A70: 67 | B70: Omã | C70: 3805.6814 | D70: 0.000538485802 | F70: 67 | G70: Guatemala | H70: 4634.8976 | I70: 0.0004545829494 | K70: 67 | L70: Sérvia | M70: 11344.2464 | N70: 0.0006571304632 | O70: -6275.224
A71: 68 | B71: Eslovénia | C71: 3324.4654 | D71: 0.0004703960287 | F71: 68 | G71: Suriname | H71: 4613.819 | I71: 0.0004525155958 | K71: 68 | L71: Egito | M71: 11328.9988 | N71: 0.0006562472258 | O71: -8251.854
A72: 69 | B72: Mali | C72: 3288.1148 | D72: 0.0004652525919 | F72: 69 | G72: Macedónia, Antiga República jugoslava da | H72: 4601.6794 | I72: 0.0004513249643 | K72: 69 | L72: Macau | M72: 11239.4228 | N72: 0.0006510584176 | O72: 11206.4284
A73: 70 | B73: Tailândia | C73: 3088.323 | D73: 0.0004369830032 | F73: 70 | G73: Eslovénia | H73: 4571.6924 | I73: 0.0004483838898 | K73: 70 | L73: Nigéria | M73: 11147.6308 | N73: 0.0006457412448 | O73: 10752.392
A74: 71 | B74: Índia | C74: 3014.8648 | D74: 0.0004265890176 | F74: 71 | G74: Tanzânia, República Unida da | H74: 4539.6584 | I74: 0.0004452420491 | K74: 71 | L74: Paquistão | M74: 10570.8542 | N74: 0.000612330698 | O74: -10037.153
A75: 72 | B75: Singapura | C75: 2956.254 | D75: 0.0004182958684 | F75: 72 | G75: Filipinas | H75: 4493.245 | I75: 0.000440689901 | K75: 72 | L75: Nova Zelânda | M75: 10271.0628 | N75: 0.000594964885 | O75: -5490.1836
A76: 73 | B76: Cuba | C76: 2869.5382 | D76: 0.0004060259955 | F76: 73 | G76: Tunísia | H76: 4126.4674 | I76: 0.0004047169718 | K76: 73 | L76: Território Palestiniano Ocupado | M76: 9369.8434 | N76: 0.0005427605604 | O76: 9368.873
A77: 74 | B77: Taiwan | C77: 2744.627 | D77: 0.0003883516553 | F77: 74 | G77: Estónia | H77: 4049.43 | I77: 0.0003971612734 | K77: 74 | L77: Senegal | M77: 9057.0902 | N77: 0.000524643918 | O77: 7930.3738
A78: 75 | B78: Gana | C78: 2742.0304 | D78: 0.0003879842488 | F78: 75 | G78: Reino Unido (Irlanda do Norte) pós-2020 | H78: 4019.292 | I78: 0.0003942053891 | K78: 75 | L78: Equador | M78: 9035.3682 | N78: 0.0005233856425 | O78: -7380.497
A79: 76 | B79: Sérvia | C79: 2534.5112 | D79: 0.0003586212698 | F79: 76 | G79: Mali | H79: 3760.9918 | I79: 0.0003688717406 | K79: 76 | L79: Estónia | M79: 8984.883 | N79: 0.0005204612205 | O79: 886.023
A80: 77 | B80: Líbano | C80: 2519.7508 | D80: 0.0003565327435 | F80: 77 | G80: Eslováquia | H80: 3599.695 | I80: 0.0003530520221 | K80: 77 | L80: Malásia | M80: 8903.6532 | N80: 0.000515755877 | O80: -5901.1684
A81: 78 | B81: Timor-Leste | C81: 2471.9198 | D81: 0.0003497648847 | F81: 78 | G81: Myanmar | H81: 3336.325 | I81: 0.0003272211361 | K81: 78 | L81: Camarões | M81: 8611.8814 | N81: 0.00049885461 | O81: -4049.6218
A82: 79 | B82: Belarus | C82: 2455.9286 | D82: 0.000347502206 | F82: 79 | G82: Quénia | H82: 3256.0222 | I82: 0.0003193451728 | K82: 79 | L82: Kuwait | M82: 8533.2046 | N82: 0.0004942971524 | O82: 6166.2998
A83: 80 | B83: Nova Zelânda | C83: 2390.4396 | D83: 0.0003382358243 | F83: 80 | G83: Malavi | H83: 3254.1762 | I83: 0.0003191641202 | K83: 80 | L83: Líbia, Jamahira Árabe da | M83: 8000.598 | N83: 0.0004634452113 | O83: 7988.698
A84: 81 | B84: Filipinas | C84: 2342.9576 | D84: 0.0003315173473 | F84: 81 | G84: Nicarágua | H84: 3164.5064 | I84: 0.0003103694573 | K84: 81 | L84: Eslovénia | M84: 7896.1578 | N84: 0.0004573953747 | O84: -1247.227
A85: 82 | B85: Camarões | C85: 2281.1298 | D85: 0.0003227690079 | F85: 82 | G85: Chipre | H85: 3133.5816 | I85: 0.000307336405 | K85: 82 | L85: Gibraltar | M85: 7555.2434 | N85: 0.0004376474576 | O85: 7555.2434
A86: 83 | B86: Guiné | C86: 2270.2954 | D86: 0.0003212359919 | F86: 83 | G86: Sri Lanca | H86: 3073.8124 | I86: 0.0003014743425 | K86: 83 | L86: Chipre | M86: 7221.4654 | N86: 0.0004183129259 | O86: 954.3022
A87: 84 | B87: Irão, República Islâmica do | C87: 2234.7082 | D87: 0.0003162005725 | F87: 84 | G87: Suíça | H87: 2987.087 | I87: 0.0002929684614 | K87: 84 | L87: Maurícias | M87: 7215.0708 | N87: 0.0004179425102 | O87: 4111.5104
A88: 85 | B88: Congo | C88: 2184.5722 | D88: 0.0003091065671 | F88: 85 | G88: Taiwan | H88: 2718.5488 | I88: 0.0002666306871 | K88: 85 | L88: Mali | M88: 7049.1066 | N88: 0.0004083288146 | O88: -472.877
A89: 86 | B89: Seychelles | C89: 2103.9052 | D89: 0.0002976925706 | F89: 86 | G89: Dominicana, República | H89: 2224.7352 | I89: 0.000218198281 | K89: 86 | L89: HongKong | M89: 7034.5032 | N89: 0.0004074828934 | O89: 4627.566
A90: 87 | B90: Gabão | C90: 2079.6516 | D90: 0.0002942608017 | F90: 87 | G90: Serra Leoa | H90: 1997.841 | I90: 0.00019594488 | K90: 87 | L90: Honduras | M90: 7007.3132 | N90: 0.0004059078767 | O90: -5379.9088
A91: 88 | B91: Venezuela | C91: 2058.7692 | D91: 0.0002913060415 | F91: 88 | G91: Benim | H91: 1817.538 | I91: 0.0001782610655 | K91: 88 | L91: Filipinas | M91: 6836.2026 | N91: 0.0003959960691 | O91: -2150.2874
A92: 89 | B92: Vietname | C92: 2034.2138 | D92: 0.0002878315693 | F92: 89 | G92: Croácia | H92: 1813.5334 | I92: 0.0001778683011 | K92: 89 | L92: Etiópia | M92: 6077.0796 | N92: 0.0003520228662 | O92: -4588.262
A93: 90 | B93: Suazilândia | C93: 1990.5782 | D93: 0.0002816573396 | F93: 90 | G93: Burquina Faso | H93: 1725.737 | I93: 0.0001692573781 | K93: 90 | L93: Malta | M93: 5786.604 | N93: 0.0003351966832 | O93: 3678.1656
A94: 91 | B94: Sudão | C94: 1865.0268 | D94: 0.0002638924142 | F94: 91 | G94: Gana | H94: 1658.4144 | I94: 0.0001626544908 | K94: 91 | L94: Taiwan | M94: 5463.1758 | N94: 0.0003164616773 | O94: 26.0782
A95: 92 | B95: Burquina Faso | C95: 1848.8938 | D95: 0.0002616096715 | F95: 92 | G95: Laos, República Democrática Popular do | H95: 1570.3752 | I95: 0.0001540197544 | K95: 92 | L95: Reino Unido (Irlanda do Norte) pós-2020 | M95: 5365.84 | N95: 0.0003108233725 | O95: -2672.744
A96: 93 | B96: Guiné Equatorial | C96: 1818.2522 | D96: 0.0002572740309 | F96: 93 | G96: Maurícias | H96: 1551.7802 | I96: 0.0001521959881 | K96: 93 | L96: Camboja | M96: 5365.8038 | N96: 0.0003108212756 | O96: -4562.9402
A97: 94 | B97: Peru | C97: 1787.1544 | D97: 0.0002528738403 | F97: 94 | G97: Madagáscar | H97: 1535.4896 | I97: 0.0001505982335 | K97: 94 | L97: Síria, República Árabe da | M97: 5349.1634 | N97: 0.0003098573584 | O97: 3449.4954
A98: 95 | B98: Croácia | C98: 1772.1248 | D98: 0.0002507472234 | F98: 95 | G98: Panamá | H98: 1513.6692 | I98: 0.0001484581254 | K98: 95 | L98: Andorra | M98: 5273.09 | N98: 0.0003054507062 | O98: 5263.6372
A99: 96 | B99: Uruguai | C99: 1751.6408 | D99: 0.0002478488349 | F99: 96 | G99: Congo, República Democrática do | H99: 1226.6902 | I99: 0.0001203117085 | K99: 96 | L99: Belize | M99: 5155.9728 | N99: 0.0002986665376 | O99: -5151.6116
A100: 97 | B100: Dominicana, República | C100: 1708.9932 | D100: 0.0002418144025 | F100: 97 | G100: HongKong | H100: 1203.4686 | I100: 0.0001180341731 | K100: 97 | L100: Guatemala | M100: 5126.7604 | N100: 0.0002969743708 | O100: -4143.0348
A101: 98 | B101: Benim | C101: 1572.4166 | D101: 0.0002224894638 | F101: 98 | G101: Kuwait | H101: 1183.4524 | I101: 0.0001160710179 | K101: 98 | L101: Tanzânia, República Unida da | M101: 4910.6254 | N101: 0.0002844544653 | O101: -4168.6914
A102: 99 | B102: Bangladesh | C102: 1558.9346 | D102: 0.0002205818249 | F102: 99 | G102: Togo | H102: 1123.3014 | I102: 0.0001101715092 | K102: 99 | L102: Macedónia, Antiga República jugoslava da | M102: 4874.3908 | N102: 0.0002823555282 | O102: -4328.968
A103: 100 | B103: Egito | C103: 1538.5724 | D103: 0.0002177006706 | F103: 100 | G103: Singapura | H103: 1064.6932 | I103: 0.0001044233156 | K103: 100 | L103: Tunísia | M103: 4852.0784 | N103: 0.0002810630529 | O103: -3400.8564
A104: 101 | B104: Catar | C104: 1515.2294 | D104: 0.0002143977472 | F104: 101 | G104: Malta | H104: 1054.2192 | I104: 0.0001033960434 | K104: 101 | L104: Zimbabwe | M104: 4772.268 | N104: 0.0002764399301 | O104: -4645.7028
A105: 102 | B105: Malásia | C105: 1501.2424 | D105: 0.0002124186533 | F105: 102 | G105: São Tomé e Príncipe | H105: 1053.4712 | I105: 0.0001033226808 | K105: 102 | L105: Suriname | M105: 4769.9158 | N105: 0.0002763036758 | O105: -4457.7222
A106: 103 | B106: Reino Unido (Irlanda do Norte) pós-2020 | C106: 1346.548 | D106: 0.0001905301321 | F106: 103 | G106: Noruega | H106: 1009.936 | I106: 9.90528217e-05 | K106: 103 | L106: Gana | M106: 4400.4448 | N106: 0.0002549015799 | O106: 1083.616
A107: 104 | B107: Geórgia | C107: 1344.215 | D107: 0.0001902000237 | F107: 104 | G107: Síria, República Árabe da | H107: 949.834 | I107: 9.315811878e-05 | K107: 104 | L107: Omã | M107: 4285.638 | N107: 0.0002482512443 | O107: 3325.7248
A108: 105 | B108: Albânia | C108: 1266.1722 | D108: 0.000179157339 | F108: 105 | G108: Coreia, República da | H108: 937.614 | I108: 9.195960176e-05 | K108: 105 | L108: Singapura | M108: 4020.9472 | N108: 0.0002329186799 | O108: 1891.5608
A109: 106 | B109: Costa Rica | C109: 1199.7232 | D109: 0.0001697551218 | F109: 106 | G109: El Salvador | H109: 727.8254 | I109: 7.138388925e-05 | K109: 106 | L109: Dominicana, República | M109: 3933.7284 | N109: 0.0002278664157 | O109: -515.742
A110: 107 | B110: Indonésia | C110: 1137.3976 | D110: 0.0001609363461 | F110: 107 | G110: Turquemenistão | H110: 720.6558 | I110: 7.068070696e-05 | K110: 107 | L110: Myanmar | M110: 3786.5344 | N110: 0.0002193400087 | O110: -2886.1156
A111: 108 | B111: Islândia | C111: 1133.5366 | D111: 0.000160390033 | F111: 108 | G111: Chade | H111: 675.9004 | I111: 6.629117271e-05 | K111: 108 | L111: Quénia | M111: 3706.4946 | N111: 0.0002147035975 | O111: -2805.5498
A112: 109 | B112: Congo, República Democrática do | C112: 1102.9464 | D112: 0.0001560616653 | F112: 109 | G112: Timor-Leste | H112: 614.232 | I112: 6.024283992e-05 | K112: 109 | L112: Croácia | M112: 3585.6582 | N112: 0.0002077039894 | O112: -41.4086
A113: 110 | B113: Togo | C113: 886.836 | D113: 0.0001254830724 | F113: 110 | G113: Senegal | H113: 563.3582 | I113: 5.525322331e-05 | K113: 110 | L113: Nicarágua | M113: 3581.558 | N113: 0.0002074664799 | O113: -2747.4548
A114: 111 | B114: Panamá | C114: 853.2114 | D114: 0.0001207253516 | F114: 111 | G114: Argélia | H114: 547.1324 | I114: 5.366182418e-05 | K114: 111 | L114: Burquina Faso | M114: 3574.6308 | N114: 0.0002070652127 | O114: 123.1568
A115: 112 | B115: Equador | C115: 827.4356 | D115: 0.0001170781986 | F115: 112 | G115: Líbano | H115: 532.1362 | I115: 5.219102214e-05 | K115: 112 | L115: Sri Lanca | M115: 3466.8512 | N115: 0.0002008219369 | O115: -2680.7736
A116: 113 | B116: Ruanda | C116: 825.9096 | D116: 0.0001168622768 | F116: 113 | G116: Omã | H116: 479.9566 | I116: 4.707333487e-05 | K116: 113 | L116: Benim | M116: 3389.9546 | N116: 0.0001963675997 | O116: -245.1214
A117: 114 | B117: Honduras | C117: 813.7022 | D117: 0.0001151349879 | F117: 114 | G117: Emirados Árabes Unidos | H117: 455.3414 | I117: 4.465911751e-05 | K117: 114 | L117: Malavi | M117: 3260.7796 | N117: 0.0001888849672 | O117: -3247.5728
A118: 115 | B118: Bermudas | C118: 793.1712 | D118: 0.0001122299491 | F118: 115 | G118: Belarus | H118: 370.9342 | I118: 3.638060152e-05 | K118: 115 | L118: Timor-Leste | M118: 3086.1518 | N118: 0.0001787694211 | O118: 1857.6878
A119: 116 | B119: Etiópia | C119: 744.4088 | D119: 0.0001053303016 | F119: 116 | G119: Guiné-Bissau | H119: 361.4462 | I119: 3.545003446e-05 | K119: 116 | L119: Líbano | M119: 3051.887 | N119: 0.0001767845873 | O119: 1987.6146
A120: 117 | B120: Tunísia | C120: 725.611 | D120: 0.0001026705024 | F120: 117 | G120: Usbequistão | H120: 308.2694 | I120: 3.023454349e-05 | K120: 117 | L120: Belarus | M120: 2826.8628 | N120: 0.0001637497632 | O120: 2084.9944
A121: 118 | B121: Burundi | C121: 677.0954 | D121: 9.580577594e-05 | F121: 118 | G121: Guiné | H121: 302.1342 | I121: 2.963281341e-05 | K121: 118 | L121: Guiné | M121: 2572.4296 | N121: 0.0001490113838 | O121: 1968.1612
A122: 119 | B122: Iémen | C122: 670.7886 | D122: 9.491339376e-05 | F122: 119 | G122: Geórgia | H122: 294.5626 | I122: 2.889020363e-05 | K122: 119 | L122: Serra Leoa | M122: 2499.2974 | N122: 0.0001447751045 | O122: -1496.3846
A123: 120 | B123: Paraguai | C123: 644.6266 | D123: 9.12115953e-05 | F123: 120 | G123: Bolívia | H123: 281.6492 | I123: 2.762367911e-05 | K123: 120 | L123: Irão, República Islâmica do | M123: 2440.1832 | N123: 0.0001413508364 | O123: 2029.2332
A124: 121 | B124: Namíbia | C124: 633.8794 | D124: 8.969091766e-05 | F124: 121 | G124: Bangladesh | H124: 280.7044 | I124: 2.753101472e-05 | K124: 121 | L124: Congo | M124: 2383.877 | N124: 0.0001380892253 | O124: 1985.2674
A125: 122 | B125: Azerbaijão | C125: 594.9756 | D125: 8.418621515e-05 | F125: 122 | G125: Irão, República Islâmica do | H125: 205.475 | I125: 2.015264189e-05 | K125: 122 | L125: Panamá | M125: 2366.8806 | N125: 0.0001371046864 | O125: -660.4578
A126: 123 | B126: Arménia | C126: 559.6906 | D126: 7.919355562e-05 | F126: 123 | G126: Congo | H126: 199.3048 | I126: 1.954747907e-05 | K126: 123 | L126: Congo, República Democrática do | M126: 2329.6366 | N126: 0.0001349472785 | O126: -123.7438
A127: 124 | B127: Cazaquistão | C127: 531.8816 | D127: 7.52587145e-05 | F127: 124 | G127: Zâmbia | H127: 199.3012 | I127: 1.954712598e-05 | K127: 124 | L127: Venezuela | M127: 2213.7304 | N127: 0.0001282332587 | O127: 1903.808
A128: 125 | B128: Aruba | C128: 522.985 | D128: 7.399988795e-05 | F128: 125 | G128: Nigéria | H128: 197.6194 | I128: 1.938217787e-05 | K128: 125 | L128: Seychelles | M128: 2103.9052 | N128: 0.0001218714888 | O128: 2103.9052
A129: 126 | B129: Serra Leoa | C129: 501.4564 | D129: 7.095369353e-05 | F129: 126 | G129: Islândia | H129: 194.2478 | I129: 1.905149702e-05 | K129: 126 | L129: Gabão | M129: 2079.9016 | N129: 0.0001204810486 | O129: 2079.4016
A130: 127 | B130: Guatemala | C130: 491.8628 | D130: 6.95962448e-05 | F130: 127 | G130: Venezuela | H130: 154.9612 | I130: 1.519833347e-05 | K130: 127 | L130: Togo | M130: 2010.1374 | N130: 0.0001164398651 | O130: -236.4654
A131: 128 | B131: Uganda | C131: 485.556 | D131: 6.870386262e-05 | F131: 128 | G131: Cabo Verde | H131: 126.7382 | I131: 1.243026917e-05 | K131: 128 | L131: Sudão | M131: 1881.5594 | N131: 0.0001089918146 | O131: 1848.4942
A132: 129 | B132: São Bartolomeu | C132: 472.0258 | D132: 6.678940373e-05 | F132: 129 | G132: Azerbaijão | H132: 124.8946 | I132: 1.224945199e-05 | K132: 129 | L132: Bangladesh | M132: 1839.639 | N132: 0.00010656352 | O132: 1278.2302
A133: 130 | B133: Mauritânia | C133: 470.2498 | D133: 6.653810818e-05 | F133: 130 | G133: Albânia | H133: 104.056 | I133: 1.02056372e-05 | K133: 130 | L133: Guiné Equatorial | M133: 1818.2522 | N133: 0.0001053246614 | O133: 1818.2522
A134: 131 | B134: Barém | C134: 469.46 | D134: 6.642635524e-05 | F134: 131 | G134: Namíbia | H134: 69.6464 | I134: 6.830801596e-06 | K134: 131 | L134: Madagáscar | M134: 1665.147 | N134: 9.645584033e-05 | O134: -1405.8322
A135: 132 | B135: Gâmbia | C135: 455.249 | D135: 6.441556639e-05 | F135: 132 | G135: Tajiquistão | H135: 59.4122 | I135: 5.827048499e-06 | K135: 132 | L135: Geórgia | M135: 1638.7776 | N135: 9.492835799e-05 | O135: 1049.6524
A136: 133 | B136: Quénia | C136: 450.4724 | D136: 6.373970023e-05 | F136: 133 | G136: Iémen | H136: 45.76 | I136: 4.48806372e-06 | K136: 133 | L136: Laos, República Democrática Popular do | M136: 1584.7624 | N136: 9.179945615e-05 | O136: -1555.988
A137: 134 | B137: Myanmar | C137: 450.2094 | D137: 6.370248698e-05 | F137: 134 | G137: Libéria | H137: 38.8276 | I137: 3.808145605e-06 | K137: 134 | L137: Catar | M137: 1531.2716 | N137: 8.870093088e-05 | O137: 1499.1872
A138: 135 | B138: Kosovo | C138: 418.4652 | D138: 5.921083379e-05 | F138: 135 | G138: São Marino | H138: 32.7702 | I138: 3.214046016e-06 | K138: 135 | L138: Albânia | M138: 1370.2282 | N138: 7.937227913e-05 | O138: 1162.1162
A139: 136 | B139: Nicarágua | C139: 417.0516 | D139: 5.901081612e-05 | F139: 136 | G139: Botswana | H139: 29.9908 | I139: 2.941447146e-06 | K139: 136 | L139: Islândia | M139: 1327.7844 | N139: 7.691366593e-05 | O139: 939.2888
A140: 137 | B140: Camboja | C140: 401.4318 | D140: 5.680068877e-05 | F140: 137 | G140: Jordânia | H140: 29.4906 | I140: 2.892388373e-06 | K140: 137 | L140: El Salvador | M140: 1020.3732 | N140: 5.910646595e-05 | O140: -435.2776
A141: 138 | B141: Sri Lanca | C141: 393.0388 | D141: 5.561311923e-05 | F141: 138 | G141: Bósnia-Herzegovina | H141: 27.8982 | I141: 2.736208463e-06 | K141: 138 | L141: Ruanda | M141: 826.0866 | N141: 4.785215791e-05 | O141: 825.7326
A142: 139 | B142: Bolívia | C142: 391.1324 | D142: 5.53433727e-05 | F142: 139 | G142: Curaçau | H142: 27.481 | I142: 2.69529019e-06 | K142: 139 | L142: Bermudas | M142: 793.8604 | N142: 4.598541269e-05 | O142: 792.482
A143: 140 | B143: Tanzânia, República Unida da | C143: 370.967 | D143: 5.24900646e-05 | F143: 140 | G143: Papuásia-Nova Guiné | H143: 25.837 | I143: 2.534049439e-06 | K143: 140 | L143: Turquemenistão | M143: 732.4956 | N143: 4.243077556e-05 | O143: -708.816
A144: 141 | B144: São Martinho (parte holandesa) | C144: 349.244 | D144: 4.94163635e-05 | F144: 141 | G144: Aruba | H144: 23.5112 | I144: 2.305938893e-06 | K144: 141 | L144: Azerbaijão | M144: 719.8702 | N144: 4.169943258e-05 | O144: 470.081
A145: 142 | B145: Comores | C145: 311.607 | D145: 4.409090717e-05 | F145: 142 | G145: Arábia Saudita | H145: 23.1054 | I145: 2.266138712e-06 | K145: 142 | L145: Iémen | M145: 716.5486 | N145: 4.150702451e-05 | O145: 625.0286
A146: 143 | B146: Libéria | C146: 294.774 | D146: 4.170911779e-05 | F146: 143 | G146: Quirguizistão | H146: 17.4752 | I146: 1.71393818e-06 | K146: 143 | L146: Namíbia | M146: 703.5258 | N146: 4.075266162e-05 | O146: 564.233
A147: 144 | B147: Somália | C147: 292.8146 | D147: 4.143187202e-05 | F147: 144 | G147: Sudão | H147: 16.5326 | I147: 1.62148956e-06 | K147: 144 | L147: Burundi | M147: 677.2094 | N147: 3.922824937e-05 | O147: 676.9814
A148: 145 | B148: El Salvador | C148: 292.5478 | D148: 4.139412109e-05 | F148: 145 | G148: Macau | H148: 16.4972 | I148: 1.618017587e-06 | K148: 145 | L148: Chade | M148: 675.9044 | N148: 3.915265552e-05 | O148: -675.8964
A149: 146 | B149: Jamaica | C149: 276.7996 | D149: 3.916582576e-05 | F149: 146 | G149: Catar | H149: 16.0422 | I149: 1.573391954e-06 | K149: 146 | L149: Bolívia | M149: 672.7816 | N149: 3.89717632e-05 | O149: 109.4832
A150: 147 | B150: Macedónia, Antiga República jugoslava da | C150: 272.7114 | D150: 3.858736492e-05 | F150: 147 | G150: Arménia | H150: 15.34 | I150: 1.504521361e-06 | K150: 147 | L150: Arménia | M150: 575.0306 | N150: 3.330940736e-05 | O150: 544.3506
A151: 148 | B151: Paquistão | C151: 266.8506 | D151: 3.775808962e-05 | F151: 148 | G151: Iraque | H151: 12.264 | I151: 1.202832462e-06 | K151: 148 | L151: Aruba | M151: 546.4962 | N151: 3.165651453e-05 | O151: 499.4738
A152: 149 | B152: Antígua e Barbuda | C152: 264.4064 | D152: 3.741224695e-05 | F152: 149 | G152: Jamaica | H152: 11.1226 | I152: 1.090885873e-06 | K152: 149 | L152: Cazaquistão | M152: 537.7376 | N152: 3.114916106e-05 | O152: 526.0256
A153: 150 | B153: Argentina | C153: 237.3284 | D153: 3.358083885e-05 | F153: 150 | G153: Kosovo | H153: 8.3722 | I153: 8.211312735e-07 | K153: 150 | L153: Barém | M153: 473.8044 | N153: 2.744574596e-05 | O153: 465.1156
A154: 151 | B154: Curaçau | C154: 224.0074 | D154: 3.169598076e-05 | F154: 151 | G154: Líbia, Jamahira Árabe da | H154: 5.95 | I154: 5.835659776e-07 | K154: 151 | L154: São Bartolomeu | M154: 472.3088 | N154: 2.735911136e-05 | O154: 471.7428
A155: 152 | B155: Moldava, República de | C155: 201.388 | D155: 2.849544334e-05 | F155: 152 | G155: Cazaquistão | H155: 5.856 | I155: 5.743466159e-07 | K155: 152 | L155: Mauritânia | M155: 471.8238 | N155: 2.733101709e-05 | O155: 468.6758
A156: 153 | B156: Haiti | C156: 195.7344 | D156: 2.769548585e-05 | F156: 153 | G156: Andorra | H156: 4.7264 | I156: 4.635573506e-07 | K156: 153 | L156: Gâmbia | M156: 455.249 | N156: 2.63708999e-05 | O156: 455.249
A157: 154 | B157: Ceuta e Melilha | C157: 191.5534 | D157: 2.710389425e-05 | F157: 154 | G157: São Cristovão e Nevis | H157: 4.4378 | I157: 4.352519488e-07 | K157: 154 | L157: Kosovo | M157: 426.8374 | N157: 2.472512042e-05 | O157: 410.093
A158: 155 | B158: Suriname | C158: 156.0968 | D158: 2.208695414e-05 | F158: 155 | G158: Afeganistão | H158: 4.3662 | I158: 4.282295414e-07 | K158: 155 | L158: São Martinho (parte holandesa) | M158: 349.244 | N158: 2.02304202e-05 | O158: 349.244
A159: 156 | B159: Trindade e Tobago | C159: 142.2682 | D159: 2.013027306e-05 | F159: 156 | G159: Barém | H159: 4.3444 | I159: 4.260914341e-07 | K159: 156 | L159: Usbequistão | M159: 348.6042 | N159: 2.019335894e-05 | O159: -267.9346
A160: 157 | B160: Nova Caledónia | C160: 140.1192 | D160: 1.982619979e-05 | F160: 157 | G160: Nepal | H160: 2.4222 | I160: 2.375652959e-07 | K160: 157 | L160: Zâmbia | M160: 336.5272 | N160: 1.949378275e-05 | O160: -62.0752
A161: 158 | B161: Zâmbia | C161: 137.226 | D161: 1.941682577e-05 | F161: 158 | G161: Lesoto | H161: 1.7136 | I161: 1.680670015e-07 | K161: 158 | L161: Libéria | M161: 333.6016 | N161: 1.932431351e-05 | O161: 255.9464
A162: 159 | B162: Polinésia Francesa | C162: 133.1554 | D162: 1.884085524e-05 | F162: 159 | G162: Liechtenstein | H162: 1.6922 | I162: 1.659681256e-07 | K162: 159 | L162: Comores | M162: 311.607 | N162: 1.805024724e-05 | O162: 311.607
A163: 160 | B163: Madagáscar | C163: 129.6574 | D163: 1.83459049e-05 | F163: 160 | G163: Mauritânia | H163: 1.574 | I163: 1.543752687e-07 | K163: 160 | L163: Somália | M163: 292.8146 | N163: 1.696167263e-05 | O163: 292.8146
A164: 161 | B164: Maldivas | C164: 127.1794 | D164: 1.799527969e-05 | F164: 161 | G164: Fiji, Ilhas | H164: 1.3646 | I164: 1.338376694e-07 | K164: 161 | L164: Jamaica | M164: 287.9222 | N164: 1.66782739e-05 | O164: 265.677
A165: 162 | B165: Niger | C165: 113.05 | D165: 1.599603685e-05 | F165: 162 | G165: Bermudas | H165: 0.6892 | I165: 6.759557508e-08 | K165: 162 | L165: Antígua e Barbuda | M165: 264.426 | N165: 1.531722547e-05 | O165: 264.3868
A166: 163 | B166: Liechtenstein | C166: 106.2456 | D166: 1.503324664e-05 | F166: 163 | G166: Território Palestiniano Ocupado | H166: 0.4852 | I166: 4.758759871e-08 | K166: 163 | L166: Curaçau | M166: 251.4884 | N166: 1.456779789e-05 | O166: 196.5264
A167: 164 | B167: Centro-Africana, República | C167: 83.0308 | D167: 1.174846295e-05 | F167: 164 | G167: Montenegro | H167: 0.3086 | I167: 3.026696818e-08 | K167: 164 | L167: Haiti | M167: 195.7408 | N167: 1.13385445e-05 | O167: 195.728
A168: 165 | B168: Jibuti | C168: 77.3086 | D168: 1.093879889e-05 | F168: 165 | G168: São Bartolomeu | H168: 0.283 | I168: 2.77561633e-08 | K168: 165 | L168: Ceuta e Melilha | M168: 191.5534 | N168: 1.109598382e-05 | O168: 191.5534
A169: 166 | B169: Nepal | C169: 76.6542 | D169: 1.08462044e-05 | F169: 166 | G169: Gabão | H169: 0.25 | I169: 2.451957889e-08 | K169: 166 | L169: Trindade e Tobago | M169: 142.2786 | N169: 8.241675914e-06 | O169: 142.2578
A170: 167 | B170: Zimbabwe | C170: 63.2826 | D170: 8.954186657e-06 | F170: 167 | G170: Ruanda | H170: 0.177 | I170: 1.735986185e-08 | K170: 167 | L170: Nova Caledónia | M170: 140.1192 | N170: 8.116589816e-06 | O170: 140.1192
A171: 168 | B171: Caimão, Ilhas | C171: 51.4562 | D171: 7.280807354e-06 | F171: 168 | G171: Barbados | H171: 0.1378 | I171: 1.351519188e-08 | K171: 168 | L171: Polinésia Francesa | M171: 133.1554 | N171: 7.713202499e-06 | O171: 133.1554
A172: 169 | B172: Bósnia-Herzegovina | C172: 50.6168 | D172: 7.16203625e-06 | F172: 169 | G172: Niger | H172: 0.1252 | I172: 1.227940511e-08 | K172: 169 | L172: Maldivas | M172: 127.183 | N172: 7.367243337e-06 | O172: 127.1758
A173: 170 | B173: Montenegro | C173: 46.101 | D173: 6.523072047e-06 | F173: 170 | G173: Burundi | H173: 0.114 | I173: 1.118092797e-08 | K173: 170 | L173: Niger | M173: 113.1752 | N173: 6.555823012e-06 | O173: 112.9248
A174: 171 | B174: Bahamas | C174: 42.9652 | D174: 6.079371274e-06 | F174: 171 | G174: Oceano Indico, Território Britânico do | H174: 0.098 | I174: 9.611674924e-09 | K174: 171 | L174: Liechtenstein | M174: 107.9378 | N174: 6.252439696e-06 | O174: 104.5534
A175: 172 | B175: Usbequistão | C175: 40.3348 | D175: 5.707182195e-06 | F175: 172 | G175: São Vicente e Granadinas | H175: 0.0416 | I175: 4.080057927e-09 | K175: 172 | L175: Centro-Africana, República | M175: 83.0308 | N175: 4.809668808e-06 | O175: 83.0308
A176: 173 | B176: Mongólia | C176: 30.8452 | D176: 4.364448968e-06 | F176: 173 | G176: Antígua e Barbuda | H176: 0.0196 | I176: 1.922334985e-09 | K176: 173 | L176: Nepal | M176: 79.0764 | N176: 4.580604963e-06 | O176: 74.232
A177: 174 | B177: Afeganistão | C177: 18.9718 | D177: 2.684419389e-06 | F177: 174 | G177: Santa Sé (Cidade Estado do Vaticano) | H177: 0.018 | I177: 1.76540968e-09 | K177: 174 | L177: Bósnia-Herzegovina | M177: 78.515 | N177: 4.548085126e-06 | O177: 22.7186
A178: 175 | B178: Guiana | C178: 18.2434 | D178: 2.581354256e-06 | F178: 175 | G178: Mongólia | H178: 0.0112 | I178: 1.098477134e-09 | K178: 175 | L178: Jibuti | M178: 77.3086 | N178: 4.478202812e-06 | O178: 77.3086
A179: 176 | B179: Turcas e Caicos, Ilhas | C179: 18.0666 | D179: 2.556337898e-06 | F179: 176 | G179: Trindade e Tobago | H179: 0.0104 | I179: 1.020014482e-09 | K179: 176 | L179: Tajiquistão | M179: 59.4122 | N179: 3.441530193e-06 | O179: -59.4122
A180: 177 | B180: Laos, República Democrática Popular do | C180: 14.3872 | D180: 2.035720313e-06 | F180: 177 | G180: Haiti | H180: 0.0064 | I180: 6.277012196e-10 | K180: 177 | L180: Caimão, Ilhas | M180: 51.4562 | N180: 2.98066838e-06 | O180: 51.4562
A181: 178 | B181: Turquemenistão | C181: 11.8398 | D181: 1.675275339e-06 | F181: 178 | G181: Maldivas | H181: 0.0036 | I181: 3.53081936e-10 | K181: 178 | L181: Montenegro | M181: 46.4096 | N181: 2.688337406e-06 | O181: 45.7924
A182: 179 | B182: Barbados | C182: 11.7888 | D182: 1.668059082e-06 | F182: 179 | G182: Anguila | H182: 0 | I182: 0 | K182: 179 | L182: Bahamas | M182: 42.9652 | N182: 2.488815985e-06 | O182: 42.9652
A183: 180 | B183: Virgens Britânicas, Ilhas | C183: 9.9272 | D183: 1.404651544e-06 | F183: 180 | G183: Antárctica | H183: 0 | I183: 0 | K183: 180 | L183: São Marino | M183: 32.7902 | N183: 1.899415665e-06 | O183: -32.7502
A184: 181 | B184: Fiji, Ilhas | C184: 8.1268 | D184: 1.149903514e-06 | F184: 181 | G184: Antilhas Holandesas | H184: 0 | I184: 0 | K184: 181 | L184: Mongólia | M184: 30.8564 | N184: 1.787397744e-06 | O184: 30.834
A185: 182 | B185: Santa Lúcia | C185: 7.138 | D185: 1.009993021e-06 | F185: 182 | G185: Bahamas | H185: 0 | I185: 0 | K185: 182 | L185: Botswana | M185: 30.0852 | N185: 1.742724965e-06 | O185: -29.8964
A186: 183 | B186: Brunei Darussalam | C186: 6.98 | D186: 9.876367733e-07 | F186: 183 | G186: Bonaire, Santo Eustáquio e Saba | H186: 0 | I186: 0 | K186: 183 | L186: Papuásia-Nova Guiné | M186: 28.7226 | N186: 1.66379456e-06 | O186: -22.9514
A187: 184 | B187: Malavi | C187: 6.6034 | D187: 9.34349666e-07 | F187: 184 | G187: Bouvet, Ilha | H187: 0 | I187: 0 | K187: 184 | L187: Afeganistão | M187: 23.338 | N187: 1.351884489e-06 | O187: 14.6056
A188: 185 | B188: Guam | C188: 6.5774 | D188: 9.306707898e-07 | F188: 185 | G188: Brunei Darussalam | H188: 0 | I188: 0 | K188: 185 | L188: Quirguizistão | M188: 22.1318 | N188: 1.28201376e-06 | O188: -12.8186
A189: 186 | B189: São Vicente e Granadinas | C189: 5.6654 | D189: 8.016271311e-07 | F189: 186 | G189: Butão | H189: 0 | I189: 0 | K189: 186 | L189: Turcas e Caicos, Ilhas | M189: 18.0666 | N189: 1.046531678e-06 | O189: 18.0666
A190: 187 | B190: Quirguizistão | C190: 4.6566 | D190: 6.588867333e-07 | F190: 187 | G190: Caimão, Ilhas | H190: 0 | I190: 0 | K190: 187 | L190: Barbados | M190: 11.9266 | N190: 6.90864065e-07 | O190: 11.651
A191: 188 | B191: Menores distantes dos Estados Unidos, lhas | C191: 4.5542 | D191: 6.443976208e-07 | F191: 188 | G191: Centro-Africana, República | H191: 0 | I191: 0 | K191: 188 | L191: Virgens Britânicas, Ilhas | M191: 9.9272 | N191: 5.75046178e-07 | O191: 9.9272
A192: 189 | B192: Sudão do Sul | C192: 3.771 | D192: 5.33578549e-07 | F192: 189 | G192: Ceuta | H192: 0 | I192: 0 | K192: 189 | L192: Fiji, Ilhas | M192: 9.4914 | N192: 5.498018871e-07 | O192: 6.7622
A193: 190 | B193: Bonaire, Santo Eustáquio e Saba | C193: 3.1276 | D193: 4.425405118e-07 | F193: 190 | G193: Ceuta e Melilha | H193: 0 | I193: 0 | K193: 190 | L193: Santa Lúcia | M193: 7.138 | N193: 4.134780823e-07 | O193: 7.138
A194: 191 | B194: Marianas do Norte, Ilhas | C194: 2.9244 | D194: 4.137886791e-07 | F194: 191 | G194: Christmas, Ilha | H194: 0 | I194: 0 | K194: 191 | L194: Brunei Darussalam | M194: 6.98 | N194: 4.043257235e-07 | O194: 6.98
A195: 192 | B195: Papuásia-Nova Guiné | C195: 2.8856 | D195: 4.082986638e-07 | F195: 192 | G195: Cocos (Keeling), Ilhas | H195: 0 | I195: 0 | K195: 192 | L195: Guam | M195: 6.5774 | N195: 3.810045865e-07 | O195: 6.5774
A196: 193 | B196: Belize | C196: 2.1806 | D196: 3.085445197e-07 | F196: 193 | G196: Comores | H196: 0 | I196: 0 | K196: 193 | L196: São Vicente e Granadinas | M196: 5.707 | N196: 3.305855163e-07 | O196: 5.6238
A197: 194 | B197: Melilha | C197: 1.3464 | D197: 1.905091908e-07 | F197: 194 | G197: Cook, Ilhas | H197: 0 | I197: 0 | K197: 194 | L197: Menores distantes dos Estados Unidos, lhas | M197: 4.5542 | N197: 2.63808053e-07 | O197: 4.5542
A198: 195 | B198: Granada | C198: 0.6866 | D198: 9.71506316e-08 | F198: 195 | G198: Coreia, República Popular Democrática da | H198: 0 | I198: 0 | K198: 195 | L198: São Cristovão e Nevis | M198: 4.4378 | N198: 2.570654292e-07 | O198: -4.4378
A199: 196 | B199: Virgens dos Estados Unidos, Ilhas | C199: 0.295 | D199: 4.174109572e-08 | F199: 196 | G199: Domínica | H199: 0 | I199: 0 | K199: 196 | L199: Sudão do Sul | M199: 3.771 | N199: 2.184401581e-07 | O199: 3.771
A200: 197 | B200: Botswana | C200: 0.0944 | D200: 1.335715063e-08 | F200: 197 | G200: Eritreia | H200: 0 | I200: 0 | K200: 197 | L200: Bonaire, Santo Eustáquio e Saba | M200: 3.1276 | N200: 1.811703629e-07 | O200: 3.1276
... 58 more rows

Sheet 3
A1: Principais produtos agrícolas e agroalimentares, do mar e da floresta transacionados entre Portugal e Senegal em 2018-2022 (NC a 2 e 4 dígitos) em milhões de euros
AC4: P | AE4: Cód.NC | AF4: Descritivo | AG4: Média export quinquénio | AH4: % do total | AI4: % acumulada | AN4: P | AO4: NC | AP4: Exportações | AQ4: 2018 | AR4: 2019 | AS4: 2020 | AT4: 2021 | AU4: 2022 | AV4: média quinquénio
AC5: 1 | AD5: º | AE5: 22 | AF5: Bebidas, líquidos alcoólicos e vinagres | AG5: 4.6717508 | AH5: 0.4142026824 | AN5: 1º | AO5: 22 | AP5: Bebidas, líquidos alcoólicos e vinagres | AQ5: 1.56437 | AR5: 1.866245 | AS5: 2.966407 | AT5: 6.461926 | AU5: 10.499806 | AV5: 4.6717508
AC6: 2 | AD6: º | AE6: 24 | AF6: Tabaco | AG6: 2.0054742 | AH6: 0.177807599 | AN6: 2º | AO6: 24 | AP6: Tabaco | AQ6: 1.766713 | AR6: 1.650898 | AS6: 1.899805 | AT6: 2.546392 | AU6: 2.163563 | AV6: 2.0054742
AC7: 3 | AD7: º | AE7: 44 | AF7: Madeira e suas obras | AG7: 1.4022806 | AH7: 0.1243277758 | AI7: 0.7163380572 | AN7: 3º | AO7: 44 | AP7: Madeira e suas obras | AQ7: 2.213665 | AR7: 0.511279 | AS7: 1.290489 | AT7: 2.004974 | AU7: 0.990996 | AV7: 1.4022806
AC8: 4 | AD8: º | AE8: 48 | AF8: Papel e cartão | AG8: 1.3692544 | AH8: 0.1213996357 | AO8: - | AP8: Outros | AQ8: 2.666661 | AR8: 4.173989 | AS8: 2.415457 | AT8: 3.144266 | AU8: 3.596601 | AV8: 3.1993948
AC9: 5 | AD9: º | AE9: 21 | AF9: Preparações alimentícias diversas | AG9: 0.5441804 | AH9: 0.04824764655 | AP9: Total | AQ9: 8.211409 | AR9: 8.202411 | AS9: 8.572158 | AT9: 14.157558 | AU9: 17.250966 | AV9: 11.2789004
AC10: 6 | AD10: º | AE10: 15 | AF10: Gorduras e óleos animais ou vegetais | AG10: 0.3688328 | AH10: 0.03270113104
AC11: 7 | AD11: º | AE11: 07 | AF11: Produtos hortícolas | AG11: 0.236159 | AH11: 0.02093812266
AC12: 8 | AD12: º | AE12: 04 | AF12: Leite e laticínios; ovos; mel, etc. | AG12: 0.2218696 | AH12: 0.01967120837
AC13: 9 | AD13: º | AE13: 19a | AF13: Preparações à base de cereais (exc. NC 19022010) (a) | AG13: 0.2119504 | AH13: 0.01879176094
AC14: 10 | AD14: º | AE14: 23a | AF14: Resíduos indústrias alimentares; alimentos p/ animais (exc. NC 230120) (a) | AG14: 0.0615232 | AH14: 0.005454716135 | AI14: 0.9835422786
AE15: - | AF15: Outros | AG15: 0.185625 | AH15: 0.01645772136
AE16: Total | AG16: 11.2789004 | AH16: 1
AC38: P | AE38: Cód.NC | AF38: Descritivo | AG38: Média import quinquénio | AH38: % do total | AI38: % acumulada | AN38: P | AO38: NC | AP38: Importações | AQ38: 2018 | AR38: 2019 | AS38: 2020 | AT38: 2021 | AU38: 2022 | AV38: média quinquénio
AC39: 1 | AD39: º | AE39: 03 | AF39: Peixes e crustáceos | AG39: 16.9956422 | AH39: 0.966959797 | AN39: 1º | AO39: 03 | AP39: Peixes e crustáceos | AQ39: 18.728286 | AR39: 24.245158 | AS39: 10.391969 | AT39: 12.447534 | AU39: 19.165264 | AV39: 16.9956422
AC40: 2 | AD40: º | AE40: 52 | AF40: Algodão (NC 5201-5203) | AG40: 0.315565 | AH40: 0.01795393576 | AN40: 2º | AO40: 52 | AP40: Algodão (NC 5201-5203) | AQ40: 0.464997 | AR40: 0.204824 | AS40: 0.192166 | AT40: 0.350221 | AU40: 0.365617 | AV40: 0.315565
AC41: 3 | AD41: º | AE41: 15 | AF41: Gorduras e óleos animais ou vegetais | AG41: 0.163471 | AH41: 0.009300612658 | AI41: 0.9942143454 | AN41: 3º | AO41: 15 | AP41: Gorduras e óleos animais ou vegetais | AQ41: 0.20308 | AR41: 0.613147 | AS41: 3e-06 | AT41: 4.9e-05 | AU41: 0.001076 | AV41: 0.163471
AC42: 4 | AD42: º | AE42: 12 | AF42: Sementes e frutos oleaginosos | AG42: 0.0267804 | AH42: 0.001523659409 | AO42: - | AP42: Outros | AQ42: 0.114823 | AR42: 0.11134 | AS42: 0.056375 | AT42: 0.146534 | AU42: 0.079382 | AV42: 0.1016908
AC43: 5 | AD43: º | AE43: 20 | AF43: Preparações de produtos vegetais | AG43: 0.0265088 | AH43: 0.001508206843 | AP43: Total | AQ43: 19.511186 | AR43: 25.174469 | AS43: 10.640513 | AT43: 12.944338 | AU43: 19.611339 | AV43: 17.576369
AC44: 6 | AD44: º | AE44: 07 | AF44: Produtos hortícolas | AG44: 0.0179998 | AH44: 0.001024090926
AC45: 7 | AD45: º | AE45: 46 | AF45: Obras de espartaria ou de cestaria | AG45: 0.0089348 | AH45: 0.0005083416262
AC46: 8 | AD46: º | AE46: 44 | AF46: Madeira e suas obras | AG46: 0.0082654 | AH46: 0.0004702563994
AC47: 9 | AD47: º | AE47: 08 | AF47: Frutas | AG47: 0.0055602 | AH47: 0.0003163452019
AC48: 10 | AD48: º | AE48: 41 | AF48: Couro e peles em bruto (NC 4101 a 4103) | AG48: 0.0054402 | AH48: 0.0003095178532 | AI48: 0.9998747637
AE49: - | AF49: Outros | AG49: 0.0022012 | AH49: 0.0001252363329
AE50: Total | AG50: 17.576369 | AH50: 1
AC62: DESAGREGAÇÃO A 4 DÍGITOS | AN62: DESAGREGAÇÃO A 4 DÍGITOS
AC64: P | AE64: Cód.NC | AF64: Descritivo | AG64: Média export quinquénio | AH64: % do total | AI64: % acumulada | AN64: P | AO64: NC | AP64: Exportações | AQ64: 2018 | AR64: 2019 | AS64: 2020 | AT64: 2021 | AU64: 2022 | AV64: média quinquénio
AC65: 1 | AD65: º | AE65: 2202 | AF65: Águas com açúcar ou outros produtos; outras bebidas | AG65: 4.06995 | AH65: 0.3608463463 | AN65: 1º | AO65: 2202 | AP65: Águas com açúcar ou outros produtos; outras bebidas | AQ65: 1.205048 | AR65: 1.417195 | AS65: 2.277212 | AT65: 5.748292 | AU65: 9.702003 | AV65: 4.06995
AC66: 2 | AD66: º | AE66: 2401 | AF66: Tabaco não manufaturado | AG66: 1.3105384 | AH66: 0.1161938091 | AN66: 2º | AO66: 2401 | AP66: Tabaco não manufaturado | AQ66: 1.229314 | AR66: 1.141544 | AS66: 1.251502 | AT66: 1.475392 | AU66: 1.45494 | AV66: 1.3105384
AC67: 3 | AD67: º | AE67: 4802 | AF67: Papel e cartão p/ escrita, etc. | AG67: 0.836532 | AH67: 0.07416786835 | AI67: 0.5512080238 | AN67: 3º | AO67: 4802 | AP67: Papel e cartão p/ escrita, etc. | AQ67: 0.844145 | AR67: 0.644201 | AS67: 0.417983 | AT67: 1.03274 | AU67: 1.243591 | AV67: 0.836532
AC68: 4 | AD68: º | AE68: 2403 | AF68: Outros produtos de tabaco | AG68: 0.6949358 | AH68: 0.06161378994 | AN68: - | AO68: - | AP68: Outros | AQ68: 4.932902 | AR68: 4.999471 | AS68: 4.625461 | AT68: 5.901134 | AU68: 4.850432 | AV68: 5.06188
AC69: 5 | AD69: º | AE69: 4403 | AF69: Madeira em bruto | AG69: 0.6498742 | AH69: 0.05761857778 | AP69: Total | AQ69: 8.211409 | AR69: 8.202411 | AS69: 8.572158 | AT69: 14.157558 | AU69: 17.250966 | AV69: 11.2789004
AC70: 6 | AD70: º | AE70: 4418 | AF70: Obras de marcenaria ou carpintaria | AG70: 0.547451 | AH70: 0.04853762163
AC71: 7 | AD71: º | AE71: 2102 | AF71: Leveduras, vivas ou mortas, etc. | AG71: 0.5270244 | AH71: 0.04672657629
AC72: 8 | AD72: º | AE72: 2203 | AF72: Cervejas de malte | AG72: 0.4168096 | AH72: 0.03695480811
AC73: 9 | AD73: º | AE73: 1507 | AF73: Óleo de soja e suas frações | AG73: 0.3219142 | AH73: 0.02854127518
AC74: 10 | AD74: º | AE74: 4818 | AF74: Papel para toucador, etc., pasta de celulose, etc. | AG74: 0.237863 | AH74: 0.02108920121 | AI74: 0.8522898739
AE75: - | AF75: Outros | AG75: 1.6660078 | AH75: 0.1477101261
AE76: Total | AG76: 11.2789004 | AH76: 1
AC89: DESAGREGAÇÃO A 4 DÍGITOS | AN89: DESAGREGAÇÃO A 4 DÍGITOS
G91: média 2018-2022 em milhões de euros | I91: Cód. NC | J91: Descritivo | K91: Export | L91: Import | M91: Saldo | AC91: P | AE91: Cód.NC | AF91: Descritivo | AG91: Média import quinquénio | AH91: % do total | AI91: % acumulada | AN91: P | AO91: NC | AP91: Importações | AQ91: 2018 | AR91: 2019 | AS91: 2020 | AT91: 2021 | AU91: 2022 | AV91: média quinquénio
I92: 2202 | J92: Águas com açúcar ou outros produtos; outras bebidas | K92: 4.06995 | L92: 0 | M92: 4.06995 | AC92: 1 | AD92: º | AE92: 0307 | AF92: Moluscos | AG92: 5.7905238 | AH92: 0.329449376 | AN92: 1º | AO92: 0307 | AP92: Moluscos | AQ92: 3.479565 | AR92: 5.939517 | AS92: 2.433481 | AT92: 4.918489 | AU92: 12.181567 | AV92: 5.7905238
I93: 2401 | J93: Tabaco não manufaturado | K93: 1.3105384 | L93: 0 | M93: 1.3105384 | AC93: 2 | AD93: º | AE93: 0303 | AF93: Peixes congelados | AG93: 4.3467646 | AH93: 0.2473073136 | AN93: 2º | AO93: 0303 | AP93: Peixes congelados | AQ93: 6.51848 | AR93: 9.894841 | AS93: 3.62874 | AT93: 0.974728 | AU93: 0.717034 | AV93: 4.3467646
I94: 4802 | J94: Papel e cartão p/ escrita, etc. | K94: 0.836532 | L94: 0 | M94: 0.836532 | AC94: 3 | AD94: º | AE94: 0302 | AF94: Peixes frescos ou refrigerados | AG94: 4.166094 | AH94: 0.237028137 | AI94: 0.8137848267 | AN94: 3º | AO94: 0302 | AP94: Peixes frescos ou refrigerados | AQ94: 6.16325 | AR94: 6.545445 | AS94: 2.414418 | AT94: 2.99473 | AU94: 2.712627 | AV94: 4.166094
I95: 2403 | J95: Outros produtos de tabaco | K95: 0.6949358 | L95: 0 | M95: 0.6949358 | AC95: 4 | AD95: º | AE95: 0306 | AF95: Crustáceos | AG95: 2.3939344 | AH95: 0.1362018742 | AN95: - | AO95: - | AP95: Outros | AQ95: 3.349891 | AR95: 2.794666 | AS95: 2.163874 | AT95: 4.056391 | AU95: 4.000111 | AV95: 3.2729866
I96: 4403 | J96: Madeira em bruto | K96: 0.6498742 | L96: 0 | M96: 0.6498742 | AC96: 5 | AD96: º | AE96: 5201 | AF96: Algodão não cardado nem penteado | AG96: 0.315565 | AH96: 0.01795393576 | AP96: Total | AQ96: 19.511186 | AR96: 25.174469 | AS96: 10.640513 | AT96: 12.944338 | AU96: 19.611339 | AV96: 17.576369
I97: 4418 | J97: Obras de marcenaria ou carpintaria | K97: 0.547451 | L97: 2.14e-05 | M97: 0.5474296 | AC97: 6 | AD97: º | AE97: 0304 | AF97: Filetes de peixes | AG97: 0.2983186 | AH97: 0.01697270921
I98: 2102 | J98: Leveduras, vivas ou mortas, etc. | K98: 0.5270244 | L98: 0 | M98: 0.5270244 | AC98: 7 | AD98: º | AE98: 1504 | AF98: Gorduras e óleos de peixes,etc. | AG98: 0.163244 | AH98: 0.00928769759
I99: 2203 | J99: Cervejas de malte | K99: 0.4168096 | L99: 0 | M99: 0.4168096 | AC99: 8 | AD99: º | AE99: 1211 | AF99: Plantas, partes de plantas para usos não alimentares | AG99: 0.0267508 | AH99: 0.001521975329
I100: 1507 | J100: Óleo de soja e suas frações | K100: 0.3219142 | L100: 0 | M100: 0.3219142 | AC100: 9 | AD100: º | AE100: 2007 | AF100: Doces, geleias, purés e pastas de frutas | AG100: 0.0230414 | AH100: 0.001310930602
I101: 4818 | J101: Papel para toucador, etc., pasta de celulose, etc. | K101: 0.237863 | L101: 0 | M101: 0.237863 | AC101: 10 | AD101: º | AE101: 0709 | AF101: Outros produtos hortícolas, frescos ou refrigerados | AG101: 0.012358 | AH101: 0.0007031031267 | AI101: 0.9977370525
I102: - | J102: Outros | K102: 1.6581816 | L102: 0.039753 | M102: 1.6184286 | AE102: - | AF102: Outros | AG102: 0.0397744 | AH102: 0.002262947484
I103: 0709 | J103: Outros produtos hortícolas, frescos ou refrigerados | K103: 0 | L103: 0.012358 | M103: -0.012358 | AE103: Total | AG103: 17.576369 | AH103: 1
I104: 2007 | J104: Doces, geleias, purés e pastas de frutas | K104: 0.0002158 | L104: 0.0230414 | M104: -0.0228256
I105: 1211 | J105: Plantas, partes de plantas para usos não alimentares | K105: 9.2e-06 | L105: 0.0267508 | M105: -0.0267416
I106: 1504 | J106: Gorduras e óleos de peixes,etc. | K106: 0 | L106: 0.163244 | M106: -0.163244
I107: 0304 | J107: Filetes de peixes | K107: 0 | L107: 0.2983186 | M107: -0.2983186
I108: 5201 | J108: Algodão não cardado nem penteado | K108: 4e-07 | L108: 0.315565 | M108: -0.3155646
I109: 0306 | J109: Crustáceos | K109: 0 | L109: 2.3939344 | M109: -2.3939344
I110: 0302 | J110: Peixes frescos ou refrigerados | K110: 6e-06 | L110: 4.166094 | M110: -4.166088
I111: 0303 | J111: Peixes congelados | K111: 0.0075948 | L111: 4.3467646 | M111: -4.3391698
I112: 0307 | J112: Moluscos | K112: 0 | L112: 5.7905238 | M112: -5.7905238
I113: Total | K113: 11.2789004 | L113: 17.576369 | M113: -6.2974686
A116: Fonte: GPP a partir de dados INE/Comércio Internacional (2021 provisórios; 2022 preliminares) | Y116: 2023-04-10T11:41:25.980

Sheet 3A
A1: Principais produtos agrícolas e agroalimentares transacionados entre Portugal e Senegal em 2018-2022 (NC a 2 e 4 dígitos) em milhões de euros
AC4: P | AE4: Cód.NC | AF4: Descritivo | AG4: Média export quinquénio | AH4: % do total | AI4: % acumulada | AN4: P | AO4: NC | AP4: Exportações | AQ4: 2018 | AR4: 2019 | AS4: 2020 | AT4: 2021 | AU4: 2022 | AV4: média quinquénio
AC5: 1 | AD5: º | AE5: 22 | AF5: Bebidas, líquidos alcoólicos e vinagres | AG5: 4.6717508 | AH5: 0.5500233349 | AN5: 1º | AO5: 22 | AP5: Bebidas, líquidos alcoólicos e vinagres | AQ5: 1.56437 | AR5: 1.866245 | AS5: 2.966407 | AT5: 6.461926 | AU5: 10.499806 | AV5: 4.6717508
AC6: 2 | AD6: º | AE6: 24 | AF6: Tabaco | AG6: 2.0054742 | AH6: 0.2361122531 | AN6: 2º | AO6: 24 | AP6: Tabaco | AQ6: 1.766713 | AR6: 1.650898 | AS6: 1.899805 | AT6: 2.546392 | AU6: 2.163563 | AV6: 2.0054742
AC7: 3 | AD7: º | AE7: 21 | AF7: Preparações alimentícias diversas | AG7: 0.5441804 | AH7: 0.06406846837 | AI7: 0.8502040564 | AN7: 3º | AO7: 21 | AP7: Preparações alimentícias diversas | AQ7: 0.87702 | AR7: 0.887254 | AS7: 0.341606 | AT7: 0.322939 | AU7: 0.292083 | AV7: 0.5441804
AC8: 4 | AD8: º | AE8: 15 | AF8: Gorduras e óleos animais ou vegetais | AG8: 0.3688328 | AH8: 0.04342411557 | AO8: - | AP8: Outros | AQ8: 0.484894 | AR8: 2.230466 | AS8: 1.356362 | AT8: 1.324209 | AU8: 0.965702 | AV8: 1.2723266
AC9: 5 | AD9: º | AE9: 07 | AF9: Produtos hortícolas | AG9: 0.236159 | AH9: 0.0278039147 | AP9: Total | AQ9: 4.692997 | AR9: 6.634863 | AS9: 6.56418 | AT9: 10.655466 | AU9: 13.921154 | AV9: 8.493732
AC10: 6 | AD10: º | AE10: 04 | AF10: Leite e laticínios; ovos; mel, etc. | AG10: 0.2218696 | AH10: 0.02612156823
AC11: 7 | AD11: º | AE11: 19a | AF11: Preparações à base de cereais (exc. NC 19022010) (a) | AG11: 0.2119504 | AH11: 0.02495374236
AC12: 8 | AD12: º | AE12: 23a | AF12: Resíduos indústrias alimentares; alimentos p/ animais (exc. NC 230120) (a) | AG12: 0.0615232 | AH12: 0.007243364872
AC13: 9 | AD13: º | AE13: 08 | AF13: Frutas | AG13: 0.0574318 | AH13: 0.006761668487
AC14: 10 | AD14: º | AE14: 20 | AF14: Preparações de produtos vegetais | AG14: 0.0483428 | AH14: 0.005691585277 | AI14: 0.9922040159
AE15: - | AF15: Outros | AG15: 0.066217 | AH15: 0.007795984145
AE16: Total | AG16: 8.493732 | AH16: 1
AC38: P | AE38: Cód.NC | AF38: Descritivo | AG38: Média import quinquénio | AH38: % do total | AI38: % acumulada | AN38: P | AO38: NC | AP38: Importações | AQ38: 2018 | AR38: 2019 | AS38: 2020 | AT38: 2021 | AU38: 2022 | AV38: média quinquénio
AC39: 1 | AD39: º | AE39: 52 | AF39: Algodão (NC 5201-5203) | AG39: 0.315565 | AH39: 0.5601498301 | AN39: 1º | AO39: 52 | AP39: Algodão (NC 5201-5203) | AQ39: 0.464997 | AR39: 0.204824 | AS39: 0.192166 | AT39: 0.350221 | AU39: 0.365617 | AV39: 0.315565
AC40: 2 | AD40: º | AE40: 15 | AF40: Gorduras e óleos animais ou vegetais | AG40: 0.163471 | AH40: 0.2901723983 | AN40: 2º | AO40: 15 | AP40: Gorduras e óleos animais ou vegetais | AQ40: 0.20308 | AR40: 0.613147 | AS40: 3e-06 | AT40: 4.9e-05 | AU40: 0.001076 | AV40: 0.163471
AC41: 3 | AD41: º | AE41: 12 | AF41: Sementes e frutos oleaginosos | AG41: 0.0267804 | AH41: 0.04753707322 | AI41: 0.8978593016 | AN41: 3º | AO41: 12 | AP41: Sementes e frutos oleaginosos | AQ41: 0 | AR41: 0.012451 | AS41: 0.036836 | AT41: 0.022771 | AU41: 0.061844 | AV41: 0.0267804
AC42: 4 | AD42: º | AE42: 20 | AF42: Preparações de produtos vegetais | AG42: 0.0265088 | AH42: 0.04705496432 | AO42: - | AP42: Outros | AQ42: 0.075119 | AR42: 0.088555 | AS42: 0.008689 | AT42: 0.104288 | AU42: 0.011058 | AV42: 0.0575418
AC43: 5 | AD43: º | AE43: 07 | AF43: Produtos hortícolas | AG43: 0.0179998 | AH43: 0.03195089732 | AP43: Total | AQ43: 0.743196 | AR43: 0.918977 | AS43: 0.237694 | AT43: 0.477329 | AU43: 0.439595 | AV43: 0.5633582
AC44: 6 | AD44: º | AE44: 08 | AF44: Frutas | AG44: 0.0055602 | AH44: 0.009869741845
AC45: 7 | AD45: º | AE45: 41 | AF45: Couro e peles em bruto (NC 4101 a 4103) | AG45: 0.0054402 | AH45: 0.009656733496
AC46: 8 | AD46: º | AE46: 06 | AF46: Plantas vivas e produtos de floricultura | AG46: 0.0007858 | AH46: 0.001394849671
AC47: 9 | AD47: º | AE47: 17 | AF47: Açúcares e produtos de confeitaria | AG47: 0.0007334 | AH47: 0.001301836025
AC48: 10 | AD48: º | AE48: 10 | AF48: Cereais | AG48: 0.0003358 | AH48: 0.0005960683629 | AI48: 0.9996843926
AE49: - | AF49: Outros | AG49: 0.0001778 | AH49: 0.0003156073702
AE50: Total | AG50: 0.5633582 | AH50: 1
AC62: DESAGREGAÇÃO A 4 DÍGITOS | AN62: DESAGREGAÇÃO A 4 DÍGITOS
AC64: P | AE64: Cód.NC | AF64: Descritivo | AG64: Média export quinquénio | AH64: % do total | AI64: % acumulada | AN64: P | AO64: NC | AP64: Exportações | AQ64: 2018 | AR64: 2019 | AS64: 2020 | AT64: 2021 | AU64: 2022 | AV64: média quinquénio
AC65: 1 | AD65: º | AE65: 2202 | AF65: Águas com açúcar ou outros produtos; outras bebidas | AG65: 4.06995 | AH65: 0.4791709934 | AN65: 1º | AO65: 2202 | AP65: Águas com açúcar ou outros produtos; outras bebidas | AQ65: 1.205048 | AR65: 1.417195 | AS65: 2.277212 | AT65: 5.748292 | AU65: 9.702003 | AV65: 4.06995
AC66: 2 | AD66: º | AE66: 2401 | AF66: Tabaco não manufaturado | AG66: 1.3105384 | AH66: 0.154294767 | AN66: 2º | AO66: 2401 | AP66: Tabaco não manufaturado | AQ66: 1.229314 | AR66: 1.141544 | AS66: 1.251502 | AT66: 1.475392 | AU66: 1.45494 | AV66: 1.3105384
AC67: 3 | AD67: º | AE67: 2403 | AF67: Outros produtos de tabaco | AG67: 0.6949358 | AH67: 0.08181748612 | AI67: 0.7152832465 | AN67: 3º | AO67: 2403 | AP67: Outros produtos de tabaco | AQ67: 0.537399 | AR67: 0.509354 | AS67: 0.648303 | AT67: 1.071 | AU67: 0.708623 | AV67: 0.6949358
AC68: 4 | AD68: º | AE68: 2102 | AF68: Leveduras, vivas ou mortas, etc. | AG68: 0.5270244 | AH68: 0.06204862598 | AN68: - | AO68: - | AP68: Outros | AQ68: 1.721236 | AR68: 3.56677 | AS68: 2.387163 | AT68: 2.360782 | AU68: 2.055588 | AV68: 2.4183078
AC69: 5 | AD69: º | AE69: 2203 | AF69: Cervejas de malte | AG69: 0.4168096 | AH69: 0.04907261025 | AP69: Total | AQ69: 4.692997 | AR69: 6.634863 | AS69: 6.56418 | AT69: 10.655466 | AU69: 13.921154 | AV69: 8.493732
AC70: 6 | AD70: º | AE70: 1507 | AF70: Óleo de soja e suas frações | AG70: 0.3219142 | AH70: 0.03790020688
AC71: 7 | AD71: º | AE71: 0706 | AF71: Cenouras, nabos, beterrabas, etc., frescos ou refrigerados | AG71: 0.235419 | AH71: 0.02771679163
AC72: 8 | AD72: º | AE72: 0402 | AF72: Leite e nata, concentrados | AG72: 0.2054254 | AH72: 0.02418552881
AC73: 9 | AD73: º | AE73: 2204 | AF73: Vinhos de uvas frescas | AG73: 0.1764692 | AH73: 0.02077640312
AC74: 10 | AD74: º | AE74: 1904 | AF74: Produtos à base de cereais | AG74: 0.156278 | AH74: 0.01839921486 | AI74: 0.955382628
AE75: - | AF75: Outros | AG75: 0.378968 | AH75: 0.04461737196
AE76: Total | AG76: 8.493732 | AH76: 1
AC89: DESAGREGAÇÃO A 4 DÍGITOS | AN89: DESAGREGAÇÃO A 4 DÍGITOS
G91: média 2018-2022 em milhões de euros | I91: Cód. NC | J91: Descritivo | K91: Export | L91: Import | M91: Saldo | AC91: P | AE91: Cód.NC | AF91: Descritivo | AG91: Média import quinquénio | AH91: % do total | AI91: % acumulada | AN91: P | AO91: NC | AP91: Importações | AQ91: 2018 | AR91: 2019 | AS91: 2020 | AT91: 2021 | AU91: 2022 | AV91: média quinquénio
I92: 2202 | J92: Águas com açúcar ou outros produtos; outras bebidas | K92: 4.06995 | L92: 0 | M92: 4.06995 | AC92: 1 | AD92: º | AE92: 5201 | AF92: Algodão não cardado nem penteado | AG92: 0.315565 | AH92: 0.5601498301 | AN92: 1º | AO92: 5201 | AP92: Algodão não cardado nem penteado | AQ92: 0.464997 | AR92: 0.204824 | AS92: 0.192166 | AT92: 0.350221 | AU92: 0.365617 | AV92: 0.315565
I93: 2401 | J93: Tabaco não manufaturado | K93: 1.3105384 | L93: 0 | M93: 1.3105384 | AC93: 2 | AD93: º | AE93: 1504 | AF93: Gorduras e óleos de peixes,etc. | AG93: 0.163244 | AH93: 0.2897694575 | AN93: 2º | AO93: 1504 | AP93: Gorduras e óleos de peixes,etc. | AQ93: 0.203073 | AR93: 0.613147 | AS93: 0 | AT93: 0 | AU93: 0 | AV93: 0.163244
I94: 2403 | J94: Outros produtos de tabaco | K94: 0.6949358 | L94: 0 | M94: 0.6949358 | AC94: 3 | AD94: º | AE94: 1211 | AF94: Plantas, partes de plantas para usos não alimentares | AG94: 0.0267508 | AH94: 0.04748453116 | AI94: 0.8974038187 | AN94: 3º | AO94: 1211 | AP94: Plantas, partes de plantas para usos não alimentares | AQ94: 0 | AR94: 0.012451 | AS94: 0.036688 | AT94: 0.022771 | AU94: 0.061844 | AV94: 0.0267508
I95: 2102 | J95: Leveduras, vivas ou mortas, etc. | K95: 0.5270244 | L95: 0 | M95: 0.5270244 | AC95: 4 | AD95: º | AE95: 2007 | AF95: Doces, geleias, purés e pastas de frutas | AG95: 0.0230414 | AH95: 0.04090008808 | AN95: - | AO95: - | AP95: Outros | AQ95: 0.075126 | AR95: 0.088555 | AS95: 0.00884 | AT95: 0.104337 | AU95: 0.012134 | AV95: 0.0577984
I96: 2203 | J96: Cervejas de malte | K96: 0.4168096 | L96: 0 | M96: 0.4168096 | AC96: 5 | AD96: º | AE96: 0709 | AF96: Outros produtos hortícolas, frescos ou refrigerados | AG96: 0.012358 | AH96: 0.02193630979 | AP96: Total | AQ96: 0.743196 | AR96: 0.918977 | AS96: 0.237694 | AT96: 0.477329 | AU96: 0.439595 | AV96: 0.5633582
I97: 1507 | J97: Óleo de soja e suas frações | K97: 0.3219142 | L97: 0 | M97: 0.3219142 | AC97: 6 | AD97: º | AE97: 0714 | AF97: Raízes de mandioca, de araruta, batata-doce, etc. | AG97: 0.0056418 | AH97: 0.01001458752
I98: 0706 | J98: Cenouras, nabos, beterrabas, etc., frescos ou refrigerados | K98: 0.235419 | L98: 0 | M98: 0.235419 | AC98: 7 | AD98: º | AE98: 4102 | AF98: Peles em bruto de ovinos | AG98: 0.0050464 | AH98: 0.008957711097
I99: 0402 | J99: Leite e nata, concentrados | K99: 0.2054254 | L99: 0 | M99: 0.2054254 | AC99: 8 | AD99: º | AE99: 2008 | AF99: Frutas preparadas | AG99: 0.003209 | AH99: 0.005696198262
I100: 2204 | J100: Vinhos de uvas frescas | K100: 0.1764692 | L100: 0 | M100: 0.1764692 | AC100: 9 | AD100: º | AE100: 0813 | AF100: Outras frutas secas | AG100: 0.0028188 | AH100: 0.005003566115
I101: 1904 | J101: Produtos à base de cereais | K101: 0.156278 | L101: 0 | M101: 0.156278 | AC101: 10 | AD101: º | AE101: 0802 | AF101: Frutas de casca rija | AG101: 0.0027414 | AH101: 0.00486617573 | AI101: 0.9947784553
I102: - | J102: Outros | K102: 0.3782502 | L102: 0.0029416 | M102: 0.3753086 | AE102: - | AF102: Outros | AG102: 0.0029416 | AH102: 0.005221544658
I103: 0802 | J103: Frutas de casca rija | K103: 5.1e-05 | L103: 0.0027414 | M103: -0.0026904 | AE103: Total | AG103: 0.5633582 | AH103: 1
I104: 2008 | J104: Frutas preparadas | K104: 0.0004288 | L104: 0.003209 | M104: -0.0027802
I105: 0813 | J105: Outras frutas secas | K105: 1.26e-05 | L105: 0.0028188 | M105: -0.0028062
I106: 4102 | J106: Peles em bruto de ovinos | K106: 0 | L106: 0.0050464 | M106: -0.0050464
I107: 0714 | J107: Raízes de mandioca, de araruta, batata-doce, etc. | K107: 0 | L107: 0.0056418 | M107: -0.0056418
I108: 0709 | J108: Outros produtos hortícolas, frescos ou refrigerados | K108: 0 | L108: 0.012358 | M108: -0.012358
I109: 2007 | J109: Doces, geleias, purés e pastas de frutas | K109: 0.0002158 | L109: 0.0230414 | M109: -0.0228256
I110: 1211 | J110: Plantas, partes de plantas para usos não alimentares | K110: 9.2e-06 | L110: 0.0267508 | M110: -0.0267416
I111: 1504 | J111: Gorduras e óleos de peixes,etc. | K111: 0 | L111: 0.163244 | M111: -0.163244
I112: 5201 | J112: Algodão não cardado nem penteado | K112: 4e-07 | L112: 0.315565 | M112: -0.3155646
I113: Total | K113: 8.493732 | L113: 0.5633582 | M113: 7.9303738
A116: Fonte: GPP a partir de dados INE/Comércio Internacional (2021 provisórios; 2022 preliminares) | Y116: 2023-04-10T11:41:25.980

Sheet 4A
A1: Evolução da balança comercial Portugal-Senegal 2018-2022 por produto em euros (NC 2 dígitos)
A3: =+aux!A31 -> Evolução da balança comercial Portugal-Senegal para Bebidas, líquidos alcoólicos e vinagres
A5: Selecione o produto:
Q7: Para obter uma maior desagregação deste produto, clique no botão respetivo:
A20: =+aux!A43 -> Evolução da balança comercial Portugal-Senegal para Peixes e crustáceos
A22: Selecione o produto:
A38: Fonte: GPP a partir de dados INE/Comércio Internacional (2021 provisórios; 2022 preliminares) | N38: 2023-04-10T11:41:25.980

Sheet 5.2
A1: Trocas comerciais Portugal-Senegal 2018-2022 em milhares de euros (NC 2 dígitos) | C1: Produtos agrícolas e agroalimentares, do mar e da floresta
A2: Cód. NC | B2: Descritivo | C2: Importações | K2: Exportações | S2: Saldo quinquénio (exp-imp) | T2: Evolução das importações | U2: =+"Variação das Importações " & INDEX(K3:N3,1,aux!AL1) & "-"& '5.2'!O3 &"" -> Variação das Importações 2018-2022 | Z2: Evolução das exportações | AA2: ="Variação das Exportações " & INDEX(K3:N3,1,aux!AL1) & "-"& '5.2'!O3 &"" -> Variação das Exportações 2018-2022
C3: 2018 | D3: 2019 | E3: 2020 | F3: 2021 | G3: 2022 | H3: média quinquénio | I3: % Subtot | J3: % Total | K3: 2018 | L3: 2019 | M3: 2020 | N3: 2021 | O3: 2022 | P3: média quinquénio | Q3: % Subtot | R3: % Total | U3: variação total em valor | V3: % no subtotal de variação | W3: % no total de variação | X3: taxa de variação média anual | Y3: taxa de variação total | AA3: variação total em valor | AB3: % no subtotal de variação | AC3: % no total de variação | AD3: taxa de variação média anual | AE3: taxa de variação total
A4: 01 | B4: Animais vivos | C4: 0 | D4: 0 | E4: 0 | F4: 0 | G4: 0 | H4: 0 | I4: 0 | J4: 0 | K4: 0 | L4: 0 | M4: 0 | N4: 0 | O4: 0 | P4: 0 | Q4: 0 | R4: 0 | S4: 0 | U4: =G4-INDEX($C4:$G4,1,aux!$AL$1) -> 0 | V4: =IF($U$37<>0,U4/$U$37, "n.d.") -> 0 | W4: =IF($U$53<>0,U4/$U$53, "n.d.") -> 0 | X4: =+IF(INDEX($C4:$G4,1,aux!$AL$1)>0,(G4/INDEX($C4:$G4,1,aux!$AL$1))^(1/($G$3-INDEX($C$3:$G$3,1,aux!$AL$1)))-1,"n.d.") -> n.d. | Y4: =IF(INDEX($C4:$G4,1,aux!$AL$1)>0,(G4-INDEX($C4:$G4,1,aux!$AL$1))/INDEX($C4:$G4,1,aux!$AL$1),"n.d.") -> n.d. | AA4: =O4-INDEX($K4:$O4,1,aux!$AL$1) -> 0 | AB4: =IF($AA$37<>0,AA4/$AA$37, "n.d.") -> 0 | AC4: =IF($AA$53<>0,AA4/$AA$53, "n.d.") -> 0 | AD4: =+IF(INDEX($K4:$O4,1,aux!$AL$1)>0,(O4/INDEX($K4:$O4,1,aux!$AL$1))^(1/($O$3-INDEX($K$3:$O$3,1,aux!$AL$1)))-1,"n.d.") -> n.d. | AE4: =IF(INDEX($K4:$O4,1,aux!$AL$1)>0,(O4-INDEX($K4:$O4,1,aux!$AL$1))/INDEX($K4:$O4,1,aux!$AL$1),"n.d.") -> n.d.
A5: 02 | B5: Carnes e miudezas | C5: 0 | D5: 0 | E5: 0 | F5: 0 | G5: 0 | H5: 0 | I5: 0 | J5: 0 | K5: 0 | L5: 0 | M5: 0.061 | N5: 0.436 | O5: 0.042 | P5: 0.1078 | Q5: 1.269171196e-05 | R5: 9.557669292e-06 | S5: 0.1078 | U5: =G5-INDEX($C5:$G5,1,aux!$AL$1) -> 0 | V5: 0 | W5: 0 | X5: =+IF(INDEX($C5:$G5,1,aux!$AL$1)>0,(G5/INDEX($C5:$G5,1,aux!$AL$1))^(1/($G$3-INDEX($C$3:$G$3,1,aux!$AL$1)))-1,"n.d.") -> n.d. | Y5: =IF(INDEX($C5:$G5,1,aux!$AL$1)>0,(G5-INDEX($C5:$G5,1,aux!$AL$1))/INDEX($C5:$G5,1,aux!$AL$1),"n.d.") -> n.d. | AA5: =O5-INDEX($K5:$O5,1,aux!$AL$1) -> 0.042 | AB5: 4.551287977e-06 | AC5: 4.646245386e-06 | AD5: =+IF(INDEX($K5:$O5,1,aux!$AL$1)>0,(O5/INDEX($K5:$O5,1,aux!$AL$1))^(1/($O$3-INDEX($K$3:$O$3,1,aux!$AL$1)))-1,"n.d.") -> n.d. | AE5: =IF(INDEX($K5:$O5,1,aux!$AL$1)>0,(O5-INDEX($K5:$O5,1,aux!$AL$1))/INDEX($K5:$O5,1,aux!$AL$1),"n.d.") -> n.d.
A6: 04 | B6: Leite e laticínios; ovos; mel, etc. | C6: 0 | D6: 0 | E6: 0 | F6: 0 | G6: 0 | H6: 0 | I6: 0 | J6: 0 | K6: 0 | L6: 1.634 | M6: 211.278 | N6: 644.364 | O6: 252.072 | P6: 221.8696 | Q6: 0.02612156823 | R6: 0.01967120837 | S6: 221.8696 | U6: =G6-INDEX($C6:$G6,1,aux!$AL$1) -> 0 | V6: 0 | W6: 0 | X6: =+IF(INDEX($C6:$G6,1,aux!$AL$1)>0,(G6/INDEX($C6:$G6,1,aux!$AL$1))^(1/($G$3-INDEX($C$3:$G$3,1,aux!$AL$1)))-1,"n.d.") -> n.d. | Y6: =IF(INDEX($C6:$G6,1,aux!$AL$1)>0,(G6-INDEX($C6:$G6,1,aux!$AL$1))/INDEX($C6:$G6,1,aux!$AL$1),"n.d.") -> n.d. | AA6: =O6-INDEX($K6:$O6,1,aux!$AL$1) -> 252.072 | AB6: 0.02731553007 | AC6: 0.02788543731 | AD6: =+IF(INDEX($K6:$O6,1,aux!$AL$1)>0,(O6/INDEX($K6:$O6,1,aux!$AL$1))^(1/($O$3-INDEX($K$3:$O$3,1,aux!$AL$1)))-1,"n.d.") -> n.d. | AE6: =IF(INDEX($K6:$O6,1,aux!$AL$1)>0,(O6-INDEX($K6:$O6,1,aux!$AL$1))/INDEX($K6:$O6,1,aux!$AL$1),"n.d.") -> n.d.
A7: 05a | B7: Outros produtos de origem animal (exc. NC 0508, 051191) (a) | C7: 0 | D7: 0 | E7: 0 | F7: 0 | G7: 0 | H7: 0 | I7: 0 | J7: 0 | K7: 0 | L7: 0.15 | M7: 0 | N7: 0 | O7: 0 | P7: 0.03 | Q7: 3.532016315e-06 | R7: 2.659833755e-06 | S7: 0.03 | U7: =G7-INDEX($C7:$G7,1,aux!$AL$1) -> 0 | V7: 0 | W7: 0 | X7: =+IF(INDEX($C7:$G7,1,aux!$AL$1)>0,(G7/INDEX($C7:$G7,1,aux!$AL$1))^(1/($G$3-INDEX($C$3:$G$3,1,aux!$AL$1)))-1,"n.d.") -> n.d. | Y7: =IF(INDEX($C7:$G7,1,aux!$AL$1)>0,(G7-INDEX($C7:$G7,1,aux!$AL$1))/INDEX($C7:$G7,1,aux!$AL$1),"n.d.") -> n.d. | AA7: =O7-INDEX($K7:$O7,1,aux!$AL$1) -> 0 | AB7: 0 | AC7: 0 | AD7: =+IF(INDEX($K7:$O7,1,aux!$AL$1)>0,(O7/INDEX($K7:$O7,1,aux!$AL$1))^(1/($O$3-INDEX($K$3:$O$3,1,aux!$AL$1)))-1,"n.d.") -> n.d. | AE7: =IF(INDEX($K7:$O7,1,aux!$AL$1)>0,(O7-INDEX($K7:$O7,1,aux!$AL$1))/INDEX($K7:$O7,1,aux!$AL$1),"n.d.") -> n.d.
A8: 06 | B8: Plantas vivas e produtos de floricultura | C8: 0 | D8: 3.929 | E8: 0 | F8: 0 | G8: 0 | H8: 0.7858 | I8: 0.001394849671 | J8: 4.470775505e-05 | K8: 0 | L8: 0 | M8: 0 | N8: 0 | O8: 0 | P8: 0 | Q8: 0 | R8: 0 | S8: -0.7858 | U8: =G8-INDEX($C8:$G8,1,aux!$AL$1) -> 0 | V8: 0 | W8: 0 | X8: =+IF(INDEX($C8:$G8,1,aux!$AL$1)>0,(G8/INDEX($C8:$G8,1,aux!$AL$1))^(1/($G$3-INDEX($C$3:$G$3,1,aux!$AL$1)))-1,"n.d.") -> n.d. | Y8: =IF(INDEX($C8:$G8,1,aux!$AL$1)>0,(G8-INDEX($C8:$G8,1,aux!$AL$1))/INDEX($C8:$G8,1,aux!$AL$1),"n.d.") -> n.d. | AA8: =O8-INDEX($K8:$O8,1,aux!$AL$1) -> 0 | AB8: 0 | AC8: 0 | AD8: =+IF(INDEX($K8:$O8,1,aux!$AL$1)>0,(O8/INDEX($K8:$O8,1,aux!$AL$1))^(1/($O$3-INDEX($K$3:$O$3,1,aux!$AL$1)))-1,"n.d.") -> n.d. | AE8: =IF(INDEX($K8:$O8,1,aux!$AL$1)>0,(O8-INDEX($K8:$O8,1,aux!$AL$1))/INDEX($K8:$O8,1,aux!$AL$1),"n.d.") -> n.d.
A9: 07 | B9: Produtos hortícolas | C9: 0 | D9: 0 | E9: 1.051 | F9: 88.948 | G9: 0 | H9: 17.9998 | I9: 0.03195089732 | J9: 0.001024090926 | K9: 286.025 | L9: 51.488 | M9: 577.002 | N9: 178.326 | O9: 87.954 | P9: 236.159 | Q9: 0.0278039147 | R9: 0.02093812266 | S9: 218.1592 | U9: =G9-INDEX($C9:$G9,1,aux!$AL$1) -> 0 | V9: 0 | W9: 0 | X9: =+IF(INDEX($C9:$G9,1,aux!$AL$1)>0,(G9/INDEX($C9:$G9,1,aux!$AL$1))^(1/($G$3-INDEX($C$3:$G$3,1,aux!$AL$1)))-1,"n.d.") -> n.d. | Y9: =IF(INDEX($C9:$G9,1,aux!$AL$1)>0,(G9-INDEX($C9:$G9,1,aux!$AL$1))/INDEX($C9:$G9,1,aux!$AL$1),"n.d.") -> n.d. | AA9: =O9-INDEX($K9:$O9,1,aux!$AL$1) -> -198.071 | AB9: -0.02146376573 | AC9: -0.02191158261 | AD9: =+IF(INDEX($K9:$O9,1,aux!$AL$1)>0,(O9/INDEX($K9:$O9,1,aux!$AL$1))^(1/($O$3-INDEX($K$3:$O$3,1,aux!$AL$1)))-1,"n.d.") -> -0.2553316424 | AE9: =IF(INDEX($K9:$O9,1,aux!$AL$1)>0,(O9-INDEX($K9:$O9,1,aux!$AL$1))/INDEX($K9:$O9,1,aux!$AL$1),"n.d.") -> -0.6924954112
A10: 08 | B10: Frutas | C10: 9.581 | D10: 2.331 | E10: 3.651 | F10: 5.372 | G10: 6.866 | H10: 5.5602 | I10: 0.009869741845 | J10: 0.0003163452019 | K10: 20.057 | L10: 187.373 | M10: 63.58 | N10: 16.146 | O10: 0.003 | P10: 57.4318 | Q10: 0.006761668487 | R10: 0.005091968008 | S10: 51.8716 | U10: =G10-INDEX($C10:$G10,1,aux!$AL$1) -> -2.715 | V10: 0.008942658292 | W10: -0.02710852396 | X10: =+IF(INDEX($C10:$G10,1,aux!$AL$1)>0,(G10/INDEX($C10:$G10,1,aux!$AL$1))^(1/($G$3-INDEX($C$3:$G$3,1,aux!$AL$1)))-1,"n.d.") -> -0.07992498011 | Y10: =IF(INDEX($C10:$G10,1,aux!$AL$1)>0,(G10-INDEX($C10:$G10,1,aux!$AL$1))/INDEX($C10:$G10,1,aux!$AL$1),"n.d.") -> -0.2833733431 | AA10: =O10-INDEX($K10:$O10,1,aux!$AL$1) -> -20.054 | AB10: -0.002173131645 | AC10: -0.002218471547 | AD10: =+IF(INDEX($K10:$O10,1,aux!$AL$1)>0,(O10/INDEX($K10:$O10,1,aux!$AL$1))^(1/($O$3-INDEX($K$3:$O$3,1,aux!$AL$1)))-1,"n.d.") -> -0.889410519 | AE10: =IF(INDEX($K10:$O10,1,aux!$AL$1)>0,(O10-INDEX($K10:$O10,1,aux!$AL$1))/INDEX($K10:$O10,1,aux!$AL$1),"n.d.") -> -0.9998504263
A11: 09 | B11: Café, chá, mate e especiarias | C11: 0 | D11: 0 | E11: 0.243 | F11: 0 | G11: 0.175 | H11: 0.0836 | I11: 0.0001483958164 | J11: 4.756386259e-06 | K11: 0 | L11: 0 | M11: 8.916 | N11: 124.449 | O11: 50.59 | P11: 36.791 | Q11: 0.004331547075 | R11: 0.003261931456 | S11: 36.7074 | U11: =G11-INDEX($C11:$G11,1,aux!$AL$1) -> 0.175 | V11: -0.0005764144387 | W11: 0.00174732659 | X11: =+IF(INDEX($C11:$G11,1,aux!$AL$1)>0,(G11/INDEX($C11:$G11,1,aux!$AL$1))^(1/($G$3-INDEX($C$3:$G$3,1,aux!$AL$1)))-1,"n.d.") -> n.d. | Y11: =IF(INDEX($C11:$G11,1,aux!$AL$1)>0,(G11-INDEX($C11:$G11,1,aux!$AL$1))/INDEX($C11:$G11,1,aux!$AL$1),"n.d.") -> n.d. | AA11: =O11-INDEX($K11:$O11,1,aux!$AL$1) -> 50.59 | AB11: 0.005482134732 | AC11: 0.005596513192 | AD11: =+IF(INDEX($K11:$O11,1,aux!$AL$1)>0,(O11/INDEX($K11:$O11,1,aux!$AL$1))^(1/($O$3-INDEX($K$3:$O$3,1,aux!$AL$1)))-1,"n.d.") -> n.d. | AE11: =IF(INDEX($K11:$O11,1,aux!$AL$1)>0,(O11-INDEX($K11:$O11,1,aux!$AL$1))/INDEX($K11:$O11,1,aux!$AL$1),"n.d.") -> n.d.
A12: 10 | B12: Cereais | C12: 0 | D12: 0 | E12: 0.033 | F12: 0 | G12: 1.646 | H12: 0.3358 | I12: 0.0005960683629 | J12: 1.910519744e-05 | K12: 0 | L12: 0 | M12: 0.294 | N12: 0.134 | O12: 0.071 | P12: 0.0998 | Q12: 1.174984094e-05 | R12: 8.848380291e-06 | S12: -0.236 | U12: =G12-INDEX($C12:$G12,1,aux!$AL$1) -> 1.646 | V12: -0.00542158952 | W12: 0.01643485467 | X12: =+IF(INDEX($C12:$G12,1,aux!$AL$1)>0,(G12/INDEX($C12:$G12,1,aux!$AL$1))^(1/($G$3-INDEX($C$3:$G$3,1,aux!$AL$1)))-1,"n.d.") -> n.d. | Y12: =IF(INDEX($C12:$G12,1,aux!$AL$1)>0,(G12-INDEX($C12:$G12,1,aux!$AL$1))/INDEX($C12:$G12,1,aux!$AL$1),"n.d.") -> n.d. | AA12: =O12-INDEX($K12:$O12,1,aux!$AL$1) -> 0.071 | AB12: 7.69384396e-06 | AC12: 7.8543672e-06 | AD12: =+IF(INDEX($K12:$O12,1,aux!$AL$1)>0,(O12/INDEX($K12:$O12,1,aux!$AL$1))^(1/($O$3-INDEX($K$3:$O$3,1,aux!$AL$1)))-1,"n.d.") -> n.d. | AE12: =IF(INDEX($K12:$O12,1,aux!$AL$1)>0,(O12-INDEX($K12:$O12,1,aux!$AL$1))/INDEX($K12:$O12,1,aux!$AL$1),"n.d.") -> n.d.
A13: 11 | B13: Produtos da indústria de moagem e outros | C13: 0 | D13: 0 | E13: 0 | F13: 0 | G13: 0 | H13: 0 | I13: 0 | J13: 0 | K13: 0 | L13: 0 | M13: 0 | N13: 0.085 | O13: 0 | P13: 0.017 | Q13: 2.001475912e-06 | R13: 1.507239128e-06 | S13: 0.017 | U13: =G13-INDEX($C13:$G13,1,aux!$AL$1) -> 0 | V13: 0 | W13: 0 | X13: =+IF(INDEX($C13:$G13,1,aux!$AL$1)>0,(G13/INDEX($C13:$G13,1,aux!$AL$1))^(1/($G$3-INDEX($C$3:$G$3,1,aux!$AL$1)))-1,"n.d.") -> n.d. | Y13: =IF(INDEX($C13:$G13,1,aux!$AL$1)>0,(G13-INDEX($C13:$G13,1,aux!$AL$1))/INDEX($C13:$G13,1,aux!$AL$1),"n.d.") -> n.d. | AA13: =O13-INDEX($K13:$O13,1,aux!$AL$1) -> 0 | AB13: 0 | AC13: 0 | AD13: =+IF(INDEX($K13:$O13,1,aux!$AL$1)>0,(O13/INDEX($K13:$O13,1,aux!$AL$1))^(1/($O$3-INDEX($K$3:$O$3,1,aux!$AL$1)))-1,"n.d.") -> n.d. | AE13: =IF(INDEX($K13:$O13,1,aux!$AL$1)>0,(O13-INDEX($K13:$O13,1,aux!$AL$1))/INDEX($K13:$O13,1,aux!$AL$1),"n.d.") -> n.d.
A14: 12 | B14: Sementes e frutos oleaginosos | C14: 0 | D14: 12.451 | E14: 36.836 | F14: 22.771 | G14: 61.844 | H14: 26.7804 | I14: 0.04753707322 | J14: 0.001523659409 | K14: 0 | L14: 0 | M14: 0.046 | N14: 0 | O14: 0.019 | P14: 0.013 | Q14: 1.530540403e-06 | R14: 1.152594627e-06 | S14: -26.7674 | U14: =G14-INDEX($C14:$G14,1,aux!$AL$1) -> 61.844 | V14: -0.2037015688 | W14: 0.6174952323 | X14: =+IF(INDEX($C14:$G14,1,aux!$AL$1)>0,(G14/INDEX($C14:$G14,1,aux!$AL$1))^(1/($G$3-INDEX($C$3:$G$3,1,aux!$AL$1)))-1,"n.d.") -> n.d. | Y14: =IF(INDEX($C14:$G14,1,aux!$AL$1)>0,(G14-INDEX($C14:$G14,1,aux!$AL$1))/INDEX($C14:$G14,1,aux!$AL$1),"n.d.") -> n.d. | AA14: =O14-INDEX($K14:$O14,1,aux!$AL$1) -> 0.019 | AB14: 2.058915989e-06 | AC14: 2.101872913e-06 | AD14: =+IF(INDEX($K14:$O14,1,aux!$AL$1)>0,(O14/INDEX($K14:$O14,1,aux!$AL$1))^(1/($O$3-INDEX($K$3:$O$3,1,aux!$AL$1)))-1,"n.d.") -> n.d. | AE14: =IF(INDEX($K14:$O14,1,aux!$AL$1)>0,(O14-INDEX($K14:$O14,1,aux!$AL$1))/INDEX($K14:$O14,1,aux!$AL$1),"n.d.") -> n.d.
A15: 13a | B15: Sucos e extratos vegetais (exc. NC 1301) (a) | C15: 0 | D15: 0 | E15: 0 | F15: 0 | G15: 0 | H15: 0 | I15: 0 | J15: 0 | K15: 0 | L15: 0 | M15: 0 | N15: 0 | O15: 0 | P15: 0 | Q15: 0 | R15: 0 | S15: 0 | U15: =G15-INDEX($C15:$G15,1,aux!$AL$1) -> 0 | V15: 0 | W15: 0 | X15: =+IF(INDEX($C15:$G15,1,aux!$AL$1)>0,(G15/INDEX($C15:$G15,1,aux!$AL$1))^(1/($G$3-INDEX($C$3:$G$3,1,aux!$AL$1)))-1,"n.d.") -> n.d. | Y15: =IF(INDEX($C15:$G15,1,aux!$AL$1)>0,(G15-INDEX($C15:$G15,1,aux!$AL$1))/INDEX($C15:$G15,1,aux!$AL$1),"n.d.") -> n.d. | AA15: =O15-INDEX($K15:$O15,1,aux!$AL$1) -> 0 | AB15: 0 | AC15: 0 | AD15: =+IF(INDEX($K15:$O15,1,aux!$AL$1)>0,(O15/INDEX($K15:$O15,1,aux!$AL$1))^(1/($O$3-INDEX($K$3:$O$3,1,aux!$AL$1)))-1,"n.d.") -> n.d. | AE15: =IF(INDEX($K15:$O15,1,aux!$AL$1)>0,(O15-INDEX($K15:$O15,1,aux!$AL$1))/INDEX($K15:$O15,1,aux!$AL$1),"n.d.") -> n.d.
A16: 14 | B16: Matérias para entrançar e outros | C16: 0 | D16: 0 | E16: 0 | F16: 0 | G16: 0 | H16: 0 | I16: 0 | J16: 0 | K16: 0 | L16: 0 | M16: 0 | N16: 0 | O16: 0 | P16: 0 | Q16: 0 | R16: 0 | S16: 0 | U16: =G16-INDEX($C16:$G16,1,aux!$AL$1) -> 0 | V16: 0 | W16: 0 | X16: =+IF(INDEX($C16:$G16,1,aux!$AL$1)>0,(G16/INDEX($C16:$G16,1,aux!$AL$1))^(1/($G$3-INDEX($C$3:$G$3,1,aux!$AL$1)))-1,"n.d.") -> n.d. | Y16: =IF(INDEX($C16:$G16,1,aux!$AL$1)>0,(G16-INDEX($C16:$G16,1,aux!$AL$1))/INDEX($C16:$G16,1,aux!$AL$1),"n.d.") -> n.d. | AA16: =O16-INDEX($K16:$O16,1,aux!$AL$1) -> 0 | AB16: 0 | AC16: 0 | AD16: =+IF(INDEX($K16:$O16,1,aux!$AL$1)>0,(O16/INDEX($K16:$O16,1,aux!$AL$1))^(1/($O$3-INDEX($K$3:$O$3,1,aux!$AL$1)))-1,"n.d.") -> n.d. | AE16: =IF(INDEX($K16:$O16,1,aux!$AL$1)>0,(O16-INDEX($K16:$O16,1,aux!$AL$1))/INDEX($K16:$O16,1,aux!$AL$1),"n.d.") -> n.d.
A17: 15 | B17: Gorduras e óleos animais ou vegetais | C17: 203.08 | D17: 613.147 | E17: 0.003 | F17: 0.049 | G17: 1.076 | H17: 163.471 | I17: 0.2901723983 | J17: 0.009300612658 | K17: 2.344 | L17: 1602.327 | M17: 5.965 | N17: 23.384 | O17: 210.144 | P17: 368.8328 | Q17: 0.04342411557 | R17: 0.03270113104 | S17: 205.3618 | U17: =G17-INDEX($C17:$G17,1,aux!$AL$1) -> -202.004 | V17: 0.6653601273 | W17: -2.01695406 | X17: =+IF(INDEX($C17:$G17,1,aux!$AL$1)>0,(G17/INDEX($C17:$G17,1,aux!$AL$1))^(1/($G$3-INDEX($C$3:$G$3,1,aux!$AL$1)))-1,"n.d.") -> -0.73020352 | Y17: =IF(INDEX($C17:$G17,1,aux!$AL$1)>0,(G17-INDEX($C17:$G17,1,aux!$AL$1))/INDEX($C17:$G17,1,aux!$AL$1),"n.d.") -> -0.9947015954 | AA17: =O17-INDEX($K17:$O17,1,aux!$AL$1) -> 207.8 | AB17: 0.02251803908 | AC17: 0.02298785217 | AD17: =+IF(INDEX($K17:$O17,1,aux!$AL$1)>0,(O17/INDEX($K17:$O17,1,aux!$AL$1))^(1/($O$3-INDEX($K$3:$O$3,1,aux!$AL$1)))-1,"n.d.") -> 2.077087506 | AE17: =IF(INDEX($K17:$O17,1,aux!$AL$1)>0,(O17-INDEX($K17:$O17,1,aux!$AL$1))/INDEX($K17:$O17,1,aux!$AL$1),"n.d.") -> 88.65187713
A18: 16a | B18: Preparações de carnes (exc. NC 1604-05) (a) | C18: 0 | D18: 0 | E18: 0 | F18: 0 | G18: 0 | H18: 0 | I18: 0 | J18: 0 | K18: 0 | L18: 0 | M18: 0.166 | N18: 0.751 | O18: 0.123 | P18: 0.208 | Q18: 2.448864645e-05 | R18: 1.844151403e-05 | S18: 0.208 | U18: =G18-INDEX($C18:$G18,1,aux!$AL$1) -> 0 | V18: 0 | W18: 0 | X18: =+IF(INDEX($C18:$G18,1,aux!$AL$1)>0,(G18/INDEX($C18:$G18,1,aux!$AL$1))^(1/($G$3-INDEX($C$3:$G$3,1,aux!$AL$1)))-1,"n.d.") -> n.d. | Y18: =IF(INDEX($C18:$G18,1,aux!$AL$1)>0,(G18-INDEX($C18:$G18,1,aux!$AL$1))/INDEX($C18:$G18,1,aux!$AL$1),"n.d.") -> n.d. | AA18: =O18-INDEX($K18:$O18,1,aux!$AL$1) -> 0.123 | AB18: 1.332877193e-05 | AC18: 1.360686149e-05 | AD18: =+IF(INDEX($K18:$O18,1,aux!$AL$1)>0,(O18/INDEX($K18:$O18,1,aux!$AL$1))^(1/($O$3-INDEX($K$3:$O$3,1,aux!$AL$1)))-1,"n.d.") -> n.d. | AE18: =IF(INDEX($K18:$O18,1,aux!$AL$1)>0,(O18-INDEX($K18:$O18,1,aux!$AL$1))/INDEX($K18:$O18,1,aux!$AL$1),"n.d.") -> n.d.
A19: 17 | B19: Açúcares e produtos de confeitaria | C19: 0.019 | D19: 0 | E19: 3.648 | F19: 0 | G19: 0 | H19: 0.7334 | I19: 0.001301836025 | J19: 4.172647946e-05 | K19: 0 | L19: 20.405 | M19: 22.449 | N19: 15.999 | O19: 1.075 | P19: 11.9856 | Q19: 0.001411111158 | R19: 0.001062656782 | S19: 11.2522 | U19: =G19-INDEX($C19:$G19,1,aux!$AL$1) -> -0.019 | V19: 6.258213906e-05 | W19: -0.0001897097441 | X19: =+IF(INDEX($C19:$G19,1,aux!$AL$1)>0,(G19/INDEX($C19:$G19,1,aux!$AL$1))^(1/($G$3-INDEX($C$3:$G$3,1,aux!$AL$1)))-1,"n.d.") -> -1 | Y19: =IF(INDEX($C19:$G19,1,aux!$AL$1)>0,(G19-INDEX($C19:$G19,1,aux!$AL$1))/INDEX($C19:$G19,1,aux!$AL$1),"n.d.") -> -1 | AA19: =O19-INDEX($K19:$O19,1,aux!$AL$1) -> 1.075 | AB19: 0.0001164912994 | AC19: 0.0001189217569 | AD19: =+IF(INDEX($K19:$O19,1,aux!$AL$1)>0,(O19/INDEX($K19:$O19,1,aux!$AL$1))^(1/($O$3-INDEX($K$3:$O$3,1,aux!$AL$1)))-1,"n.d.") -> n.d. | AE19: =IF(INDEX($K19:$O19,1,aux!$AL$1)>0,(O19-INDEX($K19:$O19,1,aux!$AL$1))/INDEX($K19:$O19,1,aux!$AL$1),"n.d.") -> n.d.
A20: 18 | B20: Cacau e suas preparações | C20: 0 | D20: 0 | E20: 0 | F20: 0 | G20: 0 | H20: 0 | I20: 0 | J20: 0 | K20: 0 | L20: 0.348 | M20: 14.458 | N20: 56.206 | O20: 4.425 | P20: 15.0874 | Q20: 0.001776298098 | R20: 0.00133766586 | S20: 15.0874 | U20: =G20-INDEX($C20:$G20,1,aux!$AL$1) -> 0 | V20: 0 | W20: 0 | X20: =+IF(INDEX($C20:$G20,1,aux!$AL$1)>0,(G20/INDEX($C20:$G20,1,aux!$AL$1))^(1/($G$3-INDEX($C$3:$G$3,1,aux!$AL$1)))-1,"n.d.") -> n.d. | Y20: =IF(INDEX($C20:$G20,1,aux!$AL$1)>0,(G20-INDEX($C20:$G20,1,aux!$AL$1))/INDEX($C20:$G20,1,aux!$AL$1),"n.d.") -> n.d. | AA20: =O20-INDEX($K20:$O20,1,aux!$AL$1) -> 4.425 | AB20: 0.0004795106975 | AC20: 0.0004895151389 | AD20: =+IF(INDEX($K20:$O20,1,aux!$AL$1)>0,(O20/INDEX($K20:$O20,1,aux!$AL$1))^(1/($O$3-INDEX($K$3:$O$3,1,aux!$AL$1)))-1,"n.d.") -> n.d. | AE20: =IF(INDEX($K20:$O20,1,aux!$AL$1)>0,(O20-INDEX($K20:$O20,1,aux!$AL$1))/INDEX($K20:$O20,1,aux!$AL$1),"n.d.") -> n.d.
A21: 19a | B21: Preparações à base de cereais (exc. NC 19022010) (a) | C21: 0 | D21: 0 | E21: 0.023 | F21: 0 | G21: 0 | H21: 0.0046 | I21: 8.16532004e-06 | J21: 2.617150334e-07 | K21: 124.605 | L21: 176.064 | M21: 224.393 | N21: 233.089 | O21: 301.601 | P21: 211.9504 | Q21: 0.02495374236 | R21: 0.01879176094 | S21: 211.9458 | U21: =G21-INDEX($C21:$G21,1,aux!$AL$1) -> 0 | V21: 0 | W21: 0 | X21: =+IF(INDEX($C21:$G21,1,aux!$AL$1)>0,(G21/INDEX($C21:$G21,1,aux!$AL$1))^(1/($G$3-INDEX($C$3:$G$3,1,aux!$AL$1)))-1,"n.d.") -> n.d. | Y21: =IF(INDEX($C21:$G21,1,aux!$AL$1)>0,(G21-INDEX($C21:$G21,1,aux!$AL$1))/INDEX($C21:$G21,1,aux!$AL$1),"n.d.") -> n.d. | AA21: =O21-INDEX($K21:$O21,1,aux!$AL$1) -> 176.996 | AB21: 0.01917999445 | AC21: 0.01958016305 | AD21: =+IF(INDEX($K21:$O21,1,aux!$AL$1)>0,(O21/INDEX($K21:$O21,1,aux!$AL$1))^(1/($O$3-INDEX($K$3:$O$3,1,aux!$AL$1)))-1,"n.d.") -> 0.247309778 | AE21: =IF(INDEX($K21:$O21,1,aux!$AL$1)>0,(O21-INDEX($K21:$O21,1,aux!$AL$1))/INDEX($K21:$O21,1,aux!$AL$1),"n.d.") -> 1.420456643
A22: 20 | B22: Preparações de produtos vegetais | C22: 38.274 | D22: 82.295 | E22: 0.024 | F22: 9.968 | G22: 1.983 | H22: 26.5088 | I22: 0.04705496432 | J22: 0.001508206843 | K22: 41.529 | L22: 126.715 | M22: 36.834 | N22: 2.499 | O22: 34.137 | P22: 48.3428 | Q22: 0.005691585277 | R22: 0.004286127041 | S22: 21.834 | U22: =G22-INDEX($C22:$G22,1,aux!$AL$1) -> -36.291 | V22: 0.1195351794 | W22: -0.3623555959 | X22: =+IF(INDEX($C22:$G22,1,aux!$AL$1)>0,(G22/INDEX($C22:$G22,1,aux!$AL$1))^(1/($G$3-INDEX($C$3:$G$3,1,aux!$AL$1)))-1,"n.d.") -> -0.5229051645 | Y22: =IF(INDEX($C22:$G22,1,aux!$AL$1)>0,(G22-INDEX($C22:$G22,1,aux!$AL$1))/INDEX($C22:$G22,1,aux!$AL$1),"n.d.") -> -0.9481893714 | AA22: =O22-INDEX($K22:$O22,1,aux!$AL$1) -> -7.392 | AB22: -0.0008010266839 | AC22: -0.0008177391879 | AD22: =+IF(INDEX($K22:$O22,1,aux!$AL$1)>0,(O22/INDEX($K22:$O22,1,aux!$AL$1))^(1/($O$3-INDEX($K$3:$O$3,1,aux!$AL$1)))-1,"n.d.") -> -0.04782128368 | AE22: =IF(INDEX($K22:$O22,1,aux!$AL$1)>0,(O22-INDEX($K22:$O22,1,aux!$AL$1))/INDEX($K22:$O22,1,aux!$AL$1),"n.d.") -> -0.1779960991
A23: 21 | B23: Preparações alimentícias diversas | C23: 0.044 | D23: 0 | E23: 0.016 | F23: 0 | G23: 0.388 | H23: 0.0896 | I23: 0.0001590462338 | J23: 5.097753694e-06 | K23: 877.02 | L23: 887.254 | M23: 341.606 | N23: 322.939 | O23: 292.083 | P23: 544.1804 | Q23: 0.06406846837 | R23: 0.04824764655 | S23: 544.0908 | U23: =G23-INDEX($C23:$G23,1,aux!$AL$1) -> 0.344 | V23: -0.001133066097 | W23: 0.00343474484 | X23: =+IF(INDEX($C23:$G23,1,aux!$AL$1)>0,(G23/INDEX($C23:$G23,1,aux!$AL$1))^(1/($G$3-INDEX($C$3:$G$3,1,aux!$AL$1)))-1,"n.d.") -> 0.7232360135 | Y23: =IF(INDEX($C23:$G23,1,aux!$AL$1)>0,(G23-INDEX($C23:$G23,1,aux!$AL$1))/INDEX($C23:$G23,1,aux!$AL$1),"n.d.") -> 7.818181818 | AA23: =O23-INDEX($K23:$O23,1,aux!$AL$1) -> -584.937 | AB23: -0.06338611274 | AC23: -0.06470859136 | AD23: =+IF(INDEX($K23:$O23,1,aux!$AL$1)>0,(O23/INDEX($K23:$O23,1,aux!$AL$1))^(1/($O$3-INDEX($K$3:$O$3,1,aux!$AL$1)))-1,"n.d.") -> -0.2403313649 | AE23: =IF(INDEX($K23:$O23,1,aux!$AL$1)>0,(O23-INDEX($K23:$O23,1,aux!$AL$1))/INDEX($K23:$O23,1,aux!$AL$1),"n.d.") -> -0.6669597045
A24: 22 | B24: Bebidas, líquidos alcoólicos e vinagres | C24: 0 | D24: 0 | E24: 0 | F24: 0 | G24: 0 | H24: 0 | I24: 0 | J24: 0 | K24: 1564.37 | L24: 1866.245 | M24: 2966.407 | N24: 6461.926 | O24: 10499.806 | P24: 4671.7508 | Q24: 0.5500233349 | R24: 0.4142026824 | S24: 4671.7508 | U24: =G24-INDEX($C24:$G24,1,aux!$AL$1) -> 0 | V24: 0 | W24: 0 | X24: =+IF(INDEX($C24:$G24,1,aux!$AL$1)>0,(G24/INDEX($C24:$G24,1,aux!$AL$1))^(1/($G$3-INDEX($C$3:$G$3,1,aux!$AL$1)))-1,"n.d.") -> n.d. | Y24: =IF(INDEX($C24:$G24,1,aux!$AL$1)>0,(G24-INDEX($C24:$G24,1,aux!$AL$1))/INDEX($C24:$G24,1,aux!$AL$1),"n.d.") -> n.d. | AA24: =O24-INDEX($K24:$O24,1,aux!$AL$1) -> 8935.436 | AB24: 0.9682795817 | AC24: 0.9884816258 | AD24: =+IF(INDEX($K24:$O24,1,aux!$AL$1)>0,(O24/INDEX($K24:$O24,1,aux!$AL$1))^(1/($O$3-INDEX($K$3:$O$3,1,aux!$AL$1)))-1,"n.d.") -> 0.6095721502 | AE24: =IF(INDEX($K24:$O24,1,aux!$AL$1)>0,(O24-INDEX($K24:$O24,1,aux!$AL$1))/INDEX($K24:$O24,1,aux!$AL$1),"n.d.") -> 5.711843106
A25: 23a | B25: Resíduos indústrias alimentares; alimentos p/ animais (exc. NC 230120) (a) | C25: 0 | D25: 0 | E25: 0 | F25: 0 | G25: 0 | H25: 0 | I25: 0 | J25: 0 | K25: 10.272 | L25: 63.93 | M25: 190.92 | N25: 19.05 | O25: 23.444 | P25: 61.5232 | Q25: 0.007243364872 | R25: 0.005454716135 | S25: 61.5232 | U25: =G25-INDEX($C25:$G25,1,aux!$AL$1) -> 0 | V25: 0 | W25: 0 | X25: =+IF(INDEX($C25:$G25,1,aux!$AL$1)>0,(G25/INDEX($C25:$G25,1,aux!$AL$1))^(1/($G$3-INDEX($C$3:$G$3,1,aux!$AL$1)))-1,"n.d.") -> n.d. | Y25: =IF(INDEX($C25:$G25,1,aux!$AL$1)>0,(G25-INDEX($C25:$G25,1,aux!$AL$1))/INDEX($C25:$G25,1,aux!$AL$1),"n.d.") -> n.d. | AA25: =O25-INDEX($K25:$O25,1,aux!$AL$1) -> 13.172 | AB25: 0.001427370601 | AC25: 0.001457151053 | AD25: =+IF(INDEX($K25:$O25,1,aux!$AL$1)>0,(O25/INDEX($K25:$O25,1,aux!$AL$1))^(1/($O$3-INDEX($K$3:$O$3,1,aux!$AL$1)))-1,"n.d.") -> 0.2291196887 | AE25: =IF(INDEX($K25:$O25,1,aux!$AL$1)>0,(O25-INDEX($K25:$O25,1,aux!$AL$1))/INDEX($K25:$O25,1,aux!$AL$1),"n.d.") -> 1.282320872
A26: 24 | B26: Tabaco | C26: 0 | D26: 0 | E26: 0 | F26: 0 | G26: 0 | H26: 0 | I26: 0 | J26: 0 | K26: 1766.713 | L26: 1650.898 | M26: 1899.805 | N26: 2546.392 | O26: 2163.563 | P26: 2005.4742 | Q26: 0.2361122531 | R26: 0.177807599 | S26: 2005.4742 | U26: =G26-INDEX($C26:$G26,1,aux!$AL$1) -> 0 | V26: 0 | W26: 0 | X26: =+IF(INDEX($C26:$G26,1,aux!$AL$1)>0,(G26/INDEX($C26:$G26,1,aux!$AL$1))^(1/($G$3-INDEX($C$3:$G$3,1,aux!$AL$1)))-1,"n.d.") -> n.d. | Y26: =IF(INDEX($C26:$G26,1,aux!$AL$1)>0,(G26-INDEX($C26:$G26,1,aux!$AL$1))/INDEX($C26:$G26,1,aux!$AL$1),"n.d.") -> n.d. | AA26: =O26-INDEX($K26:$O26,1,aux!$AL$1) -> 396.85 | AB26: 0.04300425318 | AC26: 0.04390148765 | AD26: =+IF(INDEX($K26:$O26,1,aux!$AL$1)>0,(O26/INDEX($K26:$O26,1,aux!$AL$1))^(1/($O$3-INDEX($K$3:$O$3,1,aux!$AL$1)))-1,"n.d.") -> 0.05196401814 | AE26: =IF(INDEX($K26:$O26,1,aux!$AL$1)>0,(O26-INDEX($K26:$O26,1,aux!$AL$1))/INDEX($K26:$O26,1,aux!$AL$1),"n.d.") -> 0.2246261843
A27: 29 | B27: Manitol e sorbitol (NC 290543; 290544) | C27: 0 | D27: 0 | E27: 0 | F27: 0 | G27: 0 | H27: 0 | I27: 0 | J27: 0 | K27: 0 | L27: 0 | M27: 0 | N27: 0 | O27: 0 | P27: 0 | Q27: 0 | R27: 0 | S27: 0 | U27: =G27-INDEX($C27:$G27,1,aux!$AL$1) -> 0 | V27: 0 | W27: 0 | X27: =+IF(INDEX($C27:$G27,1,aux!$AL$1)>0,(G27/INDEX($C27:$G27,1,aux!$AL$1))^(1/($G$3-INDEX($C$3:$G$3,1,aux!$AL$1)))-1,"n.d.") -> n.d. | Y27: =IF(INDEX($C27:$G27,1,aux!$AL$1)>0,(G27-INDEX($C27:$G27,1,aux!$AL$1))/INDEX($C27:$G27,1,aux!$AL$1),"n.d.") -> n.d. | AA27: =O27-INDEX($K27:$O27,1,aux!$AL$1) -> 0 | AB27: 0 | AC27: 0 | AD27: =+IF(INDEX($K27:$O27,1,aux!$AL$1)>0,(O27/INDEX($K27:$O27,1,aux!$AL$1))^(1/($O$3-INDEX($K$3:$O$3,1,aux!$AL$1)))-1,"n.d.") -> n.d. | AE27: =IF(INDEX($K27:$O27,1,aux!$AL$1)>0,(O27-INDEX($K27:$O27,1,aux!$AL$1))/INDEX($K27:$O27,1,aux!$AL$1),"n.d.") -> n.d.
A28: 33 | B28: Óleos essenciais e resinóides (NC 3301) | C28: 0 | D28: 0 | E28: 0 | F28: 0 | G28: 0 | H28: 0 | I28: 0 | J28: 0 | K28: 0 | L28: 0 | M28: 0 | N28: 0 | O28: 0 | P28: 0 | Q28: 0 | R28: 0 | S28: 0 | U28: =G28-INDEX($C28:$G28,1,aux!$AL$1) -> 0 | V28: 0 | W28: 0 | X28: =+IF(INDEX($C28:$G28,1,aux!$AL$1)>0,(G28/INDEX($C28:$G28,1,aux!$AL$1))^(1/($G$3-INDEX($C$3:$G$3,1,aux!$AL$1)))-1,"n.d.") -> n.d. | Y28: =IF(INDEX($C28:$G28,1,aux!$AL$1)>0,(G28-INDEX($C28:$G28,1,aux!$AL$1))/INDEX($C28:$G28,1,aux!$AL$1),"n.d.") -> n.d. | AA28: =O28-INDEX($K28:$O28,1,aux!$AL$1) -> 0 | AB28: 0 | AC28: 0 | AD28: =+IF(INDEX($K28:$O28,1,aux!$AL$1)>0,(O28/INDEX($K28:$O28,1,aux!$AL$1))^(1/($O$3-INDEX($K$3:$O$3,1,aux!$AL$1)))-1,"n.d.") -> n.d. | AE28: =IF(INDEX($K28:$O28,1,aux!$AL$1)>0,(O28-INDEX($K28:$O28,1,aux!$AL$1))/INDEX($K28:$O28,1,aux!$AL$1),"n.d.") -> n.d.
A29: 35 | B29: Caseínas, albuminas, gelatinas, peptonas, dextrinas (NC 3501 a 3505) | C29: 0 | D29: 0 | E29: 0 | F29: 0 | G29: 0 | H29: 0 | I29: 0 | J29: 0 | K29: 0.062 | L29: 0 | M29: 0 | N29: 9.047 | O29: 0 | P29: 1.8218 | Q29: 0.0002144875774 | R29: 0.0001615228378 | S29: 1.8218 | U29: =G29-INDEX($C29:$G29,1,aux!$AL$1) -> 0 | V29: 0 | W29: 0 | X29: =+IF(INDEX($C29:$G29,1,aux!$AL$1)>0,(G29/INDEX($C29:$G29,1,aux!$AL$1))^(1/($G$3-INDEX($C$3:$G$3,1,aux!$AL$1)))-1,"n.d.") -> n.d. | Y29: =IF(INDEX($C29:$G29,1,aux!$AL$1)>0,(G29-INDEX($C29:$G29,1,aux!$AL$1))/INDEX($C29:$G29,1,aux!$AL$1),"n.d.") -> n.d. | AA29: =O29-INDEX($K29:$O29,1,aux!$AL$1) -> -0.062 | AB29: -6.718567965e-06 | AC29: -6.858743188e-06 | AD29: =+IF(INDEX($K29:$O29,1,aux!$AL$1)>0,(O29/INDEX($K29:$O29,1,aux!$AL$1))^(1/($O$3-INDEX($K$3:$O$3,1,aux!$AL$1)))-1,"n.d.") -> -1 | AE29: =IF(INDEX($K29:$O29,1,aux!$AL$1)>0,(O29-INDEX($K29:$O29,1,aux!$AL$1))/INDEX($K29:$O29,1,aux!$AL$1),"n.d.") -> -1
A30: 38a | B30: Agentes de acabamento, ácidos gordos, sorbitol (NC 380910, 382311-12-13-19-70, 382460) (a) | C30: 0 | D30: 0 | E30: 0 | F30: 0 | G30: 0 | H30: 0 | I30: 0 | J30: 0 | K30: 0 | L30: 0 | M30: 0 | N30: 0 | O30: 0 | P30: 0 | Q30: 0 | R30: 0 | S30: 0 | U30: =G30-INDEX($C30:$G30,1,aux!$AL$1) -> 0 | V30: 0 | W30: 0 | X30: =+IF(INDEX($C30:$G30,1,aux!$AL$1)>0,(G30/INDEX($C30:$G30,1,aux!$AL$1))^(1/($G$3-INDEX($C$3:$G$3,1,aux!$AL$1)))-1,"n.d.") -> n.d. | Y30: =IF(INDEX($C30:$G30,1,aux!$AL$1)>0,(G30-INDEX($C30:$G30,1,aux!$AL$1))/INDEX($C30:$G30,1,aux!$AL$1),"n.d.") -> n.d. | AA30: =O30-INDEX($K30:$O30,1,aux!$AL$1) -> 0 | AB30: 0 | AC30: 0 | AD30: =+IF(INDEX($K30:$O30,1,aux!$AL$1)>0,(O30/INDEX($K30:$O30,1,aux!$AL$1))^(1/($O$3-INDEX($K$3:$O$3,1,aux!$AL$1)))-1,"n.d.") -> n.d. | AE30: =IF(INDEX($K30:$O30,1,aux!$AL$1)>0,(O30-INDEX($K30:$O30,1,aux!$AL$1))/INDEX($K30:$O30,1,aux!$AL$1),"n.d.") -> n.d.
A31: 41 | B31: Couro e peles em bruto (NC 4101 a 4103) | C31: 27.201 | D31: 0 | E31: 0 | F31: 0 | G31: 0 | H31: 5.4402 | I31: 0.009656733496 | J31: 0.0003095178532 | K31: 0 | L31: 0 | M31: 0 | N31: 0 | O31: 0 | P31: 0 | Q31: 0 | R31: 0 | S31: -5.4402 | U31: =G31-INDEX($C31:$G31,1,aux!$AL$1) -> -27.201 | V31: 0.08959456655 | W31: -0.2715944605 | X31: =+IF(INDEX($C31:$G31,1,aux!$AL$1)>0,(G31/INDEX($C31:$G31,1,aux!$AL$1))^(1/($G$3-INDEX($C$3:$G$3,1,aux!$AL$1)))-1,"n.d.") -> -1 | Y31: =IF(INDEX($C31:$G31,1,aux!$AL$1)>0,(G31-INDEX($C31:$G31,1,aux!$AL$1))/INDEX($C31:$G31,1,aux!$AL$1),"n.d.") -> -1 | AA31: =O31-INDEX($K31:$O31,1,aux!$AL$1) -> 0 | AB31: 0 | AC31: 0 | AD31: =+IF(INDEX($K31:$O31,1,aux!$AL$1)>0,(O31/INDEX($K31:$O31,1,aux!$AL$1))^(1/($O$3-INDEX($K$3:$O$3,1,aux!$AL$1)))-1,"n.d.") -> n.d. | AE31: =IF(INDEX($K31:$O31,1,aux!$AL$1)>0,(O31-INDEX($K31:$O31,1,aux!$AL$1))/INDEX($K31:$O31,1,aux!$AL$1),"n.d.") -> n.d.
A32: 43 | B32: Peles com pelo em bruto (NC 4301) | C32: 0 | D32: 0 | E32: 0 | F32: 0 | G32: 0 | H32: 0 | I32: 0 | J32: 0 | K32: 0 | L32: 0 | M32: 0 | N32: 0 | O32: 0 | P32: 0 | Q32: 0 | R32: 0 | S32: 0 | U32: =G32-INDEX($C32:$G32,1,aux!$AL$1) -> 0 | V32: 0 | W32: 0 | X32: =+IF(INDEX($C32:$G32,1,aux!$AL$1)>0,(G32/INDEX($C32:$G32,1,aux!$AL$1))^(1/($G$3-INDEX($C$3:$G$3,1,aux!$AL$1)))-1,"n.d.") -> n.d. | Y32: =IF(INDEX($C32:$G32,1,aux!$AL$1)>0,(G32-INDEX($C32:$G32,1,aux!$AL$1))/INDEX($C32:$G32,1,aux!$AL$1),"n.d.") -> n.d. | AA32: =O32-INDEX($K32:$O32,1,aux!$AL$1) -> 0 | AB32: 0 | AC32: 0 | AD32: =+IF(INDEX($K32:$O32,1,aux!$AL$1)>0,(O32/INDEX($K32:$O32,1,aux!$AL$1))^(1/($O$3-INDEX($K$3:$O$3,1,aux!$AL$1)))-1,"n.d.") -> n.d. | AE32: =IF(INDEX($K32:$O32,1,aux!$AL$1)>0,(O32-INDEX($K32:$O32,1,aux!$AL$1))/INDEX($K32:$O32,1,aux!$AL$1),"n.d.") -> n.d.
A33: 50 | B33: Seda crua (NC 5001-5003) | C33: 0 | D33: 0 | E33: 0 | F33: 0 | G33: 0 | H33: 0 | I33: 0 | J33: 0 | K33: 0 | L33: 0 | M33: 0 | N33: 0 | O33: 0 | P33: 0 | Q33: 0 | R33: 0 | S33: 0 | U33: =G33-INDEX($C33:$G33,1,aux!$AL$1) -> 0 | V33: 0 | W33: 0 | X33: =+IF(INDEX($C33:$G33,1,aux!$AL$1)>0,(G33/INDEX($C33:$G33,1,aux!$AL$1))^(1/($G$3-INDEX($C$3:$G$3,1,aux!$AL$1)))-1,"n.d.") -> n.d. | Y33: =IF(INDEX($C33:$G33,1,aux!$AL$1)>0,(G33-INDEX($C33:$G33,1,aux!$AL$1))/INDEX($C33:$G33,1,aux!$AL$1),"n.d.") -> n.d. | AA33: =O33-INDEX($K33:$O33,1,aux!$AL$1) -> 0 | AB33: 0 | AC33: 0 | AD33: =+IF(INDEX($K33:$O33,1,aux!$AL$1)>0,(O33/INDEX($K33:$O33,1,aux!$AL$1))^(1/($O$3-INDEX($K$3:$O$3,1,aux!$AL$1)))-1,"n.d.") -> n.d. | AE33: =IF(INDEX($K33:$O33,1,aux!$AL$1)>0,(O33-INDEX($K33:$O33,1,aux!$AL$1))/INDEX($K33:$O33,1,aux!$AL$1),"n.d.") -> n.d.
A34: 51 | B34: Lã não cardada (NC 5101-5103) | C34: 0 | D34: 0 | E34: 0 | F34: 0 | G34: 0 | H34: 0 | I34: 0 | J34: 0 | K34: 0 | L34: 0 | M34: 0 | N34: 0 | O34: 0 | P34: 0 | Q34: 0 | R34: 0 | S34: 0 | U34: =G34-INDEX($C34:$G34,1,aux!$AL$1) -> 0 | V34: 0 | W34: 0 | X34: =+IF(INDEX($C34:$G34,1,aux!$AL$1)>0,(G34/INDEX($C34:$G34,1,aux!$AL$1))^(1/($G$3-INDEX($C$3:$G$3,1,aux!$AL$1)))-1,"n.d.") -> n.d. | Y34: =IF(INDEX($C34:$G34,1,aux!$AL$1)>0,(G34-INDEX($C34:$G34,1,aux!$AL$1))/INDEX($C34:$G34,1,aux!$AL$1),"n.d.") -> n.d. | AA34: =O34-INDEX($K34:$O34,1,aux!$AL$1) -> 0 | AB34: 0 | AC34: 0 | AD34: =+IF(INDEX($K34:$O34,1,aux!$AL$1)>0,(O34/INDEX($K34:$O34,1,aux!$AL$1))^(1/($O$3-INDEX($K$3:$O$3,1,aux!$AL$1)))-1,"n.d.") -> n.d. | AE34: =IF(INDEX($K34:$O34,1,aux!$AL$1)>0,(O34-INDEX($K34:$O34,1,aux!$AL$1))/INDEX($K34:$O34,1,aux!$AL$1),"n.d.") -> n.d.
A35: 52 | B35: Algodão (NC 5201-5203) | C35: 464.997 | D35: 204.824 | E35: 192.166 | F35: 350.221 | G35: 365.617 | H35: 315.565 | I35: 0.5601498301 | J35: 0.01795393576 | K35: 0 | L35: 0 | M35: 0 | N35: 0.244 | O35: 0.002 | P35: 0.0492 | Q35: 5.792506757e-06 | R35: 4.362127358e-06 | S35: -315.5158 | U35: =G35-INDEX($C35:$G35,1,aux!$AL$1) -> -99.38 | V35: 0.3273375252 | W35: -0.9922818088 | X35: =+IF(INDEX($C35:$G35,1,aux!$AL$1)>0,(G35/INDEX($C35:$G35,1,aux!$AL$1))^(1/($G$3-INDEX($C$3:$G$3,1,aux!$AL$1)))-1,"n.d.") -> -0.05834014162 | Y35: =IF(INDEX($C35:$G35,1,aux!$AL$1)>0,(G35-INDEX($C35:$G35,1,aux!$AL$1))/INDEX($C35:$G35,1,aux!$AL$1),"n.d.") -> -0.213721809 | AA35: =O35-INDEX($K35:$O35,1,aux!$AL$1) -> 0.002 | AB35: 2.167279989e-07 | AC35: 2.212497803e-07 | AD35: =+IF(INDEX($K35:$O35,1,aux!$AL$1)>0,(O35/INDEX($K35:$O35,1,aux!$AL$1))^(1/($O$3-INDEX($K$3:$O$3,1,aux!$AL$1)))-1,"n.d.") -> n.d. | AE35: =IF(INDEX($K35:$O35,1,aux!$AL$1)>0,(O35-INDEX($K35:$O35,1,aux!$AL$1))/INDEX($K35:$O35,1,aux!$AL$1),"n.d.") -> n.d.
A36: 53 | B36: Linho e cânhamo em bruto (NC 5301-5302) | C36: 0 | D36: 0 | E36: 0 | F36: 0 | G36: 0 | H36: 0 | I36: 0 | J36: 0 | K36: 0 | L36: 0.032 | M36: 0 | N36: 0 | O36: 0 | P36: 0.0064 | Q36: 7.534968139e-07 | R36: 5.67431201e-07 | S36: 0.0064 | U36: =G36-INDEX($C36:$G36,1,aux!$AL$1) -> 0 | V36: 0 | W36: =IF($U$53<>0,U36/$U$53, "n.d.") -> 0 | X36: =+IF(INDEX($C36:$G36,1,aux!$AL$1)>0,(G36/INDEX($C36:$G36,1,aux!$AL$1))^(1/($G$3-INDEX($C$3:$G$3,1,aux!$AL$1)))-1,"n.d.") -> n.d. | Y36: =IF(INDEX($C36:$G36,1,aux!$AL$1)>0,(G36-INDEX($C36:$G36,1,aux!$AL$1))/INDEX($C36:$G36,1,aux!$AL$1),"n.d.") -> n.d. | AA36: =O36-INDEX($K36:$O36,1,aux!$AL$1) -> 0 | AB36: 0 | AC36: =IF($AA$53<>0,AA36/$AA$53, "n.d.") -> 0 | AD36: =+IF(INDEX($K36:$O36,1,aux!$AL$1)>0,(O36/INDEX($K36:$O36,1,aux!$AL$1))^(1/($O$3-INDEX($K$3:$O$3,1,aux!$AL$1)))-1,"n.d.") -> n.d. | AE36: =IF(INDEX($K36:$O36,1,aux!$AL$1)>0,(O36-INDEX($K36:$O36,1,aux!$AL$1))/INDEX($K36:$O36,1,aux!$AL$1),"n.d.") -> n.d.
A37: Subtotal Agrícola e Agroalimentar | C37: 743.196 | D37: 918.977 | E37: 237.694 | F37: 477.329 | G37: 439.595 | H37: 563.3582 | I37: 1 | J37: 0.03205202394 | K37: 4692.997 | L37: 6634.863 | M37: 6564.18 | N37: 10655.466 | O37: 13921.154 | P37: 8493.732 | Q37: 1 | R37: 0.7530638359 | S37: 7930.3738 | U37: =G37-INDEX($C37:$G37,1,aux!$AL$1) -> -303.601 | V37: 1 | W37: -3.031372001 | X37: =+IF(INDEX($C37:$G37,1,aux!$AL$1)>0,(G37/INDEX($C37:$G37,1,aux!$AL$1))^(1/($G$3-INDEX($C$3:$G$3,1,aux!$AL$1)))-1,"n.d.") -> -0.1230247333 | Y37: =IF(INDEX($C37:$G37,1,aux!$AL$1)>0,(G37-INDEX($C37:$G37,1,aux!$AL$1))/INDEX($C37:$G37,1,aux!$AL$1),"n.d.") -> -0.4085073117 | AA37: =O37-INDEX($K37:$O37,1,aux!$AL$1) -> 9228.157 | AB37: 1 | AC37: 1.020863854 | AD37: =+IF(INDEX($K37:$O37,1,aux!$AL$1)>0,(O37/INDEX($K37:$O37,1,aux!$AL$1))^(1/($O$3-INDEX($K$3:$O$3,1,aux!$AL$1)))-1,"n.d.") -> 0.3123698374 | AE37: =IF(INDEX($K37:$O37,1,aux!$AL$1)>0,(O37-INDEX($K37:$O37,1,aux!$AL$1))/INDEX($K37:$O37,1,aux!$AL$1),"n.d.") -> 1.966367547
A38: 03 | B38: Peixes e crustáceos | C38: 18728.286 | D38: 24245.158 | E38: 10391.969 | F38: 12447.534 | G38: 19165.264 | H38: 16995.6422 | I38: 1 | J38: 0.966959797 | K38: 38.287 | L38: 0.173 | M38: 0.442 | N38: 0.625 | O38: 0.398 | P38: 7.985 | Q38: 0.9691239653 | R38: 0.0007079590844 | S38: -16987.6572 | U38: =G38-INDEX($C38:$G38,1,aux!$AL$1) -> 436.978 | V38: =IF($U$44<>0,U38/$U$44, "n.d.") -> 1 | W38: 4.36310445 | X38: =+IF(INDEX($C38:$G38,1,aux!$AL$1)>0,(G38/INDEX($C38:$G38,1,aux!$AL$1))^(1/($G$3-INDEX($C$3:$G$3,1,aux!$AL$1)))-1,"n.d.") -> 0.005782774189 | Y38: =IF(INDEX($C38:$G38,1,aux!$AL$1)>0,(G38-INDEX($C38:$G38,1,aux!$AL$1))/INDEX($C38:$G38,1,aux!$AL$1),"n.d.") -> 0.02333251425 | AA38: =O38-INDEX($K38:$O38,1,aux!$AL$1) -> -37.889 | AB38: =IF($AA$44<>0,AA38/$AA$44, "n.d.") -> 1.001374316 | AC38: -0.004191466462 | AD38: =+IF(INDEX($K38:$O38,1,aux!$AL$1)>0,(O38/INDEX($K38:$O38,1,aux!$AL$1))^(1/($O$3-INDEX($K$3:$O$3,1,aux!$AL$1)))-1,"n.d.") -> -0.680693372 | AE38: =IF(INDEX($K38:$O38,1,aux!$AL$1)>0,(O38-INDEX($K38:$O38,1,aux!$AL$1))/INDEX($K38:$O38,1,aux!$AL$1),"n.d.") -> -0.9896048267
A39: 05p | B39: Outros produtos de pescado (NC 0508, 051191) (p) | C39: 0 | D39: 0 | E39: 0 | F39: 0 | G39: 0 | H39: 0 | I39: 0 | J39: 0 | K39: 0 | L39: 0 | M39: 0 | N39: 0 | O39: 0 | P39: 0 | Q39: 0 | R39: 0 | S39: 0 | U39: =G39-INDEX($C39:$G39,1,aux!$AL$1) -> 0 | V39: 0 | W39: 0 | X39: =+IF(INDEX($C39:$G39,1,aux!$AL$1)>0,(G39/INDEX($C39:$G39,1,aux!$AL$1))^(1/($G$3-INDEX($C$3:$G$3,1,aux!$AL$1)))-1,"n.d.") -> n.d. | Y39: =IF(INDEX($C39:$G39,1,aux!$AL$1)>0,(G39-INDEX($C39:$G39,1,aux!$AL$1))/INDEX($C39:$G39,1,aux!$AL$1),"n.d.") -> n.d. | AA39: =O39-INDEX($K39:$O39,1,aux!$AL$1) -> 0 | AB39: 0 | AC39: 0 | AD39: =+IF(INDEX($K39:$O39,1,aux!$AL$1)>0,(O39/INDEX($K39:$O39,1,aux!$AL$1))^(1/($O$3-INDEX($K$3:$O$3,1,aux!$AL$1)))-1,"n.d.") -> n.d. | AE39: =IF(INDEX($K39:$O39,1,aux!$AL$1)>0,(O39-INDEX($K39:$O39,1,aux!$AL$1))/INDEX($K39:$O39,1,aux!$AL$1),"n.d.") -> n.d.
A40: 16p | B40: Preparações e conservas de peixes ou crustáceos (NC 1604-05) (p) | C40: 0 | D40: 0 | E40: 0 | F40: 0 | G40: 0 | H40: 0 | I40: 0 | J40: 0 | K40: 0 | L40: 0 | M40: 0.88 | N40: 0.34 | O40: 0.052 | P40: 0.2544 | Q40: 0.03087603466 | R40: 2.255539024e-05 | S40: 0.2544 | U40: =G40-INDEX($C40:$G40,1,aux!$AL$1) -> 0 | V40: 0 | W40: 0 | X40: =+IF(INDEX($C40:$G40,1,aux!$AL$1)>0,(G40/INDEX($C40:$G40,1,aux!$AL$1))^(1/($G$3-INDEX($C$3:$G$3,1,aux!$AL$1)))-1,"n.d.") -> n.d. | Y40: =IF(INDEX($C40:$G40,1,aux!$AL$1)>0,(G40-INDEX($C40:$G40,1,aux!$AL$1))/INDEX($C40:$G40,1,aux!$AL$1),"n.d.") -> n.d. | AA40: =O40-INDEX($K40:$O40,1,aux!$AL$1) -> 0.052 | AB40: -0.001374316146 | AC40: 5.752494287e-06 | AD40: =+IF(INDEX($K40:$O40,1,aux!$AL$1)>0,(O40/INDEX($K40:$O40,1,aux!$AL$1))^(1/($O$3-INDEX($K$3:$O$3,1,aux!$AL$1)))-1,"n.d.") -> n.d. | AE40: =IF(INDEX($K40:$O40,1,aux!$AL$1)>0,(O40-INDEX($K40:$O40,1,aux!$AL$1))/INDEX($K40:$O40,1,aux!$AL$1),"n.d.") -> n.d.
A41: 19p | B41: Massas recheadas com pescado (NC 19022010) (p) | C41: 0 | D41: 0 | E41: 0 | F41: 0 | G41: 0 | H41: 0 | I41: 0 | J41: 0 | K41: 0 | L41: 0 | M41: 0 | N41: 0 | O41: 0 | P41: 0 | Q41: 0 | R41: 0 | S41: 0 | U41: =G41-INDEX($C41:$G41,1,aux!$AL$1) -> 0 | V41: 0 | W41: 0 | X41: =+IF(INDEX($C41:$G41,1,aux!$AL$1)>0,(G41/INDEX($C41:$G41,1,aux!$AL$1))^(1/($G$3-INDEX($C$3:$G$3,1,aux!$AL$1)))-1,"n.d.") -> n.d. | Y41: =IF(INDEX($C41:$G41,1,aux!$AL$1)>0,(G41-INDEX($C41:$G41,1,aux!$AL$1))/INDEX($C41:$G41,1,aux!$AL$1),"n.d.") -> n.d. | AA41: =O41-INDEX($K41:$O41,1,aux!$AL$1) -> 0 | AB41: 0 | AC41: 0 | AD41: =+IF(INDEX($K41:$O41,1,aux!$AL$1)>0,(O41/INDEX($K41:$O41,1,aux!$AL$1))^(1/($O$3-INDEX($K$3:$O$3,1,aux!$AL$1)))-1,"n.d.") -> n.d. | AE41: =IF(INDEX($K41:$O41,1,aux!$AL$1)>0,(O41-INDEX($K41:$O41,1,aux!$AL$1))/INDEX($K41:$O41,1,aux!$AL$1),"n.d.") -> n.d.
A42: 23p | B42: Farinhas de pescado (NC 230120) (p) | C42: 0 | D42: 0 | E42: 0 | F42: 0 | G42: 0 | H42: 0 | I42: 0 | J42: 0 | K42: 0 | L42: 0 | M42: 0 | N42: 0 | O42: 0 | P42: 0 | Q42: 0 | R42: 0 | S42: 0 | U42: =G42-INDEX($C42:$G42,1,aux!$AL$1) -> 0 | V42: 0 | W42: 0 | X42: =+IF(INDEX($C42:$G42,1,aux!$AL$1)>0,(G42/INDEX($C42:$G42,1,aux!$AL$1))^(1/($G$3-INDEX($C$3:$G$3,1,aux!$AL$1)))-1,"n.d.") -> n.d. | Y42: =IF(INDEX($C42:$G42,1,aux!$AL$1)>0,(G42-INDEX($C42:$G42,1,aux!$AL$1))/INDEX($C42:$G42,1,aux!$AL$1),"n.d.") -> n.d. | AA42: =O42-INDEX($K42:$O42,1,aux!$AL$1) -> 0 | AB42: 0 | AC42: 0 | AD42: =+IF(INDEX($K42:$O42,1,aux!$AL$1)>0,(O42/INDEX($K42:$O42,1,aux!$AL$1))^(1/($O$3-INDEX($K$3:$O$3,1,aux!$AL$1)))-1,"n.d.") -> n.d. | AE42: =IF(INDEX($K42:$O42,1,aux!$AL$1)>0,(O42-INDEX($K42:$O42,1,aux!$AL$1))/INDEX($K42:$O42,1,aux!$AL$1),"n.d.") -> n.d.
A43: 25 | B43: Sal e cloreto de sódio puro; água do mar (NC 2501) | C43: 0 | D43: 0 | E43: 0 | F43: 0 | G43: 0 | H43: 0 | I43: 0 | J43: 0 | K43: 0 | L43: 0 | M43: 0 | N43: 0 | O43: 0 | P43: 0 | Q43: 0 | R43: 0 | S43: 0 | U43: =G43-INDEX($C43:$G43,1,aux!$AL$1) -> 0 | V43: 0 | W43: 0 | X43: =+IF(INDEX($C43:$G43,1,aux!$AL$1)>0,(G43/INDEX($C43:$G43,1,aux!$AL$1))^(1/($G$3-INDEX($C$3:$G$3,1,aux!$AL$1)))-1,"n.d.") -> n.d. | Y43: =IF(INDEX($C43:$G43,1,aux!$AL$1)>0,(G43-INDEX($C43:$G43,1,aux!$AL$1))/INDEX($C43:$G43,1,aux!$AL$1),"n.d.") -> n.d. | AA43: =O43-INDEX($K43:$O43,1,aux!$AL$1) -> 0 | AB43: 0 | AC43: 0 | AD43: =+IF(INDEX($K43:$O43,1,aux!$AL$1)>0,(O43/INDEX($K43:$O43,1,aux!$AL$1))^(1/($O$3-INDEX($K$3:$O$3,1,aux!$AL$1)))-1,"n.d.") -> n.d. | AE43: =IF(INDEX($K43:$O43,1,aux!$AL$1)>0,(O43-INDEX($K43:$O43,1,aux!$AL$1))/INDEX($K43:$O43,1,aux!$AL$1),"n.d.") -> n.d.
A44: Subtotal Mar | C44: 18728.286 | D44: 24245.158 | E44: 10391.969 | F44: 12447.534 | G44: 19165.264 | H44: 16995.6422 | I44: 1 | J44: 0.966959797 | K44: 38.287 | L44: 0.173 | M44: 1.322 | N44: 0.965 | O44: 0.45 | P44: 8.2394 | Q44: 1 | R44: 0.0007305144746 | S44: -16987.4028 | U44: =G44-INDEX($C44:$G44,1,aux!$AL$1) -> 436.978 | V44: 1 | W44: 4.36310445 | X44: =+IF(INDEX($C44:$G44,1,aux!$AL$1)>0,(G44/INDEX($C44:$G44,1,aux!$AL$1))^(1/($G$3-INDEX($C$3:$G$3,1,aux!$AL$1)))-1,"n.d.") -> 0.005782774189 | Y44: =IF(INDEX($C44:$G44,1,aux!$AL$1)>0,(G44-INDEX($C44:$G44,1,aux!$AL$1))/INDEX($C44:$G44,1,aux!$AL$1),"n.d.") -> 0.02333251425 | AA44: =O44-INDEX($K44:$O44,1,aux!$AL$1) -> -37.837 | AB44: 1 | AC44: -0.004185713968 | AD44: =+IF(INDEX($K44:$O44,1,aux!$AL$1)>0,(O44/INDEX($K44:$O44,1,aux!$AL$1))^(1/($O$3-INDEX($K$3:$O$3,1,aux!$AL$1)))-1,"n.d.") -> -0.6707389992 | AE44: =IF(INDEX($K44:$O44,1,aux!$AL$1)>0,(O44-INDEX($K44:$O44,1,aux!$AL$1))/INDEX($K44:$O44,1,aux!$AL$1),"n.d.") -> -0.9882466634
A45: 13f | B45: Gomas e resinas (NC 1301) (f) | C45: 0 | D45: 0 | E45: 0 | F45: 0 | G45: 0 | H45: 0 | I45: 0 | J45: 0 | K45: 0 | L45: 0 | M45: 0 | N45: 0 | O45: 0 | P45: 0 | Q45: 0 | R45: 0 | S45: 0 | U45: =G45-INDEX($C45:$G45,1,aux!$AL$1) -> 0 | V45: =IF($U$52<>0,U45/$U$52, "n.d.") -> 0 | W45: 0 | X45: =+IF(INDEX($C45:$G45,1,aux!$AL$1)>0,(G45/INDEX($C45:$G45,1,aux!$AL$1))^(1/($G$3-INDEX($C$3:$G$3,1,aux!$AL$1)))-1,"n.d.") -> n.d. | Y45: =IF(INDEX($C45:$G45,1,aux!$AL$1)>0,(G45-INDEX($C45:$G45,1,aux!$AL$1))/INDEX($C45:$G45,1,aux!$AL$1),"n.d.") -> n.d. | AA45: =O45-INDEX($K45:$O45,1,aux!$AL$1) -> 0 | AB45: =IF($AA$52<>0,AA45/$AA$52, "n.d.") -> 0 | AC45: 0 | AD45: =+IF(INDEX($K45:$O45,1,aux!$AL$1)>0,(O45/INDEX($K45:$O45,1,aux!$AL$1))^(1/($O$3-INDEX($K$3:$O$3,1,aux!$AL$1)))-1,"n.d.") -> n.d. | AE45: =IF(INDEX($K45:$O45,1,aux!$AL$1)>0,(O45-INDEX($K45:$O45,1,aux!$AL$1))/INDEX($K45:$O45,1,aux!$AL$1),"n.d.") -> n.d.
A46: 38f | B46: Tall oil, essências e colofónias (NC 3803,3805,3806) (f) | C46: 0 | D46: 0 | E46: 0 | F46: 0 | G46: 0 | H46: 0 | I46: 0 | J46: 0 | K46: 0 | L46: 0 | M46: 0 | N46: 0 | O46: 0 | P46: 0 | Q46: 0 | R46: 0 | S46: 0 | U46: =G46-INDEX($C46:$G46,1,aux!$AL$1) -> 0 | V46: 0 | W46: 0 | X46: =+IF(INDEX($C46:$G46,1,aux!$AL$1)>0,(G46/INDEX($C46:$G46,1,aux!$AL$1))^(1/($G$3-INDEX($C$3:$G$3,1,aux!$AL$1)))-1,"n.d.") -> n.d. | Y46: =IF(INDEX($C46:$G46,1,aux!$AL$1)>0,(G46-INDEX($C46:$G46,1,aux!$AL$1))/INDEX($C46:$G46,1,aux!$AL$1),"n.d.") -> n.d. | AA46: =O46-INDEX($K46:$O46,1,aux!$AL$1) -> 0 | AB46: 0 | AC46: 0 | AD46: =+IF(INDEX($K46:$O46,1,aux!$AL$1)>0,(O46/INDEX($K46:$O46,1,aux!$AL$1))^(1/($O$3-INDEX($K$3:$O$3,1,aux!$AL$1)))-1,"n.d.") -> n.d. | AE46: =IF(INDEX($K46:$O46,1,aux!$AL$1)>0,(O46-INDEX($K46:$O46,1,aux!$AL$1))/INDEX($K46:$O46,1,aux!$AL$1),"n.d.") -> n.d.
A47: 44 | B47: Madeira e suas obras | C47: 8.525 | D47: 8.527 | E47: 0.567 | F47: 18.621 | G47: 5.087 | H47: 8.2654 | I47: 0.4758817636 | J47: 0.0004702563994 | K47: 2213.665 | L47: 511.279 | M47: 1290.489 | N47: 2004.974 | O47: 990.996 | P47: 1402.2806 | Q47: 0.5049753163 | R47: 0.1243277758 | S47: 1394.0152 | U47: =G47-INDEX($C47:$G47,1,aux!$AL$1) -> -3.438 | V47: 0.1034794125 | W47: -0.03432747896 | X47: =+IF(INDEX($C47:$G47,1,aux!$AL$1)>0,(G47/INDEX($C47:$G47,1,aux!$AL$1))^(1/($G$3-INDEX($C$3:$G$3,1,aux!$AL$1)))-1,"n.d.") -> -0.1210951976 | Y47: =IF(INDEX($C47:$G47,1,aux!$AL$1)>0,(G47-INDEX($C47:$G47,1,aux!$AL$1))/INDEX($C47:$G47,1,aux!$AL$1),"n.d.") -> -0.4032844575 | AA47: =O47-INDEX($K47:$O47,1,aux!$AL$1) -> -1222.669 | AB47: 8.109874439 | AC47: -0.1352576238 | AD47: =+IF(INDEX($K47:$O47,1,aux!$AL$1)>0,(O47/INDEX($K47:$O47,1,aux!$AL$1))^(1/($O$3-INDEX($K$3:$O$3,1,aux!$AL$1)))-1,"n.d.") -> -0.1820250559 | AE47: =IF(INDEX($K47:$O47,1,aux!$AL$1)>0,(O47-INDEX($K47:$O47,1,aux!$AL$1))/INDEX($K47:$O47,1,aux!$AL$1),"n.d.") -> -0.5523279268
A48: 45 | B48: Cortiça e suas obras | C48: 0 | D48: 0 | E48: 0 | F48: 0 | G48: 0 | H48: 0 | I48: 0 | J48: 0 | K48: 0 | L48: 21.782 | M48: 0.413 | N48: 0 | O48: 4.764 | P48: 5.3918 | Q48: 0.001941641288 | R48: 0.0004780430546 | S48: 5.3918 | U48: =G48-INDEX($C48:$G48,1,aux!$AL$1) -> 0 | V48: 0 | W48: 0 | X48: =+IF(INDEX($C48:$G48,1,aux!$AL$1)>0,(G48/INDEX($C48:$G48,1,aux!$AL$1))^(1/($G$3-INDEX($C$3:$G$3,1,aux!$AL$1)))-1,"n.d.") -> n.d. | Y48: =IF(INDEX($C48:$G48,1,aux!$AL$1)>0,(G48-INDEX($C48:$G48,1,aux!$AL$1))/INDEX($C48:$G48,1,aux!$AL$1),"n.d.") -> n.d. | AA48: =O48-INDEX($K48:$O48,1,aux!$AL$1) -> 4.764 | AB48: -0.03159926507 | AC48: 0.0005270169766 | AD48: =+IF(INDEX($K48:$O48,1,aux!$AL$1)>0,(O48/INDEX($K48:$O48,1,aux!$AL$1))^(1/($O$3-INDEX($K$3:$O$3,1,aux!$AL$1)))-1,"n.d.") -> n.d. | AE48: =IF(INDEX($K48:$O48,1,aux!$AL$1)>0,(O48-INDEX($K48:$O48,1,aux!$AL$1))/INDEX($K48:$O48,1,aux!$AL$1),"n.d.") -> n.d.
A49: 46 | B49: Obras de espartaria ou de cestaria | C49: 31.179 | D49: 1.803 | E49: 10.094 | F49: 0.341 | G49: 1.257 | H49: 8.9348 | I49: 0.5144225787 | J49: 0.0005083416262 | K49: 0 | L49: 0 | M49: 0 | N49: 0 | O49: 0.011 | P49: 0.0022 | Q49: 7.922420775e-07 | R49: 1.950544753e-07 | S49: -8.9326 | U49: =G49-INDEX($C49:$G49,1,aux!$AL$1) -> -29.922 | V49: 0.900614014 | W49: -0.2987628928 | X49: =+IF(INDEX($C49:$G49,1,aux!$AL$1)>0,(G49/INDEX($C49:$G49,1,aux!$AL$1))^(1/($G$3-INDEX($C$3:$G$3,1,aux!$AL$1)))-1,"n.d.") -> -0.551906882 | Y49: =IF(INDEX($C49:$G49,1,aux!$AL$1)>0,(G49-INDEX($C49:$G49,1,aux!$AL$1))/INDEX($C49:$G49,1,aux!$AL$1),"n.d.") -> -0.959684403 | AA49: =O49-INDEX($K49:$O49,1,aux!$AL$1) -> 0.011 | AB49: -7.296219895e-05 | AC49: 1.216873791e-06 | AD49: =+IF(INDEX($K49:$O49,1,aux!$AL$1)>0,(O49/INDEX($K49:$O49,1,aux!$AL$1))^(1/($O$3-INDEX($K$3:$O$3,1,aux!$AL$1)))-1,"n.d.") -> n.d. | AE49: =IF(INDEX($K49:$O49,1,aux!$AL$1)>0,(O49-INDEX($K49:$O49,1,aux!$AL$1))/INDEX($K49:$O49,1,aux!$AL$1),"n.d.") -> n.d.
A50: 47 | B50: Pastas de madeira | C50: 0 | D50: 0 | E50: 0 | F50: 0 | G50: 0 | H50: 0 | I50: 0 | J50: 0 | K50: 0 | L50: 0 | M50: 0 | N50: 0 | O50: 0 | P50: 0 | Q50: 0 | R50: 0 | S50: 0 | U50: =G50-INDEX($C50:$G50,1,aux!$AL$1) -> 0 | V50: 0 | W50: 0 | X50: =+IF(INDEX($C50:$G50,1,aux!$AL$1)>0,(G50/INDEX($C50:$G50,1,aux!$AL$1))^(1/($G$3-INDEX($C$3:$G$3,1,aux!$AL$1)))-1,"n.d.") -> n.d. | Y50: =IF(INDEX($C50:$G50,1,aux!$AL$1)>0,(G50-INDEX($C50:$G50,1,aux!$AL$1))/INDEX($C50:$G50,1,aux!$AL$1),"n.d.") -> n.d. | AA50: =O50-INDEX($K50:$O50,1,aux!$AL$1) -> 0 | AB50: 0 | AC50: 0 | AD50: =+IF(INDEX($K50:$O50,1,aux!$AL$1)>0,(O50/INDEX($K50:$O50,1,aux!$AL$1))^(1/($O$3-INDEX($K$3:$O$3,1,aux!$AL$1)))-1,"n.d.") -> n.d. | AE50: =IF(INDEX($K50:$O50,1,aux!$AL$1)>0,(O50-INDEX($K50:$O50,1,aux!$AL$1))/INDEX($K50:$O50,1,aux!$AL$1),"n.d.") -> n.d.
A51: 48 | B51: Papel e cartão | C51: 0 | D51: 0.004 | E51: 0.189 | F51: 0.513 | G51: 0.136 | H51: 0.1684 | I51: 0.009695657681 | J51: 9.581046006e-06 | K51: 1266.46 | L51: 1034.314 | M51: 715.754 | N51: 1496.153 | O51: 2333.591 | P51: 1369.2544 | Q51: 0.4930822502 | R51: 0.1213996357 | S51: 1369.086 | U51: =G51-INDEX($C51:$G51,1,aux!$AL$1) -> 0.136 | V51: -0.004093426439 | W51: 0.001357922379 | X51: =+IF(INDEX($C51:$G51,1,aux!$AL$1)>0,(G51/INDEX($C51:$G51,1,aux!$AL$1))^(1/($G$3-INDEX($C$3:$G$3,1,aux!$AL$1)))-1,"n.d.") -> n.d. | Y51: =IF(INDEX($C51:$G51,1,aux!$AL$1)>0,(G51-INDEX($C51:$G51,1,aux!$AL$1))/INDEX($C51:$G51,1,aux!$AL$1),"n.d.") -> n.d. | AA51: =O51-INDEX($K51:$O51,1,aux!$AL$1) -> 1067.131 | AB51: -7.078202211 | AC51: 0.1180512496 | AD51: =+IF(INDEX($K51:$O51,1,aux!$AL$1)>0,(O51/INDEX($K51:$O51,1,aux!$AL$1))^(1/($O$3-INDEX($K$3:$O$3,1,aux!$AL$1)))-1,"n.d.") -> 0.1650868913 | AE51: =IF(INDEX($K51:$O51,1,aux!$AL$1)>0,(O51-INDEX($K51:$O51,1,aux!$AL$1))/INDEX($K51:$O51,1,aux!$AL$1),"n.d.") -> 0.8426093205
A52: Subtotal Florestas | C52: 39.704 | D52: 10.334 | E52: 10.85 | F52: 19.475 | G52: 6.48 | H52: 17.3686 | I52: 1 | J52: 0.0009881790716 | K52: 3480.125 | L52: 1567.375 | M52: 2006.656 | N52: 3501.127 | O52: 3329.362 | P52: 2776.929 | Q52: 1 | R52: 0.2462056496 | S52: 2759.5604 | U52: =G52-INDEX($C52:$G52,1,aux!$AL$1) -> -33.224 | V52: 1 | W52: -0.3317324494 | X52: =+IF(INDEX($C52:$G52,1,aux!$AL$1)>0,(G52/INDEX($C52:$G52,1,aux!$AL$1))^(1/($G$3-INDEX($C$3:$G$3,1,aux!$AL$1)))-1,"n.d.") -> -0.3643981012 | Y52: =IF(INDEX($C52:$G52,1,aux!$AL$1)>0,(G52-INDEX($C52:$G52,1,aux!$AL$1))/INDEX($C52:$G52,1,aux!$AL$1),"n.d.") -> -0.8367922627 | AA52: =O52-INDEX($K52:$O52,1,aux!$AL$1) -> -150.763 | AB52: 1 | AC52: -0.01667814031 | AD52: =+IF(INDEX($K52:$O52,1,aux!$AL$1)>0,(O52/INDEX($K52:$O52,1,aux!$AL$1))^(1/($O$3-INDEX($K$3:$O$3,1,aux!$AL$1)))-1,"n.d.") -> -0.01101081199 | AE52: =IF(INDEX($K52:$O52,1,aux!$AL$1)>0,(O52-INDEX($K52:$O52,1,aux!$AL$1))/INDEX($K52:$O52,1,aux!$AL$1),"n.d.") -> -0.04332114507
B53: TOTAL | C53: 19511.186 | D53: 25174.469 | E53: 10640.513 | F53: 12944.338 | G53: 19611.339 | H53: 17576.369 | J53: 1 | K53: 8211.409 | L53: 8202.411 | M53: 8572.158 | N53: 14157.558 | O53: 17250.966 | P53: 11278.9004 | R53: 1 | S53: -6297.4686 | U53: =G53-INDEX($C53:$G53,1,aux!$AL$1) -> 100.153 | W53: 1 | X53: =+IF(INDEX($C53:$G53,1,aux!$AL$1)>0,(G53/INDEX($C53:$G53,1,aux!$AL$1))^(1/($G$3-INDEX($C$3:$G$3,1,aux!$AL$1)))-1,"n.d.") -> 0.001280813852 | Y53: =IF(INDEX($C53:$G53,1,aux!$AL$1)>0,(G53-INDEX($C53:$G53,1,aux!$AL$1))/INDEX($C53:$G53,1,aux!$AL$1),"n.d.") -> 0.005133106721 | AA53: =O53-INDEX($K53:$O53,1,aux!$AL$1) -> 9039.557 | AC53: 1 | AD53: =+IF(INDEX($K53:$O53,1,aux!$AL$1)>0,(O53/INDEX($K53:$O53,1,aux!$AL$1))^(1/($O$3-INDEX($K$3:$O$3,1,aux!$AL$1)))-1,"n.d.") -> 0.2039236163 | AE53: =IF(INDEX($K53:$O53,1,aux!$AL$1)>0,(O53-INDEX($K53:$O53,1,aux!$AL$1))/INDEX($K53:$O53,1,aux!$AL$1),"n.d.") -> 1.100853337
B54: a - agrícola e agroalimentar; p - pescas; f - florestas
A55: Fonte: GPP a partir de dados INE/Comércio Internacional (2021 provisórios; 2022 preliminares) | S55: 2023-04-10T11:41:25.980

Sheet 5.2_var
A1: ="Principais contributos por produto para a variação das trocas comerciais PT-Senegal_x000D_ no período " & INDEX('5.2'!K3:N3,1,aux!AL1) & "-2022 (NC 2 dígitos - milhares de euros) Produtos agrícolas e agroalimentares, do mar e da floresta" -> Principais contributos por produto para a variação das trocas comerciais PT-Senegal no período 2018-2022 (NC 2 dígitos - milhares de euros) Produtos agrícolas e agroalimentares, do mar e da floresta
E5: aumento das importações | J5: aumento das exportações
E17: redução das importações | J17: redução das exportações
A28: Fonte: GPP a partir de dados INE/Comércio Internacional (2021 provisórios; 2022 preliminares) | F28: a - agrícola e agroalimentar; p - mar; f - florestas | H28: ='3'!Y116 -> 2023-04-10T11:41:25.980
A29: Cód. NC | B29: Descritivo | C29: ="Variação das Importações " & INDEX('5.2'!K3:N3,1,aux!AL1) & "-"& '5.2'!O3 &"" -> Variação das Importações 2018-2022 | F29: Cód. NC | G29: Descritivo | H29: ="Variação das Exportações " & INDEX('5.2'!K3:N3,1,aux!AL1) & "-"& '5.2'!O3 &"" -> Variação das Exportações 2018-2022
C30: variação total em valor | D30: % do aumento/ redução total | H30: variação total em valor | I30: % do aumento/ redução total
A31: =IF(C31>0,aux!AU6,"") -> 03 | B31: =IF(C31>0,aux!AV6,"") -> Peixes e crustáceos | C31: =IF(aux!AW6>0,aux!AW6,0) -> 436.978 | D31: =IF(SUM($C$31:$C$41)<>0,C31/SUM($C$31:$C$41),0) -> 0.8719974936 | F31: =IF(H31>0,aux!AZ6,"") -> 22 | G31: =IF(H31>0,aux!BA6,"") -> Bebidas, líquidos alcoólicos e vinagres | H31: =IF(aux!BB6>0,aux!BB6,0) -> 8935.436 | I31: =IF(SUM($H$31:$H$41)<>0,H31/SUM($H$31:$H$41),0) -> 0.8042239905
A32: =IF(C32>0,aux!AU7,"") -> 12 | B32: =IF(C32>0,aux!AV7,"") -> Sementes e frutos oleaginosos | C32: =IF(aux!AW7>0,aux!AW7,0) -> 61.844 | D32: =IF(SUM($C$31:$C$41)<>0,C32/SUM($C$31:$C$41),0) -> 0.1234108193 | F32: =IF(H32>0,aux!AZ7,"") -> 48 | G32: =IF(H32>0,aux!BA7,"") -> Papel e cartão | H32: =IF(aux!BB7>0,aux!BB7,0) -> 1067.131 | I32: =IF(SUM($H$31:$H$41)<>0,H32/SUM($H$31:$H$41),0) -> 0.09604594015
A33: =IF(C33>0,aux!AU8,"") -> 10 | B33: =IF(C33>0,aux!AV8,"") -> Cereais | C33: =IF(aux!AW8>0,aux!AW8,0) -> 1.646 | D33: 0.003284622737 | F33: =IF(H33>0,aux!AZ8,"") -> 24 | G33: =IF(H33>0,aux!BA8,"") -> Tabaco | H33: =IF(aux!BB8>0,aux!BB8,0) -> 396.85 | I33: 0.03571804338
A34: =IF(C34>0,aux!AU9,"") -> 21 | B34: =IF(C34>0,aux!AV9,"") -> Preparações alimentícias diversas | C34: =IF(aux!AW9>0,aux!AW9,0) -> 0.344 | D34: 0.0006864582148 | F34: =IF(H34>0,aux!AZ9,"") -> 04 | G34: =IF(H34>0,aux!BA9,"") -> Leite e laticínios; ovos; mel, etc. | H34: =IF(aux!BB9>0,aux!BB9,0) -> 252.072 | I34: 0.02268746033
A35: =IF(C35>0,aux!AU10,"") -> 09 | B35: =IF(C35>0,aux!AV10,"") -> Café, chá, mate e especiarias | C35: =IF(aux!AW10>0,aux!AW10,0) -> 0.175 | D35: 0.0003492156616 | F35: =IF(H35>0,aux!AZ10,"") -> 15 | G35: =IF(H35>0,aux!BA10,"") -> Gorduras e óleos animais ou vegetais | H35: =IF(aux!BB10>0,aux!BB10,0) -> 207.8 | I35: 0.01870280815
A36: =IF(C36>0,aux!AU11,"") -> 48 | B36: =IF(C36>0,aux!AV11,"") -> Papel e cartão | C36: =IF(aux!AW11>0,aux!AW11,0) -> 0.136 | D36: 0.000271390457 | F36: =IF(H36>0,aux!AZ11,"") -> 19a | G36: =IF(H36>0,aux!BA11,"") -> Preparações à base de cereais (exc. NC 19022010) (a) | H36: =IF(aux!BB11>0,aux!BB11,0) -> 176.996 | I36: 0.01593032835
A37: =IF(C37>0,aux!AU12,"") ->  | B37: =IF(C37>0,aux!AV12,"") ->  | C37: =IF(aux!AW12>0,aux!AW12,0) -> 0 | D37: 0 | F37: =IF(H37>0,aux!AZ12,"") -> 09 | G37: =IF(H37>0,aux!BA12,"") -> Café, chá, mate e especiarias | H37: =IF(aux!BB12>0,aux!BB12,0) -> 50.59 | I37: 0.004553296748
A38: =IF(C38>0,aux!AU13,"") ->  | B38: =IF(C38>0,aux!AV13,"") ->  | C38: =IF(aux!AW13>0,aux!AW13,0) -> 0 | D38: 0 | F38: =IF(H38>0,aux!AZ13,"") -> 23a | G38: =IF(H38>0,aux!BA13,"") -> Resíduos indústrias alimentares; alimentos p/ animais (exc. NC 230120) (a) | H38: =IF(aux!BB13>0,aux!BB13,0) -> 13.172 | I38: 0.001185531227
A39: =IF(C39>0,aux!AU14,"") ->  | B39: =IF(C39>0,aux!AV14,"") ->  | C39: =IF(aux!AW14>0,aux!AW14,0) -> 0 | D39: 0 | F39: =IF(H39>0,aux!AZ14,"") -> 45 | G39: =IF(H39>0,aux!BA14,"") -> Cortiça e suas obras | H39: =IF(aux!BB14>0,aux!BB14,0) -> 4.764 | I39: 0.0004287785275
A40: =IF(C40>0,aux!AU15,"") ->  | B40: =IF(C40>0,aux!AV15,"") ->  | C40: =IF(aux!AW15>0,aux!AW15,0) -> 0 | D40: 0 | F40: =IF(H40>0,aux!AZ15,"") -> 18 | G40: =IF(H40>0,aux!BA15,"") -> Cacau e suas preparações | H40: =IF(aux!BB15>0,aux!BB15,0) -> 4.425 | I40: 0.0003982672091
B41: Outros contributos para o aumento das importações | C41: =SUMIF(aux!AW16:AW51,">0") -> 0 | D41: 0 | G41: Outros contributos para o aumento das exportações | H41: =SUMIF(aux!BB16:BB51,">0") -> 1.395 | I41: 0.0001255554252
B42: Outros contributos para a redução das importações | C42: =SUMIF(aux!AW6:AW41,"<0") -> 0 | D42: =IF(SUM($C$42:$C$52)<>0,C42/SUM($C$42:$C$52),0) -> 0 | G42: Outros contributos para a redução das exportações | H42: =SUMIF(aux!BB6:BB41,"<0") -> 0 | I42: =IF(SUM($H$42:$H$52)<>0,H42/SUM($H$42:$H$52),0) -> 0
A43: =IF(C43<>0,aux!AU42,"") ->  | B43: =IF(C43<0,aux!AV42,"") ->  | C43: =IF(aux!AW42<0,aux!AW42,0) -> 0 | D43: =IF(SUM($C$42:$C$52)<>0,C43/SUM($C$42:$C$52),0) -> 0 | F43: =IF(H43<>0,aux!AZ42,"") ->  | G43: =IF(H43<>0,aux!BA42,"") ->  | H43: =IF(aux!BB42<0,aux!BB42,0) -> 0 | I43: =IF(SUM($H$42:$H$52)<>0,H43/SUM($H$42:$H$52),0) -> 0
A44: =IF(C44<>0,aux!AU43,"") ->  | B44: =IF(C44<0,aux!AV43,"") ->  | C44: =IF(aux!AW43<0,aux!AW43,0) -> 0 | D44: 0 | F44: =IF(H44<>0,aux!AZ43,"") ->  | G44: =IF(H44<>0,aux!BA43,"") ->  | H44: =IF(aux!BB43<0,aux!BB43,0) -> 0 | I44: 0
A45: =IF(C45<>0,aux!AU44,"") -> 17 | B45: =IF(C45<0,aux!AV44,"") -> Açúcares e produtos de confeitaria | C45: =IF(aux!AW44<0,aux!AW44,0) -> -0.019 | D45: 4.738509115e-05 | F45: =IF(H45<>0,aux!AZ44,"") ->  | G45: =IF(H45<>0,aux!BA44,"") ->  | H45: =IF(aux!BB44<0,aux!BB44,0) -> 0 | I45: 0
A46: =IF(C46<>0,aux!AU45,"") -> 08 | B46: =IF(C46<0,aux!AV45,"") -> Frutas | C46: =IF(aux!AW45<0,aux!AW45,0) -> -2.715 | D46: 0.006771080131 | F46: =IF(H46<>0,aux!AZ45,"") -> 35 | G46: =IF(H46<>0,aux!BA45,"") -> Caseínas, albuminas, gelatinas, peptonas, dextrinas (NC 3501 a 3505) | H46: =IF(aux!BB45<0,aux!BB45,0) -> -0.062 | I46: 2.993615873e-05
A47: =IF(C47<>0,aux!AU46,"") -> 44 | B47: =IF(C47<0,aux!AV46,"") -> Madeira e suas obras | C47: =IF(aux!AW46<0,aux!AW46,0) -> -3.438 | D47: 0.008574207547 | F47: =IF(H47<>0,aux!AZ46,"") -> 20 | G47: =IF(H47<>0,aux!BA46,"") -> Preparações de produtos vegetais | H47: =IF(aux!BB46<0,aux!BB46,0) -> -7.392 | I47: 0.003569162666
A48: =IF(C48<>0,aux!AU47,"") -> 41 | B48: =IF(C48<0,aux!AV47,"") -> Couro e peles em bruto (NC 4101 a 4103) | C48: =IF(aux!AW47<0,aux!AW47,0) -> -27.201 | D48: 0.06783799287 | F48: =IF(H48<>0,aux!AZ47,"") -> 08 | G48: =IF(H48<>0,aux!BA47,"") -> Frutas | H48: =IF(aux!BB47<0,aux!BB47,0) -> -20.054 | I48: 0.009682898824
A49: =IF(C49<>0,aux!AU48,"") -> 46 | B49: =IF(C49<0,aux!AV48,"") -> Obras de espartaria ou de cestaria | C49: =IF(aux!AW48<0,aux!AW48,0) -> -29.922 | D49: 0.07462403671 | F49: =IF(H49<>0,aux!AZ48,"") -> 03 | G49: =IF(H49<>0,aux!BA48,"") -> Peixes e crustáceos | H49: =IF(aux!BB48<0,aux!BB48,0) -> -37.889 | I49: 0.01829437287
A50: =IF(C50<>0,aux!AU49,"") -> 20 | B50: =IF(C50<0,aux!AV49,"") -> Preparações de produtos vegetais | C50: =IF(aux!AW49<0,aux!AW49,0) -> -36.291 | D50: 0.09050801806 | F50: =IF(H50<>0,aux!AZ49,"") -> 07 | G50: =IF(H50<>0,aux!BA49,"") -> Produtos hortícolas | H50: =IF(aux!BB49<0,aux!BB49,0) -> -198.071 | I50: 0.09563685315
A51: =IF(C51<>0,aux!AU50,"") -> 52 | B51: =IF(C51<0,aux!AV50,"") -> Algodão (NC 5201-5203) | C51: =IF(aux!AW50<0,aux!AW50,0) -> -99.38 | D51: 0.2478489663 | F51: =IF(H51<>0,aux!AZ50,"") -> 21 | G51: =IF(H51<>0,aux!BA50,"") -> Preparações alimentícias diversas | H51: =IF(aux!BB50<0,aux!BB50,0) -> -584.937 | I51: 0.2824317238
A52: =IF(C52<>0,aux!AU51,"") -> 15 | B52: =IF(C52<0,aux!AV51,"") -> Gorduras e óleos animais ou vegetais | C52: =IF(aux!AW51<0,aux!AW51,0) -> -202.004 | D52: 0.5037883133 | F52: =IF(H52<>0,aux!AZ51,"") -> 44 | G52: =IF(H52<>0,aux!BA51,"") -> Madeira e suas obras | H52: =IF(aux!BB51<0,aux!BB51,0) -> -1222.669 | I52: 0.5903550525
A53: TOTAL | C53: =SUM(C31:C52) -> 100.153 | F53: TOTAL | H53: =SUM(H31:H52) -> 9039.557

Sheet 5.2A
A1: Trocas comerciais Portugal-Senegal 2018-2022 em milhares de euros (NC 4 dígitos) | G1: Produtos agrícolas e agroalimentares, do mar e da floresta
A2: Cód. NC | B2: Descritivo | C2: Importações | K2: Exportações | S2: Saldo quinquénio (exp-imp) | T2: Evolução das importações | U2: =+"Variação das Importações " & INDEX(K3:N3,1,aux!AL1) & "-"& '5.2'!O3 &"" -> Variação das Importações 2018-2022 | Z2: Evolução das exportações | AA2: ="Variação das Exportações " & INDEX(K3:N3,1,aux!AL1) & "-"& '5.2'!O3 &"" -> Variação das Exportações 2018-2022
C3: 2018 | D3: 2019 | E3: 2020 | F3: 2021 | G3: 2022 | H3: média quinquénio | I3: % Subtot | J3: % Total | K3: 2018 | L3: 2019 | M3: 2020 | N3: 2021 | O3: 2022 | P3: média quinquénio | Q3: % Subtot | R3: % Total | U3: variação total em valor | V3: % no subtotal de variação | W3: % no total de variação | X3: taxa de variação média anual | Y3: taxa de variação total | AA3: variação total em valor | AB3: % no subtotal de variação | AC3: % no total de variação | AD3: taxa de variação média anual | AE3: taxa de variação total | AX3: filtro
A4: 0101 | B4: Equídeos vivos | C4: 0 | D4: 0 | E4: 0 | F4: 0 | G4: 0 | H4: 0 | I4: 0 | J4: 0 | K4: 0 | L4: 0 | M4: 0 | N4: 0 | O4: 0 | P4: 0 | Q4: 0 | R4: 0 | S4: 0 | U4: =G4-INDEX($C4:$G4,1,aux!$AL$1) -> 0 | V4: =IF($U$237<>0,U4/$U$237, "n.d.") -> 0 | W4: =IF($U$322<>0,U4/$U$322, "n.d.") -> 0 | X4: =+IF(INDEX($C4:$G4,1,aux!$AL$1)>0,(G4/INDEX($C4:$G4,1,aux!$AL$1))^(1/($G$3-INDEX($C$3:$G$3,1,aux!$AL$1)))-1,"n.d.") -> n.d. | Y4: =IF(INDEX($C4:$G4,1,aux!$AL$1)>0,(G4-INDEX($C4:$G4,1,aux!$AL$1))/INDEX($C4:$G4,1,aux!$AL$1),"n.d.") -> n.d. | AA4: =O4-INDEX($K4:$O4,1,aux!$AL$1) -> 0 | AB4: =IF($AA$237<>0,AA4/$AA$237, "n.d.") -> 0 | AC4: =IF($AA$322<>0,AA4/$AA$322, "n.d.") -> 0 | AD4: =+IF(INDEX($K4:$O4,1,aux!$AL$1)>0,(O4/INDEX($K4:$O4,1,aux!$AL$1))^(1/($O$3-INDEX($K$3:$O$3,1,aux!$AL$1)))-1,"n.d.") -> n.d. | AE4: =IF(INDEX($K4:$O4,1,aux!$AL$1)>0,(O4-INDEX($K4:$O4,1,aux!$AL$1))/INDEX($K4:$O4,1,aux!$AL$1),"n.d.") -> n.d. | AX4: =+LEFT(A4,2) -> 01
A5: 0102 | B5: Bovinos vivos | C5: 0 | D5: 0 | E5: 0 | F5: 0 | G5: 0 | H5: 0 | I5: 0 | J5: 0 | K5: 0 | L5: 0 | M5: 0 | N5: 0 | O5: 0 | P5: 0 | Q5: 0 | R5: 0 | S5: 0 | U5: =G5-INDEX($C5:$G5,1,aux!$AL$1) -> 0 | V5: 0 | W5: 0 | X5: =+IF(INDEX($C5:$G5,1,aux!$AL$1)>0,(G5/INDEX($C5:$G5,1,aux!$AL$1))^(1/($G$3-INDEX($C$3:$G$3,1,aux!$AL$1)))-1,"n.d.") -> n.d. | Y5: =IF(INDEX($C5:$G5,1,aux!$AL$1)>0,(G5-INDEX($C5:$G5,1,aux!$AL$1))/INDEX($C5:$G5,1,aux!$AL$1),"n.d.") -> n.d. | AA5: =O5-INDEX($K5:$O5,1,aux!$AL$1) -> 0 | AB5: 0 | AC5: 0 | AD5: =+IF(INDEX($K5:$O5,1,aux!$AL$1)>0,(O5/INDEX($K5:$O5,1,aux!$AL$1))^(1/($O$3-INDEX($K$3:$O$3,1,aux!$AL$1)))-1,"n.d.") -> n.d. | AE5: =IF(INDEX($K5:$O5,1,aux!$AL$1)>0,(O5-INDEX($K5:$O5,1,aux!$AL$1))/INDEX($K5:$O5,1,aux!$AL$1),"n.d.") -> n.d. | AX5: 01
A6: 0103 | B6: Suínos vivos | C6: 0 | D6: 0 | E6: 0 | F6: 0 | G6: 0 | H6: 0 | I6: 0 | J6: 0 | K6: 0 | L6: 0 | M6: 0 | N6: 0 | O6: 0 | P6: 0 | Q6: 0 | R6: 0 | S6: 0 | U6: =G6-INDEX($C6:$G6,1,aux!$AL$1) -> 0 | V6: 0 | W6: 0 | X6: =+IF(INDEX($C6:$G6,1,aux!$AL$1)>0,(G6/INDEX($C6:$G6,1,aux!$AL$1))^(1/($G$3-INDEX($C$3:$G$3,1,aux!$AL$1)))-1,"n.d.") -> n.d. | Y6: =IF(INDEX($C6:$G6,1,aux!$AL$1)>0,(G6-INDEX($C6:$G6,1,aux!$AL$1))/INDEX($C6:$G6,1,aux!$AL$1),"n.d.") -> n.d. | AA6: =O6-INDEX($K6:$O6,1,aux!$AL$1) -> 0 | AB6: 0 | AC6: 0 | AD6: =+IF(INDEX($K6:$O6,1,aux!$AL$1)>0,(O6/INDEX($K6:$O6,1,aux!$AL$1))^(1/($O$3-INDEX($K$3:$O$3,1,aux!$AL$1)))-1,"n.d.") -> n.d. | AE6: =IF(INDEX($K6:$O6,1,aux!$AL$1)>0,(O6-INDEX($K6:$O6,1,aux!$AL$1))/INDEX($K6:$O6,1,aux!$AL$1),"n.d.") -> n.d. | AX6: 01
A7: 0104 | B7: Ovinos ou caprinos vivos | C7: 0 | D7: 0 | E7: 0 | F7: 0 | G7: 0 | H7: 0 | I7: 0 | J7: 0 | K7: 0 | L7: 0 | M7: 0 | N7: 0 | O7: 0 | P7: 0 | Q7: 0 | R7: 0 | S7: 0 | U7: =G7-INDEX($C7:$G7,1,aux!$AL$1) -> 0 | V7: 0 | W7: 0 | X7: =+IF(INDEX($C7:$G7,1,aux!$AL$1)>0,(G7/INDEX($C7:$G7,1,aux!$AL$1))^(1/($G$3-INDEX($C$3:$G$3,1,aux!$AL$1)))-1,"n.d.") -> n.d. | Y7: =IF(INDEX($C7:$G7,1,aux!$AL$1)>0,(G7-INDEX($C7:$G7,1,aux!$AL$1))/INDEX($C7:$G7,1,aux!$AL$1),"n.d.") -> n.d. | AA7: =O7-INDEX($K7:$O7,1,aux!$AL$1) -> 0 | AB7: 0 | AC7: 0 | AD7: =+IF(INDEX($K7:$O7,1,aux!$AL$1)>0,(O7/INDEX($K7:$O7,1,aux!$AL$1))^(1/($O$3-INDEX($K$3:$O$3,1,aux!$AL$1)))-1,"n.d.") -> n.d. | AE7: =IF(INDEX($K7:$O7,1,aux!$AL$1)>0,(O7-INDEX($K7:$O7,1,aux!$AL$1))/INDEX($K7:$O7,1,aux!$AL$1),"n.d.") -> n.d. | AX7: 01
A8: 0105 | B8: Aves de capoeira vivas | C8: 0 | D8: 0 | E8: 0 | F8: 0 | G8: 0 | H8: 0 | I8: 0 | J8: 0 | K8: 0 | L8: 0 | M8: 0 | N8: 0 | O8: 0 | P8: 0 | Q8: 0 | R8: 0 | S8: 0 | U8: =G8-INDEX($C8:$G8,1,aux!$AL$1) -> 0 | V8: 0 | W8: 0 | X8: =+IF(INDEX($C8:$G8,1,aux!$AL$1)>0,(G8/INDEX($C8:$G8,1,aux!$AL$1))^(1/($G$3-INDEX($C$3:$G$3,1,aux!$AL$1)))-1,"n.d.") -> n.d. | Y8: =IF(INDEX($C8:$G8,1,aux!$AL$1)>0,(G8-INDEX($C8:$G8,1,aux!$AL$1))/INDEX($C8:$G8,1,aux!$AL$1),"n.d.") -> n.d. | AA8: =O8-INDEX($K8:$O8,1,aux!$AL$1) -> 0 | AB8: 0 | AC8: 0 | AD8: =+IF(INDEX($K8:$O8,1,aux!$AL$1)>0,(O8/INDEX($K8:$O8,1,aux!$AL$1))^(1/($O$3-INDEX($K$3:$O$3,1,aux!$AL$1)))-1,"n.d.") -> n.d. | AE8: =IF(INDEX($K8:$O8,1,aux!$AL$1)>0,(O8-INDEX($K8:$O8,1,aux!$AL$1))/INDEX($K8:$O8,1,aux!$AL$1),"n.d.") -> n.d. | AX8: 01
A9: 0106 | B9: Outros animais vivos | C9: 0 | D9: 0 | E9: 0 | F9: 0 | G9: 0 | H9: 0 | I9: 0 | J9: 0 | K9: 0 | L9: 0 | M9: 0 | N9: 0 | O9: 0 | P9: 0 | Q9: 0 | R9: 0 | S9: 0 | U9: =G9-INDEX($C9:$G9,1,aux!$AL$1) -> 0 | V9: 0 | W9: 0 | X9: =+IF(INDEX($C9:$G9,1,aux!$AL$1)>0,(G9/INDEX($C9:$G9,1,aux!$AL$1))^(1/($G$3-INDEX($C$3:$G$3,1,aux!$AL$1)))-1,"n.d.") -> n.d. | Y9: =IF(INDEX($C9:$G9,1,aux!$AL$1)>0,(G9-INDEX($C9:$G9,1,aux!$AL$1))/INDEX($C9:$G9,1,aux!$AL$1),"n.d.") -> n.d. | AA9: =O9-INDEX($K9:$O9,1,aux!$AL$1) -> 0 | AB9: 0 | AC9: 0 | AD9: =+IF(INDEX($K9:$O9,1,aux!$AL$1)>0,(O9/INDEX($K9:$O9,1,aux!$AL$1))^(1/($O$3-INDEX($K$3:$O$3,1,aux!$AL$1)))-1,"n.d.") -> n.d. | AE9: =IF(INDEX($K9:$O9,1,aux!$AL$1)>0,(O9-INDEX($K9:$O9,1,aux!$AL$1))/INDEX($K9:$O9,1,aux!$AL$1),"n.d.") -> n.d. | AX9: 01
A10: 01SS | B10: Animais vivos | C10: 0 | D10: 0 | E10: 0 | F10: 0 | G10: 0 | H10: 0 | I10: 0 | J10: 0 | K10: 0 | L10: 0 | M10: 0 | N10: 0 | O10: 0 | P10: 0 | Q10: 0 | R10: 0 | S10: 0 | U10: =G10-INDEX($C10:$G10,1,aux!$AL$1) -> 0 | V10: 0 | W10: 0 | X10: =+IF(INDEX($C10:$G10,1,aux!$AL$1)>0,(G10/INDEX($C10:$G10,1,aux!$AL$1))^(1/($G$3-INDEX($C$3:$G$3,1,aux!$AL$1)))-1,"n.d.") -> n.d. | Y10: =IF(INDEX($C10:$G10,1,aux!$AL$1)>0,(G10-INDEX($C10:$G10,1,aux!$AL$1))/INDEX($C10:$G10,1,aux!$AL$1),"n.d.") -> n.d. | AA10: =O10-INDEX($K10:$O10,1,aux!$AL$1) -> 0 | AB10: 0 | AC10: 0 | AD10: =+IF(INDEX($K10:$O10,1,aux!$AL$1)>0,(O10/INDEX($K10:$O10,1,aux!$AL$1))^(1/($O$3-INDEX($K$3:$O$3,1,aux!$AL$1)))-1,"n.d.") -> n.d. | AE10: =IF(INDEX($K10:$O10,1,aux!$AL$1)>0,(O10-INDEX($K10:$O10,1,aux!$AL$1))/INDEX($K10:$O10,1,aux!$AL$1),"n.d.") -> n.d. | AX10: 01
A11: 0201 | B11: Carnes de bovino, frescas ou refrigeradas | C11: 0 | D11: 0 | E11: 0 | F11: 0 | G11: 0 | H11: 0 | I11: 0 | J11: 0 | K11: 0 | L11: 0 | M11: 0 | N11: 0 | O11: 0 | P11: 0 | Q11: 0 | R11: 0 | S11: 0 | U11: =G11-INDEX($C11:$G11,1,aux!$AL$1) -> 0 | V11: 0 | W11: 0 | X11: =+IF(INDEX($C11:$G11,1,aux!$AL$1)>0,(G11/INDEX($C11:$G11,1,aux!$AL$1))^(1/($G$3-INDEX($C$3:$G$3,1,aux!$AL$1)))-1,"n.d.") -> n.d. | Y11: =IF(INDEX($C11:$G11,1,aux!$AL$1)>0,(G11-INDEX($C11:$G11,1,aux!$AL$1))/INDEX($C11:$G11,1,aux!$AL$1),"n.d.") -> n.d. | AA11: =O11-INDEX($K11:$O11,1,aux!$AL$1) -> 0 | AB11: 0 | AC11: 0 | AD11: =+IF(INDEX($K11:$O11,1,aux!$AL$1)>0,(O11/INDEX($K11:$O11,1,aux!$AL$1))^(1/($O$3-INDEX($K$3:$O$3,1,aux!$AL$1)))-1,"n.d.") -> n.d. | AE11: =IF(INDEX($K11:$O11,1,aux!$AL$1)>0,(O11-INDEX($K11:$O11,1,aux!$AL$1))/INDEX($K11:$O11,1,aux!$AL$1),"n.d.") -> n.d. | AX11: 02
A12: 0202 | B12: Carnes de bovino, congeladas | C12: 0 | D12: 0 | E12: 0 | F12: 0 | G12: 0 | H12: 0 | I12: 0 | J12: 0 | K12: 0 | L12: 0 | M12: 0 | N12: 0 | O12: 0 | P12: 0 | Q12: 0 | R12: 0 | S12: 0 | U12: =G12-INDEX($C12:$G12,1,aux!$AL$1) -> 0 | V12: 0 | W12: 0 | X12: =+IF(INDEX($C12:$G12,1,aux!$AL$1)>0,(G12/INDEX($C12:$G12,1,aux!$AL$1))^(1/($G$3-INDEX($C$3:$G$3,1,aux!$AL$1)))-1,"n.d.") -> n.d. | Y12: =IF(INDEX($C12:$G12,1,aux!$AL$1)>0,(G12-INDEX($C12:$G12,1,aux!$AL$1))/INDEX($C12:$G12,1,aux!$AL$1),"n.d.") -> n.d. | AA12: =O12-INDEX($K12:$O12,1,aux!$AL$1) -> 0 | AB12: 0 | AC12: 0 | AD12: =+IF(INDEX($K12:$O12,1,aux!$AL$1)>0,(O12/INDEX($K12:$O12,1,aux!$AL$1))^(1/($O$3-INDEX($K$3:$O$3,1,aux!$AL$1)))-1,"n.d.") -> n.d. | AE12: =IF(INDEX($K12:$O12,1,aux!$AL$1)>0,(O12-INDEX($K12:$O12,1,aux!$AL$1))/INDEX($K12:$O12,1,aux!$AL$1),"n.d.") -> n.d. | AX12: 02
A13: 0203 | B13: Carnes de suíno | C13: 0 | D13: 0 | E13: 0 | F13: 0 | G13: 0 | H13: 0 | I13: 0 | J13: 0 | K13: 0 | L13: 0 | M13: 0 | N13: 0 | O13: 0 | P13: 0 | Q13: 0 | R13: 0 | S13: 0 | U13: =G13-INDEX($C13:$G13,1,aux!$AL$1) -> 0 | V13: 0 | W13: 0 | X13: =+IF(INDEX($C13:$G13,1,aux!$AL$1)>0,(G13/INDEX($C13:$G13,1,aux!$AL$1))^(1/($G$3-INDEX($C$3:$G$3,1,aux!$AL$1)))-1,"n.d.") -> n.d. | Y13: =IF(INDEX($C13:$G13,1,aux!$AL$1)>0,(G13-INDEX($C13:$G13,1,aux!$AL$1))/INDEX($C13:$G13,1,aux!$AL$1),"n.d.") -> n.d. | AA13: =O13-INDEX($K13:$O13,1,aux!$AL$1) -> 0 | AB13: 0 | AC13: 0 | AD13: =+IF(INDEX($K13:$O13,1,aux!$AL$1)>0,(O13/INDEX($K13:$O13,1,aux!$AL$1))^(1/($O$3-INDEX($K$3:$O$3,1,aux!$AL$1)))-1,"n.d.") -> n.d. | AE13: =IF(INDEX($K13:$O13,1,aux!$AL$1)>0,(O13-INDEX($K13:$O13,1,aux!$AL$1))/INDEX($K13:$O13,1,aux!$AL$1),"n.d.") -> n.d. | AX13: 02
A14: 0204 | B14: Carnes de ovino ou caprino | C14: 0 | D14: 0 | E14: 0 | F14: 0 | G14: 0 | H14: 0 | I14: 0 | J14: 0 | K14: 0 | L14: 0 | M14: 0 | N14: 0 | O14: 0 | P14: 0 | Q14: 0 | R14: 0 | S14: 0 | U14: =G14-INDEX($C14:$G14,1,aux!$AL$1) -> 0 | V14: 0 | W14: 0 | X14: =+IF(INDEX($C14:$G14,1,aux!$AL$1)>0,(G14/INDEX($C14:$G14,1,aux!$AL$1))^(1/($G$3-INDEX($C$3:$G$3,1,aux!$AL$1)))-1,"n.d.") -> n.d. | Y14: =IF(INDEX($C14:$G14,1,aux!$AL$1)>0,(G14-INDEX($C14:$G14,1,aux!$AL$1))/INDEX($C14:$G14,1,aux!$AL$1),"n.d.") -> n.d. | AA14: =O14-INDEX($K14:$O14,1,aux!$AL$1) -> 0 | AB14: 0 | AC14: 0 | AD14: =+IF(INDEX($K14:$O14,1,aux!$AL$1)>0,(O14/INDEX($K14:$O14,1,aux!$AL$1))^(1/($O$3-INDEX($K$3:$O$3,1,aux!$AL$1)))-1,"n.d.") -> n.d. | AE14: =IF(INDEX($K14:$O14,1,aux!$AL$1)>0,(O14-INDEX($K14:$O14,1,aux!$AL$1))/INDEX($K14:$O14,1,aux!$AL$1),"n.d.") -> n.d. | AX14: 02
A15: 0205 | B15: Carnes de equídeo | C15: 0 | D15: 0 | E15: 0 | F15: 0 | G15: 0 | H15: 0 | I15: 0 | J15: 0 | K15: 0 | L15: 0 | M15: 0 | N15: 0 | O15: 0 | P15: 0 | Q15: 0 | R15: 0 | S15: 0 | U15: =G15-INDEX($C15:$G15,1,aux!$AL$1) -> 0 | V15: 0 | W15: 0 | X15: =+IF(INDEX($C15:$G15,1,aux!$AL$1)>0,(G15/INDEX($C15:$G15,1,aux!$AL$1))^(1/($G$3-INDEX($C$3:$G$3,1,aux!$AL$1)))-1,"n.d.") -> n.d. | Y15: =IF(INDEX($C15:$G15,1,aux!$AL$1)>0,(G15-INDEX($C15:$G15,1,aux!$AL$1))/INDEX($C15:$G15,1,aux!$AL$1),"n.d.") -> n.d. | AA15: =O15-INDEX($K15:$O15,1,aux!$AL$1) -> 0 | AB15: 0 | AC15: 0 | AD15: =+IF(INDEX($K15:$O15,1,aux!$AL$1)>0,(O15/INDEX($K15:$O15,1,aux!$AL$1))^(1/($O$3-INDEX($K$3:$O$3,1,aux!$AL$1)))-1,"n.d.") -> n.d. | AE15: =IF(INDEX($K15:$O15,1,aux!$AL$1)>0,(O15-INDEX($K15:$O15,1,aux!$AL$1))/INDEX($K15:$O15,1,aux!$AL$1),"n.d.") -> n.d. | AX15: 02
A16: 0206 | B16: Miudezas de bovino, suíno, ovino, caprino,equídeo | C16: 0 | D16: 0 | E16: 0 | F16: 0 | G16: 0 | H16: 0 | I16: 0 | J16: 0 | K16: 0 | L16: 0 | M16: 0 | N16: 0 | O16: 0 | P16: 0 | Q16: 0 | R16: 0 | S16: 0 | U16: =G16-INDEX($C16:$G16,1,aux!$AL$1) -> 0 | V16: 0 | W16: 0 | X16: =+IF(INDEX($C16:$G16,1,aux!$AL$1)>0,(G16/INDEX($C16:$G16,1,aux!$AL$1))^(1/($G$3-INDEX($C$3:$G$3,1,aux!$AL$1)))-1,"n.d.") -> n.d. | Y16: =IF(INDEX($C16:$G16,1,aux!$AL$1)>0,(G16-INDEX($C16:$G16,1,aux!$AL$1))/INDEX($C16:$G16,1,aux!$AL$1),"n.d.") -> n.d. | AA16: =O16-INDEX($K16:$O16,1,aux!$AL$1) -> 0 | AB16: 0 | AC16: 0 | AD16: =+IF(INDEX($K16:$O16,1,aux!$AL$1)>0,(O16/INDEX($K16:$O16,1,aux!$AL$1))^(1/($O$3-INDEX($K$3:$O$3,1,aux!$AL$1)))-1,"n.d.") -> n.d. | AE16: =IF(INDEX($K16:$O16,1,aux!$AL$1)>0,(O16-INDEX($K16:$O16,1,aux!$AL$1))/INDEX($K16:$O16,1,aux!$AL$1),"n.d.") -> n.d. | AX16: 02
A17: 0207 | B17: Carnes e miudezas de aves de capoeira | C17: 0 | D17: 0 | E17: 0 | F17: 0 | G17: 0 | H17: 0 | I17: 0 | J17: 0 | K17: 0 | L17: 0 | M17: 0 | N17: 0 | O17: 0 | P17: 0 | Q17: 0 | R17: 0 | S17: 0 | U17: =G17-INDEX($C17:$G17,1,aux!$AL$1) -> 0 | V17: 0 | W17: 0 | X17: =+IF(INDEX($C17:$G17,1,aux!$AL$1)>0,(G17/INDEX($C17:$G17,1,aux!$AL$1))^(1/($G$3-INDEX($C$3:$G$3,1,aux!$AL$1)))-1,"n.d.") -> n.d. | Y17: =IF(INDEX($C17:$G17,1,aux!$AL$1)>0,(G17-INDEX($C17:$G17,1,aux!$AL$1))/INDEX($C17:$G17,1,aux!$AL$1),"n.d.") -> n.d. | AA17: =O17-INDEX($K17:$O17,1,aux!$AL$1) -> 0 | AB17: 0 | AC17: 0 | AD17: =+IF(INDEX($K17:$O17,1,aux!$AL$1)>0,(O17/INDEX($K17:$O17,1,aux!$AL$1))^(1/($O$3-INDEX($K$3:$O$3,1,aux!$AL$1)))-1,"n.d.") -> n.d. | AE17: =IF(INDEX($K17:$O17,1,aux!$AL$1)>0,(O17-INDEX($K17:$O17,1,aux!$AL$1))/INDEX($K17:$O17,1,aux!$AL$1),"n.d.") -> n.d. | AX17: 02
A18: 0208 | B18: Outras carnes e miudezas | C18: 0 | D18: 0 | E18: 0 | F18: 0 | G18: 0 | H18: 0 | I18: 0 | J18: 0 | K18: 0 | L18: 0 | M18: 0 | N18: 0 | O18: 0 | P18: 0 | Q18: 0 | R18: 0 | S18: 0 | U18: =G18-INDEX($C18:$G18,1,aux!$AL$1) -> 0 | V18: 0 | W18: 0 | X18: =+IF(INDEX($C18:$G18,1,aux!$AL$1)>0,(G18/INDEX($C18:$G18,1,aux!$AL$1))^(1/($G$3-INDEX($C$3:$G$3,1,aux!$AL$1)))-1,"n.d.") -> n.d. | Y18: =IF(INDEX($C18:$G18,1,aux!$AL$1)>0,(G18-INDEX($C18:$G18,1,aux!$AL$1))/INDEX($C18:$G18,1,aux!$AL$1),"n.d.") -> n.d. | AA18: =O18-INDEX($K18:$O18,1,aux!$AL$1) -> 0 | AB18: 0 | AC18: 0 | AD18: =+IF(INDEX($K18:$O18,1,aux!$AL$1)>0,(O18/INDEX($K18:$O18,1,aux!$AL$1))^(1/($O$3-INDEX($K$3:$O$3,1,aux!$AL$1)))-1,"n.d.") -> n.d. | AE18: =IF(INDEX($K18:$O18,1,aux!$AL$1)>0,(O18-INDEX($K18:$O18,1,aux!$AL$1))/INDEX($K18:$O18,1,aux!$AL$1),"n.d.") -> n.d. | AX18: 02
A19: 0209 | B19: Toucinho, gorduras de porco e de aves | C19: 0 | D19: 0 | E19: 0 | F19: 0 | G19: 0 | H19: 0 | I19: 0 | J19: 0 | K19: 0 | L19: 0 | M19: 0 | N19: 0 | O19: 0 | P19: 0 | Q19: 0 | R19: 0 | S19: 0 | U19: =G19-INDEX($C19:$G19,1,aux!$AL$1) -> 0 | V19: 0 | W19: 0 | X19: =+IF(INDEX($C19:$G19,1,aux!$AL$1)>0,(G19/INDEX($C19:$G19,1,aux!$AL$1))^(1/($G$3-INDEX($C$3:$G$3,1,aux!$AL$1)))-1,"n.d.") -> n.d. | Y19: =IF(INDEX($C19:$G19,1,aux!$AL$1)>0,(G19-INDEX($C19:$G19,1,aux!$AL$1))/INDEX($C19:$G19,1,aux!$AL$1),"n.d.") -> n.d. | AA19: =O19-INDEX($K19:$O19,1,aux!$AL$1) -> 0 | AB19: 0 | AC19: 0 | AD19: =+IF(INDEX($K19:$O19,1,aux!$AL$1)>0,(O19/INDEX($K19:$O19,1,aux!$AL$1))^(1/($O$3-INDEX($K$3:$O$3,1,aux!$AL$1)))-1,"n.d.") -> n.d. | AE19: =IF(INDEX($K19:$O19,1,aux!$AL$1)>0,(O19-INDEX($K19:$O19,1,aux!$AL$1))/INDEX($K19:$O19,1,aux!$AL$1),"n.d.") -> n.d. | AX19: 02
A20: 0210 | B20: Carnes e miudezas processadas; farinhas de carnes | C20: 0 | D20: 0 | E20: 0 | F20: 0 | G20: 0 | H20: 0 | I20: 0 | J20: 0 | K20: 0 | L20: 0 | M20: 0.061 | N20: 0.436 | O20: 0.042 | P20: 0.1078 | Q20: 1.269171196e-05 | R20: 9.557669292e-06 | S20: 0.1078 | U20: =G20-INDEX($C20:$G20,1,aux!$AL$1) -> 0 | V20: 0 | W20: 0 | X20: =+IF(INDEX($C20:$G20,1,aux!$AL$1)>0,(G20/INDEX($C20:$G20,1,aux!$AL$1))^(1/($G$3-INDEX($C$3:$G$3,1,aux!$AL$1)))-1,"n.d.") -> n.d. | Y20: =IF(INDEX($C20:$G20,1,aux!$AL$1)>0,(G20-INDEX($C20:$G20,1,aux!$AL$1))/INDEX($C20:$G20,1,aux!$AL$1),"n.d.") -> n.d. | AA20: =O20-INDEX($K20:$O20,1,aux!$AL$1) -> 0.042 | AB20: 4.551287977e-06 | AC20: 4.646245386e-06 | AD20: =+IF(INDEX($K20:$O20,1,aux!$AL$1)>0,(O20/INDEX($K20:$O20,1,aux!$AL$1))^(1/($O$3-INDEX($K$3:$O$3,1,aux!$AL$1)))-1,"n.d.") -> n.d. | AE20: =IF(INDEX($K20:$O20,1,aux!$AL$1)>0,(O20-INDEX($K20:$O20,1,aux!$AL$1))/INDEX($K20:$O20,1,aux!$AL$1),"n.d.") -> n.d. | AX20: 02
A21: 02SS | B21: Carnes e miudezas, comestíveis | C21: 0 | D21: 0 | E21: 0 | F21: 0 | G21: 0 | H21: 0 | I21: 0 | J21: 0 | K21: 0 | L21: 0 | M21: 0 | N21: 0 | O21: 0 | P21: 0 | Q21: 0 | R21: 0 | S21: 0 | U21: =G21-INDEX($C21:$G21,1,aux!$AL$1) -> 0 | V21: 0 | W21: 0 | X21: =+IF(INDEX($C21:$G21,1,aux!$AL$1)>0,(G21/INDEX($C21:$G21,1,aux!$AL$1))^(1/($G$3-INDEX($C$3:$G$3,1,aux!$AL$1)))-1,"n.d.") -> n.d. | Y21: =IF(INDEX($C21:$G21,1,aux!$AL$1)>0,(G21-INDEX($C21:$G21,1,aux!$AL$1))/INDEX($C21:$G21,1,aux!$AL$1),"n.d.") -> n.d. | AA21: =O21-INDEX($K21:$O21,1,aux!$AL$1) -> 0 | AB21: 0 | AC21: 0 | AD21: =+IF(INDEX($K21:$O21,1,aux!$AL$1)>0,(O21/INDEX($K21:$O21,1,aux!$AL$1))^(1/($O$3-INDEX($K$3:$O$3,1,aux!$AL$1)))-1,"n.d.") -> n.d. | AE21: =IF(INDEX($K21:$O21,1,aux!$AL$1)>0,(O21-INDEX($K21:$O21,1,aux!$AL$1))/INDEX($K21:$O21,1,aux!$AL$1),"n.d.") -> n.d. | AX21: 02
A22: 0401 | B22: Leite e nata, não concentrados | C22: 0 | D22: 0 | E22: 0 | F22: 0 | G22: 0 | H22: 0 | I22: 0 | J22: 0 | K22: 0 | L22: 0 | M22: 0 | N22: 11.373 | O22: 40.659 | P22: 10.4064 | Q22: 0.001225185819 | R22: 0.0009226431328 | S22: 10.4064 | U22: =G22-INDEX($C22:$G22,1,aux!$AL$1) -> 0 | V22: 0 | W22: 0 | X22: =+IF(INDEX($C22:$G22,1,aux!$AL$1)>0,(G22/INDEX($C22:$G22,1,aux!$AL$1))^(1/($G$3-INDEX($C$3:$G$3,1,aux!$AL$1)))-1,"n.d.") -> n.d. | Y22: =IF(INDEX($C22:$G22,1,aux!$AL$1)>0,(G22-INDEX($C22:$G22,1,aux!$AL$1))/INDEX($C22:$G22,1,aux!$AL$1),"n.d.") -> n.d. | AA22: =O22-INDEX($K22:$O22,1,aux!$AL$1) -> 40.659 | AB22: 0.004405971853 | AC22: 0.004497897408 | AD22: =+IF(INDEX($K22:$O22,1,aux!$AL$1)>0,(O22/INDEX($K22:$O22,1,aux!$AL$1))^(1/($O$3-INDEX($K$3:$O$3,1,aux!$AL$1)))-1,"n.d.") -> n.d. | AE22: =IF(INDEX($K22:$O22,1,aux!$AL$1)>0,(O22-INDEX($K22:$O22,1,aux!$AL$1))/INDEX($K22:$O22,1,aux!$AL$1),"n.d.") -> n.d. | AX22: 04
A23: 0402 | B23: Leite e nata, concentrados | C23: 0 | D23: 0 | E23: 0 | F23: 0 | G23: 0 | H23: 0 | I23: 0 | J23: 0 | K23: 0 | L23: 0 | M23: 209.125 | N23: 632.624 | O23: 185.378 | P23: 205.4254 | Q23: 0.02418552881 | R23: 0.0182132471 | S23: 205.4254 | U23: =G23-INDEX($C23:$G23,1,aux!$AL$1) -> 0 | V23: 0 | W23: 0 | X23: =+IF(INDEX($C23:$G23,1,aux!$AL$1)>0,(G23/INDEX($C23:$G23,1,aux!$AL$1))^(1/($G$3-INDEX($C$3:$G$3,1,aux!$AL$1)))-1,"n.d.") -> n.d. | Y23: =IF(INDEX($C23:$G23,1,aux!$AL$1)>0,(G23-INDEX($C23:$G23,1,aux!$AL$1))/INDEX($C23:$G23,1,aux!$AL$1),"n.d.") -> n.d. | AA23: =O23-INDEX($K23:$O23,1,aux!$AL$1) -> 185.378 | AB23: 0.02008830149 | AC23: 0.02050742088 | AD23: =+IF(INDEX($K23:$O23,1,aux!$AL$1)>0,(O23/INDEX($K23:$O23,1,aux!$AL$1))^(1/($O$3-INDEX($K$3:$O$3,1,aux!$AL$1)))-1,"n.d.") -> n.d. | AE23: =IF(INDEX($K23:$O23,1,aux!$AL$1)>0,(O23-INDEX($K23:$O23,1,aux!$AL$1))/INDEX($K23:$O23,1,aux!$AL$1),"n.d.") -> n.d. | AX23: 04
A24: 0403 | B24: Leitelho, leite coalhado, iogurte, etc. | C24: 0 | D24: 0 | E24: 0 | F24: 0 | G24: 0 | H24: 0 | I24: 0 | J24: 0 | K24: 0 | L24: 0 | M24: 0 | N24: 0.196 | O24: 25.906 | P24: 5.2204 | Q24: 0.0006146179324 | R24: 0.0004628465378 | S24: 5.2204 | U24: =G24-INDEX($C24:$G24,1,aux!$AL$1) -> 0 | V24: 0 | W24: 0 | X24: =+IF(INDEX($C24:$G24,1,aux!$AL$1)>0,(G24/INDEX($C24:$G24,1,aux!$AL$1))^(1/($G$3-INDEX($C$3:$G$3,1,aux!$AL$1)))-1,"n.d.") -> n.d. | Y24: =IF(INDEX($C24:$G24,1,aux!$AL$1)>0,(G24-INDEX($C24:$G24,1,aux!$AL$1))/INDEX($C24:$G24,1,aux!$AL$1),"n.d.") -> n.d. | AA24: =O24-INDEX($K24:$O24,1,aux!$AL$1) -> 25.906 | AB24: 0.00280727777 | AC24: 0.002865848404 | AD24: =+IF(INDEX($K24:$O24,1,aux!$AL$1)>0,(O24/INDEX($K24:$O24,1,aux!$AL$1))^(1/($O$3-INDEX($K$3:$O$3,1,aux!$AL$1)))-1,"n.d.") -> n.d. | AE24: =IF(INDEX($K24:$O24,1,aux!$AL$1)>0,(O24-INDEX($K24:$O24,1,aux!$AL$1))/INDEX($K24:$O24,1,aux!$AL$1),"n.d.") -> n.d. | AX24: 04
A25: 0404 | B25: Soro de leite e outros produtos do leite | C25: 0 | D25: 0 | E25: 0 | F25: 0 | G25: 0 | H25: 0 | I25: 0 | J25: 0 | K25: 0 | L25: 0 | M25: 0 | N25: 0 | O25: 0 | P25: 0 | Q25: 0 | R25: 0 | S25: 0 | U25: =G25-INDEX($C25:$G25,1,aux!$AL$1) -> 0 | V25: 0 | W25: 0 | X25: =+IF(INDEX($C25:$G25,1,aux!$AL$1)>0,(G25/INDEX($C25:$G25,1,aux!$AL$1))^(1/($G$3-INDEX($C$3:$G$3,1,aux!$AL$1)))-1,"n.d.") -> n.d. | Y25: =IF(INDEX($C25:$G25,1,aux!$AL$1)>0,(G25-INDEX($C25:$G25,1,aux!$AL$1))/INDEX($C25:$G25,1,aux!$AL$1),"n.d.") -> n.d. | AA25: =O25-INDEX($K25:$O25,1,aux!$AL$1) -> 0 | AB25: 0 | AC25: 0 | AD25: =+IF(INDEX($K25:$O25,1,aux!$AL$1)>0,(O25/INDEX($K25:$O25,1,aux!$AL$1))^(1/($O$3-INDEX($K$3:$O$3,1,aux!$AL$1)))-1,"n.d.") -> n.d. | AE25: =IF(INDEX($K25:$O25,1,aux!$AL$1)>0,(O25-INDEX($K25:$O25,1,aux!$AL$1))/INDEX($K25:$O25,1,aux!$AL$1),"n.d.") -> n.d. | AX25: 04
A26: 0405 | B26: Manteiga | C26: 0 | D26: 0 | E26: 0 | F26: 0 | G26: 0 | H26: 0 | I26: 0 | J26: 0 | K26: 0 | L26: 0 | M26: 0 | N26: 0 | O26: 0.048 | P26: 0.0096 | Q26: 1.130245221e-06 | R26: 8.511468015e-07 | S26: 0.0096 | U26: =G26-INDEX($C26:$G26,1,aux!$AL$1) -> 0 | V26: 0 | W26: 0 | X26: =+IF(INDEX($C26:$G26,1,aux!$AL$1)>0,(G26/INDEX($C26:$G26,1,aux!$AL$1))^(1/($G$3-INDEX($C$3:$G$3,1,aux!$AL$1)))-1,"n.d.") -> n.d. | Y26: =IF(INDEX($C26:$G26,1,aux!$AL$1)>0,(G26-INDEX($C26:$G26,1,aux!$AL$1))/INDEX($C26:$G26,1,aux!$AL$1),"n.d.") -> n.d. | AA26: =O26-INDEX($K26:$O26,1,aux!$AL$1) -> 0.048 | AB26: 5.201471973e-06 | AC26: 5.309994727e-06 | AD26: =+IF(INDEX($K26:$O26,1,aux!$AL$1)>0,(O26/INDEX($K26:$O26,1,aux!$AL$1))^(1/($O$3-INDEX($K$3:$O$3,1,aux!$AL$1)))-1,"n.d.") -> n.d. | AE26: =IF(INDEX($K26:$O26,1,aux!$AL$1)>0,(O26-INDEX($K26:$O26,1,aux!$AL$1))/INDEX($K26:$O26,1,aux!$AL$1),"n.d.") -> n.d. | AX26: 04
A27: 0406 | B27: Queijos e requeijão | C27: 0 | D27: 0 | E27: 0 | F27: 0 | G27: 0 | H27: 0 | I27: 0 | J27: 0 | K27: 0 | L27: 0 | M27: 0.056 | N27: 0.171 | O27: 0.081 | P27: 0.0616 | Q27: 7.252406834e-06 | R27: 5.46152531e-06 | S27: 0.0616 | U27: =G27-INDEX($C27:$G27,1,aux!$AL$1) -> 0 | V27: 0 | W27: 0 | X27: =+IF(INDEX($C27:$G27,1,aux!$AL$1)>0,(G27/INDEX($C27:$G27,1,aux!$AL$1))^(1/($G$3-INDEX($C$3:$G$3,1,aux!$AL$1)))-1,"n.d.") -> n.d. | Y27: =IF(INDEX($C27:$G27,1,aux!$AL$1)>0,(G27-INDEX($C27:$G27,1,aux!$AL$1))/INDEX($C27:$G27,1,aux!$AL$1),"n.d.") -> n.d. | AA27: =O27-INDEX($K27:$O27,1,aux!$AL$1) -> 0.081 | AB27: 8.777483955e-06 | AC27: 8.960616101e-06 | AD27: =+IF(INDEX($K27:$O27,1,aux!$AL$1)>0,(O27/INDEX($K27:$O27,1,aux!$AL$1))^(1/($O$3-INDEX($K$3:$O$3,1,aux!$AL$1)))-1,"n.d.") -> n.d. | AE27: =IF(INDEX($K27:$O27,1,aux!$AL$1)>0,(O27-INDEX($K27:$O27,1,aux!$AL$1))/INDEX($K27:$O27,1,aux!$AL$1),"n.d.") -> n.d. | AX27: 04
A28: 0407 | B28: Ovos de aves, com cascas | C28: 0 | D28: 0 | E28: 0 | F28: 0 | G28: 0 | H28: 0 | I28: 0 | J28: 0 | K28: 0 | L28: 0 | M28: 0 | N28: 0 | O28: 0 | P28: 0 | Q28: 0 | R28: 0 | S28: 0 | U28: =G28-INDEX($C28:$G28,1,aux!$AL$1) -> 0 | V28: 0 | W28: 0 | X28: =+IF(INDEX($C28:$G28,1,aux!$AL$1)>0,(G28/INDEX($C28:$G28,1,aux!$AL$1))^(1/($G$3-INDEX($C$3:$G$3,1,aux!$AL$1)))-1,"n.d.") -> n.d. | Y28: =IF(INDEX($C28:$G28,1,aux!$AL$1)>0,(G28-INDEX($C28:$G28,1,aux!$AL$1))/INDEX($C28:$G28,1,aux!$AL$1),"n.d.") -> n.d. | AA28: =O28-INDEX($K28:$O28,1,aux!$AL$1) -> 0 | AB28: 0 | AC28: 0 | AD28: =+IF(INDEX($K28:$O28,1,aux!$AL$1)>0,(O28/INDEX($K28:$O28,1,aux!$AL$1))^(1/($O$3-INDEX($K$3:$O$3,1,aux!$AL$1)))-1,"n.d.") -> n.d. | AE28: =IF(INDEX($K28:$O28,1,aux!$AL$1)>0,(O28-INDEX($K28:$O28,1,aux!$AL$1))/INDEX($K28:$O28,1,aux!$AL$1),"n.d.") -> n.d. | AX28: 04
A29: 0408 | B29: Ovos de aves, sem casca | C29: 0 | D29: 0 | E29: 0 | F29: 0 | G29: 0 | H29: 0 | I29: 0 | J29: 0 | K29: 0 | L29: 0 | M29: 0 | N29: 0 | O29: 0 | P29: 0 | Q29: 0 | R29: 0 | S29: 0 | U29: =G29-INDEX($C29:$G29,1,aux!$AL$1) -> 0 | V29: 0 | W29: 0 | X29: =+IF(INDEX($C29:$G29,1,aux!$AL$1)>0,(G29/INDEX($C29:$G29,1,aux!$AL$1))^(1/($G$3-INDEX($C$3:$G$3,1,aux!$AL$1)))-1,"n.d.") -> n.d. | Y29: =IF(INDEX($C29:$G29,1,aux!$AL$1)>0,(G29-INDEX($C29:$G29,1,aux!$AL$1))/INDEX($C29:$G29,1,aux!$AL$1),"n.d.") -> n.d. | AA29: =O29-INDEX($K29:$O29,1,aux!$AL$1) -> 0 | AB29: 0 | AC29: 0 | AD29: =+IF(INDEX($K29:$O29,1,aux!$AL$1)>0,(O29/INDEX($K29:$O29,1,aux!$AL$1))^(1/($O$3-INDEX($K$3:$O$3,1,aux!$AL$1)))-1,"n.d.") -> n.d. | AE29: =IF(INDEX($K29:$O29,1,aux!$AL$1)>0,(O29-INDEX($K29:$O29,1,aux!$AL$1))/INDEX($K29:$O29,1,aux!$AL$1),"n.d.") -> n.d. | AX29: 04
A30: 0409 | B30: Mel natural | C30: 0 | D30: 0 | E30: 0 | F30: 0 | G30: 0 | H30: 0 | I30: 0 | J30: 0 | K30: 0 | L30: 1.634 | M30: 2.097 | N30: 0 | O30: 0 | P30: 0.7462 | Q30: 8.785301914e-05 | R30: 6.615893159e-05 | S30: 0.7462 | U30: =G30-INDEX($C30:$G30,1,aux!$AL$1) -> 0 | V30: 0 | W30: 0 | X30: =+IF(INDEX($C30:$G30,1,aux!$AL$1)>0,(G30/INDEX($C30:$G30,1,aux!$AL$1))^(1/($G$3-INDEX($C$3:$G$3,1,aux!$AL$1)))-1,"n.d.") -> n.d. | Y30: =IF(INDEX($C30:$G30,1,aux!$AL$1)>0,(G30-INDEX($C30:$G30,1,aux!$AL$1))/INDEX($C30:$G30,1,aux!$AL$1),"n.d.") -> n.d. | AA30: =O30-INDEX($K30:$O30,1,aux!$AL$1) -> 0 | AB30: 0 | AC30: 0 | AD30: =+IF(INDEX($K30:$O30,1,aux!$AL$1)>0,(O30/INDEX($K30:$O30,1,aux!$AL$1))^(1/($O$3-INDEX($K$3:$O$3,1,aux!$AL$1)))-1,"n.d.") -> n.d. | AE30: =IF(INDEX($K30:$O30,1,aux!$AL$1)>0,(O30-INDEX($K30:$O30,1,aux!$AL$1))/INDEX($K30:$O30,1,aux!$AL$1),"n.d.") -> n.d. | AX30: 04
A31: 0410 | B31: Outros produtos comestíveis de origem animal | C31: 0 | D31: 0 | E31: 0 | F31: 0 | G31: 0 | H31: 0 | I31: 0 | J31: 0 | K31: 0 | L31: 0 | M31: 0 | N31: 0 | O31: 0 | P31: 0 | Q31: 0 | R31: 0 | S31: 0 | U31: =G31-INDEX($C31:$G31,1,aux!$AL$1) -> 0 | V31: 0 | W31: 0 | X31: =+IF(INDEX($C31:$G31,1,aux!$AL$1)>0,(G31/INDEX($C31:$G31,1,aux!$AL$1))^(1/($G$3-INDEX($C$3:$G$3,1,aux!$AL$1)))-1,"n.d.") -> n.d. | Y31: =IF(INDEX($C31:$G31,1,aux!$AL$1)>0,(G31-INDEX($C31:$G31,1,aux!$AL$1))/INDEX($C31:$G31,1,aux!$AL$1),"n.d.") -> n.d. | AA31: =O31-INDEX($K31:$O31,1,aux!$AL$1) -> 0 | AB31: 0 | AC31: 0 | AD31: =+IF(INDEX($K31:$O31,1,aux!$AL$1)>0,(O31/INDEX($K31:$O31,1,aux!$AL$1))^(1/($O$3-INDEX($K$3:$O$3,1,aux!$AL$1)))-1,"n.d.") -> n.d. | AE31: =IF(INDEX($K31:$O31,1,aux!$AL$1)>0,(O31-INDEX($K31:$O31,1,aux!$AL$1))/INDEX($K31:$O31,1,aux!$AL$1),"n.d.") -> n.d. | AX31: 04
A32: 04SS | B32: Leite e lacticínios; ovos de aves; mel natural; etc. | C32: 0 | D32: 0 | E32: 0 | F32: 0 | G32: 0 | H32: 0 | I32: 0 | J32: 0 | K32: 0 | L32: 0 | M32: 0 | N32: 0 | O32: 0 | P32: 0 | Q32: 0 | R32: 0 | S32: 0 | U32: =G32-INDEX($C32:$G32,1,aux!$AL$1) -> 0 | V32: 0 | W32: 0 | X32: =+IF(INDEX($C32:$G32,1,aux!$AL$1)>0,(G32/INDEX($C32:$G32,1,aux!$AL$1))^(1/($G$3-INDEX($C$3:$G$3,1,aux!$AL$1)))-1,"n.d.") -> n.d. | Y32: =IF(INDEX($C32:$G32,1,aux!$AL$1)>0,(G32-INDEX($C32:$G32,1,aux!$AL$1))/INDEX($C32:$G32,1,aux!$AL$1),"n.d.") -> n.d. | AA32: =O32-INDEX($K32:$O32,1,aux!$AL$1) -> 0 | AB32: 0 | AC32: 0 | AD32: =+IF(INDEX($K32:$O32,1,aux!$AL$1)>0,(O32/INDEX($K32:$O32,1,aux!$AL$1))^(1/($O$3-INDEX($K$3:$O$3,1,aux!$AL$1)))-1,"n.d.") -> n.d. | AE32: =IF(INDEX($K32:$O32,1,aux!$AL$1)>0,(O32-INDEX($K32:$O32,1,aux!$AL$1))/INDEX($K32:$O32,1,aux!$AL$1),"n.d.") -> n.d. | AX32: 04
A33: 0501 | B33: Cabelos em bruto | C33: 0 | D33: 0 | E33: 0 | F33: 0 | G33: 0 | H33: 0 | I33: 0 | J33: 0 | K33: 0 | L33: 0.15 | M33: 0 | N33: 0 | O33: 0 | P33: 0.03 | Q33: 3.532016315e-06 | R33: 2.659833755e-06 | S33: 0.03 | U33: =G33-INDEX($C33:$G33,1,aux!$AL$1) -> 0 | V33: 0 | W33: 0 | X33: =+IF(INDEX($C33:$G33,1,aux!$AL$1)>0,(G33/INDEX($C33:$G33,1,aux!$AL$1))^(1/($G$3-INDEX($C$3:$G$3,1,aux!$AL$1)))-1,"n.d.") -> n.d. | Y33: =IF(INDEX($C33:$G33,1,aux!$AL$1)>0,(G33-INDEX($C33:$G33,1,aux!$AL$1))/INDEX($C33:$G33,1,aux!$AL$1),"n.d.") -> n.d. | AA33: =O33-INDEX($K33:$O33,1,aux!$AL$1) -> 0 | AB33: 0 | AC33: 0 | AD33: =+IF(INDEX($K33:$O33,1,aux!$AL$1)>0,(O33/INDEX($K33:$O33,1,aux!$AL$1))^(1/($O$3-INDEX($K$3:$O$3,1,aux!$AL$1)))-1,"n.d.") -> n.d. | AE33: =IF(INDEX($K33:$O33,1,aux!$AL$1)>0,(O33-INDEX($K33:$O33,1,aux!$AL$1))/INDEX($K33:$O33,1,aux!$AL$1),"n.d.") -> n.d. | AX33: 05
A34: 0502 | B34: Cerdas de porco ou de javali, etc. | C34: 0 | D34: 0 | E34: 0 | F34: 0 | G34: 0 | H34: 0 | I34: 0 | J34: 0 | K34: 0 | L34: 0 | M34: 0 | N34: 0 | O34: 0 | P34: 0 | Q34: 0 | R34: 0 | S34: 0 | U34: =G34-INDEX($C34:$G34,1,aux!$AL$1) -> 0 | V34: 0 | W34: 0 | X34: =+IF(INDEX($C34:$G34,1,aux!$AL$1)>0,(G34/INDEX($C34:$G34,1,aux!$AL$1))^(1/($G$3-INDEX($C$3:$G$3,1,aux!$AL$1)))-1,"n.d.") -> n.d. | Y34: =IF(INDEX($C34:$G34,1,aux!$AL$1)>0,(G34-INDEX($C34:$G34,1,aux!$AL$1))/INDEX($C34:$G34,1,aux!$AL$1),"n.d.") -> n.d. | AA34: =O34-INDEX($K34:$O34,1,aux!$AL$1) -> 0 | AB34: 0 | AC34: 0 | AD34: =+IF(INDEX($K34:$O34,1,aux!$AL$1)>0,(O34/INDEX($K34:$O34,1,aux!$AL$1))^(1/($O$3-INDEX($K$3:$O$3,1,aux!$AL$1)))-1,"n.d.") -> n.d. | AE34: =IF(INDEX($K34:$O34,1,aux!$AL$1)>0,(O34-INDEX($K34:$O34,1,aux!$AL$1))/INDEX($K34:$O34,1,aux!$AL$1),"n.d.") -> n.d. | AX34: 05
A35: 0504 | B35: Tripas de animais (excepto peixes) | C35: 0 | D35: 0 | E35: 0 | F35: 0 | G35: 0 | H35: 0 | I35: 0 | J35: 0 | K35: 0 | L35: 0 | M35: 0 | N35: 0 | O35: 0 | P35: 0 | Q35: 0 | R35: 0 | S35: 0 | U35: =G35-INDEX($C35:$G35,1,aux!$AL$1) -> 0 | V35: 0 | W35: 0 | X35: =+IF(INDEX($C35:$G35,1,aux!$AL$1)>0,(G35/INDEX($C35:$G35,1,aux!$AL$1))^(1/($G$3-INDEX($C$3:$G$3,1,aux!$AL$1)))-1,"n.d.") -> n.d. | Y35: =IF(INDEX($C35:$G35,1,aux!$AL$1)>0,(G35-INDEX($C35:$G35,1,aux!$AL$1))/INDEX($C35:$G35,1,aux!$AL$1),"n.d.") -> n.d. | AA35: =O35-INDEX($K35:$O35,1,aux!$AL$1) -> 0 | AB35: 0 | AC35: 0 | AD35: =+IF(INDEX($K35:$O35,1,aux!$AL$1)>0,(O35/INDEX($K35:$O35,1,aux!$AL$1))^(1/($O$3-INDEX($K$3:$O$3,1,aux!$AL$1)))-1,"n.d.") -> n.d. | AE35: =IF(INDEX($K35:$O35,1,aux!$AL$1)>0,(O35-INDEX($K35:$O35,1,aux!$AL$1))/INDEX($K35:$O35,1,aux!$AL$1),"n.d.") -> n.d. | AX35: 05
A36: 0505 | B36: Peles e outras partes de aves | C36: 0 | D36: 0 | E36: 0 | F36: 0 | G36: 0 | H36: 0 | I36: 0 | J36: 0 | K36: 0 | L36: 0 | M36: 0 | N36: 0 | O36: 0 | P36: 0 | Q36: 0 | R36: 0 | S36: 0 | U36: =G36-INDEX($C36:$G36,1,aux!$AL$1) -> 0 | V36: 0 | W36: 0 | X36: =+IF(INDEX($C36:$G36,1,aux!$AL$1)>0,(G36/INDEX($C36:$G36,1,aux!$AL$1))^(1/($G$3-INDEX($C$3:$G$3,1,aux!$AL$1)))-1,"n.d.") -> n.d. | Y36: =IF(INDEX($C36:$G36,1,aux!$AL$1)>0,(G36-INDEX($C36:$G36,1,aux!$AL$1))/INDEX($C36:$G36,1,aux!$AL$1),"n.d.") -> n.d. | AA36: =O36-INDEX($K36:$O36,1,aux!$AL$1) -> 0 | AB36: 0 | AC36: 0 | AD36: =+IF(INDEX($K36:$O36,1,aux!$AL$1)>0,(O36/INDEX($K36:$O36,1,aux!$AL$1))^(1/($O$3-INDEX($K$3:$O$3,1,aux!$AL$1)))-1,"n.d.") -> n.d. | AE36: =IF(INDEX($K36:$O36,1,aux!$AL$1)>0,(O36-INDEX($K36:$O36,1,aux!$AL$1))/INDEX($K36:$O36,1,aux!$AL$1),"n.d.") -> n.d. | AX36: 05
A37: 0506 | B37: Ossos e núcleos córneos, em bruto | C37: 0 | D37: 0 | E37: 0 | F37: 0 | G37: 0 | H37: 0 | I37: 0 | J37: 0 | K37: 0 | L37: 0 | M37: 0 | N37: 0 | O37: 0 | P37: 0 | Q37: 0 | R37: 0 | S37: 0 | U37: =G37-INDEX($C37:$G37,1,aux!$AL$1) -> 0 | V37: 0 | W37: 0 | X37: =+IF(INDEX($C37:$G37,1,aux!$AL$1)>0,(G37/INDEX($C37:$G37,1,aux!$AL$1))^(1/($G$3-INDEX($C$3:$G$3,1,aux!$AL$1)))-1,"n.d.") -> n.d. | Y37: =IF(INDEX($C37:$G37,1,aux!$AL$1)>0,(G37-INDEX($C37:$G37,1,aux!$AL$1))/INDEX($C37:$G37,1,aux!$AL$1),"n.d.") -> n.d. | AA37: =O37-INDEX($K37:$O37,1,aux!$AL$1) -> 0 | AB37: 0 | AC37: 0 | AD37: =+IF(INDEX($K37:$O37,1,aux!$AL$1)>0,(O37/INDEX($K37:$O37,1,aux!$AL$1))^(1/($O$3-INDEX($K$3:$O$3,1,aux!$AL$1)))-1,"n.d.") -> n.d. | AE37: =IF(INDEX($K37:$O37,1,aux!$AL$1)>0,(O37-INDEX($K37:$O37,1,aux!$AL$1))/INDEX($K37:$O37,1,aux!$AL$1),"n.d.") -> n.d. | AX37: 05
A38: 0507 | B38: Marfim, carapaças de tartaruga, etc. | C38: 0 | D38: 0 | E38: 0 | F38: 0 | G38: 0 | H38: 0 | I38: 0 | J38: 0 | K38: 0 | L38: 0 | M38: 0 | N38: 0 | O38: 0 | P38: 0 | Q38: 0 | R38: 0 | S38: 0 | U38: =G38-INDEX($C38:$G38,1,aux!$AL$1) -> 0 | V38: 0 | W38: 0 | X38: =+IF(INDEX($C38:$G38,1,aux!$AL$1)>0,(G38/INDEX($C38:$G38,1,aux!$AL$1))^(1/($G$3-INDEX($C$3:$G$3,1,aux!$AL$1)))-1,"n.d.") -> n.d. | Y38: =IF(INDEX($C38:$G38,1,aux!$AL$1)>0,(G38-INDEX($C38:$G38,1,aux!$AL$1))/INDEX($C38:$G38,1,aux!$AL$1),"n.d.") -> n.d. | AA38: =O38-INDEX($K38:$O38,1,aux!$AL$1) -> 0 | AB38: 0 | AC38: 0 | AD38: =+IF(INDEX($K38:$O38,1,aux!$AL$1)>0,(O38/INDEX($K38:$O38,1,aux!$AL$1))^(1/($O$3-INDEX($K$3:$O$3,1,aux!$AL$1)))-1,"n.d.") -> n.d. | AE38: =IF(INDEX($K38:$O38,1,aux!$AL$1)>0,(O38-INDEX($K38:$O38,1,aux!$AL$1))/INDEX($K38:$O38,1,aux!$AL$1),"n.d.") -> n.d. | AX38: 05
A39: 0510 | B39: Âmbar-cinzento, castóreo, algália e almíscar, etc. | C39: 0 | D39: 0 | E39: 0 | F39: 0 | G39: 0 | H39: 0 | I39: 0 | J39: 0 | K39: 0 | L39: 0 | M39: 0 | N39: 0 | O39: 0 | P39: 0 | Q39: 0 | R39: 0 | S39: 0 | U39: =G39-INDEX($C39:$G39,1,aux!$AL$1) -> 0 | V39: 0 | W39: 0 | X39: =+IF(INDEX($C39:$G39,1,aux!$AL$1)>0,(G39/INDEX($C39:$G39,1,aux!$AL$1))^(1/($G$3-INDEX($C$3:$G$3,1,aux!$AL$1)))-1,"n.d.") -> n.d. | Y39: =IF(INDEX($C39:$G39,1,aux!$AL$1)>0,(G39-INDEX($C39:$G39,1,aux!$AL$1))/INDEX($C39:$G39,1,aux!$AL$1),"n.d.") -> n.d. | AA39: =O39-INDEX($K39:$O39,1,aux!$AL$1) -> 0 | AB39: 0 | AC39: 0 | AD39: =+IF(INDEX($K39:$O39,1,aux!$AL$1)>0,(O39/INDEX($K39:$O39,1,aux!$AL$1))^(1/($O$3-INDEX($K$3:$O$3,1,aux!$AL$1)))-1,"n.d.") -> n.d. | AE39: =IF(INDEX($K39:$O39,1,aux!$AL$1)>0,(O39-INDEX($K39:$O39,1,aux!$AL$1))/INDEX($K39:$O39,1,aux!$AL$1),"n.d.") -> n.d. | AX39: 05
A40: 0511 | B40: Outros produtos de origem animal (exc. NC 0511 91) (a) | C40: 0 | D40: 0 | E40: 0 | F40: 0 | G40: 0 | H40: 0 | I40: 0 | J40: 0 | K40: 0 | L40: 0 | M40: 0 | N40: 0 | O40: 0 | P40: 0 | Q40: 0 | R40: 0 | S40: 0 | U40: =G40-INDEX($C40:$G40,1,aux!$AL$1) -> 0 | V40: 0 | W40: 0 | X40: =+IF(INDEX($C40:$G40,1,aux!$AL$1)>0,(G40/INDEX($C40:$G40,1,aux!$AL$1))^(1/($G$3-INDEX($C$3:$G$3,1,aux!$AL$1)))-1,"n.d.") -> n.d. | Y40: =IF(INDEX($C40:$G40,1,aux!$AL$1)>0,(G40-INDEX($C40:$G40,1,aux!$AL$1))/INDEX($C40:$G40,1,aux!$AL$1),"n.d.") -> n.d. | AA40: =O40-INDEX($K40:$O40,1,aux!$AL$1) -> 0 | AB40: 0 | AC40: 0 | AD40: =+IF(INDEX($K40:$O40,1,aux!$AL$1)>0,(O40/INDEX($K40:$O40,1,aux!$AL$1))^(1/($O$3-INDEX($K$3:$O$3,1,aux!$AL$1)))-1,"n.d.") -> n.d. | AE40: =IF(INDEX($K40:$O40,1,aux!$AL$1)>0,(O40-INDEX($K40:$O40,1,aux!$AL$1))/INDEX($K40:$O40,1,aux!$AL$1),"n.d.") -> n.d. | AX40: 05
A41: 05SS | B41: Outros produtos de origem animal | C41: 0 | D41: 0 | E41: 0 | F41: 0 | G41: 0 | H41: 0 | I41: 0 | J41: 0 | K41: 0 | L41: 0 | M41: 0 | N41: 0 | O41: 0 | P41: 0 | Q41: 0 | R41: 0 | S41: 0 | U41: =G41-INDEX($C41:$G41,1,aux!$AL$1) -> 0 | V41: 0 | W41: 0 | X41: =+IF(INDEX($C41:$G41,1,aux!$AL$1)>0,(G41/INDEX($C41:$G41,1,aux!$AL$1))^(1/($G$3-INDEX($C$3:$G$3,1,aux!$AL$1)))-1,"n.d.") -> n.d. | Y41: =IF(INDEX($C41:$G41,1,aux!$AL$1)>0,(G41-INDEX($C41:$G41,1,aux!$AL$1))/INDEX($C41:$G41,1,aux!$AL$1),"n.d.") -> n.d. | AA41: =O41-INDEX($K41:$O41,1,aux!$AL$1) -> 0 | AB41: 0 | AC41: 0 | AD41: =+IF(INDEX($K41:$O41,1,aux!$AL$1)>0,(O41/INDEX($K41:$O41,1,aux!$AL$1))^(1/($O$3-INDEX($K$3:$O$3,1,aux!$AL$1)))-1,"n.d.") -> n.d. | AE41: =IF(INDEX($K41:$O41,1,aux!$AL$1)>0,(O41-INDEX($K41:$O41,1,aux!$AL$1))/INDEX($K41:$O41,1,aux!$AL$1),"n.d.") -> n.d. | AX41: 05
A42: 0601 | B42: Bolbos, tubérculos, raízes, etc. | C42: 0 | D42: 0 | E42: 0 | F42: 0 | G42: 0 | H42: 0 | I42: 0 | J42: 0 | K42: 0 | L42: 0 | M42: 0 | N42: 0 | O42: 0 | P42: 0 | Q42: 0 | R42: 0 | S42: 0 | U42: =G42-INDEX($C42:$G42,1,aux!$AL$1) -> 0 | V42: 0 | W42: 0 | X42: =+IF(INDEX($C42:$G42,1,aux!$AL$1)>0,(G42/INDEX($C42:$G42,1,aux!$AL$1))^(1/($G$3-INDEX($C$3:$G$3,1,aux!$AL$1)))-1,"n.d.") -> n.d. | Y42: =IF(INDEX($C42:$G42,1,aux!$AL$1)>0,(G42-INDEX($C42:$G42,1,aux!$AL$1))/INDEX($C42:$G42,1,aux!$AL$1),"n.d.") -> n.d. | AA42: =O42-INDEX($K42:$O42,1,aux!$AL$1) -> 0 | AB42: 0 | AC42: 0 | AD42: =+IF(INDEX($K42:$O42,1,aux!$AL$1)>0,(O42/INDEX($K42:$O42,1,aux!$AL$1))^(1/($O$3-INDEX($K$3:$O$3,1,aux!$AL$1)))-1,"n.d.") -> n.d. | AE42: =IF(INDEX($K42:$O42,1,aux!$AL$1)>0,(O42-INDEX($K42:$O42,1,aux!$AL$1))/INDEX($K42:$O42,1,aux!$AL$1),"n.d.") -> n.d. | AX42: 06
A43: 0602 | B43: Plantas vivas | C43: 0 | D43: 0 | E43: 0 | F43: 0 | G43: 0 | H43: 0 | I43: 0 | J43: 0 | K43: 0 | L43: 0 | M43: 0 | N43: 0 | O43: 0 | P43: 0 | Q43: 0 | R43: 0 | S43: 0 | U43: =G43-INDEX($C43:$G43,1,aux!$AL$1) -> 0 | V43: 0 | W43: 0 | X43: =+IF(INDEX($C43:$G43,1,aux!$AL$1)>0,(G43/INDEX($C43:$G43,1,aux!$AL$1))^(1/($G$3-INDEX($C$3:$G$3,1,aux!$AL$1)))-1,"n.d.") -> n.d. | Y43: =IF(INDEX($C43:$G43,1,aux!$AL$1)>0,(G43-INDEX($C43:$G43,1,aux!$AL$1))/INDEX($C43:$G43,1,aux!$AL$1),"n.d.") -> n.d. | AA43: =O43-INDEX($K43:$O43,1,aux!$AL$1) -> 0 | AB43: 0 | AC43: 0 | AD43: =+IF(INDEX($K43:$O43,1,aux!$AL$1)>0,(O43/INDEX($K43:$O43,1,aux!$AL$1))^(1/($O$3-INDEX($K$3:$O$3,1,aux!$AL$1)))-1,"n.d.") -> n.d. | AE43: =IF(INDEX($K43:$O43,1,aux!$AL$1)>0,(O43-INDEX($K43:$O43,1,aux!$AL$1))/INDEX($K43:$O43,1,aux!$AL$1),"n.d.") -> n.d. | AX43: 06
A44: 0603 | B44: Flores e seus botões | C44: 0 | D44: 3.929 | E44: 0 | F44: 0 | G44: 0 | H44: 0.7858 | I44: 0.001394849671 | J44: 4.470775505e-05 | K44: 0 | L44: 0 | M44: 0 | N44: 0 | O44: 0 | P44: 0 | Q44: 0 | R44: 0 | S44: -0.7858 | U44: =G44-INDEX($C44:$G44,1,aux!$AL$1) -> 0 | V44: 0 | W44: 0 | X44: =+IF(INDEX($C44:$G44,1,aux!$AL$1)>0,(G44/INDEX($C44:$G44,1,aux!$AL$1))^(1/($G$3-INDEX($C$3:$G$3,1,aux!$AL$1)))-1,"n.d.") -> n.d. | Y44: =IF(INDEX($C44:$G44,1,aux!$AL$1)>0,(G44-INDEX($C44:$G44,1,aux!$AL$1))/INDEX($C44:$G44,1,aux!$AL$1),"n.d.") -> n.d. | AA44: =O44-INDEX($K44:$O44,1,aux!$AL$1) -> 0 | AB44: 0 | AC44: 0 | AD44: =+IF(INDEX($K44:$O44,1,aux!$AL$1)>0,(O44/INDEX($K44:$O44,1,aux!$AL$1))^(1/($O$3-INDEX($K$3:$O$3,1,aux!$AL$1)))-1,"n.d.") -> n.d. | AE44: =IF(INDEX($K44:$O44,1,aux!$AL$1)>0,(O44-INDEX($K44:$O44,1,aux!$AL$1))/INDEX($K44:$O44,1,aux!$AL$1),"n.d.") -> n.d. | AX44: 06
A45: 0604 | B45: Folhagem, folhas, ramos e outras partes de plantas | C45: 0 | D45: 0 | E45: 0 | F45: 0 | G45: 0 | H45: 0 | I45: 0 | J45: 0 | K45: 0 | L45: 0 | M45: 0 | N45: 0 | O45: 0 | P45: 0 | Q45: 0 | R45: 0 | S45: 0 | U45: =G45-INDEX($C45:$G45,1,aux!$AL$1) -> 0 | V45: 0 | W45: 0 | X45: =+IF(INDEX($C45:$G45,1,aux!$AL$1)>0,(G45/INDEX($C45:$G45,1,aux!$AL$1))^(1/($G$3-INDEX($C$3:$G$3,1,aux!$AL$1)))-1,"n.d.") -> n.d. | Y45: =IF(INDEX($C45:$G45,1,aux!$AL$1)>0,(G45-INDEX($C45:$G45,1,aux!$AL$1))/INDEX($C45:$G45,1,aux!$AL$1),"n.d.") -> n.d. | AA45: =O45-INDEX($K45:$O45,1,aux!$AL$1) -> 0 | AB45: 0 | AC45: 0 | AD45: =+IF(INDEX($K45:$O45,1,aux!$AL$1)>0,(O45/INDEX($K45:$O45,1,aux!$AL$1))^(1/($O$3-INDEX($K$3:$O$3,1,aux!$AL$1)))-1,"n.d.") -> n.d. | AE45: =IF(INDEX($K45:$O45,1,aux!$AL$1)>0,(O45-INDEX($K45:$O45,1,aux!$AL$1))/INDEX($K45:$O45,1,aux!$AL$1),"n.d.") -> n.d. | AX45: 06
A46: 06SS | B46: Plantas vivas e produtos de floricultura | C46: 0 | D46: 0 | E46: 0 | F46: 0 | G46: 0 | H46: 0 | I46: 0 | J46: 0 | K46: 0 | L46: 0 | M46: 0 | N46: 0 | O46: 0 | P46: 0 | Q46: 0 | R46: 0 | S46: 0 | U46: =G46-INDEX($C46:$G46,1,aux!$AL$1) -> 0 | V46: 0 | W46: 0 | X46: =+IF(INDEX($C46:$G46,1,aux!$AL$1)>0,(G46/INDEX($C46:$G46,1,aux!$AL$1))^(1/($G$3-INDEX($C$3:$G$3,1,aux!$AL$1)))-1,"n.d.") -> n.d. | Y46: =IF(INDEX($C46:$G46,1,aux!$AL$1)>0,(G46-INDEX($C46:$G46,1,aux!$AL$1))/INDEX($C46:$G46,1,aux!$AL$1),"n.d.") -> n.d. | AA46: =O46-INDEX($K46:$O46,1,aux!$AL$1) -> 0 | AB46: 0 | AC46: 0 | AD46: =+IF(INDEX($K46:$O46,1,aux!$AL$1)>0,(O46/INDEX($K46:$O46,1,aux!$AL$1))^(1/($O$3-INDEX($K$3:$O$3,1,aux!$AL$1)))-1,"n.d.") -> n.d. | AE46: =IF(INDEX($K46:$O46,1,aux!$AL$1)>0,(O46-INDEX($K46:$O46,1,aux!$AL$1))/INDEX($K46:$O46,1,aux!$AL$1),"n.d.") -> n.d. | AX46: 06
A47: 0701 | B47: Batatas, frescas ou refrigeradas | C47: 0 | D47: 0 | E47: 0 | F47: 0 | G47: 0 | H47: 0 | I47: 0 | J47: 0 | K47: 0 | L47: 2.1 | M47: 0 | N47: 0 | O47: 0 | P47: 0.42 | Q47: 4.944822841e-05 | R47: 3.723767257e-05 | S47: 0.42 | U47: =G47-INDEX($C47:$G47,1,aux!$AL$1) -> 0 | V47: 0 | W47: 0 | X47: =+IF(INDEX($C47:$G47,1,aux!$AL$1)>0,(G47/INDEX($C47:$G47,1,aux!$AL$1))^(1/($G$3-INDEX($C$3:$G$3,1,aux!$AL$1)))-1,"n.d.") -> n.d. | Y47: =IF(INDEX($C47:$G47,1,aux!$AL$1)>0,(G47-INDEX($C47:$G47,1,aux!$AL$1))/INDEX($C47:$G47,1,aux!$AL$1),"n.d.") -> n.d. | AA47: =O47-INDEX($K47:$O47,1,aux!$AL$1) -> 0 | AB47: 0 | AC47: 0 | AD47: =+IF(INDEX($K47:$O47,1,aux!$AL$1)>0,(O47/INDEX($K47:$O47,1,aux!$AL$1))^(1/($O$3-INDEX($K$3:$O$3,1,aux!$AL$1)))-1,"n.d.") -> n.d. | AE47: =IF(INDEX($K47:$O47,1,aux!$AL$1)>0,(O47-INDEX($K47:$O47,1,aux!$AL$1))/INDEX($K47:$O47,1,aux!$AL$1),"n.d.") -> n.d. | AX47: 07
A48: 0702 | B48: Tomates, frescos ou refrigerados | C48: 0 | D48: 0 | E48: 0 | F48: 0 | G48: 0 | H48: 0 | I48: 0 | J48: 0 | K48: 0 | L48: 0 | M48: 0 | N48: 0 | O48: 0 | P48: 0 | Q48: 0 | R48: 0 | S48: 0 | U48: =G48-INDEX($C48:$G48,1,aux!$AL$1) -> 0 | V48: 0 | W48: 0 | X48: =+IF(INDEX($C48:$G48,1,aux!$AL$1)>0,(G48/INDEX($C48:$G48,1,aux!$AL$1))^(1/($G$3-INDEX($C$3:$G$3,1,aux!$AL$1)))-1,"n.d.") -> n.d. | Y48: =IF(INDEX($C48:$G48,1,aux!$AL$1)>0,(G48-INDEX($C48:$G48,1,aux!$AL$1))/INDEX($C48:$G48,1,aux!$AL$1),"n.d.") -> n.d. | AA48: =O48-INDEX($K48:$O48,1,aux!$AL$1) -> 0 | AB48: 0 | AC48: 0 | AD48: =+IF(INDEX($K48:$O48,1,aux!$AL$1)>0,(O48/INDEX($K48:$O48,1,aux!$AL$1))^(1/($O$3-INDEX($K$3:$O$3,1,aux!$AL$1)))-1,"n.d.") -> n.d. | AE48: =IF(INDEX($K48:$O48,1,aux!$AL$1)>0,(O48-INDEX($K48:$O48,1,aux!$AL$1))/INDEX($K48:$O48,1,aux!$AL$1),"n.d.") -> n.d. | AX48: 07
A49: 0703 | B49: Cebolas, alhos, etc., frescos ou refrigerados | C49: 0 | D49: 0 | E49: 0 | F49: 0 | G49: 0 | H49: 0 | I49: 0 | J49: 0 | K49: 0 | L49: 0 | M49: 0 | N49: 0 | O49: 0 | P49: 0 | Q49: 0 | R49: 0 | S49: 0 | U49: =G49-INDEX($C49:$G49,1,aux!$AL$1) -> 0 | V49: 0 | W49: 0 | X49: =+IF(INDEX($C49:$G49,1,aux!$AL$1)>0,(G49/INDEX($C49:$G49,1,aux!$AL$1))^(1/($G$3-INDEX($C$3:$G$3,1,aux!$AL$1)))-1,"n.d.") -> n.d. | Y49: =IF(INDEX($C49:$G49,1,aux!$AL$1)>0,(G49-INDEX($C49:$G49,1,aux!$AL$1))/INDEX($C49:$G49,1,aux!$AL$1),"n.d.") -> n.d. | AA49: =O49-INDEX($K49:$O49,1,aux!$AL$1) -> 0 | AB49: 0 | AC49: 0 | AD49: =+IF(INDEX($K49:$O49,1,aux!$AL$1)>0,(O49/INDEX($K49:$O49,1,aux!$AL$1))^(1/($O$3-INDEX($K$3:$O$3,1,aux!$AL$1)))-1,"n.d.") -> n.d. | AE49: =IF(INDEX($K49:$O49,1,aux!$AL$1)>0,(O49-INDEX($K49:$O49,1,aux!$AL$1))/INDEX($K49:$O49,1,aux!$AL$1),"n.d.") -> n.d. | AX49: 07
A50: 0704 | B50: Couves, frescas ou refrigeradas | C50: 0 | D50: 0 | E50: 0 | F50: 0 | G50: 0 | H50: 0 | I50: 0 | J50: 0 | K50: 0 | L50: 0 | M50: 0 | N50: 0 | O50: 0.015 | P50: 0.003 | Q50: 3.532016315e-07 | R50: 2.659833755e-07 | S50: 0.003 | U50: =G50-INDEX($C50:$G50,1,aux!$AL$1) -> 0 | V50: 0 | W50: 0 | X50: =+IF(INDEX($C50:$G50,1,aux!$AL$1)>0,(G50/INDEX($C50:$G50,1,aux!$AL$1))^(1/($G$3-INDEX($C$3:$G$3,1,aux!$AL$1)))-1,"n.d.") -> n.d. | Y50: =IF(INDEX($C50:$G50,1,aux!$AL$1)>0,(G50-INDEX($C50:$G50,1,aux!$AL$1))/INDEX($C50:$G50,1,aux!$AL$1),"n.d.") -> n.d. | AA50: =O50-INDEX($K50:$O50,1,aux!$AL$1) -> 0.015 | AB50: 1.625459992e-06 | AC50: 1.659373352e-06 | AD50: =+IF(INDEX($K50:$O50,1,aux!$AL$1)>0,(O50/INDEX($K50:$O50,1,aux!$AL$1))^(1/($O$3-INDEX($K$3:$O$3,1,aux!$AL$1)))-1,"n.d.") -> n.d. | AE50: =IF(INDEX($K50:$O50,1,aux!$AL$1)>0,(O50-INDEX($K50:$O50,1,aux!$AL$1))/INDEX($K50:$O50,1,aux!$AL$1),"n.d.") -> n.d. | AX50: 07
A51: 0705 | B51: Alfaces, frescas ou refrigeradas | C51: 0 | D51: 0 | E51: 0 | F51: 0 | G51: 0 | H51: 0 | I51: 0 | J51: 0 | K51: 0 | L51: 0 | M51: 0 | N51: 0 | O51: 0 | P51: 0 | Q51: 0 | R51: 0 | S51: 0 | U51: =G51-INDEX($C51:$G51,1,aux!$AL$1) -> 0 | V51: 0 | W51: 0 | X51: =+IF(INDEX($C51:$G51,1,aux!$AL$1)>0,(G51/INDEX($C51:$G51,1,aux!$AL$1))^(1/($G$3-INDEX($C$3:$G$3,1,aux!$AL$1)))-1,"n.d.") -> n.d. | Y51: =IF(INDEX($C51:$G51,1,aux!$AL$1)>0,(G51-INDEX($C51:$G51,1,aux!$AL$1))/INDEX($C51:$G51,1,aux!$AL$1),"n.d.") -> n.d. | AA51: =O51-INDEX($K51:$O51,1,aux!$AL$1) -> 0 | AB51: 0 | AC51: 0 | AD51: =+IF(INDEX($K51:$O51,1,aux!$AL$1)>0,(O51/INDEX($K51:$O51,1,aux!$AL$1))^(1/($O$3-INDEX($K$3:$O$3,1,aux!$AL$1)))-1,"n.d.") -> n.d. | AE51: =IF(INDEX($K51:$O51,1,aux!$AL$1)>0,(O51-INDEX($K51:$O51,1,aux!$AL$1))/INDEX($K51:$O51,1,aux!$AL$1),"n.d.") -> n.d. | AX51: 07
A52: 0706 | B52: Cenouras, nabos, beterrabas, etc., frescos ou refrigerados | C52: 0 | D52: 0 | E52: 0 | F52: 0 | G52: 0 | H52: 0 | I52: 0 | J52: 0 | K52: 286.025 | L52: 49.388 | M52: 577.002 | N52: 176.93 | O52: 87.75 | P52: 235.419 | Q52: 0.02771679163 | R52: 0.02087251342 | S52: 235.419 | U52: =G52-INDEX($C52:$G52,1,aux!$AL$1) -> 0 | V52: 0 | W52: 0 | X52: =+IF(INDEX($C52:$G52,1,aux!$AL$1)>0,(G52/INDEX($C52:$G52,1,aux!$AL$1))^(1/($G$3-INDEX($C$3:$G$3,1,aux!$AL$1)))-1,"n.d.") -> n.d. | Y52: =IF(INDEX($C52:$G52,1,aux!$AL$1)>0,(G52-INDEX($C52:$G52,1,aux!$AL$1))/INDEX($C52:$G52,1,aux!$AL$1),"n.d.") -> n.d. | AA52: =O52-INDEX($K52:$O52,1,aux!$AL$1) -> -198.275 | AB52: -0.02148587199 | AC52: -0.02193415009 | AD52: =+IF(INDEX($K52:$O52,1,aux!$AL$1)>0,(O52/INDEX($K52:$O52,1,aux!$AL$1))^(1/($O$3-INDEX($K$3:$O$3,1,aux!$AL$1)))-1,"n.d.") -> -0.2557638133 | AE52: =IF(INDEX($K52:$O52,1,aux!$AL$1)>0,(O52-INDEX($K52:$O52,1,aux!$AL$1))/INDEX($K52:$O52,1,aux!$AL$1),"n.d.") -> -0.6932086356 | AX52: 07
A53: 0707 | B53: Pepinos e pepininhos, frescos ou refrigerados | C53: 0 | D53: 0 | E53: 0 | F53: 0 | G53: 0 | H53: 0 | I53: 0 | J53: 0 | K53: 0 | L53: 0 | M53: 0 | N53: 0 | O53: 0 | P53: 0 | Q53: 0 | R53: 0 | S53: 0 | U53: =G53-INDEX($C53:$G53,1,aux!$AL$1) -> 0 | V53: 0 | W53: 0 | X53: =+IF(INDEX($C53:$G53,1,aux!$AL$1)>0,(G53/INDEX($C53:$G53,1,aux!$AL$1))^(1/($G$3-INDEX($C$3:$G$3,1,aux!$AL$1)))-1,"n.d.") -> n.d. | Y53: =IF(INDEX($C53:$G53,1,aux!$AL$1)>0,(G53-INDEX($C53:$G53,1,aux!$AL$1))/INDEX($C53:$G53,1,aux!$AL$1),"n.d.") -> n.d. | AA53: =O53-INDEX($K53:$O53,1,aux!$AL$1) -> 0 | AB53: 0 | AC53: 0 | AD53: =+IF(INDEX($K53:$O53,1,aux!$AL$1)>0,(O53/INDEX($K53:$O53,1,aux!$AL$1))^(1/($O$3-INDEX($K$3:$O$3,1,aux!$AL$1)))-1,"n.d.") -> n.d. | AE53: =IF(INDEX($K53:$O53,1,aux!$AL$1)>0,(O53-INDEX($K53:$O53,1,aux!$AL$1))/INDEX($K53:$O53,1,aux!$AL$1),"n.d.") -> n.d. | AX53: 07
A54: 0708 | B54: Tomates preparados ou conservados | C54: 0 | D54: 0 | E54: 0 | F54: 0 | G54: 0 | H54: 0 | I54: 0 | J54: 0 | K54: 0 | L54: 0 | M54: 0 | N54: 0 | O54: 0 | P54: 0 | Q54: 0 | R54: 0 | S54: 0 | U54: =G54-INDEX($C54:$G54,1,aux!$AL$1) -> 0 | V54: 0 | W54: 0 | X54: =+IF(INDEX($C54:$G54,1,aux!$AL$1)>0,(G54/INDEX($C54:$G54,1,aux!$AL$1))^(1/($G$3-INDEX($C$3:$G$3,1,aux!$AL$1)))-1,"n.d.") -> n.d. | Y54: =IF(INDEX($C54:$G54,1,aux!$AL$1)>0,(G54-INDEX($C54:$G54,1,aux!$AL$1))/INDEX($C54:$G54,1,aux!$AL$1),"n.d.") -> n.d. | AA54: =O54-INDEX($K54:$O54,1,aux!$AL$1) -> 0 | AB54: 0 | AC54: 0 | AD54: =+IF(INDEX($K54:$O54,1,aux!$AL$1)>0,(O54/INDEX($K54:$O54,1,aux!$AL$1))^(1/($O$3-INDEX($K$3:$O$3,1,aux!$AL$1)))-1,"n.d.") -> n.d. | AE54: =IF(INDEX($K54:$O54,1,aux!$AL$1)>0,(O54-INDEX($K54:$O54,1,aux!$AL$1))/INDEX($K54:$O54,1,aux!$AL$1),"n.d.") -> n.d. | AX54: 07
A55: 0709 | B55: Outros produtos hortícolas, frescos ou refrigerados | C55: 0 | D55: 0 | E55: 1.051 | F55: 60.739 | G55: 0 | H55: 12.358 | I55: 0.02193630979 | J55: 0.0007031031267 | K55: 0 | L55: 0 | M55: 0 | N55: 0 | O55: 0 | P55: 0 | Q55: 0 | R55: 0 | S55: -12.358 | U55: =G55-INDEX($C55:$G55,1,aux!$AL$1) -> 0 | V55: 0 | W55: 0 | X55: =+IF(INDEX($C55:$G55,1,aux!$AL$1)>0,(G55/INDEX($C55:$G55,1,aux!$AL$1))^(1/($G$3-INDEX($C$3:$G$3,1,aux!$AL$1)))-1,"n.d.") -> n.d. | Y55: =IF(INDEX($C55:$G55,1,aux!$AL$1)>0,(G55-INDEX($C55:$G55,1,aux!$AL$1))/INDEX($C55:$G55,1,aux!$AL$1),"n.d.") -> n.d. | AA55: =O55-INDEX($K55:$O55,1,aux!$AL$1) -> 0 | AB55: 0 | AC55: 0 | AD55: =+IF(INDEX($K55:$O55,1,aux!$AL$1)>0,(O55/INDEX($K55:$O55,1,aux!$AL$1))^(1/($O$3-INDEX($K$3:$O$3,1,aux!$AL$1)))-1,"n.d.") -> n.d. | AE55: =IF(INDEX($K55:$O55,1,aux!$AL$1)>0,(O55-INDEX($K55:$O55,1,aux!$AL$1))/INDEX($K55:$O55,1,aux!$AL$1),"n.d.") -> n.d. | AX55: 07
A56: 0710 | B56: Produtos hortícolas congelados | C56: 0 | D56: 0 | E56: 0 | F56: 0 | G56: 0 | H56: 0 | I56: 0 | J56: 0 | K56: 0 | L56: 0 | M56: 0 | N56: 0 | O56: 0.176 | P56: 0.0352 | Q56: 4.144232476e-06 | R56: 3.120871606e-06 | S56: 0.0352 | U56: =G56-INDEX($C56:$G56,1,aux!$AL$1) -> 0 | V56: 0 | W56: 0 | X56: =+IF(INDEX($C56:$G56,1,aux!$AL$1)>0,(G56/INDEX($C56:$G56,1,aux!$AL$1))^(1/($G$3-INDEX($C$3:$G$3,1,aux!$AL$1)))-1,"n.d.") -> n.d. | Y56: =IF(INDEX($C56:$G56,1,aux!$AL$1)>0,(G56-INDEX($C56:$G56,1,aux!$AL$1))/INDEX($C56:$G56,1,aux!$AL$1),"n.d.") -> n.d. | AA56: =O56-INDEX($K56:$O56,1,aux!$AL$1) -> 0.176 | AB56: 1.90720639e-05 | AC56: 1.946998066e-05 | AD56: =+IF(INDEX($K56:$O56,1,aux!$AL$1)>0,(O56/INDEX($K56:$O56,1,aux!$AL$1))^(1/($O$3-INDEX($K$3:$O$3,1,aux!$AL$1)))-1,"n.d.") -> n.d. | AE56: =IF(INDEX($K56:$O56,1,aux!$AL$1)>0,(O56-INDEX($K56:$O56,1,aux!$AL$1))/INDEX($K56:$O56,1,aux!$AL$1),"n.d.") -> n.d. | AX56: 07
A57: 0711 | B57: Produtos hortícolas conservados transitoriamente | C57: 0 | D57: 0 | E57: 0 | F57: 0 | G57: 0 | H57: 0 | I57: 0 | J57: 0 | K57: 0 | L57: 0 | M57: 0 | N57: 0 | O57: 0 | P57: 0 | Q57: 0 | R57: 0 | S57: 0 | U57: =G57-INDEX($C57:$G57,1,aux!$AL$1) -> 0 | V57: 0 | W57: 0 | X57: =+IF(INDEX($C57:$G57,1,aux!$AL$1)>0,(G57/INDEX($C57:$G57,1,aux!$AL$1))^(1/($G$3-INDEX($C$3:$G$3,1,aux!$AL$1)))-1,"n.d.") -> n.d. | Y57: =IF(INDEX($C57:$G57,1,aux!$AL$1)>0,(G57-INDEX($C57:$G57,1,aux!$AL$1))/INDEX($C57:$G57,1,aux!$AL$1),"n.d.") -> n.d. | AA57: =O57-INDEX($K57:$O57,1,aux!$AL$1) -> 0 | AB57: 0 | AC57: 0 | AD57: =+IF(INDEX($K57:$O57,1,aux!$AL$1)>0,(O57/INDEX($K57:$O57,1,aux!$AL$1))^(1/($O$3-INDEX($K$3:$O$3,1,aux!$AL$1)))-1,"n.d.") -> n.d. | AE57: =IF(INDEX($K57:$O57,1,aux!$AL$1)>0,(O57-INDEX($K57:$O57,1,aux!$AL$1))/INDEX($K57:$O57,1,aux!$AL$1),"n.d.") -> n.d. | AX57: 07
A58: 0712 | B58: Produtos hortícolas secos | C58: 0 | D58: 0 | E58: 0 | F58: 0 | G58: 0 | H58: 0 | I58: 0 | J58: 0 | K58: 0 | L58: 0 | M58: 0 | N58: 1.312 | O58: 0 | P58: 0.2624 | Q58: 3.089336937e-05 | R58: 2.326467924e-05 | S58: 0.2624 | U58: =G58-INDEX($C58:$G58,1,aux!$AL$1) -> 0 | V58: 0 | W58: 0 | X58: =+IF(INDEX($C58:$G58,1,aux!$AL$1)>0,(G58/INDEX($C58:$G58,1,aux!$AL$1))^(1/($G$3-INDEX($C$3:$G$3,1,aux!$AL$1)))-1,"n.d.") -> n.d. | Y58: =IF(INDEX($C58:$G58,1,aux!$AL$1)>0,(G58-INDEX($C58:$G58,1,aux!$AL$1))/INDEX($C58:$G58,1,aux!$AL$1),"n.d.") -> n.d. | AA58: =O58-INDEX($K58:$O58,1,aux!$AL$1) -> 0 | AB58: 0 | AC58: 0 | AD58: =+IF(INDEX($K58:$O58,1,aux!$AL$1)>0,(O58/INDEX($K58:$O58,1,aux!$AL$1))^(1/($O$3-INDEX($K$3:$O$3,1,aux!$AL$1)))-1,"n.d.") -> n.d. | AE58: =IF(INDEX($K58:$O58,1,aux!$AL$1)>0,(O58-INDEX($K58:$O58,1,aux!$AL$1))/INDEX($K58:$O58,1,aux!$AL$1),"n.d.") -> n.d. | AX58: 07
A59: 0713 | B59: Legumes de vagem, secos, em grão | C59: 0 | D59: 0 | E59: 0 | F59: 0 | G59: 0 | H59: 0 | I59: 0 | J59: 0 | K59: 0 | L59: 0 | M59: 0 | N59: 0.084 | O59: 0.013 | P59: 0.0194 | Q59: 2.284037217e-06 | R59: 1.720025828e-06 | S59: 0.0194 | U59: =G59-INDEX($C59:$G59,1,aux!$AL$1) -> 0 | V59: 0 | W59: 0 | X59: =+IF(INDEX($C59:$G59,1,aux!$AL$1)>0,(G59/INDEX($C59:$G59,1,aux!$AL$1))^(1/($G$3-INDEX($C$3:$G$3,1,aux!$AL$1)))-1,"n.d.") -> n.d. | Y59: =IF(INDEX($C59:$G59,1,aux!$AL$1)>0,(G59-INDEX($C59:$G59,1,aux!$AL$1))/INDEX($C59:$G59,1,aux!$AL$1),"n.d.") -> n.d. | AA59: =O59-INDEX($K59:$O59,1,aux!$AL$1) -> 0.013 | AB59: 1.408731993e-06 | AC59: 1.438123572e-06 | AD59: =+IF(INDEX($K59:$O59,1,aux!$AL$1)>0,(O59/INDEX($K59:$O59,1,aux!$AL$1))^(1/($O$3-INDEX($K$3:$O$3,1,aux!$AL$1)))-1,"n.d.") -> n.d. | AE59: =IF(INDEX($K59:$O59,1,aux!$AL$1)>0,(O59-INDEX($K59:$O59,1,aux!$AL$1))/INDEX($K59:$O59,1,aux!$AL$1),"n.d.") -> n.d. | AX59: 07
A60: 0714 | B60: Raízes de mandioca, de araruta, batata-doce, etc. | C60: 0 | D60: 0 | E60: 0 | F60: 28.209 | G60: 0 | H60: 5.6418 | I60: 0.01001458752 | J60: 0.000320987799 | K60: 0 | L60: 0 | M60: 0 | N60: 0 | O60: 0 | P60: 0 | Q60: 0 | R60: 0 | S60: -5.6418 | U60: =G60-INDEX($C60:$G60,1,aux!$AL$1) -> 0 | V60: 0 | W60: 0 | X60: =+IF(INDEX($C60:$G60,1,aux!$AL$1)>0,(G60/INDEX($C60:$G60,1,aux!$AL$1))^(1/($G$3-INDEX($C$3:$G$3,1,aux!$AL$1)))-1,"n.d.") -> n.d. | Y60: =IF(INDEX($C60:$G60,1,aux!$AL$1)>0,(G60-INDEX($C60:$G60,1,aux!$AL$1))/INDEX($C60:$G60,1,aux!$AL$1),"n.d.") -> n.d. | AA60: =O60-INDEX($K60:$O60,1,aux!$AL$1) -> 0 | AB60: 0 | AC60: 0 | AD60: =+IF(INDEX($K60:$O60,1,aux!$AL$1)>0,(O60/INDEX($K60:$O60,1,aux!$AL$1))^(1/($O$3-INDEX($K$3:$O$3,1,aux!$AL$1)))-1,"n.d.") -> n.d. | AE60: =IF(INDEX($K60:$O60,1,aux!$AL$1)>0,(O60-INDEX($K60:$O60,1,aux!$AL$1))/INDEX($K60:$O60,1,aux!$AL$1),"n.d.") -> n.d. | AX60: 07
A61: 07SS | B61: Produtos hortícolas, plantas, raízes e tubérculos, comestíveis | C61: 0 | D61: 0 | E61: 0 | F61: 0 | G61: 0 | H61: 0 | I61: 0 | J61: 0 | K61: 0 | L61: 0 | M61: 0 | N61: 0 | O61: 0 | P61: 0 | Q61: 0 | R61: 0 | S61: 0 | U61: =G61-INDEX($C61:$G61,1,aux!$AL$1) -> 0 | V61: 0 | W61: 0 | X61: =+IF(INDEX($C61:$G61,1,aux!$AL$1)>0,(G61/INDEX($C61:$G61,1,aux!$AL$1))^(1/($G$3-INDEX($C$3:$G$3,1,aux!$AL$1)))-1,"n.d.") -> n.d. | Y61: =IF(INDEX($C61:$G61,1,aux!$AL$1)>0,(G61-INDEX($C61:$G61,1,aux!$AL$1))/INDEX($C61:$G61,1,aux!$AL$1),"n.d.") -> n.d. | AA61: =O61-INDEX($K61:$O61,1,aux!$AL$1) -> 0 | AB61: 0 | AC61: 0 | AD61: =+IF(INDEX($K61:$O61,1,aux!$AL$1)>0,(O61/INDEX($K61:$O61,1,aux!$AL$1))^(1/($O$3-INDEX($K$3:$O$3,1,aux!$AL$1)))-1,"n.d.") -> n.d. | AE61: =IF(INDEX($K61:$O61,1,aux!$AL$1)>0,(O61-INDEX($K61:$O61,1,aux!$AL$1))/INDEX($K61:$O61,1,aux!$AL$1),"n.d.") -> n.d. | AX61: 07
A62: 0801 | B62: Cocos, castanhas do brasil e castanha de cajú | C62: 0 | D62: 0 | E62: 0 | F62: 0 | G62: 0 | H62: 0 | I62: 0 | J62: 0 | K62: 0 | L62: 0.144 | M62: 0 | N62: 0 | O62: 0 | P62: 0.0288 | Q62: 3.390735662e-06 | R62: 2.553440405e-06 | S62: 0.0288 | U62: =G62-INDEX($C62:$G62,1,aux!$AL$1) -> 0 | V62: 0 | W62: 0 | X62: =+IF(INDEX($C62:$G62,1,aux!$AL$1)>0,(G62/INDEX($C62:$G62,1,aux!$AL$1))^(1/($G$3-INDEX($C$3:$G$3,1,aux!$AL$1)))-1,"n.d.") -> n.d. | Y62: =IF(INDEX($C62:$G62,1,aux!$AL$1)>0,(G62-INDEX($C62:$G62,1,aux!$AL$1))/INDEX($C62:$G62,1,aux!$AL$1),"n.d.") -> n.d. | AA62: =O62-INDEX($K62:$O62,1,aux!$AL$1) -> 0 | AB62: 0 | AC62: 0 | AD62: =+IF(INDEX($K62:$O62,1,aux!$AL$1)>0,(O62/INDEX($K62:$O62,1,aux!$AL$1))^(1/($O$3-INDEX($K$3:$O$3,1,aux!$AL$1)))-1,"n.d.") -> n.d. | AE62: =IF(INDEX($K62:$O62,1,aux!$AL$1)>0,(O62-INDEX($K62:$O62,1,aux!$AL$1))/INDEX($K62:$O62,1,aux!$AL$1),"n.d.") -> n.d. | AX62: 08
A63: 0802 | B63: Frutas de casca rija | C63: 9.581 | D63: 2.331 | E63: 1.795 | F63: 0 | G63: 0 | H63: 2.7414 | I63: 0.00486617573 | J63: 0.000155970781 | K63: 0 | L63: 0 | M63: 0.237 | N63: 0.018 | O63: 0 | P63: 0.051 | Q63: 6.004427736e-06 | R63: 4.521717383e-06 | S63: -2.6904 | U63: =G63-INDEX($C63:$G63,1,aux!$AL$1) -> -9.581 | V63: 0.03155786707 | W63: -0.09566363464 | X63: =+IF(INDEX($C63:$G63,1,aux!$AL$1)>0,(G63/INDEX($C63:$G63,1,aux!$AL$1))^(1/($G$3-INDEX($C$3:$G$3,1,aux!$AL$1)))-1,"n.d.") -> -1 | Y63: =IF(INDEX($C63:$G63,1,aux!$AL$1)>0,(G63-INDEX($C63:$G63,1,aux!$AL$1))/INDEX($C63:$G63,1,aux!$AL$1),"n.d.") -> -1 | AA63: =O63-INDEX($K63:$O63,1,aux!$AL$1) -> 0 | AB63: 0 | AC63: 0 | AD63: =+IF(INDEX($K63:$O63,1,aux!$AL$1)>0,(O63/INDEX($K63:$O63,1,aux!$AL$1))^(1/($O$3-INDEX($K$3:$O$3,1,aux!$AL$1)))-1,"n.d.") -> n.d. | AE63: =IF(INDEX($K63:$O63,1,aux!$AL$1)>0,(O63-INDEX($K63:$O63,1,aux!$AL$1))/INDEX($K63:$O63,1,aux!$AL$1),"n.d.") -> n.d. | AX63: 08
A64: 0803 | B64: Bananas, frescas ou secas | C64: 0 | D64: 0 | E64: 0 | F64: 0 | G64: 0 | H64: 0 | I64: 0 | J64: 0 | K64: 0 | L64: 0 | M64: 0 | N64: 0 | O64: 0 | P64: 0 | Q64: 0 | R64: 0 | S64: 0 | U64: =G64-INDEX($C64:$G64,1,aux!$AL$1) -> 0 | V64: 0 | W64: 0 | X64: =+IF(INDEX($C64:$G64,1,aux!$AL$1)>0,(G64/INDEX($C64:$G64,1,aux!$AL$1))^(1/($G$3-INDEX($C$3:$G$3,1,aux!$AL$1)))-1,"n.d.") -> n.d. | Y64: =IF(INDEX($C64:$G64,1,aux!$AL$1)>0,(G64-INDEX($C64:$G64,1,aux!$AL$1))/INDEX($C64:$G64,1,aux!$AL$1),"n.d.") -> n.d. | AA64: =O64-INDEX($K64:$O64,1,aux!$AL$1) -> 0 | AB64: 0 | AC64: 0 | AD64: =+IF(INDEX($K64:$O64,1,aux!$AL$1)>0,(O64/INDEX($K64:$O64,1,aux!$AL$1))^(1/($O$3-INDEX($K$3:$O$3,1,aux!$AL$1)))-1,"n.d.") -> n.d. | AE64: =IF(INDEX($K64:$O64,1,aux!$AL$1)>0,(O64-INDEX($K64:$O64,1,aux!$AL$1))/INDEX($K64:$O64,1,aux!$AL$1),"n.d.") -> n.d. | AX64: 08
A65: 0804 | B65: Tâmaras, figos, ananases, abacates, goiabas, mangas | C65: 0 | D65: 0 | E65: 0 | F65: 0 | G65: 0 | H65: 0 | I65: 0 | J65: 0 | K65: 0 | L65: 0 | M65: 0.014 | N65: 0 | O65: 0 | P65: 0.0028 | Q65: 3.296548561e-07 | R65: 2.482511504e-07 | S65: 0.0028 | U65: =G65-INDEX($C65:$G65,1,aux!$AL$1) -> 0 | V65: 0 | W65: 0 | X65: =+IF(INDEX($C65:$G65,1,aux!$AL$1)>0,(G65/INDEX($C65:$G65,1,aux!$AL$1))^(1/($G$3-INDEX($C$3:$G$3,1,aux!$AL$1)))-1,"n.d.") -> n.d. | Y65: =IF(INDEX($C65:$G65,1,aux!$AL$1)>0,(G65-INDEX($C65:$G65,1,aux!$AL$1))/INDEX($C65:$G65,1,aux!$AL$1),"n.d.") -> n.d. | AA65: =O65-INDEX($K65:$O65,1,aux!$AL$1) -> 0 | AB65: 0 | AC65: 0 | AD65: =+IF(INDEX($K65:$O65,1,aux!$AL$1)>0,(O65/INDEX($K65:$O65,1,aux!$AL$1))^(1/($O$3-INDEX($K$3:$O$3,1,aux!$AL$1)))-1,"n.d.") -> n.d. | AE65: =IF(INDEX($K65:$O65,1,aux!$AL$1)>0,(O65-INDEX($K65:$O65,1,aux!$AL$1))/INDEX($K65:$O65,1,aux!$AL$1),"n.d.") -> n.d. | AX65: 08
A66: 0805 | B66: Citrinos, frescos ou secos | C66: 0 | D66: 0 | E66: 0 | F66: 0 | G66: 0 | H66: 0 | I66: 0 | J66: 0 | K66: 0 | L66: 0 | M66: 0 | N66: 0 | O66: 0 | P66: 0 | Q66: 0 | R66: 0 | S66: 0 | U66: =G66-INDEX($C66:$G66,1,aux!$AL$1) -> 0 | V66: 0 | W66: 0 | X66: =+IF(INDEX($C66:$G66,1,aux!$AL$1)>0,(G66/INDEX($C66:$G66,1,aux!$AL$1))^(1/($G$3-INDEX($C$3:$G$3,1,aux!$AL$1)))-1,"n.d.") -> n.d. | Y66: =IF(INDEX($C66:$G66,1,aux!$AL$1)>0,(G66-INDEX($C66:$G66,1,aux!$AL$1))/INDEX($C66:$G66,1,aux!$AL$1),"n.d.") -> n.d. | AA66: =O66-INDEX($K66:$O66,1,aux!$AL$1) -> 0 | AB66: 0 | AC66: 0 | AD66: =+IF(INDEX($K66:$O66,1,aux!$AL$1)>0,(O66/INDEX($K66:$O66,1,aux!$AL$1))^(1/($O$3-INDEX($K$3:$O$3,1,aux!$AL$1)))-1,"n.d.") -> n.d. | AE66: =IF(INDEX($K66:$O66,1,aux!$AL$1)>0,(O66-INDEX($K66:$O66,1,aux!$AL$1))/INDEX($K66:$O66,1,aux!$AL$1),"n.d.") -> n.d. | AX66: 08
A67: 0806 | B67: Uvas, frescas ou secas | C67: 0 | D67: 0 | E67: 0 | F67: 0 | G67: 0 | H67: 0 | I67: 0 | J67: 0 | K67: 0 | L67: 14.256 | M67: 0.01 | N67: 0 | O67: 0.003 | P67: 2.8538 | Q67: 0.0003359889387 | R67: 0.000253021119 | S67: 2.8538 | U67: =G67-INDEX($C67:$G67,1,aux!$AL$1) -> 0 | V67: 0 | W67: 0 | X67: =+IF(INDEX($C67:$G67,1,aux!$AL$1)>0,(G67/INDEX($C67:$G67,1,aux!$AL$1))^(1/($G$3-INDEX($C$3:$G$3,1,aux!$AL$1)))-1,"n.d.") -> n.d. | Y67: =IF(INDEX($C67:$G67,1,aux!$AL$1)>0,(G67-INDEX($C67:$G67,1,aux!$AL$1))/INDEX($C67:$G67,1,aux!$AL$1),"n.d.") -> n.d. | AA67: =O67-INDEX($K67:$O67,1,aux!$AL$1) -> 0.003 | AB67: 3.250919983e-07 | AC67: 3.318746704e-07 | AD67: =+IF(INDEX($K67:$O67,1,aux!$AL$1)>0,(O67/INDEX($K67:$O67,1,aux!$AL$1))^(1/($O$3-INDEX($K$3:$O$3,1,aux!$AL$1)))-1,"n.d.") -> n.d. | AE67: =IF(INDEX($K67:$O67,1,aux!$AL$1)>0,(O67-INDEX($K67:$O67,1,aux!$AL$1))/INDEX($K67:$O67,1,aux!$AL$1),"n.d.") -> n.d. | AX67: 08
A68: 0807 | B68: Melões, melancias e papaia, frescos | C68: 0 | D68: 0 | E68: 0 | F68: 0 | G68: 0 | H68: 0 | I68: 0 | J68: 0 | K68: 0 | L68: 0 | M68: 0 | N68: 0 | O68: 0 | P68: 0 | Q68: 0 | R68: 0 | S68: 0 | U68: =G68-INDEX($C68:$G68,1,aux!$AL$1) -> 0 | V68: =IF($U$237<>0,U68/$U$237, "n.d.") -> 0 | W68: =IF($U$322<>0,U68/$U$322, "n.d.") -> 0 | X68: =+IF(INDEX($C68:$G68,1,aux!$AL$1)>0,(G68/INDEX($C68:$G68,1,aux!$AL$1))^(1/($G$3-INDEX($C$3:$G$3,1,aux!$AL$1)))-1,"n.d.") -> n.d. | Y68: =IF(INDEX($C68:$G68,1,aux!$AL$1)>0,(G68-INDEX($C68:$G68,1,aux!$AL$1))/INDEX($C68:$G68,1,aux!$AL$1),"n.d.") -> n.d. | AA68: =O68-INDEX($K68:$O68,1,aux!$AL$1) -> 0 | AB68: =IF($AA$237<>0,AA68/$AA$237, "n.d.") -> 0 | AC68: =IF($AA$322<>0,AA68/$AA$322, "n.d.") -> 0 | AD68: =+IF(INDEX($K68:$O68,1,aux!$AL$1)>0,(O68/INDEX($K68:$O68,1,aux!$AL$1))^(1/($O$3-INDEX($K$3:$O$3,1,aux!$AL$1)))-1,"n.d.") -> n.d. | AE68: =IF(INDEX($K68:$O68,1,aux!$AL$1)>0,(O68-INDEX($K68:$O68,1,aux!$AL$1))/INDEX($K68:$O68,1,aux!$AL$1),"n.d.") -> n.d. | AX68: 08
A69: 0808 | B69: Maçãs, peras e marmelos, frescos | C69: 0 | D69: 0 | E69: 0 | F69: 0 | G69: 0 | H69: 0 | I69: 0 | J69: 0 | K69: 20.054 | L69: 86.788 | M69: 63.256 | N69: 16.128 | O69: 0 | P69: 37.2452 | Q69: 0.004385021802 | R69: 0.003302201339 | S69: 37.2452 | U69: =G69-INDEX($C69:$G69,1,aux!$AL$1) -> 0 | V69: 0 | W69: 0 | X69: =+IF(INDEX($C69:$G69,1,aux!$AL$1)>0,(G69/INDEX($C69:$G69,1,aux!$AL$1))^(1/($G$3-INDEX($C$3:$G$3,1,aux!$AL$1)))-1,"n.d.") -> n.d. | Y69: =IF(INDEX($C69:$G69,1,aux!$AL$1)>0,(G69-INDEX($C69:$G69,1,aux!$AL$1))/INDEX($C69:$G69,1,aux!$AL$1),"n.d.") -> n.d. | AA69: =O69-INDEX($K69:$O69,1,aux!$AL$1) -> -20.054 | AB69: -0.002173131645 | AC69: -0.002218471547 | AD69: =+IF(INDEX($K69:$O69,1,aux!$AL$1)>0,(O69/INDEX($K69:$O69,1,aux!$AL$1))^(1/($O$3-INDEX($K$3:$O$3,1,aux!$AL$1)))-1,"n.d.") -> -1 | AE69: =IF(INDEX($K69:$O69,1,aux!$AL$1)>0,(O69-INDEX($K69:$O69,1,aux!$AL$1))/INDEX($K69:$O69,1,aux!$AL$1),"n.d.") -> -1 | AX69: 08
A70: 0809 | B70: Damascos, cerejas, pêssegos, etc., frescos | C70: 0 | D70: 0 | E70: 0 | F70: 0 | G70: 0 | H70: 0 | I70: 0 | J70: 0 | K70: 0 | L70: 8.635 | M70: 0 | N70: 0 | O70: 0 | P70: 1.727 | Q70: 0.0002033264059 | R70: 0.0001531177631 | S70: 1.727 | U70: =G70-INDEX($C70:$G70,1,aux!$AL$1) -> 0 | V70: 0 | W70: 0 | X70: =+IF(INDEX($C70:$G70,1,aux!$AL$1)>0,(G70/INDEX($C70:$G70,1,aux!$AL$1))^(1/($G$3-INDEX($C$3:$G$3,1,aux!$AL$1)))-1,"n.d.") -> n.d. | Y70: =IF(INDEX($C70:$G70,1,aux!$AL$1)>0,(G70-INDEX($C70:$G70,1,aux!$AL$1))/INDEX($C70:$G70,1,aux!$AL$1),"n.d.") -> n.d. | AA70: =O70-INDEX($K70:$O70,1,aux!$AL$1) -> 0 | AB70: 0 | AC70: 0 | AD70: =+IF(INDEX($K70:$O70,1,aux!$AL$1)>0,(O70/INDEX($K70:$O70,1,aux!$AL$1))^(1/($O$3-INDEX($K$3:$O$3,1,aux!$AL$1)))-1,"n.d.") -> n.d. | AE70: =IF(INDEX($K70:$O70,1,aux!$AL$1)>0,(O70-INDEX($K70:$O70,1,aux!$AL$1))/INDEX($K70:$O70,1,aux!$AL$1),"n.d.") -> n.d. | AX70: 08
A71: 0810 | B71: Outras frutas frescas | C71: 0 | D71: 0 | E71: 0 | F71: 0 | G71: 0 | H71: 0 | I71: 0 | J71: 0 | K71: 0.003 | L71: 77.55 | M71: 0 | N71: 0 | O71: 0 | P71: 15.5106 | Q71: 0.001826123075 | R71: 0.001375187248 | S71: 15.5106 | U71: =G71-INDEX($C71:$G71,1,aux!$AL$1) -> 0 | V71: 0 | W71: 0 | X71: =+IF(INDEX($C71:$G71,1,aux!$AL$1)>0,(G71/INDEX($C71:$G71,1,aux!$AL$1))^(1/($G$3-INDEX($C$3:$G$3,1,aux!$AL$1)))-1,"n.d.") -> n.d. | Y71: =IF(INDEX($C71:$G71,1,aux!$AL$1)>0,(G71-INDEX($C71:$G71,1,aux!$AL$1))/INDEX($C71:$G71,1,aux!$AL$1),"n.d.") -> n.d. | AA71: =O71-INDEX($K71:$O71,1,aux!$AL$1) -> -0.003 | AB71: -3.250919983e-07 | AC71: -3.318746704e-07 | AD71: =+IF(INDEX($K71:$O71,1,aux!$AL$1)>0,(O71/INDEX($K71:$O71,1,aux!$AL$1))^(1/($O$3-INDEX($K$3:$O$3,1,aux!$AL$1)))-1,"n.d.") -> -1 | AE71: =IF(INDEX($K71:$O71,1,aux!$AL$1)>0,(O71-INDEX($K71:$O71,1,aux!$AL$1))/INDEX($K71:$O71,1,aux!$AL$1),"n.d.") -> -1 | AX71: 08
A72: 0811 | B72: Frutas não cozidas ou cozidas em água ou vapor, congeladas | C72: 0 | D72: 0 | E72: 0 | F72: 0 | G72: 0 | H72: 0 | I72: 0 | J72: 0 | K72: 0 | L72: 0 | M72: 0 | N72: 0 | O72: 0 | P72: 0 | Q72: 0 | R72: 0 | S72: 0 | U72: =G72-INDEX($C72:$G72,1,aux!$AL$1) -> 0 | V72: 0 | W72: 0 | X72: =+IF(INDEX($C72:$G72,1,aux!$AL$1)>0,(G72/INDEX($C72:$G72,1,aux!$AL$1))^(1/($G$3-INDEX($C$3:$G$3,1,aux!$AL$1)))-1,"n.d.") -> n.d. | Y72: =IF(INDEX($C72:$G72,1,aux!$AL$1)>0,(G72-INDEX($C72:$G72,1,aux!$AL$1))/INDEX($C72:$G72,1,aux!$AL$1),"n.d.") -> n.d. | AA72: =O72-INDEX($K72:$O72,1,aux!$AL$1) -> 0 | AB72: 0 | AC72: 0 | AD72: =+IF(INDEX($K72:$O72,1,aux!$AL$1)>0,(O72/INDEX($K72:$O72,1,aux!$AL$1))^(1/($O$3-INDEX($K$3:$O$3,1,aux!$AL$1)))-1,"n.d.") -> n.d. | AE72: =IF(INDEX($K72:$O72,1,aux!$AL$1)>0,(O72-INDEX($K72:$O72,1,aux!$AL$1))/INDEX($K72:$O72,1,aux!$AL$1),"n.d.") -> n.d. | AX72: 08
A73: 0812 | B73: Frutas conservadas transitoriamente | C73: 0 | D73: 0 | E73: 0 | F73: 0 | G73: 0 | H73: 0 | I73: 0 | J73: 0 | K73: 0 | L73: 0 | M73: 0 | N73: 0 | O73: 0 | P73: 0 | Q73: 0 | R73: 0 | S73: 0 | U73: =G73-INDEX($C73:$G73,1,aux!$AL$1) -> 0 | V73: 0 | W73: 0 | X73: =+IF(INDEX($C73:$G73,1,aux!$AL$1)>0,(G73/INDEX($C73:$G73,1,aux!$AL$1))^(1/($G$3-INDEX($C$3:$G$3,1,aux!$AL$1)))-1,"n.d.") -> n.d. | Y73: =IF(INDEX($C73:$G73,1,aux!$AL$1)>0,(G73-INDEX($C73:$G73,1,aux!$AL$1))/INDEX($C73:$G73,1,aux!$AL$1),"n.d.") -> n.d. | AA73: =O73-INDEX($K73:$O73,1,aux!$AL$1) -> 0 | AB73: 0 | AC73: 0 | AD73: =+IF(INDEX($K73:$O73,1,aux!$AL$1)>0,(O73/INDEX($K73:$O73,1,aux!$AL$1))^(1/($O$3-INDEX($K$3:$O$3,1,aux!$AL$1)))-1,"n.d.") -> n.d. | AE73: =IF(INDEX($K73:$O73,1,aux!$AL$1)>0,(O73-INDEX($K73:$O73,1,aux!$AL$1))/INDEX($K73:$O73,1,aux!$AL$1),"n.d.") -> n.d. | AX73: 08
A74: 0813 | B74: Outras frutas secas | C74: 0 | D74: 0 | E74: 1.856 | F74: 5.372 | G74: 6.866 | H74: 2.8188 | I74: 0.005003566115 | J74: 0.0001603744209 | K74: 0 | L74: 0 | M74: 0.063 | N74: 0 | O74: 0 | P74: 0.0126 | Q74: 1.483446852e-06 | R74: 1.117130177e-06 | S74: -2.8062 | U74: =G74-INDEX($C74:$G74,1,aux!$AL$1) -> 6.866 | V74: -0.02261520878 | W74: 0.06855511068 | X74: =+IF(INDEX($C74:$G74,1,aux!$AL$1)>0,(G74/INDEX($C74:$G74,1,aux!$AL$1))^(1/($G$3-INDEX($C$3:$G$3,1,aux!$AL$1)))-1,"n.d.") -> n.d. | Y74: =IF(INDEX($C74:$G74,1,aux!$AL$1)>0,(G74-INDEX($C74:$G74,1,aux!$AL$1))/INDEX($C74:$G74,1,aux!$AL$1),"n.d.") -> n.d. | AA74: =O74-INDEX($K74:$O74,1,aux!$AL$1) -> 0 | AB74: 0 | AC74: 0 | AD74: =+IF(INDEX($K74:$O74,1,aux!$AL$1)>0,(O74/INDEX($K74:$O74,1,aux!$AL$1))^(1/($O$3-INDEX($K$3:$O$3,1,aux!$AL$1)))-1,"n.d.") -> n.d. | AE74: =IF(INDEX($K74:$O74,1,aux!$AL$1)>0,(O74-INDEX($K74:$O74,1,aux!$AL$1))/INDEX($K74:$O74,1,aux!$AL$1),"n.d.") -> n.d. | AX74: 08
A75: 0814 | B75: Cascas de citrinos, melões ou melancias | C75: 0 | D75: 0 | E75: 0 | F75: 0 | G75: 0 | H75: 0 | I75: 0 | J75: 0 | K75: 0 | L75: 0 | M75: 0 | N75: 0 | O75: 0 | P75: 0 | Q75: 0 | R75: 0 | S75: 0 | U75: =G75-INDEX($C75:$G75,1,aux!$AL$1) -> 0 | V75: 0 | W75: 0 | X75: =+IF(INDEX($C75:$G75,1,aux!$AL$1)>0,(G75/INDEX($C75:$G75,1,aux!$AL$1))^(1/($G$3-INDEX($C$3:$G$3,1,aux!$AL$1)))-1,"n.d.") -> n.d. | Y75: =IF(INDEX($C75:$G75,1,aux!$AL$1)>0,(G75-INDEX($C75:$G75,1,aux!$AL$1))/INDEX($C75:$G75,1,aux!$AL$1),"n.d.") -> n.d. | AA75: =O75-INDEX($K75:$O75,1,aux!$AL$1) -> 0 | AB75: 0 | AC75: 0 | AD75: =+IF(INDEX($K75:$O75,1,aux!$AL$1)>0,(O75/INDEX($K75:$O75,1,aux!$AL$1))^(1/($O$3-INDEX($K$3:$O$3,1,aux!$AL$1)))-1,"n.d.") -> n.d. | AE75: =IF(INDEX($K75:$O75,1,aux!$AL$1)>0,(O75-INDEX($K75:$O75,1,aux!$AL$1))/INDEX($K75:$O75,1,aux!$AL$1),"n.d.") -> n.d. | AX75: =+LEFT(A75,2) -> 08
A76: 08SS | B76: Frutas; cascas de citrinos e de melões | C76: 0 | D76: 0 | E76: 0 | F76: 0 | G76: 0 | H76: 0 | I76: 0 | J76: 0 | K76: 0 | L76: 0 | M76: 0 | N76: 0 | O76: 0 | P76: 0 | Q76: 0 | R76: 0 | S76: 0 | U76: =G76-INDEX($C76:$G76,1,aux!$AL$1) -> 0 | V76: 0 | W76: 0 | X76: =+IF(INDEX($C76:$G76,1,aux!$AL$1)>0,(G76/INDEX($C76:$G76,1,aux!$AL$1))^(1/($G$3-INDEX($C$3:$G$3,1,aux!$AL$1)))-1,"n.d.") -> n.d. | Y76: =IF(INDEX($C76:$G76,1,aux!$AL$1)>0,(G76-INDEX($C76:$G76,1,aux!$AL$1))/INDEX($C76:$G76,1,aux!$AL$1),"n.d.") -> n.d. | AA76: =O76-INDEX($K76:$O76,1,aux!$AL$1) -> 0 | AB76: 0 | AC76: 0 | AD76: =+IF(INDEX($K76:$O76,1,aux!$AL$1)>0,(O76/INDEX($K76:$O76,1,aux!$AL$1))^(1/($O$3-INDEX($K$3:$O$3,1,aux!$AL$1)))-1,"n.d.") -> n.d. | AE76: =IF(INDEX($K76:$O76,1,aux!$AL$1)>0,(O76-INDEX($K76:$O76,1,aux!$AL$1))/INDEX($K76:$O76,1,aux!$AL$1),"n.d.") -> n.d. | AX76: 08
A77: 0901 | B77: Café | C77: 0 | D77: 0 | E77: 0.243 | F77: 0 | G77: 0 | H77: 0.0486 | I77: 8.626838129e-05 | J77: 2.765076223e-06 | K77: 0 | L77: 0 | M77: 4.048 | N77: 1.448 | O77: 0.026 | P77: 1.1044 | Q77: 0.0001300252939 | R77: 9.791734662e-05 | S77: 1.0558 | U77: =G77-INDEX($C77:$G77,1,aux!$AL$1) -> 0 | V77: 0 | W77: 0 | X77: =+IF(INDEX($C77:$G77,1,aux!$AL$1)>0,(G77/INDEX($C77:$G77,1,aux!$AL$1))^(1/($G$3-INDEX($C$3:$G$3,1,aux!$AL$1)))-1,"n.d.") -> n.d. | Y77: =IF(INDEX($C77:$G77,1,aux!$AL$1)>0,(G77-INDEX($C77:$G77,1,aux!$AL$1))/INDEX($C77:$G77,1,aux!$AL$1),"n.d.") -> n.d. | AA77: =O77-INDEX($K77:$O77,1,aux!$AL$1) -> 0.026 | AB77: 2.817463985e-06 | AC77: 2.876247144e-06 | AD77: =+IF(INDEX($K77:$O77,1,aux!$AL$1)>0,(O77/INDEX($K77:$O77,1,aux!$AL$1))^(1/($O$3-INDEX($K$3:$O$3,1,aux!$AL$1)))-1,"n.d.") -> n.d. | AE77: =IF(INDEX($K77:$O77,1,aux!$AL$1)>0,(O77-INDEX($K77:$O77,1,aux!$AL$1))/INDEX($K77:$O77,1,aux!$AL$1),"n.d.") -> n.d. | AX77: 09
A78: 0902 | B78: Chá | C78: 0 | D78: 0 | E78: 0 | F78: 0 | G78: 0.175 | H78: 0.035 | I78: 6.212743508e-05 | J78: 1.991310037e-06 | K78: 0 | L78: 0 | M78: 4.433 | N78: 0.176 | O78: 2.112 | P78: 1.3442 | Q78: 0.0001582578777 | R78: 0.0001191782844 | S78: 1.3092 | U78: =G78-INDEX($C78:$G78,1,aux!$AL$1) -> 0.175 | V78: -0.0005764144387 | W78: 0.00174732659 | X78: =+IF(INDEX($C78:$G78,1,aux!$AL$1)>0,(G78/INDEX($C78:$G78,1,aux!$AL$1))^(1/($G$3-INDEX($C$3:$G$3,1,aux!$AL$1)))-1,"n.d.") -> n.d. | Y78: =IF(INDEX($C78:$G78,1,aux!$AL$1)>0,(G78-INDEX($C78:$G78,1,aux!$AL$1))/INDEX($C78:$G78,1,aux!$AL$1),"n.d.") -> n.d. | AA78: =O78-INDEX($K78:$O78,1,aux!$AL$1) -> 2.112 | AB78: 0.0002288647668 | AC78: 0.000233639768 | AD78: =+IF(INDEX($K78:$O78,1,aux!$AL$1)>0,(O78/INDEX($K78:$O78,1,aux!$AL$1))^(1/($O$3-INDEX($K$3:$O$3,1,aux!$AL$1)))-1,"n.d.") -> n.d. | AE78: =IF(INDEX($K78:$O78,1,aux!$AL$1)>0,(O78-INDEX($K78:$O78,1,aux!$AL$1))/INDEX($K78:$O78,1,aux!$AL$1),"n.d.") -> n.d. | AX78: 09
A79: 0903 | B79: Mate | C79: 0 | D79: 0 | E79: 0 | F79: 0 | G79: 0 | H79: 0 | I79: 0 | J79: 0 | K79: 0 | L79: 0 | M79: 0 | N79: 0 | O79: 0 | P79: 0 | Q79: 0 | R79: 0 | S79: 0 | U79: =G79-INDEX($C79:$G79,1,aux!$AL$1) -> 0 | V79: 0 | W79: 0 | X79: =+IF(INDEX($C79:$G79,1,aux!$AL$1)>0,(G79/INDEX($C79:$G79,1,aux!$AL$1))^(1/($G$3-INDEX($C$3:$G$3,1,aux!$AL$1)))-1,"n.d.") -> n.d. | Y79: =IF(INDEX($C79:$G79,1,aux!$AL$1)>0,(G79-INDEX($C79:$G79,1,aux!$AL$1))/INDEX($C79:$G79,1,aux!$AL$1),"n.d.") -> n.d. | AA79: =O79-INDEX($K79:$O79,1,aux!$AL$1) -> 0 | AB79: 0 | AC79: 0 | AD79: =+IF(INDEX($K79:$O79,1,aux!$AL$1)>0,(O79/INDEX($K79:$O79,1,aux!$AL$1))^(1/($O$3-INDEX($K$3:$O$3,1,aux!$AL$1)))-1,"n.d.") -> n.d. | AE79: =IF(INDEX($K79:$O79,1,aux!$AL$1)>0,(O79-INDEX($K79:$O79,1,aux!$AL$1))/INDEX($K79:$O79,1,aux!$AL$1),"n.d.") -> n.d. | AX79: 09
A80: 0904 | B80: Pimenta | C80: 0 | D80: 0 | E80: 0 | F80: 0 | G80: 0 | H80: 0 | I80: 0 | J80: 0 | K80: 0 | L80: 0 | M80: 0.435 | N80: 0.021 | O80: 0.005 | P80: 0.0922 | Q80: 1.085506348e-05 | R80: 8.174555739e-06 | S80: 0.0922 | U80: =G80-INDEX($C80:$G80,1,aux!$AL$1) -> 0 | V80: 0 | W80: 0 | X80: =+IF(INDEX($C80:$G80,1,aux!$AL$1)>0,(G80/INDEX($C80:$G80,1,aux!$AL$1))^(1/($G$3-INDEX($C$3:$G$3,1,aux!$AL$1)))-1,"n.d.") -> n.d. | Y80: =IF(INDEX($C80:$G80,1,aux!$AL$1)>0,(G80-INDEX($C80:$G80,1,aux!$AL$1))/INDEX($C80:$G80,1,aux!$AL$1),"n.d.") -> n.d. | AA80: =O80-INDEX($K80:$O80,1,aux!$AL$1) -> 0.005 | AB80: 5.418199972e-07 | AC80: 5.531244507e-07 | AD80: =+IF(INDEX($K80:$O80,1,aux!$AL$1)>0,(O80/INDEX($K80:$O80,1,aux!$AL$1))^(1/($O$3-INDEX($K$3:$O$3,1,aux!$AL$1)))-1,"n.d.") -> n.d. | AE80: =IF(INDEX($K80:$O80,1,aux!$AL$1)>0,(O80-INDEX($K80:$O80,1,aux!$AL$1))/INDEX($K80:$O80,1,aux!$AL$1),"n.d.") -> n.d. | AX80: 09
A81: 0905 | B81: Baunilha | C81: 0 | D81: 0 | E81: 0 | F81: 0 | G81: 0 | H81: 0 | I81: 0 | J81: 0 | K81: 0 | L81: 0 | M81: 0 | N81: 0 | O81: 0 | P81: 0 | Q81: 0 | R81: 0 | S81: 0 | U81: =G81-INDEX($C81:$G81,1,aux!$AL$1) -> 0 | V81: 0 | W81: 0 | X81: =+IF(INDEX($C81:$G81,1,aux!$AL$1)>0,(G81/INDEX($C81:$G81,1,aux!$AL$1))^(1/($G$3-INDEX($C$3:$G$3,1,aux!$AL$1)))-1,"n.d.") -> n.d. | Y81: =IF(INDEX($C81:$G81,1,aux!$AL$1)>0,(G81-INDEX($C81:$G81,1,aux!$AL$1))/INDEX($C81:$G81,1,aux!$AL$1),"n.d.") -> n.d. | AA81: =O81-INDEX($K81:$O81,1,aux!$AL$1) -> 0 | AB81: 0 | AC81: 0 | AD81: =+IF(INDEX($K81:$O81,1,aux!$AL$1)>0,(O81/INDEX($K81:$O81,1,aux!$AL$1))^(1/($O$3-INDEX($K$3:$O$3,1,aux!$AL$1)))-1,"n.d.") -> n.d. | AE81: =IF(INDEX($K81:$O81,1,aux!$AL$1)>0,(O81-INDEX($K81:$O81,1,aux!$AL$1))/INDEX($K81:$O81,1,aux!$AL$1),"n.d.") -> n.d. | AX81: 09
A82: 0906 | B82: Canela | C82: 0 | D82: 0 | E82: 0 | F82: 0 | G82: 0 | H82: 0 | I82: 0 | J82: 0 | K82: 0 | L82: 0 | M82: 0 | N82: 122.791 | O82: 0.014 | P82: 24.561 | Q82: 0.002891661757 | R82: 0.002177605895 | S82: 24.561 | U82: =G82-INDEX($C82:$G82,1,aux!$AL$1) -> 0 | V82: 0 | W82: 0 | X82: =+IF(INDEX($C82:$G82,1,aux!$AL$1)>0,(G82/INDEX($C82:$G82,1,aux!$AL$1))^(1/($G$3-INDEX($C$3:$G$3,1,aux!$AL$1)))-1,"n.d.") -> n.d. | Y82: =IF(INDEX($C82:$G82,1,aux!$AL$1)>0,(G82-INDEX($C82:$G82,1,aux!$AL$1))/INDEX($C82:$G82,1,aux!$AL$1),"n.d.") -> n.d. | AA82: =O82-INDEX($K82:$O82,1,aux!$AL$1) -> 0.014 | AB82: 1.517095992e-06 | AC82: 1.548748462e-06 | AD82: =+IF(INDEX($K82:$O82,1,aux!$AL$1)>0,(O82/INDEX($K82:$O82,1,aux!$AL$1))^(1/($O$3-INDEX($K$3:$O$3,1,aux!$AL$1)))-1,"n.d.") -> n.d. | AE82: =IF(INDEX($K82:$O82,1,aux!$AL$1)>0,(O82-INDEX($K82:$O82,1,aux!$AL$1))/INDEX($K82:$O82,1,aux!$AL$1),"n.d.") -> n.d. | AX82: 09
A83: 0907 | B83: Cravo-da-índia | C83: 0 | D83: 0 | E83: 0 | F83: 0 | G83: 0 | H83: 0 | I83: 0 | J83: 0 | K83: 0 | L83: 0 | M83: 0 | N83: 0 | O83: 0 | P83: 0 | Q83: 0 | R83: 0 | S83: 0 | U83: =G83-INDEX($C83:$G83,1,aux!$AL$1) -> 0 | V83: 0 | W83: 0 | X83: =+IF(INDEX($C83:$G83,1,aux!$AL$1)>0,(G83/INDEX($C83:$G83,1,aux!$AL$1))^(1/($G$3-INDEX($C$3:$G$3,1,aux!$AL$1)))-1,"n.d.") -> n.d. | Y83: =IF(INDEX($C83:$G83,1,aux!$AL$1)>0,(G83-INDEX($C83:$G83,1,aux!$AL$1))/INDEX($C83:$G83,1,aux!$AL$1),"n.d.") -> n.d. | AA83: =O83-INDEX($K83:$O83,1,aux!$AL$1) -> 0 | AB83: 0 | AC83: 0 | AD83: =+IF(INDEX($K83:$O83,1,aux!$AL$1)>0,(O83/INDEX($K83:$O83,1,aux!$AL$1))^(1/($O$3-INDEX($K$3:$O$3,1,aux!$AL$1)))-1,"n.d.") -> n.d. | AE83: =IF(INDEX($K83:$O83,1,aux!$AL$1)>0,(O83-INDEX($K83:$O83,1,aux!$AL$1))/INDEX($K83:$O83,1,aux!$AL$1),"n.d.") -> n.d. | AX83: 09
A84: 0908 | B84: Noz-moscada, etc. | C84: 0 | D84: 0 | E84: 0 | F84: 0 | G84: 0 | H84: 0 | I84: 0 | J84: 0 | K84: 0 | L84: 0 | M84: 0 | N84: 0 | O84: 0 | P84: 0 | Q84: 0 | R84: 0 | S84: 0 | U84: =G84-INDEX($C84:$G84,1,aux!$AL$1) -> 0 | V84: 0 | W84: 0 | X84: =+IF(INDEX($C84:$G84,1,aux!$AL$1)>0,(G84/INDEX($C84:$G84,1,aux!$AL$1))^(1/($G$3-INDEX($C$3:$G$3,1,aux!$AL$1)))-1,"n.d.") -> n.d. | Y84: =IF(INDEX($C84:$G84,1,aux!$AL$1)>0,(G84-INDEX($C84:$G84,1,aux!$AL$1))/INDEX($C84:$G84,1,aux!$AL$1),"n.d.") -> n.d. | AA84: =O84-INDEX($K84:$O84,1,aux!$AL$1) -> 0 | AB84: 0 | AC84: 0 | AD84: =+IF(INDEX($K84:$O84,1,aux!$AL$1)>0,(O84/INDEX($K84:$O84,1,aux!$AL$1))^(1/($O$3-INDEX($K$3:$O$3,1,aux!$AL$1)))-1,"n.d.") -> n.d. | AE84: =IF(INDEX($K84:$O84,1,aux!$AL$1)>0,(O84-INDEX($K84:$O84,1,aux!$AL$1))/INDEX($K84:$O84,1,aux!$AL$1),"n.d.") -> n.d. | AX84: 09
A85: 0909 | B85: Sementes de anis, funcho, etc. | C85: 0 | D85: 0 | E85: 0 | F85: 0 | G85: 0 | H85: 0 | I85: 0 | J85: 0 | K85: 0 | L85: 0 | M85: 0 | N85: 0 | O85: 0 | P85: 0 | Q85: 0 | R85: 0 | S85: 0 | U85: =G85-INDEX($C85:$G85,1,aux!$AL$1) -> 0 | V85: 0 | W85: 0 | X85: =+IF(INDEX($C85:$G85,1,aux!$AL$1)>0,(G85/INDEX($C85:$G85,1,aux!$AL$1))^(1/($G$3-INDEX($C$3:$G$3,1,aux!$AL$1)))-1,"n.d.") -> n.d. | Y85: =IF(INDEX($C85:$G85,1,aux!$AL$1)>0,(G85-INDEX($C85:$G85,1,aux!$AL$1))/INDEX($C85:$G85,1,aux!$AL$1),"n.d.") -> n.d. | AA85: =O85-INDEX($K85:$O85,1,aux!$AL$1) -> 0 | AB85: 0 | AC85: 0 | AD85: =+IF(INDEX($K85:$O85,1,aux!$AL$1)>0,(O85/INDEX($K85:$O85,1,aux!$AL$1))^(1/($O$3-INDEX($K$3:$O$3,1,aux!$AL$1)))-1,"n.d.") -> n.d. | AE85: =IF(INDEX($K85:$O85,1,aux!$AL$1)>0,(O85-INDEX($K85:$O85,1,aux!$AL$1))/INDEX($K85:$O85,1,aux!$AL$1),"n.d.") -> n.d. | AX85: 09
A86: 0910 | B86: Gengibre, açafrão, tomilho, louro, etc. | C86: 0 | D86: 0 | E86: 0 | F86: 0 | G86: 0 | H86: 0 | I86: 0 | J86: 0 | K86: 0 | L86: 0 | M86: 0 | N86: 0.013 | O86: 48.433 | P86: 9.6892 | Q86: 0.001140747083 | R86: 0.0008590553739 | S86: 9.6892 | U86: =G86-INDEX($C86:$G86,1,aux!$AL$1) -> 0 | V86: 0 | W86: 0 | X86: =+IF(INDEX($C86:$G86,1,aux!$AL$1)>0,(G86/INDEX($C86:$G86,1,aux!$AL$1))^(1/($G$3-INDEX($C$3:$G$3,1,aux!$AL$1)))-1,"n.d.") -> n.d. | Y86: =IF(INDEX($C86:$G86,1,aux!$AL$1)>0,(G86-INDEX($C86:$G86,1,aux!$AL$1))/INDEX($C86:$G86,1,aux!$AL$1),"n.d.") -> n.d. | AA86: =O86-INDEX($K86:$O86,1,aux!$AL$1) -> 48.433 | AB86: 0.005248393585 | AC86: 0.005357895304 | AD86: =+IF(INDEX($K86:$O86,1,aux!$AL$1)>0,(O86/INDEX($K86:$O86,1,aux!$AL$1))^(1/($O$3-INDEX($K$3:$O$3,1,aux!$AL$1)))-1,"n.d.") -> n.d. | AE86: =IF(INDEX($K86:$O86,1,aux!$AL$1)>0,(O86-INDEX($K86:$O86,1,aux!$AL$1))/INDEX($K86:$O86,1,aux!$AL$1),"n.d.") -> n.d. | AX86: 09
A87: 09SS | B87: Café, chá, mate e especiarias | C87: 0 | D87: 0 | E87: 0 | F87: 0 | G87: 0 | H87: 0 | I87: 0 | J87: 0 | K87: 0 | L87: 0 | M87: 0 | N87: 0 | O87: 0 | P87: 0 | Q87: 0 | R87: 0 | S87: 0 | U87: =G87-INDEX($C87:$G87,1,aux!$AL$1) -> 0 | V87: 0 | W87: 0 | X87: =+IF(INDEX($C87:$G87,1,aux!$AL$1)>0,(G87/INDEX($C87:$G87,1,aux!$AL$1))^(1/($G$3-INDEX($C$3:$G$3,1,aux!$AL$1)))-1,"n.d.") -> n.d. | Y87: =IF(INDEX($C87:$G87,1,aux!$AL$1)>0,(G87-INDEX($C87:$G87,1,aux!$AL$1))/INDEX($C87:$G87,1,aux!$AL$1),"n.d.") -> n.d. | AA87: =O87-INDEX($K87:$O87,1,aux!$AL$1) -> 0 | AB87: 0 | AC87: 0 | AD87: =+IF(INDEX($K87:$O87,1,aux!$AL$1)>0,(O87/INDEX($K87:$O87,1,aux!$AL$1))^(1/($O$3-INDEX($K$3:$O$3,1,aux!$AL$1)))-1,"n.d.") -> n.d. | AE87: =IF(INDEX($K87:$O87,1,aux!$AL$1)>0,(O87-INDEX($K87:$O87,1,aux!$AL$1))/INDEX($K87:$O87,1,aux!$AL$1),"n.d.") -> n.d. | AX87: 09
A88: 1001 | B88: Trigo e mistura trigo/centeio | C88: 0 | D88: 0 | E88: 0 | F88: 0 | G88: 0 | H88: 0 | I88: 0 | J88: 0 | K88: 0 | L88: 0 | M88: 0 | N88: 0 | O88: 0 | P88: 0 | Q88: 0 | R88: 0 | S88: 0 | U88: =G88-INDEX($C88:$G88,1,aux!$AL$1) -> 0 | V88: 0 | W88: 0 | X88: =+IF(INDEX($C88:$G88,1,aux!$AL$1)>0,(G88/INDEX($C88:$G88,1,aux!$AL$1))^(1/($G$3-INDEX($C$3:$G$3,1,aux!$AL$1)))-1,"n.d.") -> n.d. | Y88: =IF(INDEX($C88:$G88,1,aux!$AL$1)>0,(G88-INDEX($C88:$G88,1,aux!$AL$1))/INDEX($C88:$G88,1,aux!$AL$1),"n.d.") -> n.d. | AA88: =O88-INDEX($K88:$O88,1,aux!$AL$1) -> 0 | AB88: 0 | AC88: 0 | AD88: =+IF(INDEX($K88:$O88,1,aux!$AL$1)>0,(O88/INDEX($K88:$O88,1,aux!$AL$1))^(1/($O$3-INDEX($K$3:$O$3,1,aux!$AL$1)))-1,"n.d.") -> n.d. | AE88: =IF(INDEX($K88:$O88,1,aux!$AL$1)>0,(O88-INDEX($K88:$O88,1,aux!$AL$1))/INDEX($K88:$O88,1,aux!$AL$1),"n.d.") -> n.d. | AX88: 10
A89: 1002 | B89: Centeio | C89: 0 | D89: 0 | E89: 0 | F89: 0 | G89: 0 | H89: 0 | I89: 0 | J89: 0 | K89: 0 | L89: 0 | M89: 0 | N89: 0 | O89: 0 | P89: 0 | Q89: 0 | R89: 0 | S89: 0 | U89: =G89-INDEX($C89:$G89,1,aux!$AL$1) -> 0 | V89: 0 | W89: 0 | X89: =+IF(INDEX($C89:$G89,1,aux!$AL$1)>0,(G89/INDEX($C89:$G89,1,aux!$AL$1))^(1/($G$3-INDEX($C$3:$G$3,1,aux!$AL$1)))-1,"n.d.") -> n.d. | Y89: =IF(INDEX($C89:$G89,1,aux!$AL$1)>0,(G89-INDEX($C89:$G89,1,aux!$AL$1))/INDEX($C89:$G89,1,aux!$AL$1),"n.d.") -> n.d. | AA89: =O89-INDEX($K89:$O89,1,aux!$AL$1) -> 0 | AB89: 0 | AC89: 0 | AD89: =+IF(INDEX($K89:$O89,1,aux!$AL$1)>0,(O89/INDEX($K89:$O89,1,aux!$AL$1))^(1/($O$3-INDEX($K$3:$O$3,1,aux!$AL$1)))-1,"n.d.") -> n.d. | AE89: =IF(INDEX($K89:$O89,1,aux!$AL$1)>0,(O89-INDEX($K89:$O89,1,aux!$AL$1))/INDEX($K89:$O89,1,aux!$AL$1),"n.d.") -> n.d. | AX89: 10
A90: 1003 | B90: Cevada | C90: 0 | D90: 0 | E90: 0 | F90: 0 | G90: 0 | H90: 0 | I90: 0 | J90: 0 | K90: 0 | L90: 0 | M90: 0.294 | N90: 0 | O90: 0 | P90: 0.0588 | Q90: 6.922751978e-06 | R90: 5.213274159e-06 | S90: 0.0588 | U90: =G90-INDEX($C90:$G90,1,aux!$AL$1) -> 0 | V90: 0 | W90: 0 | X90: =+IF(INDEX($C90:$G90,1,aux!$AL$1)>0,(G90/INDEX($C90:$G90,1,aux!$AL$1))^(1/($G$3-INDEX($C$3:$G$3,1,aux!$AL$1)))-1,"n.d.") -> n.d. | Y90: =IF(INDEX($C90:$G90,1,aux!$AL$1)>0,(G90-INDEX($C90:$G90,1,aux!$AL$1))/INDEX($C90:$G90,1,aux!$AL$1),"n.d.") -> n.d. | AA90: =O90-INDEX($K90:$O90,1,aux!$AL$1) -> 0 | AB90: 0 | AC90: 0 | AD90: =+IF(INDEX($K90:$O90,1,aux!$AL$1)>0,(O90/INDEX($K90:$O90,1,aux!$AL$1))^(1/($O$3-INDEX($K$3:$O$3,1,aux!$AL$1)))-1,"n.d.") -> n.d. | AE90: =IF(INDEX($K90:$O90,1,aux!$AL$1)>0,(O90-INDEX($K90:$O90,1,aux!$AL$1))/INDEX($K90:$O90,1,aux!$AL$1),"n.d.") -> n.d. | AX90: 10
A91: 1004 | B91: Aveia | C91: 0 | D91: 0 | E91: 0 | F91: 0 | G91: 0 | H91: 0 | I91: 0 | J91: 0 | K91: 0 | L91: 0 | M91: 0 | N91: 0 | O91: 0 | P91: 0 | Q91: 0 | R91: 0 | S91: 0 | U91: =G91-INDEX($C91:$G91,1,aux!$AL$1) -> 0 | V91: 0 | W91: 0 | X91: =+IF(INDEX($C91:$G91,1,aux!$AL$1)>0,(G91/INDEX($C91:$G91,1,aux!$AL$1))^(1/($G$3-INDEX($C$3:$G$3,1,aux!$AL$1)))-1,"n.d.") -> n.d. | Y91: =IF(INDEX($C91:$G91,1,aux!$AL$1)>0,(G91-INDEX($C91:$G91,1,aux!$AL$1))/INDEX($C91:$G91,1,aux!$AL$1),"n.d.") -> n.d. | AA91: =O91-INDEX($K91:$O91,1,aux!$AL$1) -> 0 | AB91: 0 | AC91: 0 | AD91: =+IF(INDEX($K91:$O91,1,aux!$AL$1)>0,(O91/INDEX($K91:$O91,1,aux!$AL$1))^(1/($O$3-INDEX($K$3:$O$3,1,aux!$AL$1)))-1,"n.d.") -> n.d. | AE91: =IF(INDEX($K91:$O91,1,aux!$AL$1)>0,(O91-INDEX($K91:$O91,1,aux!$AL$1))/INDEX($K91:$O91,1,aux!$AL$1),"n.d.") -> n.d. | AX91: 10
A92: 1005 | B92: Milho | C92: 0 | D92: 0 | E92: 0 | F92: 0 | G92: 1.646 | H92: 0.3292 | I92: 0.0005843529037 | J92: 1.872969326e-05 | K92: 0 | L92: 0 | M92: 0 | N92: 0 | O92: 0 | P92: 0 | Q92: 0 | R92: 0 | S92: -0.3292 | U92: =G92-INDEX($C92:$G92,1,aux!$AL$1) -> 1.646 | V92: -0.00542158952 | W92: 0.01643485467 | X92: =+IF(INDEX($C92:$G92,1,aux!$AL$1)>0,(G92/INDEX($C92:$G92,1,aux!$AL$1))^(1/($G$3-INDEX($C$3:$G$3,1,aux!$AL$1)))-1,"n.d.") -> n.d. | Y92: =IF(INDEX($C92:$G92,1,aux!$AL$1)>0,(G92-INDEX($C92:$G92,1,aux!$AL$1))/INDEX($C92:$G92,1,aux!$AL$1),"n.d.") -> n.d. | AA92: =O92-INDEX($K92:$O92,1,aux!$AL$1) -> 0 | AB92: 0 | AC92: 0 | AD92: =+IF(INDEX($K92:$O92,1,aux!$AL$1)>0,(O92/INDEX($K92:$O92,1,aux!$AL$1))^(1/($O$3-INDEX($K$3:$O$3,1,aux!$AL$1)))-1,"n.d.") -> n.d. | AE92: =IF(INDEX($K92:$O92,1,aux!$AL$1)>0,(O92-INDEX($K92:$O92,1,aux!$AL$1))/INDEX($K92:$O92,1,aux!$AL$1),"n.d.") -> n.d. | AX92: 10
A93: 1006 | B93: Arroz | C93: 0 | D93: 0 | E93: 0 | F93: 0 | G93: 0 | H93: 0 | I93: 0 | J93: 0 | K93: 0 | L93: 0 | M93: 0 | N93: 0.134 | O93: 0.071 | P93: 0.041 | Q93: 4.827088964e-06 | R93: 3.635106131e-06 | S93: 0.041 | U93: =G93-INDEX($C93:$G93,1,aux!$AL$1) -> 0 | V93: 0 | W93: 0 | X93: =+IF(INDEX($C93:$G93,1,aux!$AL$1)>0,(G93/INDEX($C93:$G93,1,aux!$AL$1))^(1/($G$3-INDEX($C$3:$G$3,1,aux!$AL$1)))-1,"n.d.") -> n.d. | Y93: =IF(INDEX($C93:$G93,1,aux!$AL$1)>0,(G93-INDEX($C93:$G93,1,aux!$AL$1))/INDEX($C93:$G93,1,aux!$AL$1),"n.d.") -> n.d. | AA93: =O93-INDEX($K93:$O93,1,aux!$AL$1) -> 0.071 | AB93: 7.69384396e-06 | AC93: 7.8543672e-06 | AD93: =+IF(INDEX($K93:$O93,1,aux!$AL$1)>0,(O93/INDEX($K93:$O93,1,aux!$AL$1))^(1/($O$3-INDEX($K$3:$O$3,1,aux!$AL$1)))-1,"n.d.") -> n.d. | AE93: =IF(INDEX($K93:$O93,1,aux!$AL$1)>0,(O93-INDEX($K93:$O93,1,aux!$AL$1))/INDEX($K93:$O93,1,aux!$AL$1),"n.d.") -> n.d. | AX93: 10
A94: 1007 | B94: Sorgo de grão | C94: 0 | D94: 0 | E94: 0 | F94: 0 | G94: 0 | H94: 0 | I94: 0 | J94: 0 | K94: 0 | L94: 0 | M94: 0 | N94: 0 | O94: 0 | P94: 0 | Q94: 0 | R94: 0 | S94: 0 | U94: =G94-INDEX($C94:$G94,1,aux!$AL$1) -> 0 | V94: 0 | W94: 0 | X94: =+IF(INDEX($C94:$G94,1,aux!$AL$1)>0,(G94/INDEX($C94:$G94,1,aux!$AL$1))^(1/($G$3-INDEX($C$3:$G$3,1,aux!$AL$1)))-1,"n.d.") -> n.d. | Y94: =IF(INDEX($C94:$G94,1,aux!$AL$1)>0,(G94-INDEX($C94:$G94,1,aux!$AL$1))/INDEX($C94:$G94,1,aux!$AL$1),"n.d.") -> n.d. | AA94: =O94-INDEX($K94:$O94,1,aux!$AL$1) -> 0 | AB94: 0 | AC94: 0 | AD94: =+IF(INDEX($K94:$O94,1,aux!$AL$1)>0,(O94/INDEX($K94:$O94,1,aux!$AL$1))^(1/($O$3-INDEX($K$3:$O$3,1,aux!$AL$1)))-1,"n.d.") -> n.d. | AE94: =IF(INDEX($K94:$O94,1,aux!$AL$1)>0,(O94-INDEX($K94:$O94,1,aux!$AL$1))/INDEX($K94:$O94,1,aux!$AL$1),"n.d.") -> n.d. | AX94: 10
A95: 1008 | B95: Trigo mourisco, painço e outros cereais | C95: 0 | D95: 0 | E95: 0.033 | F95: 0 | G95: 0 | H95: 0.0066 | I95: 1.171545919e-05 | J95: 3.755041784e-07 | K95: 0 | L95: 0 | M95: 0 | N95: 0 | O95: 0 | P95: 0 | Q95: 0 | R95: 0 | S95: -0.0066 | U95: =G95-INDEX($C95:$G95,1,aux!$AL$1) -> 0 | V95: 0 | W95: 0 | X95: =+IF(INDEX($C95:$G95,1,aux!$AL$1)>0,(G95/INDEX($C95:$G95,1,aux!$AL$1))^(1/($G$3-INDEX($C$3:$G$3,1,aux!$AL$1)))-1,"n.d.") -> n.d. | Y95: =IF(INDEX($C95:$G95,1,aux!$AL$1)>0,(G95-INDEX($C95:$G95,1,aux!$AL$1))/INDEX($C95:$G95,1,aux!$AL$1),"n.d.") -> n.d. | AA95: =O95-INDEX($K95:$O95,1,aux!$AL$1) -> 0 | AB95: 0 | AC95: 0 | AD95: =+IF(INDEX($K95:$O95,1,aux!$AL$1)>0,(O95/INDEX($K95:$O95,1,aux!$AL$1))^(1/($O$3-INDEX($K$3:$O$3,1,aux!$AL$1)))-1,"n.d.") -> n.d. | AE95: =IF(INDEX($K95:$O95,1,aux!$AL$1)>0,(O95-INDEX($K95:$O95,1,aux!$AL$1))/INDEX($K95:$O95,1,aux!$AL$1),"n.d.") -> n.d. | AX95: 10
A96: 10SS | B96: Cereais | C96: 0 | D96: 0 | E96: 0 | F96: 0 | G96: 0 | H96: 0 | I96: 0 | J96: 0 | K96: 0 | L96: 0 | M96: 0 | N96: 0 | O96: 0 | P96: 0 | Q96: 0 | R96: 0 | S96: 0 | U96: =G96-INDEX($C96:$G96,1,aux!$AL$1) -> 0 | V96: 0 | W96: 0 | X96: =+IF(INDEX($C96:$G96,1,aux!$AL$1)>0,(G96/INDEX($C96:$G96,1,aux!$AL$1))^(1/($G$3-INDEX($C$3:$G$3,1,aux!$AL$1)))-1,"n.d.") -> n.d. | Y96: =IF(INDEX($C96:$G96,1,aux!$AL$1)>0,(G96-INDEX($C96:$G96,1,aux!$AL$1))/INDEX($C96:$G96,1,aux!$AL$1),"n.d.") -> n.d. | AA96: =O96-INDEX($K96:$O96,1,aux!$AL$1) -> 0 | AB96: 0 | AC96: 0 | AD96: =+IF(INDEX($K96:$O96,1,aux!$AL$1)>0,(O96/INDEX($K96:$O96,1,aux!$AL$1))^(1/($O$3-INDEX($K$3:$O$3,1,aux!$AL$1)))-1,"n.d.") -> n.d. | AE96: =IF(INDEX($K96:$O96,1,aux!$AL$1)>0,(O96-INDEX($K96:$O96,1,aux!$AL$1))/INDEX($K96:$O96,1,aux!$AL$1),"n.d.") -> n.d. | AX96: 10
A97: 1101 | B97: Farinhas de trigo ou trigo/centeio | C97: 0 | D97: 0 | E97: 0 | F97: 0 | G97: 0 | H97: 0 | I97: 0 | J97: 0 | K97: 0 | L97: 0 | M97: 0 | N97: 0.07 | O97: 0 | P97: 0.014 | Q97: 1.64827428e-06 | R97: 1.241255752e-06 | S97: 0.014 | U97: =G97-INDEX($C97:$G97,1,aux!$AL$1) -> 0 | V97: 0 | W97: 0 | X97: =+IF(INDEX($C97:$G97,1,aux!$AL$1)>0,(G97/INDEX($C97:$G97,1,aux!$AL$1))^(1/($G$3-INDEX($C$3:$G$3,1,aux!$AL$1)))-1,"n.d.") -> n.d. | Y97: =IF(INDEX($C97:$G97,1,aux!$AL$1)>0,(G97-INDEX($C97:$G97,1,aux!$AL$1))/INDEX($C97:$G97,1,aux!$AL$1),"n.d.") -> n.d. | AA97: =O97-INDEX($K97:$O97,1,aux!$AL$1) -> 0 | AB97: 0 | AC97: 0 | AD97: =+IF(INDEX($K97:$O97,1,aux!$AL$1)>0,(O97/INDEX($K97:$O97,1,aux!$AL$1))^(1/($O$3-INDEX($K$3:$O$3,1,aux!$AL$1)))-1,"n.d.") -> n.d. | AE97: =IF(INDEX($K97:$O97,1,aux!$AL$1)>0,(O97-INDEX($K97:$O97,1,aux!$AL$1))/INDEX($K97:$O97,1,aux!$AL$1),"n.d.") -> n.d. | AX97: 11
A98: 1102 | B98: Outras farinhas de cereais | C98: 0 | D98: 0 | E98: 0 | F98: 0 | G98: 0 | H98: 0 | I98: 0 | J98: 0 | K98: 0 | L98: 0 | M98: 0 | N98: 0.015 | O98: 0 | P98: 0.003 | Q98: 3.532016315e-07 | R98: 2.659833755e-07 | S98: 0.003 | U98: =G98-INDEX($C98:$G98,1,aux!$AL$1) -> 0 | V98: 0 | W98: 0 | X98: =+IF(INDEX($C98:$G98,1,aux!$AL$1)>0,(G98/INDEX($C98:$G98,1,aux!$AL$1))^(1/($G$3-INDEX($C$3:$G$3,1,aux!$AL$1)))-1,"n.d.") -> n.d. | Y98: =IF(INDEX($C98:$G98,1,aux!$AL$1)>0,(G98-INDEX($C98:$G98,1,aux!$AL$1))/INDEX($C98:$G98,1,aux!$AL$1),"n.d.") -> n.d. | AA98: =O98-INDEX($K98:$O98,1,aux!$AL$1) -> 0 | AB98: 0 | AC98: 0 | AD98: =+IF(INDEX($K98:$O98,1,aux!$AL$1)>0,(O98/INDEX($K98:$O98,1,aux!$AL$1))^(1/($O$3-INDEX($K$3:$O$3,1,aux!$AL$1)))-1,"n.d.") -> n.d. | AE98: =IF(INDEX($K98:$O98,1,aux!$AL$1)>0,(O98-INDEX($K98:$O98,1,aux!$AL$1))/INDEX($K98:$O98,1,aux!$AL$1),"n.d.") -> n.d. | AX98: 11
A99: 1103 | B99: Grumos, sêmolas, etc. de cereais | C99: 0 | D99: 0 | E99: 0 | F99: 0 | G99: 0 | H99: 0 | I99: 0 | J99: 0 | K99: 0 | L99: 0 | M99: 0 | N99: 0 | O99: 0 | P99: 0 | Q99: 0 | R99: 0 | S99: 0 | U99: =G99-INDEX($C99:$G99,1,aux!$AL$1) -> 0 | V99: 0 | W99: 0 | X99: =+IF(INDEX($C99:$G99,1,aux!$AL$1)>0,(G99/INDEX($C99:$G99,1,aux!$AL$1))^(1/($G$3-INDEX($C$3:$G$3,1,aux!$AL$1)))-1,"n.d.") -> n.d. | Y99: =IF(INDEX($C99:$G99,1,aux!$AL$1)>0,(G99-INDEX($C99:$G99,1,aux!$AL$1))/INDEX($C99:$G99,1,aux!$AL$1),"n.d.") -> n.d. | AA99: =O99-INDEX($K99:$O99,1,aux!$AL$1) -> 0 | AB99: 0 | AC99: 0 | AD99: =+IF(INDEX($K99:$O99,1,aux!$AL$1)>0,(O99/INDEX($K99:$O99,1,aux!$AL$1))^(1/($O$3-INDEX($K$3:$O$3,1,aux!$AL$1)))-1,"n.d.") -> n.d. | AE99: =IF(INDEX($K99:$O99,1,aux!$AL$1)>0,(O99-INDEX($K99:$O99,1,aux!$AL$1))/INDEX($K99:$O99,1,aux!$AL$1),"n.d.") -> n.d. | AX99: 11
A100: 1104 | B100: Grãos de cereais processados | C100: 0 | D100: 0 | E100: 0 | F100: 0 | G100: 0 | H100: 0 | I100: 0 | J100: 0 | K100: 0 | L100: 0 | M100: 0 | N100: 0 | O100: 0 | P100: 0 | Q100: 0 | R100: 0 | S100: 0 | U100: =G100-INDEX($C100:$G100,1,aux!$AL$1) -> 0 | V100: 0 | W100: 0 | X100: =+IF(INDEX($C100:$G100,1,aux!$AL$1)>0,(G100/INDEX($C100:$G100,1,aux!$AL$1))^(1/($G$3-INDEX($C$3:$G$3,1,aux!$AL$1)))-1,"n.d.") -> n.d. | Y100: =IF(INDEX($C100:$G100,1,aux!$AL$1)>0,(G100-INDEX($C100:$G100,1,aux!$AL$1))/INDEX($C100:$G100,1,aux!$AL$1),"n.d.") -> n.d. | AA100: =O100-INDEX($K100:$O100,1,aux!$AL$1) -> 0 | AB100: 0 | AC100: 0 | AD100: =+IF(INDEX($K100:$O100,1,aux!$AL$1)>0,(O100/INDEX($K100:$O100,1,aux!$AL$1))^(1/($O$3-INDEX($K$3:$O$3,1,aux!$AL$1)))-1,"n.d.") -> n.d. | AE100: =IF(INDEX($K100:$O100,1,aux!$AL$1)>0,(O100-INDEX($K100:$O100,1,aux!$AL$1))/INDEX($K100:$O100,1,aux!$AL$1),"n.d.") -> n.d. | AX100: 11
A101: 1105 | B101: Farinha, sêmola, etc. de batata | C101: 0 | D101: 0 | E101: 0 | F101: 0 | G101: 0 | H101: 0 | I101: 0 | J101: 0 | K101: 0 | L101: 0 | M101: 0 | N101: 0 | O101: 0 | P101: 0 | Q101: 0 | R101: 0 | S101: 0 | U101: =G101-INDEX($C101:$G101,1,aux!$AL$1) -> 0 | V101: 0 | W101: 0 | X101: =+IF(INDEX($C101:$G101,1,aux!$AL$1)>0,(G101/INDEX($C101:$G101,1,aux!$AL$1))^(1/($G$3-INDEX($C$3:$G$3,1,aux!$AL$1)))-1,"n.d.") -> n.d. | Y101: =IF(INDEX($C101:$G101,1,aux!$AL$1)>0,(G101-INDEX($C101:$G101,1,aux!$AL$1))/INDEX($C101:$G101,1,aux!$AL$1),"n.d.") -> n.d. | AA101: =O101-INDEX($K101:$O101,1,aux!$AL$1) -> 0 | AB101: 0 | AC101: 0 | AD101: =+IF(INDEX($K101:$O101,1,aux!$AL$1)>0,(O101/INDEX($K101:$O101,1,aux!$AL$1))^(1/($O$3-INDEX($K$3:$O$3,1,aux!$AL$1)))-1,"n.d.") -> n.d. | AE101: =IF(INDEX($K101:$O101,1,aux!$AL$1)>0,(O101-INDEX($K101:$O101,1,aux!$AL$1))/INDEX($K101:$O101,1,aux!$AL$1),"n.d.") -> n.d. | AX101: 11
A102: 1106 | B102: Farinhas, etc. de leguminosas e outros tubérculos | C102: 0 | D102: 0 | E102: 0 | F102: 0 | G102: 0 | H102: 0 | I102: 0 | J102: 0 | K102: 0 | L102: 0 | M102: 0 | N102: 0 | O102: 0 | P102: 0 | Q102: 0 | R102: 0 | S102: 0 | U102: =G102-INDEX($C102:$G102,1,aux!$AL$1) -> 0 | V102: 0 | W102: 0 | X102: =+IF(INDEX($C102:$G102,1,aux!$AL$1)>0,(G102/INDEX($C102:$G102,1,aux!$AL$1))^(1/($G$3-INDEX($C$3:$G$3,1,aux!$AL$1)))-1,"n.d.") -> n.d. | Y102: =IF(INDEX($C102:$G102,1,aux!$AL$1)>0,(G102-INDEX($C102:$G102,1,aux!$AL$1))/INDEX($C102:$G102,1,aux!$AL$1),"n.d.") -> n.d. | AA102: =O102-INDEX($K102:$O102,1,aux!$AL$1) -> 0 | AB102: 0 | AC102: 0 | AD102: =+IF(INDEX($K102:$O102,1,aux!$AL$1)>0,(O102/INDEX($K102:$O102,1,aux!$AL$1))^(1/($O$3-INDEX($K$3:$O$3,1,aux!$AL$1)))-1,"n.d.") -> n.d. | AE102: =IF(INDEX($K102:$O102,1,aux!$AL$1)>0,(O102-INDEX($K102:$O102,1,aux!$AL$1))/INDEX($K102:$O102,1,aux!$AL$1),"n.d.") -> n.d. | AX102: 11
A103: 1107 | B103: Malte, mesmo torrado | C103: 0 | D103: 0 | E103: 0 | F103: 0 | G103: 0 | H103: 0 | I103: 0 | J103: 0 | K103: 0 | L103: 0 | M103: 0 | N103: 0 | O103: 0 | P103: 0 | Q103: 0 | R103: 0 | S103: 0 | U103: =G103-INDEX($C103:$G103,1,aux!$AL$1) -> 0 | V103: 0 | W103: 0 | X103: =+IF(INDEX($C103:$G103,1,aux!$AL$1)>0,(G103/INDEX($C103:$G103,1,aux!$AL$1))^(1/($G$3-INDEX($C$3:$G$3,1,aux!$AL$1)))-1,"n.d.") -> n.d. | Y103: =IF(INDEX($C103:$G103,1,aux!$AL$1)>0,(G103-INDEX($C103:$G103,1,aux!$AL$1))/INDEX($C103:$G103,1,aux!$AL$1),"n.d.") -> n.d. | AA103: =O103-INDEX($K103:$O103,1,aux!$AL$1) -> 0 | AB103: 0 | AC103: 0 | AD103: =+IF(INDEX($K103:$O103,1,aux!$AL$1)>0,(O103/INDEX($K103:$O103,1,aux!$AL$1))^(1/($O$3-INDEX($K$3:$O$3,1,aux!$AL$1)))-1,"n.d.") -> n.d. | AE103: =IF(INDEX($K103:$O103,1,aux!$AL$1)>0,(O103-INDEX($K103:$O103,1,aux!$AL$1))/INDEX($K103:$O103,1,aux!$AL$1),"n.d.") -> n.d. | AX103: 11
A104: 1108 | B104: Amidos e féculas; inulina | C104: 0 | D104: 0 | E104: 0 | F104: 0 | G104: 0 | H104: 0 | I104: 0 | J104: 0 | K104: 0 | L104: 0 | M104: 0 | N104: 0 | O104: 0 | P104: 0 | Q104: 0 | R104: 0 | S104: 0 | U104: =G104-INDEX($C104:$G104,1,aux!$AL$1) -> 0 | V104: 0 | W104: 0 | X104: =+IF(INDEX($C104:$G104,1,aux!$AL$1)>0,(G104/INDEX($C104:$G104,1,aux!$AL$1))^(1/($G$3-INDEX($C$3:$G$3,1,aux!$AL$1)))-1,"n.d.") -> n.d. | Y104: =IF(INDEX($C104:$G104,1,aux!$AL$1)>0,(G104-INDEX($C104:$G104,1,aux!$AL$1))/INDEX($C104:$G104,1,aux!$AL$1),"n.d.") -> n.d. | AA104: =O104-INDEX($K104:$O104,1,aux!$AL$1) -> 0 | AB104: 0 | AC104: 0 | AD104: =+IF(INDEX($K104:$O104,1,aux!$AL$1)>0,(O104/INDEX($K104:$O104,1,aux!$AL$1))^(1/($O$3-INDEX($K$3:$O$3,1,aux!$AL$1)))-1,"n.d.") -> n.d. | AE104: =IF(INDEX($K104:$O104,1,aux!$AL$1)>0,(O104-INDEX($K104:$O104,1,aux!$AL$1))/INDEX($K104:$O104,1,aux!$AL$1),"n.d.") -> n.d. | AX104: 11
A105: 1109 | B105: Glúten de trigo, mesmo seco | C105: 0 | D105: 0 | E105: 0 | F105: 0 | G105: 0 | H105: 0 | I105: 0 | J105: 0 | K105: 0 | L105: 0 | M105: 0 | N105: 0 | O105: 0 | P105: 0 | Q105: 0 | R105: 0 | S105: 0 | U105: =G105-INDEX($C105:$G105,1,aux!$AL$1) -> 0 | V105: 0 | W105: 0 | X105: =+IF(INDEX($C105:$G105,1,aux!$AL$1)>0,(G105/INDEX($C105:$G105,1,aux!$AL$1))^(1/($G$3-INDEX($C$3:$G$3,1,aux!$AL$1)))-1,"n.d.") -> n.d. | Y105: =IF(INDEX($C105:$G105,1,aux!$AL$1)>0,(G105-INDEX($C105:$G105,1,aux!$AL$1))/INDEX($C105:$G105,1,aux!$AL$1),"n.d.") -> n.d. | AA105: =O105-INDEX($K105:$O105,1,aux!$AL$1) -> 0 | AB105: 0 | AC105: 0 | AD105: =+IF(INDEX($K105:$O105,1,aux!$AL$1)>0,(O105/INDEX($K105:$O105,1,aux!$AL$1))^(1/($O$3-INDEX($K$3:$O$3,1,aux!$AL$1)))-1,"n.d.") -> n.d. | AE105: =IF(INDEX($K105:$O105,1,aux!$AL$1)>0,(O105-INDEX($K105:$O105,1,aux!$AL$1))/INDEX($K105:$O105,1,aux!$AL$1),"n.d.") -> n.d. | AX105: 11
A106: 11SS | B106: Produtos da indústria de moagem e outros | C106: 0 | D106: 0 | E106: 0 | F106: 0 | G106: 0 | H106: 0 | I106: 0 | J106: 0 | K106: 0 | L106: 0 | M106: 0 | N106: 0 | O106: 0 | P106: 0 | Q106: 0 | R106: 0 | S106: 0 | U106: =G106-INDEX($C106:$G106,1,aux!$AL$1) -> 0 | V106: 0 | W106: 0 | X106: =+IF(INDEX($C106:$G106,1,aux!$AL$1)>0,(G106/INDEX($C106:$G106,1,aux!$AL$1))^(1/($G$3-INDEX($C$3:$G$3,1,aux!$AL$1)))-1,"n.d.") -> n.d. | Y106: =IF(INDEX($C106:$G106,1,aux!$AL$1)>0,(G106-INDEX($C106:$G106,1,aux!$AL$1))/INDEX($C106:$G106,1,aux!$AL$1),"n.d.") -> n.d. | AA106: =O106-INDEX($K106:$O106,1,aux!$AL$1) -> 0 | AB106: 0 | AC106: 0 | AD106: =+IF(INDEX($K106:$O106,1,aux!$AL$1)>0,(O106/INDEX($K106:$O106,1,aux!$AL$1))^(1/($O$3-INDEX($K$3:$O$3,1,aux!$AL$1)))-1,"n.d.") -> n.d. | AE106: =IF(INDEX($K106:$O106,1,aux!$AL$1)>0,(O106-INDEX($K106:$O106,1,aux!$AL$1))/INDEX($K106:$O106,1,aux!$AL$1),"n.d.") -> n.d. | AX106: 11
A107: 1201 | B107: Soja, mesmo triturada | C107: 0 | D107: 0 | E107: 0 | F107: 0 | G107: 0 | H107: 0 | I107: 0 | J107: 0 | K107: 0 | L107: 0 | M107: 0 | N107: 0 | O107: 0 | P107: 0 | Q107: 0 | R107: 0 | S107: 0 | U107: =G107-INDEX($C107:$G107,1,aux!$AL$1) -> 0 | V107: 0 | W107: 0 | X107: =+IF(INDEX($C107:$G107,1,aux!$AL$1)>0,(G107/INDEX($C107:$G107,1,aux!$AL$1))^(1/($G$3-INDEX($C$3:$G$3,1,aux!$AL$1)))-1,"n.d.") -> n.d. | Y107: =IF(INDEX($C107:$G107,1,aux!$AL$1)>0,(G107-INDEX($C107:$G107,1,aux!$AL$1))/INDEX($C107:$G107,1,aux!$AL$1),"n.d.") -> n.d. | AA107: =O107-INDEX($K107:$O107,1,aux!$AL$1) -> 0 | AB107: 0 | AC107: 0 | AD107: =+IF(INDEX($K107:$O107,1,aux!$AL$1)>0,(O107/INDEX($K107:$O107,1,aux!$AL$1))^(1/($O$3-INDEX($K$3:$O$3,1,aux!$AL$1)))-1,"n.d.") -> n.d. | AE107: =IF(INDEX($K107:$O107,1,aux!$AL$1)>0,(O107-INDEX($K107:$O107,1,aux!$AL$1))/INDEX($K107:$O107,1,aux!$AL$1),"n.d.") -> n.d. | AX107: 12
A108: 1202 | B108: Amendoins não torrados | C108: 0 | D108: 0 | E108: 0 | F108: 0 | G108: 0 | H108: 0 | I108: 0 | J108: 0 | K108: 0 | L108: 0 | M108: 0 | N108: 0 | O108: 0 | P108: 0 | Q108: 0 | R108: 0 | S108: 0 | U108: =G108-INDEX($C108:$G108,1,aux!$AL$1) -> 0 | V108: 0 | W108: 0 | X108: =+IF(INDEX($C108:$G108,1,aux!$AL$1)>0,(G108/INDEX($C108:$G108,1,aux!$AL$1))^(1/($G$3-INDEX($C$3:$G$3,1,aux!$AL$1)))-1,"n.d.") -> n.d. | Y108: =IF(INDEX($C108:$G108,1,aux!$AL$1)>0,(G108-INDEX($C108:$G108,1,aux!$AL$1))/INDEX($C108:$G108,1,aux!$AL$1),"n.d.") -> n.d. | AA108: =O108-INDEX($K108:$O108,1,aux!$AL$1) -> 0 | AB108: 0 | AC108: 0 | AD108: =+IF(INDEX($K108:$O108,1,aux!$AL$1)>0,(O108/INDEX($K108:$O108,1,aux!$AL$1))^(1/($O$3-INDEX($K$3:$O$3,1,aux!$AL$1)))-1,"n.d.") -> n.d. | AE108: =IF(INDEX($K108:$O108,1,aux!$AL$1)>0,(O108-INDEX($K108:$O108,1,aux!$AL$1))/INDEX($K108:$O108,1,aux!$AL$1),"n.d.") -> n.d. | AX108: 12
A109: 1203 | B109: Copra | C109: 0 | D109: 0 | E109: 0 | F109: 0 | G109: 0 | H109: 0 | I109: 0 | J109: 0 | K109: 0 | L109: 0 | M109: 0 | N109: 0 | O109: 0 | P109: 0 | Q109: 0 | R109: 0 | S109: 0 | U109: =G109-INDEX($C109:$G109,1,aux!$AL$1) -> 0 | V109: 0 | W109: 0 | X109: =+IF(INDEX($C109:$G109,1,aux!$AL$1)>0,(G109/INDEX($C109:$G109,1,aux!$AL$1))^(1/($G$3-INDEX($C$3:$G$3,1,aux!$AL$1)))-1,"n.d.") -> n.d. | Y109: =IF(INDEX($C109:$G109,1,aux!$AL$1)>0,(G109-INDEX($C109:$G109,1,aux!$AL$1))/INDEX($C109:$G109,1,aux!$AL$1),"n.d.") -> n.d. | AA109: =O109-INDEX($K109:$O109,1,aux!$AL$1) -> 0 | AB109: 0 | AC109: 0 | AD109: =+IF(INDEX($K109:$O109,1,aux!$AL$1)>0,(O109/INDEX($K109:$O109,1,aux!$AL$1))^(1/($O$3-INDEX($K$3:$O$3,1,aux!$AL$1)))-1,"n.d.") -> n.d. | AE109: =IF(INDEX($K109:$O109,1,aux!$AL$1)>0,(O109-INDEX($K109:$O109,1,aux!$AL$1))/INDEX($K109:$O109,1,aux!$AL$1),"n.d.") -> n.d. | AX109: 12
A110: 1204 | B110: Sementes de linho (linhaça) | C110: 0 | D110: 0 | E110: 0 | F110: 0 | G110: 0 | H110: 0 | I110: 0 | J110: 0 | K110: 0 | L110: 0 | M110: 0 | N110: 0 | O110: 0.007 | P110: 0.0014 | Q110: 1.64827428e-07 | R110: 1.241255752e-07 | S110: 0.0014 | U110: =G110-INDEX($C110:$G110,1,aux!$AL$1) -> 0 | V110: 0 | W110: 0 | X110: =+IF(INDEX($C110:$G110,1,aux!$AL$1)>0,(G110/INDEX($C110:$G110,1,aux!$AL$1))^(1/($G$3-INDEX($C$3:$G$3,1,aux!$AL$1)))-1,"n.d.") -> n.d. | Y110: =IF(INDEX($C110:$G110,1,aux!$AL$1)>0,(G110-INDEX($C110:$G110,1,aux!$AL$1))/INDEX($C110:$G110,1,aux!$AL$1),"n.d.") -> n.d. | AA110: =O110-INDEX($K110:$O110,1,aux!$AL$1) -> 0.007 | AB110: 7.585479961e-07 | AC110: 7.743742309e-07 | AD110: =+IF(INDEX($K110:$O110,1,aux!$AL$1)>0,(O110/INDEX($K110:$O110,1,aux!$AL$1))^(1/($O$3-INDEX($K$3:$O$3,1,aux!$AL$1)))-1,"n.d.") -> n.d. | AE110: =IF(INDEX($K110:$O110,1,aux!$AL$1)>0,(O110-INDEX($K110:$O110,1,aux!$AL$1))/INDEX($K110:$O110,1,aux!$AL$1),"n.d.") -> n.d. | AX110: 12
A111: 1205 | B111: Sementes de nabo silvestre ou de colza | C111: 0 | D111: 0 | E111: 0 | F111: 0 | G111: 0 | H111: 0 | I111: 0 | J111: 0 | K111: 0 | L111: 0 | M111: 0 | N111: 0 | O111: 0 | P111: 0 | Q111: 0 | R111: 0 | S111: 0 | U111: =G111-INDEX($C111:$G111,1,aux!$AL$1) -> 0 | V111: 0 | W111: 0 | X111: =+IF(INDEX($C111:$G111,1,aux!$AL$1)>0,(G111/INDEX($C111:$G111,1,aux!$AL$1))^(1/($G$3-INDEX($C$3:$G$3,1,aux!$AL$1)))-1,"n.d.") -> n.d. | Y111: =IF(INDEX($C111:$G111,1,aux!$AL$1)>0,(G111-INDEX($C111:$G111,1,aux!$AL$1))/INDEX($C111:$G111,1,aux!$AL$1),"n.d.") -> n.d. | AA111: =O111-INDEX($K111:$O111,1,aux!$AL$1) -> 0 | AB111: 0 | AC111: 0 | AD111: =+IF(INDEX($K111:$O111,1,aux!$AL$1)>0,(O111/INDEX($K111:$O111,1,aux!$AL$1))^(1/($O$3-INDEX($K$3:$O$3,1,aux!$AL$1)))-1,"n.d.") -> n.d. | AE111: =IF(INDEX($K111:$O111,1,aux!$AL$1)>0,(O111-INDEX($K111:$O111,1,aux!$AL$1))/INDEX($K111:$O111,1,aux!$AL$1),"n.d.") -> n.d. | AX111: 12
A112: 1206 | B112: Sementes de girassol | C112: 0 | D112: 0 | E112: 0 | F112: 0 | G112: 0 | H112: 0 | I112: 0 | J112: 0 | K112: 0 | L112: 0 | M112: 0 | N112: 0 | O112: 0 | P112: 0 | Q112: 0 | R112: 0 | S112: 0 | U112: =G112-INDEX($C112:$G112,1,aux!$AL$1) -> 0 | V112: 0 | W112: 0 | X112: =+IF(INDEX($C112:$G112,1,aux!$AL$1)>0,(G112/INDEX($C112:$G112,1,aux!$AL$1))^(1/($G$3-INDEX($C$3:$G$3,1,aux!$AL$1)))-1,"n.d.") -> n.d. | Y112: =IF(INDEX($C112:$G112,1,aux!$AL$1)>0,(G112-INDEX($C112:$G112,1,aux!$AL$1))/INDEX($C112:$G112,1,aux!$AL$1),"n.d.") -> n.d. | AA112: =O112-INDEX($K112:$O112,1,aux!$AL$1) -> 0 | AB112: 0 | AC112: 0 | AD112: =+IF(INDEX($K112:$O112,1,aux!$AL$1)>0,(O112/INDEX($K112:$O112,1,aux!$AL$1))^(1/($O$3-INDEX($K$3:$O$3,1,aux!$AL$1)))-1,"n.d.") -> n.d. | AE112: =IF(INDEX($K112:$O112,1,aux!$AL$1)>0,(O112-INDEX($K112:$O112,1,aux!$AL$1))/INDEX($K112:$O112,1,aux!$AL$1),"n.d.") -> n.d. | AX112: 12
A113: 1207 | B113: Sementes e frutos oleaginosos | C113: 0 | D113: 0 | E113: 0 | F113: 0 | G113: 0 | H113: 0 | I113: 0 | J113: 0 | K113: 0 | L113: 0 | M113: 0 | N113: 0 | O113: 0.012 | P113: 0.0024 | Q113: 2.825613052e-07 | R113: 2.127867004e-07 | S113: 0.0024 | U113: =G113-INDEX($C113:$G113,1,aux!$AL$1) -> 0 | V113: 0 | W113: 0 | X113: =+IF(INDEX($C113:$G113,1,aux!$AL$1)>0,(G113/INDEX($C113:$G113,1,aux!$AL$1))^(1/($G$3-INDEX($C$3:$G$3,1,aux!$AL$1)))-1,"n.d.") -> n.d. | Y113: =IF(INDEX($C113:$G113,1,aux!$AL$1)>0,(G113-INDEX($C113:$G113,1,aux!$AL$1))/INDEX($C113:$G113,1,aux!$AL$1),"n.d.") -> n.d. | AA113: =O113-INDEX($K113:$O113,1,aux!$AL$1) -> 0.012 | AB113: 1.300367993e-06 | AC113: 1.327498682e-06 | AD113: =+IF(INDEX($K113:$O113,1,aux!$AL$1)>0,(O113/INDEX($K113:$O113,1,aux!$AL$1))^(1/($O$3-INDEX($K$3:$O$3,1,aux!$AL$1)))-1,"n.d.") -> n.d. | AE113: =IF(INDEX($K113:$O113,1,aux!$AL$1)>0,(O113-INDEX($K113:$O113,1,aux!$AL$1))/INDEX($K113:$O113,1,aux!$AL$1),"n.d.") -> n.d. | AX113: 12
A114: 1208 | B114: Farinhas de sementes oleaginosas | C114: 0 | D114: 0 | E114: 0 | F114: 0 | G114: 0 | H114: 0 | I114: 0 | J114: 0 | K114: 0 | L114: 0 | M114: 0 | N114: 0 | O114: 0 | P114: 0 | Q114: 0 | R114: 0 | S114: 0 | U114: =G114-INDEX($C114:$G114,1,aux!$AL$1) -> 0 | V114: 0 | W114: 0 | X114: =+IF(INDEX($C114:$G114,1,aux!$AL$1)>0,(G114/INDEX($C114:$G114,1,aux!$AL$1))^(1/($G$3-INDEX($C$3:$G$3,1,aux!$AL$1)))-1,"n.d.") -> n.d. | Y114: =IF(INDEX($C114:$G114,1,aux!$AL$1)>0,(G114-INDEX($C114:$G114,1,aux!$AL$1))/INDEX($C114:$G114,1,aux!$AL$1),"n.d.") -> n.d. | AA114: =O114-INDEX($K114:$O114,1,aux!$AL$1) -> 0 | AB114: 0 | AC114: 0 | AD114: =+IF(INDEX($K114:$O114,1,aux!$AL$1)>0,(O114/INDEX($K114:$O114,1,aux!$AL$1))^(1/($O$3-INDEX($K$3:$O$3,1,aux!$AL$1)))-1,"n.d.") -> n.d. | AE114: =IF(INDEX($K114:$O114,1,aux!$AL$1)>0,(O114-INDEX($K114:$O114,1,aux!$AL$1))/INDEX($K114:$O114,1,aux!$AL$1),"n.d.") -> n.d. | AX114: 12
A115: 1209 | B115: Sementes, frutos e esporos para sementeira | C115: 0 | D115: 0 | E115: 0 | F115: 0 | G115: 0 | H115: 0 | I115: 0 | J115: 0 | K115: 0 | L115: 0 | M115: 0 | N115: 0 | O115: 0 | P115: 0 | Q115: 0 | R115: 0 | S115: 0 | U115: =G115-INDEX($C115:$G115,1,aux!$AL$1) -> 0 | V115: 0 | W115: 0 | X115: =+IF(INDEX($C115:$G115,1,aux!$AL$1)>0,(G115/INDEX($C115:$G115,1,aux!$AL$1))^(1/($G$3-INDEX($C$3:$G$3,1,aux!$AL$1)))-1,"n.d.") -> n.d. | Y115: =IF(INDEX($C115:$G115,1,aux!$AL$1)>0,(G115-INDEX($C115:$G115,1,aux!$AL$1))/INDEX($C115:$G115,1,aux!$AL$1),"n.d.") -> n.d. | AA115: =O115-INDEX($K115:$O115,1,aux!$AL$1) -> 0 | AB115: 0 | AC115: 0 | AD115: =+IF(INDEX($K115:$O115,1,aux!$AL$1)>0,(O115/INDEX($K115:$O115,1,aux!$AL$1))^(1/($O$3-INDEX($K$3:$O$3,1,aux!$AL$1)))-1,"n.d.") -> n.d. | AE115: =IF(INDEX($K115:$O115,1,aux!$AL$1)>0,(O115-INDEX($K115:$O115,1,aux!$AL$1))/INDEX($K115:$O115,1,aux!$AL$1),"n.d.") -> n.d. | AX115: 12
A116: 1210 | B116: Cones de lúpulo, frescos ou secos | C116: 0 | D116: 0 | E116: 0 | F116: 0 | G116: 0 | H116: 0 | I116: 0 | J116: 0 | K116: 0 | L116: 0 | M116: 0 | N116: 0 | O116: 0 | P116: 0 | Q116: 0 | R116: 0 | S116: 0 | U116: =G116-INDEX($C116:$G116,1,aux!$AL$1) -> 0 | V116: 0 | W116: 0 | X116: =+IF(INDEX($C116:$G116,1,aux!$AL$1)>0,(G116/INDEX($C116:$G116,1,aux!$AL$1))^(1/($G$3-INDEX($C$3:$G$3,1,aux!$AL$1)))-1,"n.d.") -> n.d. | Y116: =IF(INDEX($C116:$G116,1,aux!$AL$1)>0,(G116-INDEX($C116:$G116,1,aux!$AL$1))/INDEX($C116:$G116,1,aux!$AL$1),"n.d.") -> n.d. | AA116: =O116-INDEX($K116:$O116,1,aux!$AL$1) -> 0 | AB116: 0 | AC116: 0 | AD116: =+IF(INDEX($K116:$O116,1,aux!$AL$1)>0,(O116/INDEX($K116:$O116,1,aux!$AL$1))^(1/($O$3-INDEX($K$3:$O$3,1,aux!$AL$1)))-1,"n.d.") -> n.d. | AE116: =IF(INDEX($K116:$O116,1,aux!$AL$1)>0,(O116-INDEX($K116:$O116,1,aux!$AL$1))/INDEX($K116:$O116,1,aux!$AL$1),"n.d.") -> n.d. | AX116: 12
A117: 1211 | B117: Plantas, partes de plantas para usos não alimentares | C117: 0 | D117: 12.451 | E117: 36.688 | F117: 22.771 | G117: 61.844 | H117: 26.7508 | I117: 0.04748453116 | J117: 0.001521975329 | K117: 0 | L117: 0 | M117: 0.046 | N117: 0 | O117: 0 | P117: 0.0092 | Q117: 1.08315167e-06 | R117: 8.156823514e-07 | S117: -26.7416 | U117: =G117-INDEX($C117:$G117,1,aux!$AL$1) -> 61.844 | V117: -0.2037015688 | W117: 0.6174952323 | X117: =+IF(INDEX($C117:$G117,1,aux!$AL$1)>0,(G117/INDEX($C117:$G117,1,aux!$AL$1))^(1/($G$3-INDEX($C$3:$G$3,1,aux!$AL$1)))-1,"n.d.") -> n.d. | Y117: =IF(INDEX($C117:$G117,1,aux!$AL$1)>0,(G117-INDEX($C117:$G117,1,aux!$AL$1))/INDEX($C117:$G117,1,aux!$AL$1),"n.d.") -> n.d. | AA117: =O117-INDEX($K117:$O117,1,aux!$AL$1) -> 0 | AB117: 0 | AC117: 0 | AD117: =+IF(INDEX($K117:$O117,1,aux!$AL$1)>0,(O117/INDEX($K117:$O117,1,aux!$AL$1))^(1/($O$3-INDEX($K$3:$O$3,1,aux!$AL$1)))-1,"n.d.") -> n.d. | AE117: =IF(INDEX($K117:$O117,1,aux!$AL$1)>0,(O117-INDEX($K117:$O117,1,aux!$AL$1))/INDEX($K117:$O117,1,aux!$AL$1),"n.d.") -> n.d. | AX117: 12
A118: 1212 | B118: Alfarroba, algas, beterraba sacarina, etc. | C118: 0 | D118: 0 | E118: 0.148 | F118: 0 | G118: 0 | H118: 0.0296 | I118: 5.254205939e-05 | J118: 1.684079345e-06 | K118: 0 | L118: 0 | M118: 0 | N118: 0 | O118: 0 | P118: 0 | Q118: 0 | R118: 0 | S118: -0.0296 | U118: =G118-INDEX($C118:$G118,1,aux!$AL$1) -> 0 | V118: 0 | W118: 0 | X118: =+IF(INDEX($C118:$G118,1,aux!$AL$1)>0,(G118/INDEX($C118:$G118,1,aux!$AL$1))^(1/($G$3-INDEX($C$3:$G$3,1,aux!$AL$1)))-1,"n.d.") -> n.d. | Y118: =IF(INDEX($C118:$G118,1,aux!$AL$1)>0,(G118-INDEX($C118:$G118,1,aux!$AL$1))/INDEX($C118:$G118,1,aux!$AL$1),"n.d.") -> n.d. | AA118: =O118-INDEX($K118:$O118,1,aux!$AL$1) -> 0 | AB118: 0 | AC118: 0 | AD118: =+IF(INDEX($K118:$O118,1,aux!$AL$1)>0,(O118/INDEX($K118:$O118,1,aux!$AL$1))^(1/($O$3-INDEX($K$3:$O$3,1,aux!$AL$1)))-1,"n.d.") -> n.d. | AE118: =IF(INDEX($K118:$O118,1,aux!$AL$1)>0,(O118-INDEX($K118:$O118,1,aux!$AL$1))/INDEX($K118:$O118,1,aux!$AL$1),"n.d.") -> n.d. | AX118: 12
A119: 1213 | B119: Palhas e cascas de cereais | C119: 0 | D119: 0 | E119: 0 | F119: 0 | G119: 0 | H119: 0 | I119: 0 | J119: 0 | K119: 0 | L119: 0 | M119: 0 | N119: 0 | O119: 0 | P119: 0 | Q119: 0 | R119: 0 | S119: 0 | U119: =G119-INDEX($C119:$G119,1,aux!$AL$1) -> 0 | V119: 0 | W119: 0 | X119: =+IF(INDEX($C119:$G119,1,aux!$AL$1)>0,(G119/INDEX($C119:$G119,1,aux!$AL$1))^(1/($G$3-INDEX($C$3:$G$3,1,aux!$AL$1)))-1,"n.d.") -> n.d. | Y119: =IF(INDEX($C119:$G119,1,aux!$AL$1)>0,(G119-INDEX($C119:$G119,1,aux!$AL$1))/INDEX($C119:$G119,1,aux!$AL$1),"n.d.") -> n.d. | AA119: =O119-INDEX($K119:$O119,1,aux!$AL$1) -> 0 | AB119: 0 | AC119: 0 | AD119: =+IF(INDEX($K119:$O119,1,aux!$AL$1)>0,(O119/INDEX($K119:$O119,1,aux!$AL$1))^(1/($O$3-INDEX($K$3:$O$3,1,aux!$AL$1)))-1,"n.d.") -> n.d. | AE119: =IF(INDEX($K119:$O119,1,aux!$AL$1)>0,(O119-INDEX($K119:$O119,1,aux!$AL$1))/INDEX($K119:$O119,1,aux!$AL$1),"n.d.") -> n.d. | AX119: 12
A120: 1214 | B120: Rutabagas e outros produtos forrageiros | C120: 0 | D120: 0 | E120: 0 | F120: 0 | G120: 0 | H120: 0 | I120: 0 | J120: 0 | K120: 0 | L120: 0 | M120: 0 | N120: 0 | O120: 0 | P120: 0 | Q120: 0 | R120: 0 | S120: 0 | U120: =G120-INDEX($C120:$G120,1,aux!$AL$1) -> 0 | V120: 0 | W120: 0 | X120: =+IF(INDEX($C120:$G120,1,aux!$AL$1)>0,(G120/INDEX($C120:$G120,1,aux!$AL$1))^(1/($G$3-INDEX($C$3:$G$3,1,aux!$AL$1)))-1,"n.d.") -> n.d. | Y120: =IF(INDEX($C120:$G120,1,aux!$AL$1)>0,(G120-INDEX($C120:$G120,1,aux!$AL$1))/INDEX($C120:$G120,1,aux!$AL$1),"n.d.") -> n.d. | AA120: =O120-INDEX($K120:$O120,1,aux!$AL$1) -> 0 | AB120: 0 | AC120: 0 | AD120: =+IF(INDEX($K120:$O120,1,aux!$AL$1)>0,(O120/INDEX($K120:$O120,1,aux!$AL$1))^(1/($O$3-INDEX($K$3:$O$3,1,aux!$AL$1)))-1,"n.d.") -> n.d. | AE120: =IF(INDEX($K120:$O120,1,aux!$AL$1)>0,(O120-INDEX($K120:$O120,1,aux!$AL$1))/INDEX($K120:$O120,1,aux!$AL$1),"n.d.") -> n.d. | AX120: 12
A121: 12SS | B121: Sementes e frutos oleaginosos, etc. | C121: 0 | D121: 0 | E121: 0 | F121: 0 | G121: 0 | H121: 0 | I121: 0 | J121: 0 | K121: 0 | L121: 0 | M121: 0 | N121: 0 | O121: 0 | P121: 0 | Q121: 0 | R121: 0 | S121: 0 | U121: =G121-INDEX($C121:$G121,1,aux!$AL$1) -> 0 | V121: 0 | W121: 0 | X121: =+IF(INDEX($C121:$G121,1,aux!$AL$1)>0,(G121/INDEX($C121:$G121,1,aux!$AL$1))^(1/($G$3-INDEX($C$3:$G$3,1,aux!$AL$1)))-1,"n.d.") -> n.d. | Y121: =IF(INDEX($C121:$G121,1,aux!$AL$1)>0,(G121-INDEX($C121:$G121,1,aux!$AL$1))/INDEX($C121:$G121,1,aux!$AL$1),"n.d.") -> n.d. | AA121: =O121-INDEX($K121:$O121,1,aux!$AL$1) -> 0 | AB121: 0 | AC121: 0 | AD121: =+IF(INDEX($K121:$O121,1,aux!$AL$1)>0,(O121/INDEX($K121:$O121,1,aux!$AL$1))^(1/($O$3-INDEX($K$3:$O$3,1,aux!$AL$1)))-1,"n.d.") -> n.d. | AE121: =IF(INDEX($K121:$O121,1,aux!$AL$1)>0,(O121-INDEX($K121:$O121,1,aux!$AL$1))/INDEX($K121:$O121,1,aux!$AL$1),"n.d.") -> n.d. | AX121: 12
A122: 1302 | B122: Sucos e extratos vegetais, etc. | C122: 0 | D122: 0 | E122: 0 | F122: 0 | G122: 0 | H122: 0 | I122: 0 | J122: 0 | K122: 0 | L122: 0 | M122: 0 | N122: 0 | O122: 0 | P122: 0 | Q122: 0 | R122: 0 | S122: 0 | U122: =G122-INDEX($C122:$G122,1,aux!$AL$1) -> 0 | V122: 0 | W122: 0 | X122: =+IF(INDEX($C122:$G122,1,aux!$AL$1)>0,(G122/INDEX($C122:$G122,1,aux!$AL$1))^(1/($G$3-INDEX($C$3:$G$3,1,aux!$AL$1)))-1,"n.d.") -> n.d. | Y122: =IF(INDEX($C122:$G122,1,aux!$AL$1)>0,(G122-INDEX($C122:$G122,1,aux!$AL$1))/INDEX($C122:$G122,1,aux!$AL$1),"n.d.") -> n.d. | AA122: =O122-INDEX($K122:$O122,1,aux!$AL$1) -> 0 | AB122: 0 | AC122: 0 | AD122: =+IF(INDEX($K122:$O122,1,aux!$AL$1)>0,(O122/INDEX($K122:$O122,1,aux!$AL$1))^(1/($O$3-INDEX($K$3:$O$3,1,aux!$AL$1)))-1,"n.d.") -> n.d. | AE122: =IF(INDEX($K122:$O122,1,aux!$AL$1)>0,(O122-INDEX($K122:$O122,1,aux!$AL$1))/INDEX($K122:$O122,1,aux!$AL$1),"n.d.") -> n.d. | AX122: 13
A123: 13SS | B123: Gomas, resinas e outros sucos e extratos vegetais | C123: 0 | D123: 0 | E123: 0 | F123: 0 | G123: 0 | H123: 0 | I123: 0 | J123: 0 | K123: 0 | L123: 0 | M123: 0 | N123: 0 | O123: 0 | P123: 0 | Q123: 0 | R123: 0 | S123: 0 | U123: =G123-INDEX($C123:$G123,1,aux!$AL$1) -> 0 | V123: 0 | W123: 0 | X123: =+IF(INDEX($C123:$G123,1,aux!$AL$1)>0,(G123/INDEX($C123:$G123,1,aux!$AL$1))^(1/($G$3-INDEX($C$3:$G$3,1,aux!$AL$1)))-1,"n.d.") -> n.d. | Y123: =IF(INDEX($C123:$G123,1,aux!$AL$1)>0,(G123-INDEX($C123:$G123,1,aux!$AL$1))/INDEX($C123:$G123,1,aux!$AL$1),"n.d.") -> n.d. | AA123: =O123-INDEX($K123:$O123,1,aux!$AL$1) -> 0 | AB123: 0 | AC123: 0 | AD123: =+IF(INDEX($K123:$O123,1,aux!$AL$1)>0,(O123/INDEX($K123:$O123,1,aux!$AL$1))^(1/($O$3-INDEX($K$3:$O$3,1,aux!$AL$1)))-1,"n.d.") -> n.d. | AE123: =IF(INDEX($K123:$O123,1,aux!$AL$1)>0,(O123-INDEX($K123:$O123,1,aux!$AL$1))/INDEX($K123:$O123,1,aux!$AL$1),"n.d.") -> n.d. | AX123: 13
A124: 1401 | B124: Matérias vegetais utilizadas em cestaria | C124: 0 | D124: 0 | E124: 0 | F124: 0 | G124: 0 | H124: 0 | I124: 0 | J124: 0 | K124: 0 | L124: 0 | M124: 0 | N124: 0 | O124: 0 | P124: 0 | Q124: 0 | R124: 0 | S124: 0 | U124: =G124-INDEX($C124:$G124,1,aux!$AL$1) -> 0 | V124: 0 | W124: 0 | X124: =+IF(INDEX($C124:$G124,1,aux!$AL$1)>0,(G124/INDEX($C124:$G124,1,aux!$AL$1))^(1/($G$3-INDEX($C$3:$G$3,1,aux!$AL$1)))-1,"n.d.") -> n.d. | Y124: =IF(INDEX($C124:$G124,1,aux!$AL$1)>0,(G124-INDEX($C124:$G124,1,aux!$AL$1))/INDEX($C124:$G124,1,aux!$AL$1),"n.d.") -> n.d. | AA124: =O124-INDEX($K124:$O124,1,aux!$AL$1) -> 0 | AB124: 0 | AC124: 0 | AD124: =+IF(INDEX($K124:$O124,1,aux!$AL$1)>0,(O124/INDEX($K124:$O124,1,aux!$AL$1))^(1/($O$3-INDEX($K$3:$O$3,1,aux!$AL$1)))-1,"n.d.") -> n.d. | AE124: =IF(INDEX($K124:$O124,1,aux!$AL$1)>0,(O124-INDEX($K124:$O124,1,aux!$AL$1))/INDEX($K124:$O124,1,aux!$AL$1),"n.d.") -> n.d. | AX124: 14
A125: 1404 | B125: Outros produtos vegetais | C125: 0 | D125: 0 | E125: 0 | F125: 0 | G125: 0 | H125: 0 | I125: 0 | J125: 0 | K125: 0 | L125: 0 | M125: 0 | N125: 0 | O125: 0 | P125: 0 | Q125: 0 | R125: 0 | S125: 0 | U125: =G125-INDEX($C125:$G125,1,aux!$AL$1) -> 0 | V125: 0 | W125: 0 | X125: =+IF(INDEX($C125:$G125,1,aux!$AL$1)>0,(G125/INDEX($C125:$G125,1,aux!$AL$1))^(1/($G$3-INDEX($C$3:$G$3,1,aux!$AL$1)))-1,"n.d.") -> n.d. | Y125: =IF(INDEX($C125:$G125,1,aux!$AL$1)>0,(G125-INDEX($C125:$G125,1,aux!$AL$1))/INDEX($C125:$G125,1,aux!$AL$1),"n.d.") -> n.d. | AA125: =O125-INDEX($K125:$O125,1,aux!$AL$1) -> 0 | AB125: 0 | AC125: 0 | AD125: =+IF(INDEX($K125:$O125,1,aux!$AL$1)>0,(O125/INDEX($K125:$O125,1,aux!$AL$1))^(1/($O$3-INDEX($K$3:$O$3,1,aux!$AL$1)))-1,"n.d.") -> n.d. | AE125: =IF(INDEX($K125:$O125,1,aux!$AL$1)>0,(O125-INDEX($K125:$O125,1,aux!$AL$1))/INDEX($K125:$O125,1,aux!$AL$1),"n.d.") -> n.d. | AX125: 14
A126: 14SS | B126: Matérias para entrançar e outros | C126: 0 | D126: 0 | E126: 0 | F126: 0 | G126: 0 | H126: 0 | I126: 0 | J126: 0 | K126: 0 | L126: 0 | M126: 0 | N126: 0 | O126: 0 | P126: 0 | Q126: 0 | R126: 0 | S126: 0 | U126: =G126-INDEX($C126:$G126,1,aux!$AL$1) -> 0 | V126: 0 | W126: 0 | X126: =+IF(INDEX($C126:$G126,1,aux!$AL$1)>0,(G126/INDEX($C126:$G126,1,aux!$AL$1))^(1/($G$3-INDEX($C$3:$G$3,1,aux!$AL$1)))-1,"n.d.") -> n.d. | Y126: =IF(INDEX($C126:$G126,1,aux!$AL$1)>0,(G126-INDEX($C126:$G126,1,aux!$AL$1))/INDEX($C126:$G126,1,aux!$AL$1),"n.d.") -> n.d. | AA126: =O126-INDEX($K126:$O126,1,aux!$AL$1) -> 0 | AB126: 0 | AC126: 0 | AD126: =+IF(INDEX($K126:$O126,1,aux!$AL$1)>0,(O126/INDEX($K126:$O126,1,aux!$AL$1))^(1/($O$3-INDEX($K$3:$O$3,1,aux!$AL$1)))-1,"n.d.") -> n.d. | AE126: =IF(INDEX($K126:$O126,1,aux!$AL$1)>0,(O126-INDEX($K126:$O126,1,aux!$AL$1))/INDEX($K126:$O126,1,aux!$AL$1),"n.d.") -> n.d. | AX126: 14
A127: 1501 | B127: Gorduras de suínos e aves | C127: 0 | D127: 0 | E127: 0 | F127: 0 | G127: 0 | H127: 0 | I127: 0 | J127: 0 | K127: 0 | L127: 0 | M127: 0 | N127: 0 | O127: 0 | P127: 0 | Q127: 0 | R127: 0 | S127: 0 | U127: =G127-INDEX($C127:$G127,1,aux!$AL$1) -> 0 | V127: 0 | W127: 0 | X127: =+IF(INDEX($C127:$G127,1,aux!$AL$1)>0,(G127/INDEX($C127:$G127,1,aux!$AL$1))^(1/($G$3-INDEX($C$3:$G$3,1,aux!$AL$1)))-1,"n.d.") -> n.d. | Y127: =IF(INDEX($C127:$G127,1,aux!$AL$1)>0,(G127-INDEX($C127:$G127,1,aux!$AL$1))/INDEX($C127:$G127,1,aux!$AL$1),"n.d.") -> n.d. | AA127: =O127-INDEX($K127:$O127,1,aux!$AL$1) -> 0 | AB127: 0 | AC127: 0 | AD127: =+IF(INDEX($K127:$O127,1,aux!$AL$1)>0,(O127/INDEX($K127:$O127,1,aux!$AL$1))^(1/($O$3-INDEX($K$3:$O$3,1,aux!$AL$1)))-1,"n.d.") -> n.d. | AE127: =IF(INDEX($K127:$O127,1,aux!$AL$1)>0,(O127-INDEX($K127:$O127,1,aux!$AL$1))/INDEX($K127:$O127,1,aux!$AL$1),"n.d.") -> n.d. | AX127: 15
A128: 1502 | B128: Gorduras de bovinos, ovinos ou caprinos | C128: 0 | D128: 0 | E128: 0 | F128: 0 | G128: 0 | H128: 0 | I128: 0 | J128: 0 | K128: 0 | L128: 0 | M128: 0 | N128: 0 | O128: 0 | P128: 0 | Q128: 0 | R128: 0 | S128: 0 | U128: =G128-INDEX($C128:$G128,1,aux!$AL$1) -> 0 | V128: 0 | W128: 0 | X128: =+IF(INDEX($C128:$G128,1,aux!$AL$1)>0,(G128/INDEX($C128:$G128,1,aux!$AL$1))^(1/($G$3-INDEX($C$3:$G$3,1,aux!$AL$1)))-1,"n.d.") -> n.d. | Y128: =IF(INDEX($C128:$G128,1,aux!$AL$1)>0,(G128-INDEX($C128:$G128,1,aux!$AL$1))/INDEX($C128:$G128,1,aux!$AL$1),"n.d.") -> n.d. | AA128: =O128-INDEX($K128:$O128,1,aux!$AL$1) -> 0 | AB128: 0 | AC128: 0 | AD128: =+IF(INDEX($K128:$O128,1,aux!$AL$1)>0,(O128/INDEX($K128:$O128,1,aux!$AL$1))^(1/($O$3-INDEX($K$3:$O$3,1,aux!$AL$1)))-1,"n.d.") -> n.d. | AE128: =IF(INDEX($K128:$O128,1,aux!$AL$1)>0,(O128-INDEX($K128:$O128,1,aux!$AL$1))/INDEX($K128:$O128,1,aux!$AL$1),"n.d.") -> n.d. | AX128: 15
A129: 1503 | B129: Estearina solar, óleo de banha de porco, etc. | C129: 0 | D129: 0 | E129: 0 | F129: 0 | G129: 0 | H129: 0 | I129: 0 | J129: 0 | K129: 0 | L129: 0 | M129: 0 | N129: 0 | O129: 0 | P129: 0 | Q129: 0 | R129: 0 | S129: 0 | U129: =G129-INDEX($C129:$G129,1,aux!$AL$1) -> 0 | V129: 0 | W129: 0 | X129: =+IF(INDEX($C129:$G129,1,aux!$AL$1)>0,(G129/INDEX($C129:$G129,1,aux!$AL$1))^(1/($G$3-INDEX($C$3:$G$3,1,aux!$AL$1)))-1,"n.d.") -> n.d. | Y129: =IF(INDEX($C129:$G129,1,aux!$AL$1)>0,(G129-INDEX($C129:$G129,1,aux!$AL$1))/INDEX($C129:$G129,1,aux!$AL$1),"n.d.") -> n.d. | AA129: =O129-INDEX($K129:$O129,1,aux!$AL$1) -> 0 | AB129: 0 | AC129: 0 | AD129: =+IF(INDEX($K129:$O129,1,aux!$AL$1)>0,(O129/INDEX($K129:$O129,1,aux!$AL$1))^(1/($O$3-INDEX($K$3:$O$3,1,aux!$AL$1)))-1,"n.d.") -> n.d. | AE129: =IF(INDEX($K129:$O129,1,aux!$AL$1)>0,(O129-INDEX($K129:$O129,1,aux!$AL$1))/INDEX($K129:$O129,1,aux!$AL$1),"n.d.") -> n.d. | AX129: 15
